Workbook

Sheet Instructions
H33: 8109

Sheet kT à TJ
A1: Conversion du bilan énergétique des unités de masse (Mt et millions de mètres cubes) en unités d'énergie (TJ)
A2: =+Hypothèses!B2 -> Pays X | B2: =+Hypothèses!B3 -> 2015
A4: Unités de masse | B4: GPL | C4: Essence | D4: Essence pour carburéacteurs | E4: Diesel | F4: Fiouls lourds | G4: Kérosène et autres | H4: Total produits pétroliers | I4: Charbon | J4: Lignite | K4: Gaz | L4: Coke | M4: Coke de pétrole
A5: Unités | B5: Mt | C5: Mt | D5: Mt | E5: Mt | F5: Mt | G5: Mt | H5: Mt | I5: Mt | J5: Mt | K5: mcm | L5: Mt | M5: Mt
A6: Total | B6: =+B7+B8 -> 3.995 | C6: =+C7+C8 -> 2.028 | D6: 1.319 | E6: 20.131 | F6: 0.468 | G6: 0.058 | H6: 27.999 | I6: 28.263 | J6: 56.406 | K6: 44508 | L6: 4.935 | M6: 4.092
A7: Centrales fossiles | E7: 0.238 | F7: 0.227 | H7: =SUM(B7:G7) -> 0.465 | I7: 16.071 | J7: =48.755+0.492 -> 49.247 | K7: 19607
A8: CONSOMMATION FINALE | B8: =SUM(B9:B28) -> 3.995 | C8: =SUM(C9:C28) -> 2.028 | D8: 1.319 | E8: 19.893 | F8: 0.241 | G8: 0.058 | H8: 27.534 | I8: =SUM(I9:I28) -> 12.192 | J8: =SUM(J9:J28) -> 7.159 | K8: =SUM(K9:K28) -> 24901 | L8: =SUM(L9:L28) -> 4.935 | M8: =SUM(M9:M28) -> 4.092
A9: Industrie - acier | E9: =0.016+0.001 -> 0.017 | H9: =SUM(B9:G9) -> 0.017 | I9: =0.017 -> 0.017 | J9: 0.026 | K9: =203+27 -> 230
A10: Industrie - chimique | B10: 0.009 | E10: 0.004 | F10: 0.003 | H10: 0.016 | I10: 0.394 | J10: 0.325 | K10: 2590
A11: Industrie - minerai non metallique | B11: 0.003 | E11: 0.024 | F11: 0.018 | H11: 0.045 | I11: 3.307 | J11: =1.106+0.3 -> 1.406 | K11: 1884 | M11: 4.085
A12: Industrie - transformation des aliments et boissons | B12: 0.02 | E12: 0.006 | F12: 0.037 | H12: 0.063 | I12: 0.228 | J12: 0.787 | K12: 982 | L12: 0.049 | M12: 0.007
A13: Industrie - construction | E13: 0.147 | H13: 0.147 | I13: 0.001 | J13: 0.003 | K13: 360
A14: Industrie - exploitation minière | E14: 0.376 | H14: 0.376 | I14: 0.019 | J14: 0.094 | K14: 130
A15: Industrie - machinerie | B15: 0.005 | E15: 0.003 | H15: 0.008 | I15: 0.003 | J15: 0.017 | K15: 69
A16: Industrie - métaux non-ferreux | B16: 0.037 | E16: 0.013 | H16: 0.05 | I16: 1.086 | J16: 0.068 | K16: 2057 | L16: 4.838
A17: Industrie - pâtes et papiers | B17: 0.001 | E17: 0.01 | H17: 0.011 | I17: 0.043 | J17: 0.202 | K17: 222
A18: Industrie - transport d'équipment | B18: 0.023 | E18: 0.007 | H18: 0.03 | J18: 0.008 | K18: 178
A19: Industrie - cuir et textile | B19: 0.012 | E19: 0.006 | H19: 0.018 | I19: 0.355 | J19: 1.086 | K19: 1198
A20: Industrie - divers | H20: 0 | J20: 0.001 | K20: 621
A21: Transport - route | B21: 3.069 | C21: 2.028 | E21: 16.428 | H21: 21.525 | K21: 86
A22: Transport - rail | E22: 0.135 | H22: 0.135
A23: Transport - air domestique | D23: 1.319 | H23: 1.319
A24: Transport - navigation | F24: 0.183 | H24: 0.183
A25: Ménages | B25: 0.245 | G25: 0.058 | H25: 0.303 | I25: 1.516 | J25: =2.084+0.242 -> 2.326 | K25: 11000
A26: Services | B26: 0.571 | H26: 0.571 | I26: 5.223 | J26: 0.81 | K26: 3161 | L26: 0.048
A27: Agriculture & Pêches | E27: 2.717 | H27: 2.717 | K27: 133
A28: Non énergétique - matières premières chimiques | H28: 0
A33: TJ units | B33: GPL | C33: Essence | D33: Essence pour carburéacteurs | E33: Diesel | F33: Fiouls lourds | G33: Kérosène et autres | H33: Total produits pétroliers | I33: Charbon | J33: Lignite | K33: Gaz | L33: Coke | M33: Coke de pétrole | N33: Énergie totale
A34: TJ/(kT or Mm3) | B34: 47.3 | C34: 44.8 | D34: 44.59 | E34: 43.33 | F34: 40.19 | G34: 44.75 | I34: 28 | J34: 18.3 | K34: 39 | L34: 28 | M34: 31 | N34: TJ
A35: Total | B35: =+B36+B37 -> 188963.5 | C35: =+C36+C37 -> 90854.4 | D35: 58814.21 | E35: 872276.23 | F35: 18808.92 | G35: 2595.5 | H35: 1232312.76 | I35: 791364 | J35: 1032229.8 | K35: 1735812 | L35: 138180 | M35: 126852 | N35: =SUM(H35:M35) -> 5056750.56
A36: Centrales fossiles | B36: =B7*B$34*1000 -> 0 | C36: 0 | D36: 0 | E36: 10312.54 | F36: 9123.13 | G36: 0 | H36: =SUM(B36:G36) -> 19435.67 | I36: =I7*I$34*1000 -> 449988 | J36: =J7*J$34*1000 -> 901220.1 | K36: =K7*K$34 -> 764673 | L36: =L7*L$34*1000 -> 0 | M36: =M7*M$34*1000 -> 0 | N36: =SUM(H36:M36) -> 2135316.77
A37: CONSOMMATION FINALE | B37: =SUM(B38:B57) -> 188963.5 | C37: =SUM(C38:C57) -> 90854.4 | D37: 58814.21 | E37: 861963.69 | F37: 9685.79 | G37: 2595.5 | H37: 1212877.09 | I37: 341376 | J37: =SUM(J38:J57) -> 131009.7 | K37: 971139 | L37: =SUM(L38:L57) -> 138180 | M37: =SUM(M38:M57) -> 126852 | N37: 2921433.79
A38: Industrie - acier | B38: =B9*B$34*1000 -> 0 | C38: 0 | D38: 0 | E38: 736.61 | F38: 0 | G38: 0 | H38: =SUM(B38:G38) -> 736.61 | I38: =I9*I$34*1000 -> 476 | J38: 475.8 | K38: =K9*K$34 -> 8970 | L38: =L9*L$34*1000 -> 0 | M38: 0 | N38: 10658.41
A39: Industrie - chimique | B39: 425.7 | C39: 0 | D39: 0 | E39: 173.32 | F39: 120.57 | G39: 0 | H39: 719.59 | I39: 11032 | J39: 5947.5 | K39: 101010 | L39: 0 | M39: 0 | N39: 118709.09
A40: Industrie - minerai non metallique | B40: 141.9 | C40: 0 | D40: 0 | E40: 1039.92 | F40: 723.42 | G40: 0 | H40: 1905.24 | I40: 92596 | J40: 25729.8 | K40: 73476 | L40: 0 | M40: 126635 | N40: 320342.04
A41: Industrie - transformation des aliments et boissons | B41: 946 | C41: 0 | D41: 0 | E41: 259.98 | F41: 1487.03 | G41: 0 | H41: 2693.01 | I41: 6384 | J41: 14402.1 | K41: 38298 | L41: =L12*L$34*1000 -> 1372 | M41: =M12*M$34*1000 -> 217 | N41: 63366.11
A42: Industrie - construction | B42: 0 | C42: 0 | D42: 0 | E42: 6369.51 | F42: 0 | G42: 0 | H42: 6369.51 | I42: 28 | J42: 54.9 | K42: 14040 | L42: =L13*L$34*1000 -> 0 | M42: 0 | N42: 20492.41
A43: Industrie - exploitation minière | B43: 0 | C43: 0 | D43: 0 | E43: 16292.08 | F43: 0 | G43: 0 | H43: 16292.08 | I43: 532 | J43: 1720.2 | K43: 5070 | L43: 0 | M43: 0 | N43: 23614.28
A44: Industrie - machinerie | B44: 236.5 | C44: 0 | D44: 0 | E44: 129.99 | F44: 0 | G44: 0 | H44: 366.49 | I44: 84 | J44: 311.1 | K44: 2691 | L44: 0 | M44: 0 | N44: 3452.59
A45: Industrie - métaux non-ferreux | B45: 1750.1 | C45: 0 | D45: 0 | E45: 563.29 | F45: 0 | G45: 0 | H45: 2313.39 | I45: 30408 | J45: 1244.4 | K45: 80223 | L45: 135464 | M45: 0 | N45: 249652.79
A46: Industrie - pâtes et papiers | B46: 47.3 | C46: 0 | D46: 0 | E46: 433.3 | F46: 0 | G46: 0 | H46: 480.6 | I46: 1204 | J46: 3696.6 | K46: 8658 | L46: 0 | M46: 0 | N46: 14039.2
A47: Industrie - transport d'équipment | B47: 1087.9 | C47: 0 | D47: 0 | E47: 303.31 | F47: 0 | G47: 0 | H47: 1391.21 | I47: 0 | J47: 146.4 | K47: 6942 | L47: 0 | M47: 0 | N47: 8479.61
A48: Industrie - cuir et textile | B48: 567.6 | C48: 0 | D48: 0 | E48: 259.98 | F48: 0 | G48: 0 | H48: 827.58 | I48: 9940 | J48: 19873.8 | K48: 46722 | L48: 0 | M48: 0 | N48: 77363.38
A49: Industrie - divers | B49: 0 | C49: 0 | D49: 0 | E49: 0 | F49: 0 | G49: 0 | H49: 0 | I49: 0 | J49: 18.3 | K49: 24219 | L49: 0 | M49: 0 | N49: 24237.3
A50: Transport - route | B50: 145163.7 | C50: =C21*C$34*1000 -> 90854.4 | D50: 0 | E50: 711825.24 | F50: 0 | G50: 0 | H50: 947843.34 | I50: 0 | J50: 0 | K50: 3354 | L50: 0 | M50: 0 | N50: 951197.34
A51: Transport - rail | B51: 0 | C51: 0 | D51: 0 | E51: 5849.55 | F51: 0 | G51: 0 | H51: 5849.55 | I51: 0 | J51: 0 | K51: 0 | L51: 0 | M51: 0 | N51: 5849.55
A52: Transport - air domestique | B52: 0 | C52: 0 | D52: =D23*D$34*1000 -> 58814.21 | E52: 0 | F52: 0 | G52: 0 | H52: 58814.21 | I52: 0 | J52: 0 | K52: 0 | L52: 0 | M52: 0 | N52: 58814.21
A53: Transport - navigation | B53: 0 | C53: 0 | D53: 0 | E53: 0 | F53: 7354.77 | G53: 0 | H53: 7354.77 | I53: 0 | J53: 0 | K53: 0 | L53: 0 | M53: 0 | N53: 7354.77
A54: Ménages | B54: =B25*B$34*1000 -> 11588.5 | C54: 0 | D54: 0 | E54: 0 | F54: 0 | G54: 2595.5 | H54: 14184 | I54: 42448 | J54: 42565.8 | K54: 429000 | L54: 0 | M54: 0 | N54: 528197.8
A55: Services | B55: 27008.3 | C55: 0 | D55: 0 | E55: 0 | F55: 0 | G55: 0 | H55: 27008.3 | I55: 146244 | J55: 14823 | K55: 123279 | L55: 1344 | M55: 0 | N55: 312698.3
A56: Agriculture & Pêches | B56: 0 | C56: 0 | D56: 0 | E56: 117727.61 | F56: 0 | G56: 0 | H56: 117727.61 | I56: 0 | J56: 0 | K56: 5187 | L56: 0 | M56: 0 | N56: 122914.61
A57: Non énergétique - matières premières chimiques | B57: 0 | C57: 0 | D57: 0 | E57: 0 | F57: 0 | G57: 0 | H57: 0 | I57: 0 | J57: 0 | K57: 0 | L57: 0 | M57: 0 | N57: 0

Sheet Bilan initial
A1: Bilan énergétique des combustibles fossiles en TJ | B1: =+Hypothèses!$B$2 -> Pays X | D1: =+Hypothèses!$B$3 -> 2015
A3: Unité de TJ | B3: GPL | C3: Essence | D3: Essence pour carburéacteurs | E3: Diesel | F3: Fiouls lourds | G3: Kérosène et autres | H3: Total produits pétroliers | I3: Charbon | J3: Lignite | K3: Gaz | L3: Coke | M3: Coke de pétrole | N3: Énergie totale (fossile)
A4: Unité | B4: TJ | C4: TJ | D4: TJ | E4: TJ | F4: TJ | G4: TJ | H4: TJ | I4: TJ | J4: TJ | K4: TJ | L4: TJ | M4: TJ | N4: TJ
A5: Total | B5: =+B6+B7 -> 188963.5 | C5: 90854.4 | D5: 58814.21 | E5: 872276.23 | F5: 18808.92 | G5: 2595.5 | H5: =+H6+H7 -> 1232312.76 | I5: 791364 | J5: 1032229.8 | K5: 1735812 | L5: 138180 | M5: 126852 | N5: =SUM(H5:M5) -> 5056750.56
A6: Centrales fossiles | B6: 0 | C6: 0 | D6: 0 | E6: 10312.54 | F6: 9123.13 | G6: 0 | H6: =SUM(B6:G6) -> 19435.67 | I6: 449988 | J6: 901220.1 | K6: 764673 | L6: 0 | M6: 0 | N6: =SUM(H6:M6) -> 2135316.77
A7: CONSOMMATION FINALE | B7: =SUM(B8:B27) -> 188963.5 | C7: 90854.4 | D7: 58814.21 | E7: 861963.69 | F7: 9685.79 | G7: 2595.5 | H7: 1212877.09 | I7: 341376 | J7: 131009.7 | K7: 971139 | L7: 138180 | M7: 126852 | N7: 2921433.79
A8: Industrie - acier | B8: 0 | C8: 0 | D8: 0 | E8: 736.61 | F8: 0 | G8: 0 | H8: =SUM(B8:G8) -> 736.61 | I8: 476 | J8: 475.8 | K8: 8970 | L8: 0 | M8: 0 | N8: 10658.41
A9: Industrie - chimique | B9: 425.7 | C9: 0 | D9: 0 | E9: 173.32 | F9: 120.57 | G9: 0 | H9: 719.59 | I9: 11032 | J9: 5947.5 | K9: 101010 | L9: 0 | M9: 0 | N9: 118709.09
A10: Industrie - minerai non metallique | B10: 141.9 | C10: 0 | D10: 0 | E10: 1039.92 | F10: 723.42 | G10: 0 | H10: 1905.24 | I10: 92596 | J10: 25729.8 | K10: 73476 | L10: 0 | M10: 126635 | N10: 320342.04
A11: Industrie - transformation des aliments et boissons | B11: 946 | C11: 0 | D11: 0 | E11: 259.98 | F11: 1487.03 | G11: 0 | H11: 2693.01 | I11: 6384 | J11: 14402.1 | K11: 38298 | L11: 1372 | M11: 217 | N11: 63366.11
A12: Industrie - construction | B12: 0 | C12: 0 | D12: 0 | E12: 6369.51 | F12: 0 | G12: 0 | H12: 6369.51 | I12: 28 | J12: 54.9 | K12: 14040 | L12: 0 | M12: 0 | N12: 20492.41
A13: Industrie - exploitation minière | B13: 0 | C13: 0 | D13: 0 | E13: 16292.08 | F13: 0 | G13: 0 | H13: 16292.08 | I13: 532 | J13: 1720.2 | K13: 5070 | L13: 0 | M13: 0 | N13: 23614.28
A14: Industrie - machinerie | B14: 236.5 | C14: 0 | D14: 0 | E14: 129.99 | F14: 0 | G14: 0 | H14: 366.49 | I14: 84 | J14: 311.1 | K14: 2691 | L14: 0 | M14: 0 | N14: 3452.59
A15: Industrie - métaux non-ferreux | B15: 1750.1 | C15: 0 | D15: 0 | E15: 563.29 | F15: 0 | G15: 0 | H15: 2313.39 | I15: 30408 | J15: 1244.4 | K15: 80223 | L15: 135464 | M15: 0 | N15: 249652.79
A16: Industrie - pâtes et papiers | B16: 47.3 | C16: 0 | D16: 0 | E16: 433.3 | F16: 0 | G16: 0 | H16: 480.6 | I16: 1204 | J16: 3696.6 | K16: 8658 | L16: 0 | M16: 0 | N16: 14039.2
A17: Industrie - transport d'équipment | B17: 1087.9 | C17: 0 | D17: 0 | E17: 303.31 | F17: 0 | G17: 0 | H17: 1391.21 | I17: 0 | J17: 146.4 | K17: 6942 | L17: 0 | M17: 0 | N17: 8479.61
A18: Industrie - cuir et textile | B18: 567.6 | C18: 0 | D18: 0 | E18: 259.98 | F18: 0 | G18: 0 | H18: 827.58 | I18: 9940 | J18: 19873.8 | K18: 46722 | L18: 0 | M18: 0 | N18: 77363.38
A19: Industrie - divers | B19: 0 | C19: 0 | D19: 0 | E19: 0 | F19: 0 | G19: 0 | H19: 0 | I19: 0 | J19: 18.3 | K19: 24219 | L19: 0 | M19: 0 | N19: 24237.3
A20: Transport - route | B20: 145163.7 | C20: 90854.4 | D20: 0 | E20: 711825.24 | F20: 0 | G20: 0 | H20: 947843.34 | I20: 0 | J20: 0 | K20: 3354 | L20: 0 | M20: 0 | N20: 951197.34
A21: Transport - rail | B21: 0 | C21: 0 | D21: 0 | E21: 5849.55 | F21: 0 | G21: 0 | H21: 5849.55 | I21: 0 | J21: 0 | K21: 0 | L21: 0 | M21: 0 | N21: 5849.55
A22: Transport - air domestique | B22: 0 | C22: 0 | D22: 58814.21 | E22: 0 | F22: 0 | G22: 0 | H22: 58814.21 | I22: 0 | J22: 0 | K22: 0 | L22: 0 | M22: 0 | N22: 58814.21
A23: Transport - navigation | B23: 0 | C23: 0 | D23: 0 | E23: 0 | F23: 7354.77 | G23: 0 | H23: 7354.77 | I23: 0 | J23: 0 | K23: 0 | L23: 0 | M23: 0 | N23: 7354.77
A24: Ménages | B24: 11588.5 | C24: 0 | D24: 0 | E24: 0 | F24: 0 | G24: 2595.5 | H24: 14184 | I24: 42448 | J24: 42565.8 | K24: 429000 | L24: 0 | M24: 0 | N24: 528197.8
A25: Services | B25: 27008.3 | C25: 0 | D25: 0 | E25: 0 | F25: 0 | G25: 0 | H25: 27008.3 | I25: 146244 | J25: 14823 | K25: 123279 | L25: 1344 | M25: 0 | N25: 312698.3
A26: Agriculture & Pêches | B26: 0 | C26: 0 | D26: 0 | E26: 117727.61 | F26: 0 | G26: 0 | H26: 117727.61 | I26: 0 | J26: 0 | K26: 5187 | L26: 0 | M26: 0 | N26: 122914.61
A27: Non énergétique - matières premières chimiques | B27: 0 | C27: 0 | D27: 0 | E27: 0 | F27: 0 | G27: 0 | H27: 0 | I27: 0 | J27: 0 | K27: 0 | L27: 0 | M27: 0 | N27: 0
A30: Bilan énergétique des combustibles fossiles en ktoe
A31: 1 ktoe=41.868 TJ | B31: =+B1 -> Pays X | D31: =+D1 -> 2015
A32: ktoe per TJ | C32: =1/41.868 -> 0.02388458966 | D32: =1/41.868 -> 0.02388458966 | E32: 0.02388458966 | F32: 0.02388458966 | G32: 0.02388458966 | H32: 0.02388458966 | I32: 0.02388458966 | J32: 0.02388458966 | K32: 0.02388458966 | L32: 0.02388458966 | M32: 0.02388458966 | N32: 0.02388458966
A33: Unité : ktoe | B33: Total | C33: GPL | D33: Essence | E33: Essence pour carburéacteurs | F33: Diesel | G33: Fiouls lourds | H33: Kérosène et autres | I33: Total produits pétroliers | J33: Charbon | K33: Lignite | L33: Gaz | M33: Coke | N33: Coke de pétrole | O33: Consommation d'électricité Gwh | Q33: Production d'électricité Gwh | R33: Part de la production | S33: Efficacité
A34: Total | B34: =+B35+B36 -> 120778.4122 | C34: =+C35+C36 -> 4513.315659 | D34: 2170.020063 | E34: 1404.753272 | F34: 20833.95983 | G34: 449.2433362 | H34: 61.99245247 | I34: 29433.28461 | J34: 18901.40441 | K34: 24654.38521 | L34: 41459.15735 | M34: 3300.3726 | N34: 3029.807968 | P34: Total | Q34: =+Q36+Q51 -> 261785
A35: Centrales fossiles | B35: =SUM(I35:N35) -> 51001.16485 | C35: =B6*C$32 -> 0 | D35: 0 | E35: 0 | F35: 246.3107863 | G35: 217.9022165 | H35: 0 | I35: =SUM(C35:H35) -> 464.2130028 | J35: =I6*J$32 -> 10747.77873 | K35: =J6*K$32 -> 21525.27228 | L35: =K6*L$32 -> 18263.90083 | M35: =L6*M$32 -> 0 | N35: =M6*N$32 -> 0 | P35: Pertes | Q35: =Q34-O36 -> 44733 | R35: =IF(Q$34=0,1,Q35/Q$34) -> 0.1708768646
A36: CONSOMMATION FINALE | B36: =SUM(I36:N36) -> 69777.2473 | C36: =SUM(C37:C56) -> 4513.315659 | D36: =SUM(D37:D56) -> 2170.020063 | E36: 1404.753272 | F36: 20587.64904 | G36: 231.3411197 | H36: 61.99245247 | I36: 28969.07161 | J36: 8153.625681 | K36: 3129.112926 | L36: 23195.25652 | M36: 3300.3726 | N36: 3029.807968 | O36: =SUM(O37:O56) -> 217052 | P36: Fossile | Q36: =SUM(Q37:Q49) -> 177609 | R36: =SUM(R37:R50) -> 0.6784536929
A37: Industrie - acier | B37: 254.5717493 | C37: =B8*C$32 -> 0 | D37: 0 | E37: 0 | F37: 17.59362759 | G37: 0 | H37: 0 | I37: 17.59362759 | J37: =I8*J$32 -> 11.36906468 | K37: 11.36428776 | L37: 214.2447693 | M37: 0 | N37: 0 | O37: =1418+115 -> 1533 | P37: Lignite | Q37: =31336+1079 -> 32415 | R37: =IF(Q$34=0,1,Q37/Q$34) -> 0.1238229845 | S37: =IF(K35>0,Q37/11.63/K35,0) -> 0.1294844622
A38: Industrie - chimique | B38: 2835.317904 | C38: 10.16766982 | D38: 0 | E38: 0 | F38: 4.13967708 | G38: 2.879764976 | H38: 0 | I38: 17.18711188 | J38: 263.4947932 | K38: 142.053597 | L38: 2412.582402 | M38: 0 | N38: 0 | O38: 15155 | P38: Charbon | Q38: 43751 | R38: 0.1671256947 | S38: =IF( J35>0,Q38/11.63/J35,0) -> 0.3500173338
A39: Industrie - minerai non metallique | B39: 7651.238177 | C39: 3.389223273 | D39: 0 | E39: 0 | F39: 24.83806248 | G39: 17.27858985 | H39: 0 | I39: 45.50587561 | J39: 2211.617464 | K39: 614.5457151 | L39: 1754.94411 | M39: 0 | N39: =M10*N$32 -> 3024.625012 | O39: 18543 | P39: Pétrole | Q39: =980+1244 -> 2224 | R39: 0.008495521134 | S39: =IF( I35>0,Q39/11.63/I35,0) -> 0.4119436068
A40: Industrie - transformation des aliments et boissons | B40: 1513.473536 | C40: 22.59482182 | D40: 0 | E40: 0 | F40: 6.209515621 | G40: 35.51710137 | H40: 0 | I40: 64.32143881 | J40: 152.4792204 | K40: 343.9882488 | L40: 914.7320149 | M40: 32.76965702 | N40: 5.182955957 | O40: 7100 | P40: Gaz naturel | Q40: 99219 | R40: 0.3790094925 | S40: =IF( L35>0,Q40/11.63/L35,0) -> 0.4671126089
A41: Industrie - construction | B41: 489.4528041 | C41: 0 | D41: 0 | E41: 0 | F41: 152.1331327 | G41: 0 | H41: 0 | I41: 152.1331327 | J41: 0.6687685106 | K41: 1.311263972 | L41: 335.3396389 | M41: 0 | N41: 0 | O41: 2866 | P41: Nucléaire | R41: 0
A42: Industrie - exploitation minière | B42: 564.017388 | C42: 0 | D42: 0 | E42: 0 | F42: 389.1296456 | G42: 0 | H42: 0 | I42: 389.1296456 | J42: 12.7066017 | K42: 41.08627114 | L42: 121.0948696 | M42: 0 | N42: 0 | O42: 2205 | P42: Importation net | R42: 0
A43: Industrie - machinerie | B43: 82.46369542 | C43: 5.648705455 | D43: 0 | E43: 0 | F43: 3.10475781 | G43: 0 | H43: 0 | I43: 8.753463266 | J43: 2.006305532 | K43: 7.430495844 | L43: 64.27343078 | M43: 0 | N43: 0 | O43: 2154
A44: Industrie - métaux non-ferreux | B44: 5962.854447 | C44: 41.80042037 | D44: 0 | E44: 0 | F44: 13.45395051 | G44: 0 | H44: 0 | I44: 55.25437088 | J44: 726.2826025 | K44: 29.72198338 | L44: 1916.093437 | M44: =L15*M$32 -> 3235.502054 | N44: 0 | O44: 25263
A45: Industrie - pâtes et papiers | B45: 335.3205312 | C45: 1.129741091 | D45: 0 | E45: 0 | F45: 10.3491927 | G45: 0 | H45: 0 | I45: 11.47893379 | J45: 28.75704595 | K45: 88.29177415 | L45: 206.7927773 | M45: 0 | N45: 0 | O45: 4018
A46: Industrie - transport d'équipment | B46: 202.5320054 | C46: 25.98404509 | D46: 0 | E46: 0 | F46: 7.244434891 | G46: 0 | H46: 0 | I46: 33.22847998 | J46: 0 | K46: 3.496703927 | L46: 165.8068214 | M46: 0 | N46: 0 | O46: 2656
A47: Industrie - cuir et textile | B47: 1847.792586 | C47: 13.55689309 | D47: 0 | E47: 0 | F47: 6.209515621 | G47: 0 | H47: 0 | I47: 19.76640871 | J47: 237.4128212 | K47: 474.677558 | L47: 1115.935798 | M47: 0 | N47: 0 | O47: 17371
A48: Industrie - divers | B48: 578.897965 | C48: 0 | D48: 0 | E48: 0 | F48: 0 | G48: 0 | H48: 0 | I48: 0 | J48: 0 | K48: 0.4370879908 | L48: 578.460877 | M48: 0 | N48: 0 | O48: 4669
A49: Transport - route | B49: 22718.95815 | C49: 3467.175408 | D49: 2170.020063 | E49: 0 | F49: 17001.65377 | G49: 0 | H49: 0 | I49: 22638.84924 | J49: 0 | K49: 0 | L49: 80.10891373 | M49: 0 | N49: 0
A50: Transport - rail | B50: 139.7141015 | C50: 0 | D50: 0 | E50: 0 | F50: 139.7141015 | G50: 0 | H50: 0 | I50: 139.7141015 | J50: 0 | K50: 0 | L50: 0 | M50: 0 | N50: 0 | O50: 803
A51: Transport - air domestique | B51: 1404.753272 | C51: 0 | D51: 0 | E51: 1404.753272 | F51: 0 | G51: 0 | H51: 0 | I51: 1404.753272 | J51: 0 | K51: 0 | L51: 0 | M51: 0 | N51: 0 | P51: Renouvelable | Q51: =SUM(Q52:Q56) -> 84176 | R51: =SUM(R52:R56) -> 0.3215463071
A52: Transport - navigation | B52: 175.6656635 | C52: 0 | D52: 0 | E52: 0 | F52: 0 | G52: 175.6656635 | H52: 0 | I52: 175.6656635 | J52: 0 | K52: 0 | L52: 0 | M52: 0 | N52: 0 | P52: Hydro | Q52: 67146 | R52: =IF(Q$34=0,1,Q52/Q$34) -> 0.2564929236
A53: Ménages | B53: 12615.78771 | C53: =B24*C$32 -> 276.7865673 | D53: 0 | E53: 0 | F53: 0 | G53: 0 | H53: 61.99245247 | I53: 338.7790198 | J53: =I24*J$32 -> 1013.853062 | K53: 1016.666667 | L53: 10246.48897 | M53: 0 | N53: 0 | O53: 47901 | P53: Éolien | Q53: 11653 | R53: =IF(Q$34=0,1,Q53/Q$34) -> 0.0445136276
A54: Services | B54: 7468.670584 | C54: 645.082163 | D54: 0 | E54: 0 | F54: 0 | G54: 0 | H54: 0 | I54: 645.082163 | J54: 3492.977931 | K54: 354.0412726 | L54: 2944.468329 | M54: 32.10088851 | N54: 0 | O54: 59934 | P54: Solaire | Q54: 194 | R54: =IF(Q$34=0,1,Q54/Q$34) -> 0.0007410661421
A55: Agriculture & Pêches | B55: 2935.765023 | C55: 0 | D55: 0 | E55: 0 | F55: 2811.875657 | G55: 0 | H55: 0 | I55: 2811.875657 | J55: 0 | K55: 0 | L55: 123.8893666 | M55: 0 | N55: 0 | O55: 4881 | P55: Biomasse | Q55: 1758 | R55: =IF(Q$34=0,1,Q55/Q$34) -> 0.006715434421
A56: Non énergétique - matières premières chimiques | B56: 0 | C56: 0 | D56: 0 | E56: 0 | F56: 0 | G56: 0 | H56: 0 | I56: 0 | J56: 0 | K56: 0 | L56: 0 | M56: 0 | N56: 0 | P56: Géothermie | Q56: 3425 | R56: =IF(Q$34=0,1,Q56/Q$34) -> 0.01308325534
R57: =+R36+R51 -> 1
A58: Balance GES
A59: 1 toe = 10 GCal= 41.868 GJ | B59: =+B31 -> Pays X | D59: =+D31 -> 2015 | G59: Fraction de carbone oxydé: | J59: 0.99
A60: Ton CO2/Toe (IPCC): | C60: =41.868*Hypothèses!C41/1000*J59 -> 2.614070448 | D60: =41.868*Hypothèses!C38/1000*J59 -> 2.872437876 | E60: =41.868*Hypothèses!C39/1000*J59 -> 2.96362638 | F60: =41.868*Hypothèses!C37/1000*J59 -> 3.070012968 | G60: =41.868*Hypothèses!C36/1000*J59 -> 3.206795724 | H60: =41.868*Hypothèses!C40/1000*J59 -> 2.978824464 | J60: =41.868*Hypothèses!C43/1000*J59 -> 3.921105672 | K60: =41.868*Hypothèses!C44/1000*J59 -> 4.194671184 | L60: =41.868*Hypothèses!C42/1000*J59 -> 2.325306852 | M60: =41.868*108.2/1000*J59 -> 4.484816424 | N60: =41.868*100.3/1000*J59 -> 4.157366796
A61: Unité : ktCO2-e | B61: Total | C61: GPL | D61: Essence | E61: Essence pour carburéacteurs | F61: Diesel | G61: Fiouls lourds | H61: Kérosène et autres | I61: Total produits pétroliers | J61: Charbon | K61: Lignite | L61: Gaz | M61: Coke | N61: Coke de pétrole
A62: Total | B62: =+B63+B64 -> 389114.6541 | C62: =+C63+C64 -> 11798.12509 | D62: 6233.247821 | E62: 4163.163855 | F62: 63960.52684 | G62: 1440.63161 | H62: 184.664634 | I62: 87780.35985 | J62: 74114.40406 | K62: 103417.0392 | L62: 96405.26267 | M62: 14801.56524 | N62: 12596.02304
A63: Centrales fossiles | B63: =SUM(I63:N63) -> 176358.7345 | C63: =C35*C$60 -> 0 | D63: 0 | E63: 0 | F63: 756.177308 | G63: 698.7678961 | H63: 0 | I63: =SUM(C63:H63) -> 1454.945204 | J63: =J35*J$60 -> 42143.17615 | K63: 90291.43938 | L63: 42469.17375 | M63: 0 | N63: 0
A64: CONSOMMATION FINALE | B64: =SUM(I64:N64) -> 212755.9196 | C64: =SUM(C65:C84) -> 11798.12509 | D64: =SUM(D65:D84) -> 6233.247821 | E64: 4163.163855 | F64: 63204.34953 | G64: 741.8637135 | H64: 184.664634 | I64: 86325.41464 | J64: 31971.2279 | K64: 13125.59982 | L64: =SUM(L65:L84) -> 53936.08892 | M64: =SUM(M65:M84) -> 14801.56524 | N64: =SUM(N65:N84) -> 12596.02304
A65: Industrie - acier | B65: 644.4462493 | C65: 0 | D65: 0 | E65: 0 | F65: 54.01266486 | G65: 0 | H65: 0 | I65: 54.01266486 | J65: 44.579304 | K65: 47.6694504 | L65: 498.18483 | M65: 0 | N65: 0
A66: Industrie - chimique | B66: 7287.576134 | C66: 26.5790052 | D66: 0 | E66: 0 | F66: 12.70886232 | G66: 9.23481801 | H66: 0 | I66: 48.52268553 | J66: 1033.190928 | K66: 595.86813 | L66: 5609.99439 | M66: 0 | N66: 0
A67: Industrie - minerai non metallique | B67: 28045.5839 | C67: 8.8596684 | D67: 0 | E67: 0 | F67: 76.25317392 | G67: 55.40890806 | H67: 0 | I67: 140.5217504 | J67: 8671.985784 | K67: 2577.817202 | L67: 4080.783564 | M67: 0 | N67: 12574.4756
A68: Industrie - transformation des aliments et boissons | B68: 4528.374536 | C68: 59.064456 | D68: 0 | E68: 0 | F68: 19.06329348 | G68: 113.8960888 | H68: 0 | I68: 192.0238383 | J68: 597.887136 | K68: 1442.917595 | L68: 2127.032622 | M68: 146.965896 | N68: 21.547449
A69: Industrie - construction | B69: 1254.940883 | C69: 0 | D69: 0 | E69: 0 | F69: 467.0506903 | G69: 0 | H69: 0 | I69: 467.0506903 | J69: 2.622312 | K69: 5.5003212 | L69: 779.76756 | M69: 0 | N69: 0
A70: Industrie - exploitation minière | B70: 1698.383114 | C70: 0 | D70: 0 | E70: 0 | F70: 1194.633058 | G70: 0 | H70: 0 | I70: 1194.633058 | J70: 49.823928 | K70: 172.3433976 | L70: 281.58273 | M70: 0 | N70: 0
A71: Industrie - machinerie | B71: 212.7886325 | C71: 14.766114 | D71: 0 | E71: 0 | F71: 9.53164674 | G71: 0 | H71: 0 | I71: 24.29776074 | J71: 7.866936 | K71: 31.1684868 | L71: 149.455449 | M71: 0 | N71: 0
A72: Industrie - métaux non-ferreux | B72: 22089.21577 | C72: 109.2692436 | D72: 0 | E72: 0 | F72: 41.30380254 | G72: 0 | H72: 0 | I72: 150.5730461 | J72: 2847.830832 | K72: 124.6739472 | L72: 4455.505197 | M72: 14510.63275 | N72: 0
A73: Industrie - pâtes et papiers | B73: 998.6964174 | C73: 2.9532228 | D73: 0 | E73: 0 | F73: 31.7721558 | G73: 0 | H73: 0 | I73: 34.7253786 | J73: 112.759416 | K73: 370.3549608 | L73: 480.856662 | M73: 0 | N73: 0
A74: Industrie - transport d'équipment | B74: 490.3838947 | C74: 67.9241244 | D74: 0 | E74: 0 | F74: 22.24050906 | G74: 0 | H74: 0 | I74: 90.16463346 | J74: 0 | K74: 14.6675232 | L74: 385.551738 | M74: 0 | N74: 0
A75: Industrie - cuir et textile | B75: 5571.432159 | C75: 35.4386736 | D75: 0 | E75: 0 | F75: 19.06329348 | G75: 0 | H75: 0 | I75: 54.50196708 | J75: 930.92076 | K75: 1991.116274 | L75: 2594.893158 | M75: 0 | N75: 0
A76: Industrie - divers | B76: 1346.932481 | C76: 0 | D76: 0 | E76: 0 | F76: 0 | G76: 0 | H76: 0 | I76: 0 | J76: 0 | K76: 1.8334404 | L76: 1345.099041 | M76: 0 | N76: 0
A77: Transport - route | B77: 67678.26395 | C77: 9063.440773 | D77: 6233.247821 | E77: 0 | F77: 52195.29755 | G77: 0 | H77: 0 | I77: 67491.98614 | J77: 0 | K77: 0 | L77: 186.277806 | M77: 0 | N77: 0
A78: Transport - rail | B78: 428.9241033 | C78: 0 | D78: 0 | E78: 0 | F78: 428.9241033 | G78: 0 | H78: 0 | I78: 428.9241033 | J78: 0 | K78: 0 | L78: 0 | M78: 0 | N78: 0
A79: Transport - air domestique | B79: 4163.163855 | C79: =C51*C$60 -> 0 | D79: 0 | E79: 4163.163855 | F79: 0 | G79: 0 | H79: 0 | I79: 4163.163855 | J79: =J51*J$60 -> 0 | K79: 0 | L79: 0 | M79: 0 | N79: 0
A80: Transport - navigation | B80: 563.3238986 | C80: 0 | D80: 0 | E80: 0 | F80: 0 | G80: 563.3238986 | H80: 0 | I80: 563.3238986 | J80: 0 | K80: 0 | L80: 0 | M80: 0 | N80: 0
A81: Ménages | B81: =SUM(I81:N81) -> 32974.44258 | C81: 723.539586 | D81: 0 | E81: 0 | F81: 0 | G81: 0 | H81: 184.664634 | I81: 908.20422 | J81: 3975.424992 | K81: 4264.58237 | L81: 23826.231 | M81: 0 | N81: 0
A82: Services | B82: 23858.47149 | C82: 1686.290219 | D82: 0 | E82: 0 | F82: 0 | G82: 0 | H82: 0 | I82: 1686.290219 | J82: 13696.33558 | K82: 1485.086724 | L82: 6846.792381 | M82: 143.966592 | N82: 0
A83: Agriculture & Pêches | B83: 8920.575524 | C83: 0 | D83: 0 | E83: 0 | F83: 8632.494731 | G83: 0 | H83: 0 | I83: 8632.494731 | J83: 0 | K83: 0 | L83: 288.080793 | M83: 0 | N83: 0
A84: Non énergétique - matières premières chimiques | B84: 0 | C84: 0 | D84: 0 | E84: 0 | F84: 0 | G84: 0 | H84: 0 | I84: 0 | J84: 0 | K84: 0 | L84: =L56*L$60 -> 0 | M84: 0 | N84: 0
A85: CH4 provenant de la combustion d'énergie | B85: 5061
A86: N2O provenant de la combustion d'énergie | B86: 3875
A87: Total Agriculture | B87: =SUM(B88:B92) -> 56612
A88: Fermentation entérique | B88: 26888
A89: Gestion du fumier | B89: 6304
A90: Cultivation du riz | B90: 200
A91: N2O provenant de sols agricole | B91: 22878
A92: Brûlage de résidus agricoles | B92: 342
A93: Émissions fugitive (CH4) | B93: 4131
A94: Foresterie | B94: -64020
A95: Déchets - solides | B95: 16880
A96: Déchets - liquide
A97: Processus industriels | B97: 60720
A98: Émission total GES (excl. Foresterie) | B98: =B62+B85+B86+B87+B93+B95+B96+B97 -> 536393.6541
A99: Émission total GES (incl. Foresterie) | B99: =+B85+B86+B87+B93+B94+B95+B96+B97+B62 -> 472373.6541

Sheet Croissance
A2: Année de départ: | B2: =+Hypothèses!B3 -> 2015
A3: Croissance depuis l'année de départ | B3: Augmentation annuelle en % sur la période | F3: % d'augmentation depuis l'année de départ
A4: Facteurs de croissance et de multiplication | B4: =+Hypothèses!B3 & " to 2025" -> 2015 to 2025 | C4: 2025 to 2030 | D4: 2030 to 2035 | E4: 2035 to 2050 | F4: 2025 | G4: 2030 | H4: 2035 | I4: 2050
A5: Croissance de la population | B5: 0.0083 | C5: =B5 -> 0.0083 | D5: =C5 -> 0.0083 | E5: 0.005 | F5: =(1+B5)^(2025-B$2)-1 -> 0.08616967106 | G5: =(1+F5)*(1+C5)^5-1 -> 0.1320002111 | H5: =(1+G5)*(1+D5)^5-1 -> 0.1797645543 | I5: =(1+H5)*(1+E5)^15-1 -> 0.2714118946
A6: Croissance du PIB | B6: 0.041 | C6: =B6 -> 0.041 | D6: =C6 -> 0.041 | E6: 0.03 | F6: =(1+B6)^(2025-B$2)-1 -> 0.4945391468 | G6: =(1+F6)*(1+C6)^5-1 -> 0.8270942155 | H6: =(1+G6)*(1+D6)^5-1 -> 1.233647261 | I6: =(1+H6)*(1+E6)^15-1 -> 2.479949653
A8: Industrie - carburant en acier | B8: 0.06 | C8: 0.06 | D8: 0.04 | E8: 0.02 | F8: =(1+B8)^(2025-B$2)-1 -> 0.7908476965 | G8: =(1+F8)*(1+C8)^5-1 -> 1.396558193 | H8: =(1+G8)*(1+D8)^5-1 -> 1.915779481 | I8: =(1+H8)*(1+E8)^15-1 -> 2.924255286
A9: Insudtrie - carburant en produit chimique | B9: 0.06 | C9: =+C8 -> 0.06 | D9: =+D8 -> 0.04 | E9: =+E8 -> 0.02 | F9: 0.7908476965 | G9: 1.396558193 | H9: 1.915779481 | I9: 2.924255286
A10: Industrie - carburant en minerai non métallique | B10: 0.06 | C10: =+C9 -> 0.06 | D10: =+D9 -> 0.04 | E10: 0.02 | F10: 0.7908476965 | G10: 1.396558193 | H10: 1.915779481 | I10: 2.924255286
A11: Industrie - carburant en aliments et boissons | B11: 0.06 | C11: 0.06 | D11: 0.04 | E11: 0.02 | F11: 0.7908476965 | G11: 1.396558193 | H11: 1.915779481 | I11: 2.924255286
A12: Industrie - carburant en construction | B12: 0.06 | C12: 0.06 | D12: 0.04 | E12: 0.02 | F12: 0.7908476965 | G12: 1.396558193 | H12: 1.915779481 | I12: 2.924255286
A13: Industrie - carburant en mines | B13: 0.06 | C13: 0.06 | D13: 0.04 | E13: 0.02 | F13: 0.7908476965 | G13: 1.396558193 | H13: 1.915779481 | I13: 2.924255286
A14: Industrie - carburant en machinerie | B14: 0.06 | C14: 0.06 | D14: 0.04 | E14: 0.02 | F14: 0.7908476965 | G14: 1.396558193 | H14: 1.915779481 | I14: 2.924255286
A15: Industrie - carburant en métaux non ferreux | B15: 0.06 | C15: 0.06 | D15: 0.04 | E15: 0.02 | F15: 0.7908476965 | G15: 1.396558193 | H15: 1.915779481 | I15: 2.924255286
A16: Industrie - carburant en pâtes et papiers | B16: 0.06 | C16: 0.06 | D16: 0.04 | E16: 0.02 | F16: 0.7908476965 | G16: 1.396558193 | H16: 1.915779481 | I16: 2.924255286
A17: Industrie - carburant en transport dequipment | B17: 0.06 | C17: 0.06 | D17: 0.04 | E17: 0.02 | F17: 0.7908476965 | G17: 1.396558193 | H17: 1.915779481 | I17: 2.924255286
A18: Industrie - carburant en cuir et textile | B18: 0.06 | C18: 0.06 | D18: 0.04 | E18: 0.02 | F18: 0.7908476965 | G18: 1.396558193 | H18: 1.915779481 | I18: 2.924255286
A19: Industrie - carburant en divers | B19: 0.06 | C19: 0.06 | D19: 0.04 | E19: 0.02 | F19: 0.7908476965 | G19: 1.396558193 | H19: 1.915779481 | I19: 2.924255286
A20: Industrie - consommation d'électricité | B20: 0.06 | C20: 0.06 | D20: 0.04 | E20: 0.02 | F20: 0.7908476965 | G20: 1.396558193 | H20: 1.915779481 | I20: 2.924255286
A21: Transport - carburant en route | B21: 0.06 | C21: 0.06 | D21: 0.04 | E21: 0.02 | F21: 0.7908476965 | G21: 1.396558193 | H21: 1.915779481 | I21: 2.924255286
A22: Transport - carburant en rail | B22: 0.06 | C22: 0.06 | D22: 0.04 | E22: 0.02 | F22: 0.7908476965 | G22: 1.396558193 | H22: 1.915779481 | I22: 2.924255286
A23: Transport - carburant en air | B23: 0.06 | C23: 0.06 | D23: 0.04 | E23: 0.02 | F23: 0.7908476965 | G23: 1.396558193 | H23: 1.915779481 | I23: 2.924255286
A24: Transport - carburant en navigation | B24: 0.06 | C24: 0.06 | D24: 0.04 | E24: 0.02 | F24: 0.7908476965 | G24: 1.396558193 | H24: 1.915779481 | I24: 2.924255286
A25: Transport - consommation d'électricité | B25: 0.06 | C25: 0.06 | D25: 0.04 | E25: 0.02 | F25: 0.7908476965 | G25: 1.396558193 | H25: 1.915779481 | I25: 2.924255286
A26: Ménages - LPG | B26: 0.06 | C26: 0.06 | D26: 0.04 | E26: 0.02 | F26: 0.7908476965 | G26: 1.396558193 | H26: 1.915779481 | I26: 2.924255286
A27: Ménages - Kérosène | B27: 0.06 | C27: 0.06 | D27: 0.04 | E27: 0.02 | F27: 0.7908476965 | G27: 1.396558193 | H27: 1.915779481 | I27: 2.924255286
A28: Households - consommation d'électricité | B28: 0.06 | C28: 0.06 | D28: 0.04 | E28: 0.02 | F28: 0.7908476965 | G28: 1.396558193 | H28: 1.915779481 | I28: 2.924255286
A29: Services - carburant | B29: 0.06 | C29: 0.06 | D29: 0.04 | E29: 0.02 | F29: 0.7908476965 | G29: 1.396558193 | H29: 1.915779481 | I29: 2.924255286
A30: Services - consommation d'électricité | B30: 0.06 | C30: 0.06 | D30: 0.04 | E30: 0.02 | F30: 0.7908476965 | G30: 1.396558193 | H30: 1.915779481 | I30: 2.924255286
A31: Agriculture - carburant | B31: 0.06 | C31: =+C30 -> 0.06 | D31: 0.04 | E31: 0.02 | F31: 0.7908476965 | G31: 1.396558193 | H31: 1.915779481 | I31: 2.924255286
A32: Agriculture - consommation d'électricité | B32: 0.06 | C32: =+C31 -> 0.06 | D32: 0.04 | E32: 0.02 | F32: 0.7908476965 | G32: 1.396558193 | H32: 1.915779481 | I32: 2.924255286
A33: Non énergétique - carburant dans les matières premières chimiques | B33: 0.06 | C33: =+C32 -> 0.06 | D33: 0.04 | E33: 0.02 | F33: 0.7908476965 | G33: 1.396558193 | H33: 1.915779481 | I33: 2.924255286
A34: Émissions du bétail | B34: 0.03 | C34: =+B34 -> 0.03 | D34: 0.02 | E34: 0.01 | F34: 0.3439163793 | G34: 0.5579674166 | H34: 0.7201219167 | I34: 0.9970081447
A35: Émissions de riz | B35: =+B34 -> 0.03 | C35: =+B35 -> 0.03 | D35: =+D34 -> 0.02 | E35: 0.01 | F35: 0.3439163793 | G35: 0.5579674166 | H35: 0.7201219167 | I35: 0.9970081447
A36: N2O des sols agricoles | B36: =+B35 -> 0.03 | C36: 0.03 | D36: =+D35 -> 0.02 | E36: 0.01 | F36: 0.3439163793 | G36: 0.5579674166 | H36: 0.7201219167 | I36: 0.9970081447
A37: Brûlage de biomasse | B37: =+B36 -> 0.03 | C37: 0.03 | D37: =+D36 -> 0.02 | E37: 0.01 | F37: 0.3439163793 | G37: 0.5579674166 | H37: 0.7201219167 | I37: 0.9970081447
A38: Émissions forestières | B38: 0 | C38: 0 | D38: 0 | E38: 0 | F38: 0 | G38: 0 | H38: 0 | I38: 0
A39: Émissions de déchets solides | B39: 0 | C39: =+B39 -> 0 | D39: 0 | E39: =+C39 -> 0 | F39: 0 | G39: 0 | H39: 0 | I39: 0
A40: Émissions de déchets liquides | B40: 0 | C40: 0 | D40: 0 | E40: =+C40 -> 0 | F40: 0 | G40: 0 | H40: 0 | I40: 0
A41: Processus industriels | B41: 0 | C41: =+B41 -> 0 | D41: =+C41 -> 0 | E41: =+C41 -> 0 | F41: 0 | G41: 0 | H41: 0 | I41: 0
D45: =+Hypothèses!B3 -> 2015 | E45: 2025 | F45: 2030 | G45: 2035 | H45: 2050
A46: Population (milliers) | D46: 1876.633 | E46: =+D46*(1+F5) -> 2038.341848 | F46: =+D46*(1+G5) -> 2124.348952 | G46: =+E46*(1+H5) -> 2404.763462 | H46: =+D46*(1+I5) -> 2385.973518
A47: PIB (Actuelle MUS$) | D47: =562.5/Hypothèses!B5 -> 140.625 | E47: =+D47*(1+F6) -> 210.1695675 | F47: =+D47*(1+G6) -> 256.9351241 | G47: =+E47*(1+H6) -> 469.4446789 | H47: =+D47*(1+I6) -> 489.36792
A48: Emissions CO2 énergie BAU (ktCO2) | B48: Émissions de combustibles fossiles | D48: =+'Bilan initial'!B62 -> 389114.6541 | E48: =+'Bilan 2025'!B62 -> 696845.0819 | F48: =+'Bilan 2030'!B62 -> 932535.9122 | G48: =+'Bilan 2035'!B62 -> 1134572.524 | H48: =+'Bilan 2050'!B62 -> 1526985.238
A49: Emissions GES autres gaz BAU(ktCO2e) | B49: Autre émissions | D49: =+'Bilan initial'!B99-D48 -> 83259 | E49: ='Bilan 2025'!B99-E48 -> 113062.8009 | F49: =+'Bilan 2030'!B99-F48 -> 133095.4773 | G49: =+'Bilan 2035'!B99-G48 -> 149060.0324 | H49: ='Bilan 2050'!B99-H48 -> 177912.8689
A50: Emissions GES BAU (ktCO2e) | B50: Toutes les émissions de GES | D50: =+D48+D49 -> 472373.6541 | E50: =+E48+E49 -> 809907.8828 | F50: =+F48+F49 -> 1065631.39 | G50: =+G48+G49 -> 1283632.557 | H50: =+H48+H49 -> 1704898.107
A51: Mitigation Conditionnel (ktCO2e) | B51: Toutes les émissions de GES | D51: 0 | E51: =+principale25!J123 -> 136445.0947 | F51: =+principale30!J123 -> 247220.0475 | G51: =+principale35!J123 -> 303258.7768 | H51: =principale50!J123 -> 440217.0082
A52: Scénario Conditionnel (ktCO2e) | B52: Toutes les émissions de GES | D52: =+D50-D51 -> 472373.6541 | E52: =+E50-E51 -> 673462.7881 | F52: =+F50-F51 -> 818411.342 | G52: =+G50-G51 -> 980373.7799 | H52: =+H50-H51 -> 1264681.099
A53: Réduction scenario Conditionnel (%) | B53: Toutes les émissions de GES | D53: 0 | E53: =E51/E48 -> 0.1958040578 | F53: =F51/F48 -> 0.2651051228 | G53: =G51/G48 -> 0.2672890188 | H53: =H51/H48 -> 0.288291594
A54: Mitigation Inconditionnel (ktCO2e) | B54: Toutes les émissions de GES | D54: 0 | E54: 0 | F54: 0 | G54: 0 | H54: 0 | J54: Cette ligne peut-être copiée/collée après avoir appliqué GACMO pour un scénario inconditionnel
A55: Scénario Inconditionnel (ktCO2e) | B55: Toutes les émissions de GES | D55: =+D50-D54 -> 472373.6541 | E55: =+E50-E54 -> 809907.8828 | F55: =+F50-F54 -> 1065631.39 | G55: =+G50-G54 -> 1283632.557 | H55: =+H50-H54 -> 1704898.107
A56: Réduction scenario Inconditionnel (%) | B56: Toutes les émissions de GES | D56: 0 | E56: =+E54/E48 -> 0 | F56: =+F54/F48 -> 0 | G56: =+G54/G48 -> 0 | H56: =+H54/H48 -> 0
A58: Total tCO2-e/capita dans BAU | B58: Toutes les émissions de GES | D58: =D50/D46 -> 251.7133899 | E58: =E50/E46 -> 397.336631 | F58: =F50/F46 -> 501.6272814 | G58: =G50/G46 -> 533.7874501 | H58: =H50/H46 -> 714.5503057
A59: Total tCO2-e/US$ dans BAU | B59: Toutes les émissions de GES | D59: =D50/D47 -> 3359.10154 | E59: =E50/E47 -> 3853.592565 | F59: =F50/F47 -> 4147.47261 | G59: =G50/G47 -> 2734.363844 | H59: =H50/H47 -> 3483.877952
A79: Subdivision sectorielle des émissions BAU
A80: ktCO2e/year | B80: =+D45 -> 2015 | C80: 2025 | D80: 2030 | E80: 2035 | F80: 2050
A81: Total | B81: =SUM(B82:B89) -> 472373.6541 | C81: =SUM(C82:C89) -> 809907.8828 | D81: =SUM(D82:D89) -> 1065631.39 | E81: =SUM(E82:E89) -> 1283632.557 | F81: =SUM(F82:F89) -> 1704898.107
A82: Énergie | B82: ='Bilan initial'!B63+'Bilan initial'!B85+'Bilan initial'!B86 -> 185294.7345 | C82: =+principale25!J131 -> 331834.6484 | D82: =+principale30!J131 -> 444069.6141 | E82: =+principale35!J131 -> 540278.5848 | F82: =+principale50!J131 -> 727143.8412
A83: Industrie | B83: =SUM('Bilan initial'!B65:B76)+'Bilan initial'!B84+'Bilan initial'!B93+'Bilan initial'!B97 -> 139019.7542 | C83: =+principale25!J132 -> 200942.9344 | D83: =+principale30!J132 -> 248369.9174 | E83: =+principale35!J132 -> 289024.8166 | F83: =+principale50!J132 -> 367988.2242
A84: Transport | B84: =+'Bilan initial'!B77+'Bilan initial'!B78+'Bilan initial'!B79+'Bilan initial'!B80 -> 72833.67581 | C84: =+principale25!J133 -> 130434.0205 | D84: =+principale30!J133 -> 174550.1425 | E84: =+principale35!J133 -> 212366.9375 | F84: =+principale50!J133 -> 285817.9372
A85: Ménages | B85: =+'Bilan initial'!B81 -> 32974.44258 | C85: =+principale25!J134 -> 59052.20454 | D85: =+principale30!J134 -> 79025.17053 | E85: =+principale35!J134 -> 96146.20309 | F85: =+principale50!J134 -> 129400.1306
A86: Services | B86: =+'Bilan initial'!B82 -> 23858.47149 | C86: =+principale25!J135 -> 42726.88871 | D86: =+principale30!J135 -> 57178.21533 | E86: =+principale35!J135 -> 69566.04163 | F86: =+principale50!J135 -> 93626.73286
A87: Agriculture & Pêches | B87: =+'Bilan initial'!B83+'Bilan initial'!B87 -> 65532.57552 | C87: =+principale25!J136 -> 92057.1862 | D87: =+principale30!J136 -> 109578.3297 | E87: =+principale35!J136 -> 123389.973 | F87: =+principale50!J136 -> 148061.2407
A88: Foresterie | B88: ='Bilan initial'!B94 -> -64020 | C88: =+principale25!J137 -> -64020 | D88: =+principale30!J137 -> -64020 | E88: =+principale35!J137 -> -64020 | F88: =+principale50!J137 -> -64020
A89: Décharge | B89: ='Bilan initial'!B95+'Bilan initial'!B96 -> 16880 | C89: =+principale25!J138 -> 16880 | D89: =+principale30!J138 -> 16880 | E89: =+principale35!J138 -> 16880 | F89: =+principale50!J138 -> 16880
A109: Subdivision sectorielle des émissions scenario de reduction
A110: ktCO2e/year | B110: =+B80 -> 2015 | C110: 2025 | D110: 2030 | E110: 2035 | F110: 2050
A111: Total | B111: =SUM(B112:B119) -> 472373.6541 | C111: =SUM(C112:C119) -> 673462.7881 | D111: =SUM(D112:D119) -> 818411.342 | E111: =SUM(E112:E119) -> 980373.7799 | F111: =SUM(F112:F119) -> 1264681.099
A112: Énergie | B112: ='Bilan initial'!B63+'Bilan initial'!B85+'Bilan initial'!B86 -> 185294.7345 | C112: =+principale25!L131 -> 210059.1109 | D112: =+principale30!L131 -> 258450.8266 | E112: =+principale35!L131 -> 311761.0173 | F112: =+principale50!L131 -> 411641.6662
A113: Industrie | B113: =SUM('Bilan initial'!B65:B76)+'Bilan initial'!B84+'Bilan initial'!B93+'Bilan initial'!B97 -> 139019.7542 | C113: =+principale25!L132 -> 187660.4401 | D113: =+principale30!L132 -> 223484.9544 | E113: =+principale35!L132 -> 258748.4542 | F113: =+principale50!L132 -> 309776.799
A114: Transport | B114: =+'Bilan initial'!B77+'Bilan initial'!B78+'Bilan initial'!B79+'Bilan initial'!B80 -> 72833.67581 | C114: =+principale25!L133 -> 131218.1715 | D114: =+principale30!L133 -> 145899.327 | E114: =+principale35!L133 -> 177701.8679 | F114: =+principale50!L133 -> 238074.7452
A115: Ménages | B115: =+'Bilan initial'!B81 -> 32974.44258 | C115: =+principale25!L134 -> 59052.20454 | D115: =+principale30!L134 -> 79025.17053 | E115: =+principale35!L134 -> 96146.20309 | F115: =+principale50!L134 -> 129400.1306
A116: Services | B116: =+'Bilan initial'!B82 -> 23858.47149 | C116: =+principale25!L135 -> 40555.67488 | D116: =+principale30!L135 -> 49138.39578 | E116: =+principale35!L135 -> 59791.9264 | F116: =+principale50!L135 -> 74866.51688
A117: Agriculture & Pêches | B117: =+'Bilan initial'!B83+'Bilan initial'!B87 -> 65532.57552 | C117: =+principale25!L136 -> 92057.1862 | D117: =+principale30!L136 -> 109552.6677 | E117: =+principale35!L136 -> 123364.311 | F117: =+principale50!L136 -> 148061.2407
A118: Foresterie | B118: ='Bilan initial'!B94 -> -64020 | C118: =+principale25!L137 -> -64020 | D118: =+principale30!L137 -> -64020 | E118: =+principale35!L137 -> -64020 | F118: =+principale50!L137 -> -64020
A119: Décharge | B119: ='Bilan initial'!B95+'Bilan initial'!B96 -> 16880 | C119: =+principale25!L138 -> 16880 | D119: =+principale30!L138 -> 16880 | E119: =+principale35!L138 -> 16880 | F119: =+principale50!L138 -> 16880

Sheet Info Pays
A2: Cette feuille est uniquement destinée à collecter des informations et des données spécifiques sur un pays en question utilisant GACMO

Sheet Bilan 2025
A1: Bilan combustibles fossiles | B1: =+Hypothèses!$B$2 -> Pays X | D1: 2025
A3: Unité (TJ) | B3: GPL | C3: Essence | D3: Essence pour carburéacteurs | E3: Diesel | F3: Fiouls lourds | G3: Kérosène et autres | H3: Total produits pétroliers | I3: Charbon | J3: Lignite | K3: Gaz | L3: Coke | M3: Coke de pétrole | N3: Énergie totale (fossile)
A4: Unité | B4: TJ | C4: TJ | D4: TJ | E4: TJ | F4: TJ | G4: TJ | H4: TJ | I4: TJ | J4: TJ | K4: TJ | L4: TJ | M4: TJ | N4: TJ
A5: Total | B5: =+B6+B7 -> 338404.8487 | C5: 162706.393 | D5: 105327.2925 | E5: 1562113.877 | F5: 33683.91106 | G5: 4648.145196 | H5: 2206884.468 | I5: 1417212.397 | J5: 1848566.36 | K5: 3108574.922 | L5: 247459.3347 | M5: 227172.612 | N5: =SUM(H5:M5) -> 9055870.092
A6: Centrales fossiles | B6: =C35/C32 -> 0 | C6: 0 | D6: 0 | E6: 18468.1885 | F6: 16338.13635 | G6: 0 | H6: =SUM(B6:G6) -> 34806.32485 | I6: =J35/J32 -> 805859.9733 | J6: =K35/K32 -> 1613947.94 | K6: =L35/L32 -> 1369412.881 | L6: =M35/M32 -> 0 | M6: =N35/N32 -> 0 | N6: =SUM(H6:M6) -> 3824027.119
A7: CONSOMMATION FINALE | B7: =SUM(B8:B27) -> 338404.8487 | C7: 162706.393 | D7: 105327.2925 | E7: 1543645.689 | F7: 17345.77471 | G7: 4648.145196 | H7: 2172078.143 | I7: 611352.4233 | J7: 234618.4195 | K7: 1739162.041 | L7: 247459.3347 | M7: 227172.612 | N7: 5231842.973
A8: Industrie - acier | B8: =+'Bilan initial'!B8*(1+Croissance!$F8) -> 0 | C8: =+'Bilan initial'!C8*(1+Croissance!$F8) -> 0 | D8: =+'Bilan initial'!D8*(1+Croissance!$F8) -> 0 | E8: =+'Bilan initial'!E8*(1+Croissance!$F8) -> 1319.156322 | F8: =+'Bilan initial'!F8*(1+Croissance!$F8) -> 0 | G8: =+'Bilan initial'!G8*(1+Croissance!$F8) -> 0 | H8: =SUM(B8:G8) -> 1319.156322 | I8: =+'Bilan initial'!I8*(1+Croissance!$F8) -> 852.4435036 | J8: =+'Bilan initial'!J8*(1+Croissance!$F8) -> 852.085334 | K8: =+'Bilan initial'!K8*(1+Croissance!$F8) -> 16063.90384 | L8: =+'Bilan initial'!L8*(1+Croissance!$F8) -> 0 | M8: =+'Bilan initial'!M8*(1+Croissance!$F8) -> 0 | N8: 19087.589
A9: Industrie - chimique | B9: =+'Bilan initial'!B9*(1+Croissance!$F9) -> 762.3638644 | C9: =+'Bilan initial'!C9*(1+Croissance!$F9) -> 0 | D9: =+'Bilan initial'!D9*(1+Croissance!$F9) -> 0 | E9: =+'Bilan initial'!E9*(1+Croissance!$F9) -> 310.3897228 | F9: =+'Bilan initial'!F9*(1+Croissance!$F9) -> 215.9225068 | G9: =+'Bilan initial'!G9*(1+Croissance!$F9) -> 0 | H9: =SUM(B9:G9) -> 1288.676094 | I9: =+'Bilan initial'!I9*(1+Croissance!$F9) -> 19756.63179 | J9: =+'Bilan initial'!J9*(1+Croissance!$F9) -> 10651.06668 | K9: =+'Bilan initial'!K9*(1+Croissance!$F9) -> 180893.5258 | L9: =+'Bilan initial'!L9*(1+Croissance!$F9) -> 0 | M9: =+'Bilan initial'!M9*(1+Croissance!$F9) -> 0 | N9: 212589.9004
A10: Industrie - minerai non metallique | B10: =+'Bilan initial'!B10*(1+Croissance!$F10) -> 254.1212881 | C10: =+'Bilan initial'!C10*(1+Croissance!$F10) -> 0 | D10: =+'Bilan initial'!D10*(1+Croissance!$F10) -> 0 | E10: =+'Bilan initial'!E10*(1+Croissance!$F10) -> 1862.338337 | F10: =+'Bilan initial'!F10*(1+Croissance!$F10) -> 1295.535041 | G10: =+'Bilan initial'!G10*(1+Croissance!$F10) -> 0 | H10: 3411.994665 | I10: =+'Bilan initial'!I10*(1+Croissance!$F10) -> 165825.3333 | J10: =+'Bilan initial'!J10*(1+Croissance!$F10) -> 46078.15306 | K10: =+'Bilan initial'!K10*(1+Croissance!$F10) -> 131584.3254 | L10: =+'Bilan initial'!L10*(1+Croissance!$F10) -> 0 | M10: =+'Bilan initial'!M10*(1+Croissance!$F10) -> 226783.9981 | N10: 573683.8044
A11: Industrie - transformation des aliments et boissons | B11: =+'Bilan initial'!B11*(1+Croissance!$F11) -> 1694.141921 | C11: =+'Bilan initial'!C11*(1+Croissance!$F11) -> 0 | D11: =+'Bilan initial'!D11*(1+Croissance!$F11) -> 0 | E11: =+'Bilan initial'!E11*(1+Croissance!$F11) -> 465.5845841 | F11: =+'Bilan initial'!F11*(1+Croissance!$F11) -> 2663.04425 | G11: =+'Bilan initial'!G11*(1+Croissance!$F11) -> 0 | H11: 4822.770755 | I11: =+'Bilan initial'!I11*(1+Croissance!$F11) -> 11432.77169 | J11: =+'Bilan initial'!J11*(1+Croissance!$F11) -> 25791.96761 | K11: =+'Bilan initial'!K11*(1+Croissance!$F11) -> 68585.88508 | L11: =+'Bilan initial'!L11*(1+Croissance!$F11) -> 2457.04304 | M11: =+'Bilan initial'!M11*(1+Croissance!$F11) -> 388.6139501 | N11: 113479.0521
A12: Industrie - construction | B12: =+'Bilan initial'!B12*(1+Croissance!$F12) -> 0 | C12: =+'Bilan initial'!C12*(1+Croissance!$F12) -> 0 | D12: =+'Bilan initial'!D12*(1+Croissance!$F12) -> 0 | E12: =+'Bilan initial'!E12*(1+Croissance!$F12) -> 11406.82231 | F12: =+'Bilan initial'!F12*(1+Croissance!$F12) -> 0 | G12: =+'Bilan initial'!G12*(1+Croissance!$F12) -> 0 | H12: 11406.82231 | I12: =+'Bilan initial'!I12*(1+Croissance!$F12) -> 50.1437355 | J12: =+'Bilan initial'!J12*(1+Croissance!$F12) -> 98.31753854 | K12: =+'Bilan initial'!K12*(1+Croissance!$F12) -> 25143.50166 | L12: =+'Bilan initial'!L12*(1+Croissance!$F12) -> 0 | M12: =+'Bilan initial'!M12*(1+Croissance!$F12) -> 0 | N12: 36698.78525
A13: Industrie - exploitation minière | B13: =+'Bilan initial'!B13*(1+Croissance!$F13) -> 0 | C13: =+'Bilan initial'!C13*(1+Croissance!$F13) -> 0 | D13: =+'Bilan initial'!D13*(1+Croissance!$F13) -> 0 | E13: =+'Bilan initial'!E13*(1+Croissance!$F13) -> 29176.63394 | F13: =+'Bilan initial'!F13*(1+Croissance!$F13) -> 0 | G13: =+'Bilan initial'!G13*(1+Croissance!$F13) -> 0 | H13: 29176.63394 | I13: =+'Bilan initial'!I13*(1+Croissance!$F13) -> 952.7309746 | J13: =+'Bilan initial'!J13*(1+Croissance!$F13) -> 3080.616208 | K13: =+'Bilan initial'!K13*(1+Croissance!$F13) -> 9079.597821 | L13: =+'Bilan initial'!L13*(1+Croissance!$F13) -> 0 | M13: =+'Bilan initial'!M13*(1+Croissance!$F13) -> 0 | N13: 42289.57894
A14: Industrie - machinerie | B14: =+'Bilan initial'!B14*(1+Croissance!$F14) -> 423.5354802 | C14: =+'Bilan initial'!C14*(1+Croissance!$F14) -> 0 | D14: =+'Bilan initial'!D14*(1+Croissance!$F14) -> 0 | E14: =+'Bilan initial'!E14*(1+Croissance!$F14) -> 232.7922921 | F14: =+'Bilan initial'!F14*(1+Croissance!$F14) -> 0 | G14: =+'Bilan initial'!G14*(1+Croissance!$F14) -> 0 | H14: 656.3277723 | I14: =+'Bilan initial'!I14*(1+Croissance!$F14) -> 150.4312065 | J14: =+'Bilan initial'!J14*(1+Croissance!$F14) -> 557.1327184 | K14: =+'Bilan initial'!K14*(1+Croissance!$F14) -> 4819.171151 | L14: =+'Bilan initial'!L14*(1+Croissance!$F14) -> 0 | M14: =+'Bilan initial'!M14*(1+Croissance!$F14) -> 0 | N14: 6183.062849
A15: Industrie - métaux non-ferreux | B15: =+'Bilan initial'!B15*(1+Croissance!$F15) -> 3134.162554 | C15: =+'Bilan initial'!C15*(1+Croissance!$F15) -> 0 | D15: =+'Bilan initial'!D15*(1+Croissance!$F15) -> 0 | E15: =+'Bilan initial'!E15*(1+Croissance!$F15) -> 1008.766599 | F15: =+'Bilan initial'!F15*(1+Croissance!$F15) -> 0 | G15: =+'Bilan initial'!G15*(1+Croissance!$F15) -> 0 | H15: 4142.929153 | I15: =+'Bilan initial'!I15*(1+Croissance!$F15) -> 54456.09676 | J15: =+'Bilan initial'!J15*(1+Croissance!$F15) -> 2228.530874 | K15: =+'Bilan initial'!K15*(1+Croissance!$F15) -> 143667.1748 | L15: =+'Bilan initial'!L15*(1+Croissance!$F15) -> 242595.3924 | M15: =+'Bilan initial'!M15*(1+Croissance!$F15) -> 0 | N15: 447090.1239
A16: Industrie - pâtes et papiers | B16: =+'Bilan initial'!B16*(1+Croissance!$F16) -> 84.70709605 | C16: =+'Bilan initial'!C16*(1+Croissance!$F16) -> 0 | D16: =+'Bilan initial'!D16*(1+Croissance!$F16) -> 0 | E16: =+'Bilan initial'!E16*(1+Croissance!$F16) -> 775.9743069 | F16: =+'Bilan initial'!F16*(1+Croissance!$F16) -> 0 | G16: =+'Bilan initial'!G16*(1+Croissance!$F16) -> 0 | H16: 860.681403 | I16: =+'Bilan initial'!I16*(1+Croissance!$F16) -> 2156.180627 | J16: =+'Bilan initial'!J16*(1+Croissance!$F16) -> 6620.047595 | K16: =+'Bilan initial'!K16*(1+Croissance!$F16) -> 15505.15936 | L16: =+'Bilan initial'!L16*(1+Croissance!$F16) -> 0 | M16: =+'Bilan initial'!M16*(1+Croissance!$F16) -> 0 | N16: 25142.06898
A17: Industrie - transport d'équipment | B17: =+'Bilan initial'!B17*(1+Croissance!$F17) -> 1948.263209 | C17: =+'Bilan initial'!C17*(1+Croissance!$F17) -> 0 | D17: =+'Bilan initial'!D17*(1+Croissance!$F17) -> 0 | E17: =+'Bilan initial'!E17*(1+Croissance!$F17) -> 543.1820148 | F17: =+'Bilan initial'!F17*(1+Croissance!$F17) -> 0 | G17: =+'Bilan initial'!G17*(1+Croissance!$F17) -> 0 | H17: 2491.445224 | I17: =+'Bilan initial'!I17*(1+Croissance!$F17) -> 0 | J17: =+'Bilan initial'!J17*(1+Croissance!$F17) -> 262.1801028 | K17: =+'Bilan initial'!K17*(1+Croissance!$F17) -> 12432.06471 | L17: =+'Bilan initial'!L17*(1+Croissance!$F17) -> 0 | M17: =+'Bilan initial'!M17*(1+Croissance!$F17) -> 0 | N17: 15185.69004
A18: Industrie - cuir et textile | B18: =+'Bilan initial'!B18*(1+Croissance!$F18) -> 1016.485153 | C18: =+'Bilan initial'!C18*(1+Croissance!$F18) -> 0 | D18: =+'Bilan initial'!D18*(1+Croissance!$F18) -> 0 | E18: =+'Bilan initial'!E18*(1+Croissance!$F18) -> 465.5845841 | F18: =+'Bilan initial'!F18*(1+Croissance!$F18) -> 0 | G18: =+'Bilan initial'!G18*(1+Croissance!$F18) -> 0 | H18: 1482.069737 | I18: =+'Bilan initial'!I18*(1+Croissance!$F18) -> 17801.0261 | J18: =+'Bilan initial'!J18*(1+Croissance!$F18) -> 35590.94895 | K18: =+'Bilan initial'!K18*(1+Croissance!$F18) -> 83671.98608 | L18: =+'Bilan initial'!L18*(1+Croissance!$F18) -> 0 | M18: =+'Bilan initial'!M18*(1+Croissance!$F18) -> 0 | N18: 138546.0309
A19: Industrie - divers | B19: =+'Bilan initial'!B19*(1+Croissance!$F19) -> 0 | C19: =+'Bilan initial'!C19*(1+Croissance!$F19) -> 0 | D19: =+'Bilan initial'!D19*(1+Croissance!$F19) -> 0 | E19: =+'Bilan initial'!E19*(1+Croissance!$F19) -> 0 | F19: =+'Bilan initial'!F19*(1+Croissance!$F19) -> 0 | G19: =+'Bilan initial'!G19*(1+Croissance!$F19) -> 0 | H19: 0 | I19: =+'Bilan initial'!I19*(1+Croissance!$F19) -> 0 | J19: =+'Bilan initial'!J19*(1+Croissance!$F19) -> 32.77251285 | K19: =+'Bilan initial'!K19*(1+Croissance!$F19) -> 43372.54036 | L19: =+'Bilan initial'!L19*(1+Croissance!$F19) -> 0 | M19: =+'Bilan initial'!M19*(1+Croissance!$F19) -> 0 | N19: 43405.31288
A20: Transport - route | B20: =+'Bilan initial'!B20*(1+Croissance!$F21) -> 259966.0778 | C20: =+'Bilan initial'!C20*(1+Croissance!$F21) -> 162706.393 | D20: =+'Bilan initial'!D20*(1+Croissance!$F21) -> 0 | E20: =+'Bilan initial'!E20*(1+Croissance!$F21) -> 1274770.591 | F20: =+'Bilan initial'!F20*(1+Croissance!$F21) -> 0 | G20: =+'Bilan initial'!G20*(1+Croissance!$F21) -> 0 | H20: 1697443.062 | I20: =+'Bilan initial'!I20*(1+Croissance!$F21) -> 0 | J20: =+'Bilan initial'!J20*(1+Croissance!$F21) -> 0 | K20: =+'Bilan initial'!K20*(1+Croissance!$F21) -> 6006.503174 | L20: =+'Bilan initial'!L20*(1+Croissance!$F21) -> 0 | M20: =+'Bilan initial'!M20*(1+Croissance!$F21) -> 0 | N20: 1703449.565
A21: Transport - rail | B21: =+'Bilan initial'!B21*(1+Croissance!$F22) -> 0 | C21: =+'Bilan initial'!C21*(1+Croissance!$F22) -> 0 | D21: =+'Bilan initial'!D21*(1+Croissance!$F22) -> 0 | E21: =+'Bilan initial'!E21*(1+Croissance!$F22) -> 10475.65314 | F21: =+'Bilan initial'!F21*(1+Croissance!$F22) -> 0 | G21: =+'Bilan initial'!G21*(1+Croissance!$F22) -> 0 | H21: 10475.65314 | I21: =+'Bilan initial'!I21*(1+Croissance!$F22) -> 0 | J21: =+'Bilan initial'!J21*(1+Croissance!$F22) -> 0 | K21: =+'Bilan initial'!K21*(1+Croissance!$F22) -> 0 | L21: =+'Bilan initial'!L21*(1+Croissance!$F22) -> 0 | M21: =+'Bilan initial'!M21*(1+Croissance!$F22) -> 0 | N21: 10475.65314
A22: Transport - air domestique | B22: =+'Bilan initial'!B22*(1+Croissance!$F23) -> 0 | C22: =+'Bilan initial'!C22*(1+Croissance!$F23) -> 0 | D22: =+'Bilan initial'!D22*(1+Croissance!$F23) -> 105327.2925 | E22: =+'Bilan initial'!E22*(1+Croissance!$F23) -> 0 | F22: =+'Bilan initial'!F22*(1+Croissance!$F23) -> 0 | G22: =+'Bilan initial'!G22*(1+Croissance!$F23) -> 0 | H22: 105327.2925 | I22: =+'Bilan initial'!I22*(1+Croissance!$F23) -> 0 | J22: =+'Bilan initial'!J22*(1+Croissance!$F23) -> 0 | K22: =+'Bilan initial'!K22*(1+Croissance!$F23) -> 0 | L22: =+'Bilan initial'!L22*(1+Croissance!$F23) -> 0 | M22: =+'Bilan initial'!M22*(1+Croissance!$F23) -> 0 | N22: 105327.2925
A23: Transport - navigation | B23: =+'Bilan initial'!B23*(1+Croissance!$F24) -> 0 | C23: =+'Bilan initial'!C23*(1+Croissance!$F24) -> 0 | D23: =+'Bilan initial'!D23*(1+Croissance!$F24) -> 0 | E23: =+'Bilan initial'!E23*(1+Croissance!$F24) -> 0 | F23: =+'Bilan initial'!F23*(1+Croissance!$F24) -> 13171.27291 | G23: =+'Bilan initial'!G23*(1+Croissance!$F24) -> 0 | H23: 13171.27291 | I23: =+'Bilan initial'!I23*(1+Croissance!$F24) -> 0 | J23: =+'Bilan initial'!J23*(1+Croissance!$F24) -> 0 | K23: =+'Bilan initial'!K23*(1+Croissance!$F24) -> 0 | L23: =+'Bilan initial'!L23*(1+Croissance!$F24) -> 0 | M23: =+'Bilan initial'!M23*(1+Croissance!$F24) -> 0 | N23: 13171.27291
A24: Ménages | B24: =+'Bilan initial'!B24*(1+Croissance!$F26) -> 20753.23853 | C24: =+'Bilan initial'!C24*(1+Croissance!$F26) -> 0 | D24: =+'Bilan initial'!D24*(1+Croissance!$F26) -> 0 | E24: =+'Bilan initial'!E24*(1+Croissance!$F26) -> 0 | F24: =+'Bilan initial'!F24*(1+Croissance!$F26) -> 0 | G24: =+'Bilan initial'!G24*(1+Croissance!$F27) -> 4648.145196 | H24: 25401.38373 | I24: =+'Bilan initial'!I24*(1+Croissance!$F26) -> 76017.90302 | J24: =+'Bilan initial'!J24*(1+Croissance!$F26) -> 76228.86488 | K24: =+'Bilan initial'!K24*(1+Croissance!$F26) -> 768273.6618 | L24: =+'Bilan initial'!L24*(1+Croissance!$F26) -> 0 | M24: =+'Bilan initial'!M24*(1+Croissance!$F26) -> 0 | N24: 945921.8134
A25: Services | B25: =+'Bilan initial'!B25*(1+Croissance!$F29) -> 48367.75184 | C25: =+'Bilan initial'!C25*(1+Croissance!$F29) -> 0 | D25: =+'Bilan initial'!D25*(1+Croissance!$F29) -> 0 | E25: =+'Bilan initial'!E25*(1+Croissance!$F29) -> 0 | F25: =+'Bilan initial'!F25*(1+Croissance!$F29) -> 0 | G25: =+'Bilan initial'!G25*(1+Croissance!$F29) -> 0 | H25: 48367.75184 | I25: =+'Bilan initial'!I25*(1+Croissance!$F29) -> 261900.7305 | J25: =+'Bilan initial'!J25*(1+Croissance!$F29) -> 26545.73541 | K25: =+'Bilan initial'!K25*(1+Croissance!$F29) -> 220773.9132 | L25: =+'Bilan initial'!L25*(1+Croissance!$F29) -> 2406.899304 | M25: =+'Bilan initial'!M25*(1+Croissance!$F29) -> 0 | N25: 559995.0303
A26: Agriculture & Pêches | B26: =+'Bilan initial'!B26*(1+Croissance!$F31) -> 0 | C26: =+'Bilan initial'!C26*(1+Croissance!$F31) -> 0 | D26: =+'Bilan initial'!D26*(1+Croissance!$F31) -> 0 | E26: =+'Bilan initial'!E26*(1+Croissance!$F31) -> 210832.2192 | F26: =+'Bilan initial'!F26*(1+Croissance!$F31) -> 0 | G26: =+'Bilan initial'!G26*(1+Croissance!$F31) -> 0 | H26: 210832.2192 | I26: =+'Bilan initial'!I26*(1+Croissance!$F31) -> 0 | J26: =+'Bilan initial'!J26*(1+Croissance!$F31) -> 0 | K26: =+'Bilan initial'!K26*(1+Croissance!$F31) -> 9289.127002 | L26: =+'Bilan initial'!L26*(1+Croissance!$F31) -> 0 | M26: =+'Bilan initial'!M26*(1+Croissance!$F31) -> 0 | N26: 220121.3462
A27: Utilisations non énergétiques | B27: =+'Bilan initial'!B27*(1+Croissance!$F33) -> 0 | C27: =+'Bilan initial'!C27*(1+Croissance!$F33) -> 0 | D27: =+'Bilan initial'!D27*(1+Croissance!$F33) -> 0 | E27: =+'Bilan initial'!E27*(1+Croissance!$F33) -> 0 | F27: =+'Bilan initial'!F27*(1+Croissance!$F33) -> 0 | G27: =+'Bilan initial'!G27*(1+Croissance!$F33) -> 0 | H27: 0 | I27: =+'Bilan initial'!I27*(1+Croissance!$F33) -> 0 | J27: =+'Bilan initial'!J27*(1+Croissance!$F33) -> 0 | K27: =+'Bilan initial'!K27*(1+Croissance!$F33) -> 0 | L27: =+'Bilan initial'!L27*(1+Croissance!$F33) -> 0 | M27: =+'Bilan initial'!M27*(1+Croissance!$F33) -> 0 | N27: 0
A30: Bilan combustibles fossiles | B30: =+Hypothèses!$B$2 -> Pays X | D30: 2025
A31: =+'Bilan initial'!A31 -> 1 ktoe=41.868 TJ
A32: =+'Bilan initial'!A32 -> ktoe per TJ | C32: =+'Bilan initial'!C32 -> 0.02388458966 | D32: =+'Bilan initial'!D32 -> 0.02388458966 | E32: =+'Bilan initial'!E32 -> 0.02388458966 | F32: =+'Bilan initial'!F32 -> 0.02388458966 | G32: =+'Bilan initial'!G32 -> 0.02388458966 | H32: =+'Bilan initial'!H32 -> 0.02388458966 | J32: =+'Bilan initial'!J32 -> 0.02388458966 | K32: =+'Bilan initial'!K32 -> 0.02388458966 | L32: =+'Bilan initial'!L32 -> 0.02388458966 | M32: 0.02388458966 | N32: 0.02388458966
A33: Unité : ktoe | B33: Total | C33: GPL | D33: Essence | E33: Essence pour carburéacteurs | F33: Diesel | G33: Fiouls lourds | H33: Kérosène et autres | I33: Total produits pétroliers | J33: Charbon | K33: Lignite | L33: Gaz | M33: Coke | N33: Coke de pétrole | O33: Consommation d'électricité Gwh | Q33: Production d'électricité Gwh | R33: Part de la production | S33: Efficacité
A34: Total | B34: =+B35+B36 -> 216295.7412 | C34: =+C35+C36 -> 8082.660951 | D34: 3886.175431 | E34: 2515.699162 | F34: 37310.44896 | G34: 804.5263938 | H34: 111.0190407 | I34: 52710.52994 | J34: 33849.53656 | K34: 44152.24896 | L34: 74247.03644 | M34: 5910.464668 | N34: 5425.92462 | P34: Total | Q34: =IF(R35=1,0,O36/(1-R35)) -> 468817.0642
A35: Centrales fossiles | B35: =SUM(I35:N35) -> 91335.3186 | C35: =IF(Q36=0,0,$I35*IF('Bilan initial'!$I35>0,'Bilan initial'!C35/'Bilan initial'!$I35,0)) -> 0 | D35: =IF(Q36=0,0,$I35*IF('Bilan initial'!$I35>0,'Bilan initial'!D35/'Bilan initial'!$I35,0)) -> 0 | E35: =IF(Q36=0,0,$I35*IF('Bilan initial'!$I35>0,'Bilan initial'!E35/'Bilan initial'!$I35,0)) -> 0 | F35: =IF(Q36=0,0,$I35*IF('Bilan initial'!$I35>0,'Bilan initial'!F35/'Bilan initial'!$I35,0)) -> 441.1051042 | G35: =IF(Q36=0,0,$I35*IF('Bilan initial'!$I35>0,'Bilan initial'!G35/'Bilan initial'!$I35,0)) -> 390.2296825 | H35: =IF(Q36=0,0,$I35*IF('Bilan initial'!$I35>0,'Bilan initial'!H35/'Bilan initial'!$I35,0)) -> 0 | I35: =IF(Q36=0,0,Q39/11.63/S39) -> 831.3347867 | J35: =IF(S38>0,Q38/11.63/S38,0) -> 19247.63479 | K35: =IF(S37>0,Q37/11.63/S37,0) -> 38548.48429 | L35: =IF(S40>0,Q40/11.63/S40,0) -> 32707.86473 | M35: =IF(T40>0,R40/11.63/T40,0) -> 0 | N35: =IF(U40>0,S40/11.63/U40,0) -> 0 | P35: Pertes | Q35: =Q34*R35 -> 80109.99001 | R35: =+'Bilan initial'!R35 -> 0.1708768646
A36: CONSOMMATION FINALE | B36: =SUM(B37:B56) -> 124960.4226 | C36: =SUM(C37:C56) -> 8082.660951 | D36: 3886.175431 | E36: 2515.699162 | F36: 36869.34386 | G36: 414.2967113 | H36: 111.0190407 | I36: =SUM(C36:H36) -> 51879.19516 | J36: =SUM(J37:J56) -> 14601.90177 | K36: 5603.764676 | L36: 41539.17171 | M36: 5910.464668 | N36: 5425.92462 | O36: 388707.0742 | P36: Fossile | Q36: =SUM(Q37:Q49) -> 318070.6685 | R36: =SUM(R37:R50) -> 0.6784536929
A37: Industrie - acier | B37: =SUM(I37:N37) -> 455.8992309 | C37: =+'Bilan initial'!C37*(1+Croissance!$F8) -> 0 | D37: =+'Bilan initial'!D37*(1+Croissance!$F8) -> 0 | E37: =+'Bilan initial'!E37*(1+Croissance!$F8) -> 0 | F37: =+'Bilan initial'!F37*(1+Croissance!$F8) -> 31.50750745 | G37: =+'Bilan initial'!G37*(1+Croissance!$F8) -> 0 | H37: =+'Bilan initial'!H37*(1+Croissance!$F8) -> 0 | I37: =SUM(C37:H37) -> 31.50750745 | J37: =+'Bilan initial'!J37*(1+Croissance!$F8) -> 20.36026329 | K37: =+'Bilan initial'!K37*(1+Croissance!$F8) -> 20.35170856 | L37: =+'Bilan initial'!L37*(1+Croissance!$F8) -> 383.6797516 | M37: =+'Bilan initial'!M37*(1+Croissance!$F8) -> 0 | N37: =+'Bilan initial'!N37*(1+Croissance!$F8) -> 0 | O37: =+'Bilan initial'!O37*(1+Croissance!F$20) -> 2745.369519 | P37: Lignite | Q37: =Q$34*R37 -> 58050.32808 | R37: =+'Bilan initial'!R37 -> 0.1238229845 | S37: =+'Bilan initial'!S37 -> 0.1294844622
A38: Industrie - chimique | B38: =SUM(I38:N38) -> 5077.622537 | C38: =+'Bilan initial'!C38*(1+Croissance!$F9) -> 18.20874808 | D38: =+'Bilan initial'!D38*(1+Croissance!$F9) -> 0 | E38: =+'Bilan initial'!E38*(1+Croissance!$F9) -> 0 | F38: =+'Bilan initial'!F38*(1+Croissance!$F9) -> 7.413531164 | G38: =+'Bilan initial'!G38*(1+Croissance!$F9) -> 5.157220473 | H38: =+'Bilan initial'!H38*(1+Croissance!$F9) -> 0 | I38: =SUM(C38:H38) -> 30.77949971 | J38: =+'Bilan initial'!J38*(1+Croissance!$F9) -> 471.8790434 | K38: =+'Bilan initial'!K38*(1+Croissance!$F9) -> 254.396357 | L38: =+'Bilan initial'!L38*(1+Croissance!$F9) -> 4320.567637 | M38: =+'Bilan initial'!M38*(1+Croissance!$F9) -> 0 | N38: =+'Bilan initial'!N38*(1+Croissance!$F9) -> 0 | O38: =+'Bilan initial'!O38*(1+Croissance!F$20) -> 27140.29684 | P38: Charbon | Q38: 78351.37757 | R38: =+'Bilan initial'!R38 -> 0.1671256947 | S38: =+'Bilan initial'!S38 -> 0.3500173338
A39: Industrie - minerai non metallique | B39: 13702.20227 | C39: =+'Bilan initial'!C39*(1+Croissance!$F10) -> 6.069582692 | D39: =+'Bilan initial'!D39*(1+Croissance!$F10) -> 0 | E39: =+'Bilan initial'!E39*(1+Croissance!$F10) -> 0 | F39: =+'Bilan initial'!F39*(1+Croissance!$F10) -> 44.48118698 | G39: =+'Bilan initial'!G39*(1+Croissance!$F10) -> 30.94332284 | H39: =+'Bilan initial'!H39*(1+Croissance!$F10) -> 0 | I39: 81.49409251 | J39: =+'Bilan initial'!J39*(1+Croissance!$F10) -> 3960.670042 | K39: =+'Bilan initial'!K39*(1+Croissance!$F10) -> 1100.557778 | L39: =+'Bilan initial'!L39*(1+Croissance!$F10) -> 3142.837617 | M39: =+'Bilan initial'!M39*(1+Croissance!$F10) -> 0 | N39: =+'Bilan initial'!N39*(1+Croissance!$F10) -> 5416.642736 | O39: =+'Bilan initial'!O39*(1+Croissance!F$20) -> 33207.68884 | P39: Pétrole | Q39: 3982.845277 | R39: =+'Bilan initial'!R39 -> 0.008495521134 | S39: =+'Bilan initial'!S39 -> 0.4119436068
A40: Industrie - transformation des aliments et boissons | B40: 2710.400595 | C40: =+'Bilan initial'!C40*(1+Croissance!$F11) -> 40.46388461 | D40: =+'Bilan initial'!D40*(1+Croissance!$F11) -> 0 | E40: =+'Bilan initial'!E40*(1+Croissance!$F11) -> 0 | F40: =+'Bilan initial'!F40*(1+Croissance!$F11) -> 11.12029675 | G40: =+'Bilan initial'!G40*(1+Croissance!$F11) -> 63.60571917 | H40: =+'Bilan initial'!H40*(1+Croissance!$F11) -> 0 | I40: 115.1899005 | J40: =+'Bilan initial'!J40*(1+Croissance!$F11) -> 273.0670606 | K40: =+'Bilan initial'!K40*(1+Croissance!$F11) -> 616.030563 | L40: =+'Bilan initial'!L40*(1+Croissance!$F11) -> 1638.145722 | M40: =+'Bilan initial'!M40*(1+Croissance!$F11) -> 58.68546479 | N40: =+'Bilan initial'!N40*(1+Croissance!$F11) -> 9.281884737 | O40: =+'Bilan initial'!O40*(1+Croissance!F$20) -> 12715.01865 | P40: Gaz naturel | Q40: 177686.1176 | R40: =+'Bilan initial'!R40 -> 0.3790094925 | S40: =+'Bilan initial'!S40 -> 0.4671126089
A41: Industrie - construction | B41: 876.5354267 | C41: =+'Bilan initial'!C41*(1+Croissance!$F12) -> 0 | D41: =+'Bilan initial'!D41*(1+Croissance!$F12) -> 0 | E41: =+'Bilan initial'!E41*(1+Croissance!$F12) -> 0 | F41: =+'Bilan initial'!F41*(1+Croissance!$F12) -> 272.4472703 | G41: =+'Bilan initial'!G41*(1+Croissance!$F12) -> 0 | H41: =+'Bilan initial'!H41*(1+Croissance!$F12) -> 0 | I41: 272.4472703 | J41: =+'Bilan initial'!J41*(1+Croissance!$F12) -> 1.197662547 | K41: =+'Bilan initial'!K41*(1+Croissance!$F12) -> 2.348274065 | L41: =+'Bilan initial'!L41*(1+Croissance!$F12) -> 600.5422198 | M41: =+'Bilan initial'!M41*(1+Croissance!$F12) -> 0 | N41: =+'Bilan initial'!N41*(1+Croissance!$F12) -> 0 | O41: =+'Bilan initial'!O41*(1+Croissance!F$20) -> 5132.569498 | P41: Nucléaire | Q41: 0 | R41: =+'Bilan initial'!R41 -> 0
A42: Industrie - exploitation minière | B42: 1010.06924 | C42: =+'Bilan initial'!C42*(1+Croissance!$F13) -> 0 | D42: =+'Bilan initial'!D42*(1+Croissance!$F13) -> 0 | E42: =+'Bilan initial'!E42*(1+Croissance!$F13) -> 0 | F42: =+'Bilan initial'!F42*(1+Croissance!$F13) -> 696.8719294 | G42: =+'Bilan initial'!G42*(1+Croissance!$F13) -> 0 | H42: =+'Bilan initial'!H42*(1+Croissance!$F13) -> 0 | I42: 696.8719294 | J42: =+'Bilan initial'!J42*(1+Croissance!$F13) -> 22.75558839 | K42: =+'Bilan initial'!K42*(1+Croissance!$F13) -> 73.57925403 | L42: =+'Bilan initial'!L42*(1+Croissance!$F13) -> 216.8624683 | M42: =+'Bilan initial'!M42*(1+Croissance!$F13) -> 0 | N42: =+'Bilan initial'!N42*(1+Croissance!$F13) -> 0 | O42: =+'Bilan initial'!O42*(1+Croissance!F$20) -> 3948.819171 | P42: Importation net | Q42: 0 | R42: =+'Bilan initial'!R42 -> 0
A43: Industrie - machinerie | B43: 147.679919 | C43: =+'Bilan initial'!C43*(1+Croissance!$F14) -> 10.11597115 | D43: =+'Bilan initial'!D43*(1+Croissance!$F14) -> 0 | E43: =+'Bilan initial'!E43*(1+Croissance!$F14) -> 0 | F43: =+'Bilan initial'!F43*(1+Croissance!$F14) -> 5.560148373 | G43: =+'Bilan initial'!G43*(1+Croissance!$F14) -> 0 | H43: =+'Bilan initial'!H43*(1+Croissance!$F14) -> 0 | I43: 15.67611953 | J43: =+'Bilan initial'!J43*(1+Croissance!$F14) -> 3.59298764 | K43: =+'Bilan initial'!K43*(1+Croissance!$F14) -> 13.30688637 | L43: =+'Bilan initial'!L43*(1+Croissance!$F14) -> 115.1039255 | M43: =+'Bilan initial'!M43*(1+Croissance!$F14) -> 0 | N43: =+'Bilan initial'!N43*(1+Croissance!$F14) -> 0 | O43: =+'Bilan initial'!O43*(1+Croissance!F$20) -> 3857.485938
A44: Industrie - métaux non-ferreux | B44: 10678.56415 | C44: =+'Bilan initial'!C44*(1+Croissance!$F15) -> 74.85818653 | D44: =+'Bilan initial'!D44*(1+Croissance!$F15) -> 0 | E44: =+'Bilan initial'!E44*(1+Croissance!$F15) -> 0 | F44: =+'Bilan initial'!F44*(1+Croissance!$F15) -> 24.09397628 | G44: =+'Bilan initial'!G44*(1+Croissance!$F15) -> 0 | H44: =+'Bilan initial'!H44*(1+Croissance!$F15) -> 0 | I44: 98.95216281 | J44: =+'Bilan initial'!J44*(1+Croissance!$F15) -> 1300.661526 | K44: =+'Bilan initial'!K44*(1+Croissance!$F15) -> 53.22754547 | L44: =+'Bilan initial'!L44*(1+Croissance!$F15) -> 3431.431517 | M44: =+'Bilan initial'!M44*(1+Croissance!$F15) -> 5794.291401 | N44: =+'Bilan initial'!N44*(1+Croissance!$F15) -> 0 | O44: =+'Bilan initial'!O44*(1+Croissance!F$20) -> 45242.18536
A45: Industrie - pâtes et papiers | B45: 600.5080009 | C45: =+'Bilan initial'!C45*(1+Croissance!$F16) -> 2.023194231 | D45: =+'Bilan initial'!D45*(1+Croissance!$F16) -> 0 | E45: =+'Bilan initial'!E45*(1+Croissance!$F16) -> 0 | F45: =+'Bilan initial'!F45*(1+Croissance!$F16) -> 18.53382791 | G45: =+'Bilan initial'!G45*(1+Croissance!$F16) -> 0 | H45: =+'Bilan initial'!H45*(1+Croissance!$F16) -> 0 | I45: 20.55702214 | J45: =+'Bilan initial'!J45*(1+Croissance!$F16) -> 51.49948951 | K45: =+'Bilan initial'!K45*(1+Croissance!$F16) -> 158.1171204 | L45: =+'Bilan initial'!L45*(1+Croissance!$F16) -> 370.3343689 | M45: =+'Bilan initial'!M45*(1+Croissance!$F16) -> 0 | N45: =+'Bilan initial'!N45*(1+Croissance!$F16) -> 0 | O45: =+'Bilan initial'!O45*(1+Croissance!F$20) -> 7195.626045
A46: Industrie - transport d'équipment | B46: 362.7039753 | C46: =+'Bilan initial'!C46*(1+Croissance!$F17) -> 46.5334673 | D46: =+'Bilan initial'!D46*(1+Croissance!$F17) -> 0 | E46: =+'Bilan initial'!E46*(1+Croissance!$F17) -> 0 | F46: =+'Bilan initial'!F46*(1+Croissance!$F17) -> 12.97367954 | G46: =+'Bilan initial'!G46*(1+Croissance!$F17) -> 0 | H46: =+'Bilan initial'!H46*(1+Croissance!$F17) -> 0 | I46: 59.50714684 | J46: =+'Bilan initial'!J46*(1+Croissance!$F17) -> 0 | K46: =+'Bilan initial'!K46*(1+Croissance!$F17) -> 6.262064172 | L46: =+'Bilan initial'!L46*(1+Croissance!$F17) -> 296.9347642 | M46: =+'Bilan initial'!M46*(1+Croissance!$F17) -> 0 | N46: =+'Bilan initial'!N46*(1+Croissance!$F17) -> 0 | O46: =+'Bilan initial'!O46*(1+Croissance!F$20) -> 4756.491482
A47: Industrie - cuir et textile | B47: 3309.115097 | C47: =+'Bilan initial'!C47*(1+Croissance!$F18) -> 24.27833077 | D47: =+'Bilan initial'!D47*(1+Croissance!$F18) -> 0 | E47: =+'Bilan initial'!E47*(1+Croissance!$F18) -> 0 | F47: =+'Bilan initial'!F47*(1+Croissance!$F18) -> 11.12029675 | G47: =+'Bilan initial'!G47*(1+Croissance!$F18) -> 0 | H47: =+'Bilan initial'!H47*(1+Croissance!$F18) -> 0 | I47: 35.39862751 | J47: =+'Bilan initial'!J47*(1+Croissance!$F18) -> 425.1702041 | K47: =+'Bilan initial'!K47*(1+Croissance!$F18) -> 850.0752114 | L47: =+'Bilan initial'!L47*(1+Croissance!$F18) -> 1998.471054 | M47: =+'Bilan initial'!M47*(1+Croissance!$F18) -> 0 | N47: =+'Bilan initial'!N47*(1+Croissance!$F18) -> 0 | O47: =+'Bilan initial'!O47*(1+Croissance!F$20) -> 31108.81534
A48: Industrie - divers | B48: 1036.718087 | C48: =+'Bilan initial'!C48*(1+Croissance!$F19) -> 0 | D48: =+'Bilan initial'!D48*(1+Croissance!$F19) -> 0 | E48: =+'Bilan initial'!E48*(1+Croissance!$F19) -> 0 | F48: =+'Bilan initial'!F48*(1+Croissance!$F19) -> 0 | G48: =+'Bilan initial'!G48*(1+Croissance!$F19) -> 0 | H48: =+'Bilan initial'!H48*(1+Croissance!$F19) -> 0 | I48: 0 | J48: =+'Bilan initial'!J48*(1+Croissance!$F19) -> 0 | K48: =+'Bilan initial'!K48*(1+Croissance!$F19) -> 0.7827580216 | L48: =+'Bilan initial'!L48*(1+Croissance!$F19) -> 1035.935329 | M48: =+'Bilan initial'!M48*(1+Croissance!$F19) -> 0 | N48: =+'Bilan initial'!N48*(1+Croissance!$F19) -> 0 | O48: =+'Bilan initial'!O48*(1+Croissance!F$20) -> 8361.467895
A49: Transport - route | B49: 40686.19388 | C49: =+'Bilan initial'!C49*(1+Croissance!$F21) -> 6209.183094 | D49: =+'Bilan initial'!D49*(1+Croissance!$F21) -> 3886.175431 | E49: =+'Bilan initial'!E49*(1+Croissance!$F21) -> 0 | F49: =+'Bilan initial'!F49*(1+Croissance!$F21) -> 30447.37249 | G49: =+'Bilan initial'!G49*(1+Croissance!$F21) -> 0 | H49: =+'Bilan initial'!H49*(1+Croissance!$F21) -> 0 | I49: 40542.73101 | J49: =+'Bilan initial'!J49*(1+Croissance!$F21) -> 0 | K49: =+'Bilan initial'!K49*(1+Croissance!$F21) -> 0 | L49: =+'Bilan initial'!L49*(1+Croissance!$F21) -> 143.4628636 | M49: =+'Bilan initial'!M49*(1+Croissance!$F21) -> 0 | N49: =+'Bilan initial'!N49*(1+Croissance!$F21) -> 0 | O49: =+'Bilan initial'!O49*(1+Croissance!F$25) -> 0
A50: Transport - rail | B50: 250.2066768 | C50: =+'Bilan initial'!C50*(1+Croissance!$F22) -> 0 | D50: =+'Bilan initial'!D50*(1+Croissance!$F22) -> 0 | E50: =+'Bilan initial'!E50*(1+Croissance!$F22) -> 0 | F50: =+'Bilan initial'!F50*(1+Croissance!$F22) -> 250.2066768 | G50: =+'Bilan initial'!G50*(1+Croissance!$F22) -> 0 | H50: =+'Bilan initial'!H50*(1+Croissance!$F22) -> 0 | I50: 250.2066768 | J50: =+'Bilan initial'!J50*(1+Croissance!$F22) -> 0 | K50: =+'Bilan initial'!K50*(1+Croissance!$F22) -> 0 | L50: =+'Bilan initial'!L50*(1+Croissance!$F22) -> 0 | M50: =+'Bilan initial'!M50*(1+Croissance!$F22) -> 0 | N50: =+'Bilan initial'!N50*(1+Croissance!$F22) -> 0 | O50: =+'Bilan initial'!O50*(1+Croissance!F$25) -> 1438.0507
A51: Transport - air domestique | B51: 2515.699162 | C51: =+'Bilan initial'!C51*(1+Croissance!$F23) -> 0 | D51: =+'Bilan initial'!D51*(1+Croissance!$F23) -> 0 | E51: =+'Bilan initial'!E51*(1+Croissance!$F23) -> 2515.699162 | F51: =+'Bilan initial'!F51*(1+Croissance!$F23) -> 0 | G51: =+'Bilan initial'!G51*(1+Croissance!$F23) -> 0 | H51: =+'Bilan initial'!H51*(1+Croissance!$F23) -> 0 | I51: 2515.699162 | J51: =+'Bilan initial'!J51*(1+Croissance!$F23) -> 0 | K51: =+'Bilan initial'!K51*(1+Croissance!$F23) -> 0 | L51: =+'Bilan initial'!L51*(1+Croissance!$F23) -> 0 | M51: =+'Bilan initial'!M51*(1+Croissance!$F23) -> 0 | N51: =+'Bilan initial'!N51*(1+Croissance!$F23) -> 0 | O51: =+'Bilan initial'!O51*(1+Croissance!F$25) -> 0 | P51: Renouvelable | Q51: =SUM(Q52:Q56) -> 150746.3957 | R51: =SUM(R52:R56) -> 0.3215463071
A52: Transport - navigation | B52: 314.5904489 | C52: =+'Bilan initial'!C52*(1+Croissance!$F24) -> 0 | D52: =+'Bilan initial'!D52*(1+Croissance!$F24) -> 0 | E52: =+'Bilan initial'!E52*(1+Croissance!$F24) -> 0 | F52: =+'Bilan initial'!F52*(1+Croissance!$F24) -> 0 | G52: =+'Bilan initial'!G52*(1+Croissance!$F24) -> 314.5904489 | H52: =+'Bilan initial'!H52*(1+Croissance!$F24) -> 0 | I52: 314.5904489 | J52: =+'Bilan initial'!J52*(1+Croissance!$F24) -> 0 | K52: =+'Bilan initial'!K52*(1+Croissance!$F24) -> 0 | L52: =+'Bilan initial'!L52*(1+Croissance!$F24) -> 0 | M52: =+'Bilan initial'!M52*(1+Croissance!$F24) -> 0 | N52: =+'Bilan initial'!N52*(1+Croissance!$F24) -> 0 | O52: =+'Bilan initial'!O52*(1+Croissance!F$25) -> 0 | P52: Hydro | Q52: =Q$34*R52 -> 120248.2594 | R52: =+'Bilan initial'!R52 -> 0.2564929236
A53: Ménages | B53: 22592.95437 | C53: =+'Bilan initial'!C53*(1+Croissance!$F26) -> 495.6825865 | D53: =+'Bilan initial'!D53*(1+Croissance!$F26) -> 0 | E53: =+'Bilan initial'!E53*(1+Croissance!$F26) -> 0 | F53: =+'Bilan initial'!F53*(1+Croissance!$F26) -> 0 | G53: =+'Bilan initial'!G53*(1+Croissance!$F26) -> 0 | H53: =+'Bilan initial'!H53*(1+Croissance!$F27) -> 111.0190407 | I53: 606.7016272 | J53: =+'Bilan initial'!J53*(1+Croissance!$F26) -> 1815.656421 | K53: =+'Bilan initial'!K53*(1+Croissance!$F26) -> 1820.695158 | L53: =+'Bilan initial'!L53*(1+Croissance!$F26) -> 18349.90116 | M53: =+'Bilan initial'!M53*(1+Croissance!$F26) -> 0 | N53: =+'Bilan initial'!N53*(1+Croissance!$F26) -> 0 | O53: =+'Bilan initial'!O53*(1+Croissance!F28) -> 85783.39551 | P53: Éolien | Q53: =Q$34*R53 -> 20868.74821 | R53: =+'Bilan initial'!R53 -> 0.0445136276
A54: Services | B54: 13375.25151 | C54: =+'Bilan initial'!C54*(1+Croissance!$F29) -> 1155.243906 | D54: =+'Bilan initial'!D54*(1+Croissance!$F29) -> 0 | E54: =+'Bilan initial'!E54*(1+Croissance!$F29) -> 0 | F54: =+'Bilan initial'!F54*(1+Croissance!$F29) -> 0 | G54: =+'Bilan initial'!G54*(1+Croissance!$F29) -> 0 | H54: =+'Bilan initial'!H54*(1+Croissance!$F29) -> 0 | I54: 1155.243906 | J54: =+'Bilan initial'!J54*(1+Croissance!$F29) -> 6255.391481 | K54: =+'Bilan initial'!K54*(1+Croissance!$F29) -> 634.0339975 | L54: =+'Bilan initial'!L54*(1+Croissance!$F29) -> 5273.094325 | M54: =+'Bilan initial'!M54*(1+Croissance!$F29) -> 57.48780224 | N54: =+'Bilan initial'!N54*(1+Croissance!$F29) -> 0 | O54: =+'Bilan initial'!O54*(1+Croissance!F30) -> 107332.6658 | P54: Solaire | Q54: =Q$34*R54 -> 347.4244531 | R54: =+'Bilan initial'!R54 -> 0.0007410661421
A55: Agriculture & Pêches | B55: 5257.50803 | C55: =+'Bilan initial'!C55*(1+Croissance!$F31) -> 0 | D55: =+'Bilan initial'!D55*(1+Croissance!$F31) -> 0 | E55: =+'Bilan initial'!E55*(1+Croissance!$F31) -> 0 | F55: =+'Bilan initial'!F55*(1+Croissance!$F31) -> 5035.641043 | G55: =+'Bilan initial'!G55*(1+Croissance!$F31) -> 0 | H55: =+'Bilan initial'!H55*(1+Croissance!$F31) -> 0 | I55: 5035.641043 | J55: =+'Bilan initial'!J55*(1+Croissance!$F31) -> 0 | K55: =+'Bilan initial'!K55*(1+Croissance!$F31) -> 0 | L55: =+'Bilan initial'!L55*(1+Croissance!$F31) -> 221.8669868 | M55: =+'Bilan initial'!M55*(1+Croissance!$F31) -> 0 | N55: =+'Bilan initial'!N55*(1+Croissance!$F31) -> 0 | O55: =+'Bilan initial'!O55*(1+Croissance!F32) -> 8741.127607 | P55: Biomasse | Q55: =Q$34*R55 -> 3148.310251 | R55: =+'Bilan initial'!R55 -> 0.006715434421
A56: Utilisations non énergétiques | B56: 0 | C56: =+'Bilan initial'!C56*(1+Croissance!$F33) -> 0 | D56: =+'Bilan initial'!D56*(1+Croissance!$F33) -> 0 | E56: =+'Bilan initial'!E56*(1+Croissance!$F33) -> 0 | F56: =+'Bilan initial'!F56*(1+Croissance!$F33) -> 0 | G56: =+'Bilan initial'!G56*(1+Croissance!$F33) -> 0 | H56: =+'Bilan initial'!H56*(1+Croissance!$F33) -> 0 | I56: 0 | J56: =+'Bilan initial'!J56*(1+Croissance!$F33) -> 0 | K56: =+'Bilan initial'!K56*(1+Croissance!$F33) -> 0 | L56: =+'Bilan initial'!L56*(1+Croissance!$F33) -> 0 | M56: =+'Bilan initial'!M56*(1+Croissance!$F33) -> 0 | N56: =+'Bilan initial'!N56*(1+Croissance!$F33) -> 0 | O56: =+'Bilan initial'!O56*(1+Croissance!F33) -> 0 | P56: Géothermie | Q56: =Q$34*R56 -> 6133.653361 | R56: =+'Bilan initial'!R56 -> 0.01308325534
R57: =+R36+R51 -> 1
A59: Bilan GES | B59: =+Hypothèses!$B$2 -> Pays X | D59: 2025
A60: Ton CO2/Toe (IPCC): | C60: =+'Bilan initial'!C60 -> 2.614070448 | D60: =+'Bilan initial'!D60 -> 2.872437876 | E60: =+'Bilan initial'!E60 -> 2.96362638 | F60: =+'Bilan initial'!F60 -> 3.070012968 | G60: =+'Bilan initial'!G60 -> 3.206795724 | H60: =+'Bilan initial'!H60 -> 2.978824464 | J60: =+'Bilan initial'!J60 -> 3.921105672 | K60: =+'Bilan initial'!K60 -> 4.194671184 | L60: =+'Bilan initial'!L60 -> 2.325306852 | M60: =+'Bilan initial'!M60 -> 4.484816424 | N60: =+'Bilan initial'!N60 -> 4.157366796
A61: Unité : ktCO2-e | B61: Total | C61: GPL | D61: Essence | E61: Essence pour carburéacteurs | F61: Diesel | G61: Fiouls lourds | H61: Kérosène et autres | I61: Total produits pétroliers | J61: Charbon | K61: Lignite | L61: Gaz | M61: Coke | N61: Coke de pétrole
A62: Total | B62: =+B63+B64 -> 696845.0819 | C62: =+C63+C64 -> 21128.64513 | D62: 11162.7975 | E62: 7455.5924 | F62: 114543.5622 | G62: 2579.9518 | H62: 330.7062344 | I62: 157201.2552 | J62: 132727.6098 | K62: 185204.1664 | L62: 172647.1426 | M62: 26507.34902 | N62: 22557.55885
A63: Centrales fossiles | B63: =SUM(I63:N63) -> 315831.6334 | C63: =C60*C35 -> 0 | D63: 0 | E63: 0 | F63: 1354.19839 | G63: 1251.386877 | H63: 0 | I63: =SUM(C63:H63) -> 2605.585267 | J63: =J60*J35 -> 75472.00994 | K63: =K60*K35 -> 161698.2162 | L63: =L60*L35 -> 76055.82198 | M63: =M60*M35 -> 0 | N63: =N60*N35 -> 0
A64: CONSOMMATION FINALE | B64: =SUM(B65:B84) -> 381013.4485 | C64: =SUM(C65:C84) -> 21128.64513 | D64: 11162.7975 | E64: 7455.5924 | F64: 113189.3638 | G64: 1328.564922 | H64: 330.7062344 | I64: =SUM(C64:H64) -> 154595.67 | J64: =SUM(J65:J84) -> 57255.59985 | K64: =SUM(K65:K84) -> 23505.95021 | L64: =SUM(L65:L84) -> 96591.3206 | M64: =SUM(M65:M84) -> 26507.34902 | N64: =SUM(N65:N84) -> 22557.55885
A65: Industrie - acier | B65: =SUM(I65:N65) -> 1154.105081 | C65: =+'Bilan initial'!C65*(1+Croissance!$F8) -> 0 | D65: =+'Bilan initial'!D65*(1+Croissance!$F8) -> 0 | E65: =+'Bilan initial'!E65*(1+Croissance!$F8) -> 0 | F65: =+'Bilan initial'!F65*(1+Croissance!$F8) -> 96.72845645 | G65: =+'Bilan initial'!G65*(1+Croissance!$F8) -> 0 | H65: =+'Bilan initial'!H65*(1+Croissance!$F8) -> 0 | I65: =SUM(C65:H65) -> 96.72845645 | J65: =+'Bilan initial'!J65*(1+Croissance!$F8) -> 79.83474388 | K65: =+'Bilan initial'!K65*(1+Croissance!$F8) -> 85.36872544 | L65: =+'Bilan initial'!L65*(1+Croissance!$F8) -> 892.1731553 | M65: =+'Bilan initial'!M65*(1+Croissance!$F8) -> 0 | N65: =+'Bilan initial'!N65*(1+Croissance!$F8) -> 0
A66: Industrie - chimique | B66: =SUM(I66:N66) -> 13050.93893 | C66: =+'Bilan initial'!C66*(1+Croissance!$F9) -> 47.59895024 | D66: =+'Bilan initial'!D66*(1+Croissance!$F9) -> 0 | E66: =+'Bilan initial'!E66*(1+Croissance!$F9) -> 0 | F66: =+'Bilan initial'!F66*(1+Croissance!$F9) -> 22.75963681 | G66: =+'Bilan initial'!G66*(1+Croissance!$F9) -> 16.53815256 | H66: =+'Bilan initial'!H66*(1+Croissance!$F9) -> 0 | I66: 86.89673961 | J66: =+'Bilan initial'!J66*(1+Croissance!$F9) -> 1850.287593 | K66: =+'Bilan initial'!K66*(1+Croissance!$F9) -> 1067.109068 | L66: =+'Bilan initial'!L66*(1+Croissance!$F9) -> 10046.64553 | M66: =+'Bilan initial'!M66*(1+Croissance!$F9) -> 0 | N66: =+'Bilan initial'!N66*(1+Croissance!$F9) -> 0
A67: Industrie - minerai non metallique | B67: 50225.36932 | C67: =+'Bilan initial'!C67*(1+Croissance!$F10) -> 15.86631675 | D67: =+'Bilan initial'!D67*(1+Croissance!$F10) -> 0 | E67: =+'Bilan initial'!E67*(1+Croissance!$F10) -> 0 | F67: =+'Bilan initial'!F67*(1+Croissance!$F10) -> 136.5578209 | G67: =+'Bilan initial'!G67*(1+Croissance!$F10) -> 99.22891537 | H67: =+'Bilan initial'!H67*(1+Croissance!$F10) -> 0 | I67: 251.653053 | J67: =+'Bilan initial'!J67*(1+Croissance!$F10) -> 15530.20577 | K67: =+'Bilan initial'!K67*(1+Croissance!$F10) -> 4616.477999 | L67: =+'Bilan initial'!L67*(1+Croissance!$F10) -> 7308.061846 | M67: =+'Bilan initial'!M67*(1+Croissance!$F10) -> 0 | N67: =+'Bilan initial'!N67*(1+Croissance!$F10) -> 22518.97065
A68: Industrie - transformation des aliments et boissons | B68: 8109.629107 | C68: =+'Bilan initial'!C68*(1+Croissance!$F11) -> 105.775445 | D68: =+'Bilan initial'!D68*(1+Croissance!$F11) -> 0 | E68: =+'Bilan initial'!E68*(1+Croissance!$F11) -> 0 | F68: =+'Bilan initial'!F68*(1+Croissance!$F11) -> 34.13945522 | G68: =+'Bilan initial'!G68*(1+Croissance!$F11) -> 203.9705483 | H68: =+'Bilan initial'!H68*(1+Croissance!$F11) -> 0 | I68: 343.8854484 | J68: =+'Bilan initial'!J68*(1+Croissance!$F11) -> 1070.7248 | K68: =+'Bilan initial'!K68*(1+Croissance!$F11) -> 2584.045651 | L68: =+'Bilan initial'!L68*(1+Croissance!$F11) -> 3809.191472 | M68: =+'Bilan initial'!M68*(1+Croissance!$F11) -> 263.1935363 | N68: =+'Bilan initial'!N68*(1+Croissance!$F11) -> 38.58819941
A69: Industrie - construction | B69: 2247.40799 | C69: =+'Bilan initial'!C69*(1+Croissance!$F12) -> 0 | D69: =+'Bilan initial'!D69*(1+Croissance!$F12) -> 0 | E69: =+'Bilan initial'!E69*(1+Croissance!$F12) -> 0 | F69: =+'Bilan initial'!F69*(1+Croissance!$F12) -> 836.4166528 | G69: =+'Bilan initial'!G69*(1+Croissance!$F12) -> 0 | H69: =+'Bilan initial'!H69*(1+Croissance!$F12) -> 0 | I69: 836.4166528 | J69: =+'Bilan initial'!J69*(1+Croissance!$F12) -> 4.696161405 | K69: =+'Bilan initial'!K69*(1+Croissance!$F12) -> 9.850237551 | L69: =+'Bilan initial'!L69*(1+Croissance!$F12) -> 1396.444939 | M69: =+'Bilan initial'!M69*(1+Croissance!$F12) -> 0 | N69: =+'Bilan initial'!N69*(1+Croissance!$F12) -> 0
A70: Industrie - exploitation minière | B70: 3041.545487 | C70: =+'Bilan initial'!C70*(1+Croissance!$F13) -> 0 | D70: =+'Bilan initial'!D70*(1+Croissance!$F13) -> 0 | E70: =+'Bilan initial'!E70*(1+Croissance!$F13) -> 0 | F70: =+'Bilan initial'!F70*(1+Croissance!$F13) -> 2139.40586 | G70: =+'Bilan initial'!G70*(1+Croissance!$F13) -> 0 | H70: =+'Bilan initial'!H70*(1+Croissance!$F13) -> 0 | I70: 2139.40586 | J70: =+'Bilan initial'!J70*(1+Croissance!$F13) -> 89.22706669 | K70: =+'Bilan initial'!K70*(1+Croissance!$F13) -> 308.6407766 | L70: =+'Bilan initial'!L70*(1+Croissance!$F13) -> 504.2717834 | M70: =+'Bilan initial'!M70*(1+Croissance!$F13) -> 0 | N70: =+'Bilan initial'!N70*(1+Croissance!$F13) -> 0
A71: Industrie - machinerie | B71: 381.0720324 | C71: =+'Bilan initial'!C71*(1+Croissance!$F14) -> 26.44386124 | D71: =+'Bilan initial'!D71*(1+Croissance!$F14) -> 0 | E71: =+'Bilan initial'!E71*(1+Croissance!$F14) -> 0 | F71: =+'Bilan initial'!F71*(1+Croissance!$F14) -> 17.06972761 | G71: =+'Bilan initial'!G71*(1+Croissance!$F14) -> 0 | H71: =+'Bilan initial'!H71*(1+Croissance!$F14) -> 0 | I71: 43.51358885 | J71: =+'Bilan initial'!J71*(1+Croissance!$F14) -> 14.08848421 | K71: =+'Bilan initial'!K71*(1+Croissance!$F14) -> 55.81801279 | L71: =+'Bilan initial'!L71*(1+Croissance!$F14) -> 267.6519466 | M71: =+'Bilan initial'!M71*(1+Croissance!$F14) -> 0 | N71: =+'Bilan initial'!N71*(1+Croissance!$F14) -> 0
A72: Industrie - métaux non-ferreux | B72: 39558.42119 | C72: =+'Bilan initial'!C72*(1+Croissance!$F15) -> 195.6845732 | D72: =+'Bilan initial'!D72*(1+Croissance!$F15) -> 0 | E72: =+'Bilan initial'!E72*(1+Croissance!$F15) -> 0 | F72: =+'Bilan initial'!F72*(1+Croissance!$F15) -> 73.96881964 | G72: =+'Bilan initial'!G72*(1+Croissance!$F15) -> 0 | H72: =+'Bilan initial'!H72*(1+Croissance!$F15) -> 0 | I72: 269.6533928 | J72: =+'Bilan initial'!J72*(1+Croissance!$F15) -> 5100.031286 | K72: =+'Bilan initial'!K72*(1+Croissance!$F15) -> 223.2720512 | L72: =+'Bilan initial'!L72*(1+Croissance!$F15) -> 7979.131219 | M72: =+'Bilan initial'!M72*(1+Croissance!$F15) -> 25986.33324 | N72: =+'Bilan initial'!N72*(1+Croissance!$F15) -> 0
A73: Industrie - pâtes et papiers | B73: 1788.513179 | C73: =+'Bilan initial'!C73*(1+Croissance!$F16) -> 5.288772249 | D73: =+'Bilan initial'!D73*(1+Croissance!$F16) -> 0 | E73: =+'Bilan initial'!E73*(1+Croissance!$F16) -> 0 | F73: =+'Bilan initial'!F73*(1+Croissance!$F16) -> 56.89909203 | G73: =+'Bilan initial'!G73*(1+Croissance!$F16) -> 0 | H73: =+'Bilan initial'!H73*(1+Croissance!$F16) -> 0 | I73: 62.18786428 | J73: =+'Bilan initial'!J73*(1+Croissance!$F16) -> 201.9349404 | K73: =+'Bilan initial'!K73*(1+Croissance!$F16) -> 663.2493285 | L73: =+'Bilan initial'!L73*(1+Croissance!$F16) -> 861.1410455 | M73: =+'Bilan initial'!M73*(1+Croissance!$F16) -> 0 | N73: =+'Bilan initial'!N73*(1+Croissance!$F16) -> 0
A74: Industrie - transport d'équipment | B74: 878.2028682 | C74: =+'Bilan initial'!C74*(1+Croissance!$F17) -> 121.6417617 | D74: =+'Bilan initial'!D74*(1+Croissance!$F17) -> 0 | E74: =+'Bilan initial'!E74*(1+Croissance!$F17) -> 0 | F74: =+'Bilan initial'!F74*(1+Croissance!$F17) -> 39.82936442 | G74: =+'Bilan initial'!G74*(1+Croissance!$F17) -> 0 | H74: =+'Bilan initial'!H74*(1+Croissance!$F17) -> 0 | I74: 161.4711261 | J74: =+'Bilan initial'!J74*(1+Croissance!$F17) -> 0 | K74: =+'Bilan initial'!K74*(1+Croissance!$F17) -> 26.26730014 | L74: =+'Bilan initial'!L74*(1+Croissance!$F17) -> 690.4644419 | M74: =+'Bilan initial'!M74*(1+Croissance!$F17) -> 0 | N74: =+'Bilan initial'!N74*(1+Croissance!$F17) -> 0
A75: Industrie - cuir et textile | B75: 9977.586449 | C75: =+'Bilan initial'!C75*(1+Croissance!$F18) -> 63.46526699 | D75: =+'Bilan initial'!D75*(1+Croissance!$F18) -> 0 | E75: =+'Bilan initial'!E75*(1+Croissance!$F18) -> 0 | F75: =+'Bilan initial'!F75*(1+Croissance!$F18) -> 34.13945522 | G75: =+'Bilan initial'!G75*(1+Croissance!$F18) -> 0 | H75: =+'Bilan initial'!H75*(1+Croissance!$F18) -> 0 | I75: 97.6047222 | J75: =+'Bilan initial'!J75*(1+Croissance!$F18) -> 1667.137299 | K75: =+'Bilan initial'!K75*(1+Croissance!$F18) -> 3565.785994 | L75: =+'Bilan initial'!L75*(1+Croissance!$F18) -> 4647.058435 | M75: =+'Bilan initial'!M75*(1+Croissance!$F18) -> 0 | N75: =+'Bilan initial'!N75*(1+Croissance!$F18) -> 0
A76: Industrie - divers | B76: 2412.150932 | C76: =+'Bilan initial'!C76*(1+Croissance!$F19) -> 0 | D76: =+'Bilan initial'!D76*(1+Croissance!$F19) -> 0 | E76: =+'Bilan initial'!E76*(1+Croissance!$F19) -> 0 | F76: =+'Bilan initial'!F76*(1+Croissance!$F19) -> 0 | G76: =+'Bilan initial'!G76*(1+Croissance!$F19) -> 0 | H76: =+'Bilan initial'!H76*(1+Croissance!$F19) -> 0 | I76: 0 | J76: =+'Bilan initial'!J76*(1+Croissance!$F19) -> 0 | K76: =+'Bilan initial'!K76*(1+Croissance!$F19) -> 3.283412517 | L76: =+'Bilan initial'!L76*(1+Croissance!$F19) -> 2408.867519 | M76: =+'Bilan initial'!M76*(1+Croissance!$F19) -> 0 | N76: =+'Bilan initial'!N76*(1+Croissance!$F19) -> 0
A77: Transport - route | B77: 121201.4631 | C77: =+'Bilan initial'!C77*(1+Croissance!$F21) -> 16231.24203 | D77: =+'Bilan initial'!D77*(1+Croissance!$F21) -> 11162.7975 | E77: =+'Bilan initial'!E77*(1+Croissance!$F21) -> 0 | F77: =+'Bilan initial'!F77*(1+Croissance!$F21) -> 93473.82838 | G77: =+'Bilan initial'!G77*(1+Croissance!$F21) -> 0 | H77: =+'Bilan initial'!H77*(1+Croissance!$F21) -> 0 | I77: 120867.8679 | J77: =+'Bilan initial'!J77*(1+Croissance!$F21) -> 0 | K77: =+'Bilan initial'!K77*(1+Croissance!$F21) -> 0 | L77: =+'Bilan initial'!L77*(1+Croissance!$F21) -> 333.5951798 | M77: =+'Bilan initial'!M77*(1+Croissance!$F21) -> 0 | N77: =+'Bilan initial'!N77*(1+Croissance!$F21) -> 0
A78: Transport - rail | B78: 768.1377424 | C78: =+'Bilan initial'!C78*(1+Croissance!$F22) -> 0 | D78: =+'Bilan initial'!D78*(1+Croissance!$F22) -> 0 | E78: =+'Bilan initial'!E78*(1+Croissance!$F22) -> 0 | F78: =+'Bilan initial'!F78*(1+Croissance!$F22) -> 768.1377424 | G78: =+'Bilan initial'!G78*(1+Croissance!$F22) -> 0 | H78: =+'Bilan initial'!H78*(1+Croissance!$F22) -> 0 | I78: 768.1377424 | J78: =+'Bilan initial'!J78*(1+Croissance!$F22) -> 0 | K78: =+'Bilan initial'!K78*(1+Croissance!$F22) -> 0 | L78: =+'Bilan initial'!L78*(1+Croissance!$F22) -> 0 | M78: =+'Bilan initial'!M78*(1+Croissance!$F22) -> 0 | N78: =+'Bilan initial'!N78*(1+Croissance!$F22) -> 0
A79: Transport - air domestique | B79: 7455.5924 | C79: =+'Bilan initial'!C79*(1+Croissance!$F23) -> 0 | D79: =+'Bilan initial'!D79*(1+Croissance!$F23) -> 0 | E79: =+'Bilan initial'!E79*(1+Croissance!$F23) -> 7455.5924 | F79: =+'Bilan initial'!F79*(1+Croissance!$F23) -> 0 | G79: =+'Bilan initial'!G79*(1+Croissance!$F23) -> 0 | H79: =+'Bilan initial'!H79*(1+Croissance!$F23) -> 0 | I79: 7455.5924 | J79: =+'Bilan initial'!J79*(1+Croissance!$F23) -> 0 | K79: =+'Bilan initial'!K79*(1+Croissance!$F23) -> 0 | L79: =+'Bilan initial'!L79*(1+Croissance!$F23) -> 0 | M79: =+'Bilan initial'!M79*(1+Croissance!$F23) -> 0 | N79: =+'Bilan initial'!N79*(1+Croissance!$F23) -> 0
A80: Transport - navigation | B80: 1008.827306 | C80: =+'Bilan initial'!C80*(1+Croissance!$F24) -> 0 | D80: =+'Bilan initial'!D80*(1+Croissance!$F24) -> 0 | E80: =+'Bilan initial'!E80*(1+Croissance!$F24) -> 0 | F80: =+'Bilan initial'!F80*(1+Croissance!$F24) -> 0 | G80: =+'Bilan initial'!G80*(1+Croissance!$F24) -> 1008.827306 | H80: =+'Bilan initial'!H80*(1+Croissance!$F24) -> 0 | I80: 1008.827306 | J80: =+'Bilan initial'!J80*(1+Croissance!$F24) -> 0 | K80: =+'Bilan initial'!K80*(1+Croissance!$F24) -> 0 | L80: =+'Bilan initial'!L80*(1+Croissance!$F24) -> 0 | M80: =+'Bilan initial'!M80*(1+Croissance!$F24) -> 0 | N80: =+'Bilan initial'!N80*(1+Croissance!$F24) -> 0
A81: Ménages | B81: 59052.20454 | C81: =+'Bilan initial'!C81*(1+Croissance!$F26) -> 1295.749201 | D81: =+'Bilan initial'!D81*(1+Croissance!$F26) -> 0 | E81: =+'Bilan initial'!E81*(1+Croissance!$F26) -> 0 | F81: =+'Bilan initial'!F81*(1+Croissance!$F26) -> 0 | G81: =+'Bilan initial'!G81*(1+Croissance!$F26) -> 0 | H81: =+'Bilan initial'!H81*(1+Croissance!$F27) -> 330.7062344 | I81: 1626.455435 | J81: =+'Bilan initial'!J81*(1+Croissance!$F26) -> 7119.38069 | K81: =+'Bilan initial'!K81*(1+Croissance!$F26) -> 7637.217515 | L81: =+'Bilan initial'!L81*(1+Croissance!$F26) -> 42669.1509 | M81: =+'Bilan initial'!M81*(1+Croissance!$F26) -> 0 | N81: =+'Bilan initial'!N81*(1+Croissance!$F26) -> 0
A82: Services | B82: 42726.88871 | C82: =+'Bilan initial'!C82*(1+Croissance!$F29) -> 3019.888954 | D82: =+'Bilan initial'!D82*(1+Croissance!$F29) -> 0 | E82: =+'Bilan initial'!E82*(1+Croissance!$F29) -> 0 | F82: =+'Bilan initial'!F82*(1+Croissance!$F29) -> 0 | G82: =+'Bilan initial'!G82*(1+Croissance!$F29) -> 0 | H82: =+'Bilan initial'!H82*(1+Croissance!$F29) -> 0 | I82: 3019.888954 | J82: =+'Bilan initial'!J82*(1+Croissance!$F29) -> 24528.05102 | K82: =+'Bilan initial'!K82*(1+Croissance!$F29) -> 2659.564139 | L82: =+'Bilan initial'!L82*(1+Croissance!$F29) -> 12261.56236 | M82: =+'Bilan initial'!M82*(1+Croissance!$F29) -> 257.8222397 | N82: =+'Bilan initial'!N82*(1+Croissance!$F29) -> 0
A83: Agriculture & Pêches | B83: 15975.39213 | C83: =+'Bilan initial'!C83*(1+Croissance!$F31) -> 0 | D83: =+'Bilan initial'!D83*(1+Croissance!$F31) -> 0 | E83: =+'Bilan initial'!E83*(1+Croissance!$F31) -> 0 | F83: =+'Bilan initial'!F83*(1+Croissance!$F31) -> 15459.4833 | G83: =+'Bilan initial'!G83*(1+Croissance!$F31) -> 0 | H83: =+'Bilan initial'!H83*(1+Croissance!$F31) -> 0 | I83: 15459.4833 | J83: =+'Bilan initial'!J83*(1+Croissance!$F31) -> 0 | K83: =+'Bilan initial'!K83*(1+Croissance!$F31) -> 0 | L83: =+'Bilan initial'!L83*(1+Croissance!$F31) -> 515.9088246 | M83: =+'Bilan initial'!M83*(1+Croissance!$F31) -> 0 | N83: =+'Bilan initial'!N83*(1+Croissance!$F31) -> 0
A84: Utilisations non énergétiques | B84: 0 | C84: =+'Bilan initial'!C84*(1+Croissance!$F33) -> 0 | D84: =+'Bilan initial'!D84*(1+Croissance!$F33) -> 0 | E84: =+'Bilan initial'!E84*(1+Croissance!$F33) -> 0 | F84: =+'Bilan initial'!F84*(1+Croissance!$F33) -> 0 | G84: =+'Bilan initial'!G84*(1+Croissance!$F33) -> 0 | H84: =+'Bilan initial'!H84*(1+Croissance!$F33) -> 0 | I84: 0 | J84: =+'Bilan initial'!J84*(1+Croissance!$F33) -> 0 | K84: =+'Bilan initial'!K84*(1+Croissance!$F33) -> 0 | L84: =+'Bilan initial'!L84*(1+Croissance!$F33) -> 0 | M84: =+'Bilan initial'!M84*(1+Croissance!$F33) -> 0 | N84: =+'Bilan initial'!N84*(1+Croissance!$F33) -> 0
A85: CH4 provenant de la combustion d'énergie | B85: =IF(B62=0,0,'Bilan initial'!B85*'Bilan 2025'!B64/'Bilan initial'!B64) -> 9063.480192
A86: N2O provenant de la combustion d'énergie | B86: =IF(B62=0,0,'Bilan initial'!B86*'Bilan 2025'!B64/'Bilan initial'!B64) -> 6939.534824
A87: Total Agriculture | B87: =SUM(B88:B92) -> 76081.79407
A88: Fermentation entérique | B88: =+'Bilan initial'!B88*(1+Croissance!F$34) -> 36135.22361
A89: Gestion du fumier | B89: =+'Bilan initial'!B89*(1+Croissance!F$34) -> 8472.048855
A90: Culture du riz | B90: =+'Bilan initial'!B90*(1+Croissance!F$35) -> 268.7832759
A91: N2O provenant des sols agricoles | B91: =+'Bilan initial'!B91*(1+Croissance!F$36) -> 30746.11893
A92: Brûlage de résidus agricoles | B92: =+'Bilan initial'!B92*(1+Croissance!F$37) -> 459.6194017
A93: Émissions fugitive (CH4) | B93: =IF('Bilan initial'!L62=0,0, 'Bilan initial'!B93*'Bilan 2025'!L62/'Bilan initial'!L62) -> 7397.991834
A94: Foresterie | B94: =+'Bilan initial'!B94*(1+Croissance!F$38) -> -64020
A95: Déchets - solides | B95: =+'Bilan initial'!B95*(1+Croissance!F39) -> 16880
A96: Déchets - liquide | B96: =+'Bilan initial'!B96*(1+Croissance!F40) -> 0
A97: Processus industriels | B97: =+'Bilan initial'!B97*(1+Croissance!F41) -> 60720
A98: Émission total GES (excl. Foresterie) | B98: =B62+B85+B86+B87+B93+B95+B96+B97 -> 873927.8828
A99: Émission total GES (incl. Foresterie) | B99: =+B85+B86+B87+B93+B94+B95+B96+B97+B62 -> 809907.8828

Sheet Bilan 2030
A1: Bilan combustibles fossiles | B1: =+Hypothèses!$B$2 -> Pays X | D1: 2030
A3: Unité (TJ) | B3: GPL | C3: Essence | D3: Essence pour carburéacteurs | E3: Diesel | F3: Fiouls lourds | G3: Kérosène et autres | H3: Total produits pétroliers | I3: Charbon | J3: Lignite | K3: Gaz | L3: Coke | M3: Coke de pétrole | N3: Énergie totale (fossile)
A4: Unité | B4: TJ | C4: TJ | D4: TJ | E4: TJ | F4: TJ | G4: TJ | H4: TJ | I4: TJ | J4: TJ | K4: TJ | L4: TJ | M4: TJ | N4: TJ
A5: Total | B5: =+B6+B7 -> 452862.0241 | C5: 217737.8567 | D5: 140951.6768 | E5: 2090460.746 | F5: 45076.67133 | G5: 6220.26679 | H5: 2953309.241 | I5: 1896549.878 | J5: 2473798.784 | K5: 4159974.47 | L5: =+L6+L7 -> 331156.4111 | M5: =+M6+M7 -> 304008.1999 | N5: =SUM(H5:M5) -> 12118796.99
A6: Centrales fossiles | B6: =C35/C32 -> 0 | C6: 0 | D6: 0 | E6: 24714.60223 | F6: 21864.11195 | G6: 0 | H6: =SUM(B6:G6) -> 46578.71418 | I6: =J35/J32 -> 1078422.428 | J6: =K35/K32 -> 2159826.414 | K6: =L35/L32 -> 1832583.343 | L6: =M35/M32 -> 0 | M6: =N35/N32 -> 0 | N6: =SUM(H6:M6) -> 5117410.9
A7: CONSOMMATION FINALE | B7: =SUM(B8:B27) -> 452862.0241 | C7: 217737.8567 | D7: 140951.6768 | E7: 2065746.143 | F7: 23212.55938 | G7: 6220.26679 | H7: 2906730.527 | I7: 818127.4497 | J7: =SUM(J8:J27) -> 313972.3699 | K7: 2327391.127 | L7: =SUM(L8:L27) -> 331156.4111 | M7: =SUM(M8:M27) -> 304008.1999 | N7: 7001386.085
A8: Industrie - acier | B8: =+'Bilan initial'!B8*(1+Croissance!$G8) -> 0 | C8: =+'Bilan initial'!C8*(1+Croissance!$G8) -> 0 | D8: =+'Bilan initial'!D8*(1+Croissance!$G8) -> 0 | E8: =+'Bilan initial'!E8*(1+Croissance!$G8) -> 1765.328731 | F8: =+'Bilan initial'!F8*(1+Croissance!$G8) -> 0 | G8: =+'Bilan initial'!G8*(1+Croissance!$G8) -> 0 | H8: =SUM(B8:G8) -> 1765.328731 | I8: =+'Bilan initial'!I8*(1+Croissance!$G8) -> 1140.7617 | J8: =+'Bilan initial'!J8*(1+Croissance!$G8) -> 1140.282388 | K8: =+'Bilan initial'!K8*(1+Croissance!$G8) -> 21497.12699 | L8: =+'Bilan initial'!L8*(1+Croissance!$G8) -> 0 | M8: =+'Bilan initial'!M8*(1+Croissance!$G8) -> 0 | N8: 25543.49981
A9: Industrie - chimique | B9: =+'Bilan initial'!B9*(1+Croissance!$G9) -> 1020.214823 | C9: =+'Bilan initial'!C9*(1+Croissance!$G9) -> 0 | D9: =+'Bilan initial'!D9*(1+Croissance!$G9) -> 0 | E9: =+'Bilan initial'!E9*(1+Croissance!$G9) -> 415.371466 | F9: =+'Bilan initial'!F9*(1+Croissance!$G9) -> 288.9530213 | G9: =+'Bilan initial'!G9*(1+Croissance!$G9) -> 0 | H9: =SUM(B9:G9) -> 1724.53931 | I9: =+'Bilan initial'!I9*(1+Croissance!$G9) -> 26438.82999 | J9: =+'Bilan initial'!J9*(1+Croissance!$G9) -> 14253.52985 | K9: =+'Bilan initial'!K9*(1+Croissance!$G9) -> 242076.3431 | L9: =+'Bilan initial'!L9*(1+Croissance!$G9) -> 0 | M9: =+'Bilan initial'!M9*(1+Croissance!$G9) -> 0 | N9: 284493.2422
A10: Industrie - minerai non metallique | B10: =+'Bilan initial'!B10*(1+Croissance!$G10) -> 340.0716076 | C10: =+'Bilan initial'!C10*(1+Croissance!$G10) -> 0 | D10: =+'Bilan initial'!D10*(1+Croissance!$G10) -> 0 | E10: =+'Bilan initial'!E10*(1+Croissance!$G10) -> 2492.228796 | F10: =+'Bilan initial'!F10*(1+Croissance!$G10) -> 1733.718128 | G10: =+'Bilan initial'!G10*(1+Croissance!$G10) -> 0 | H10: 4566.018532 | I10: =+'Bilan initial'!I10*(1+Croissance!$G10) -> 221911.7024 | J10: =+'Bilan initial'!J10*(1+Croissance!$G10) -> 61662.963 | K10: =+'Bilan initial'!K10*(1+Croissance!$G10) -> 176089.5098 | L10: =+'Bilan initial'!L10*(1+Croissance!$G10) -> 0 | M10: =+'Bilan initial'!M10*(1+Croissance!$G10) -> 303488.1468 | N10: 767718.3406
A11: Industrie - transformation des aliments et boissons | B11: =+'Bilan initial'!B11*(1+Croissance!$G11) -> 2267.144051 | C11: =+'Bilan initial'!C11*(1+Croissance!$G11) -> 0 | D11: =+'Bilan initial'!D11*(1+Croissance!$G11) -> 0 | E11: =+'Bilan initial'!E11*(1+Croissance!$G11) -> 623.057199 | F11: =+'Bilan initial'!F11*(1+Croissance!$G11) -> 3563.75393 | G11: =+'Bilan initial'!G11*(1+Croissance!$G11) -> 0 | H11: 6453.95518 | I11: =+'Bilan initial'!I11*(1+Croissance!$G11) -> 15299.6275 | J11: =+'Bilan initial'!J11*(1+Croissance!$G11) -> 34515.47075 | K11: =+'Bilan initial'!K11*(1+Croissance!$G11) -> 91783.38568 | L11: =+'Bilan initial'!L11*(1+Croissance!$G11) -> 3288.077841 | M11: =+'Bilan initial'!M11*(1+Croissance!$G11) -> 520.0531279 | N11: 151860.5701
A12: Industrie - construction | B12: =+'Bilan initial'!B12*(1+Croissance!$G12) -> 0 | C12: =+'Bilan initial'!C12*(1+Croissance!$G12) -> 0 | D12: =+'Bilan initial'!D12*(1+Croissance!$G12) -> 0 | E12: =+'Bilan initial'!E12*(1+Croissance!$G12) -> 15264.90138 | F12: =+'Bilan initial'!F12*(1+Croissance!$G12) -> 0 | G12: =+'Bilan initial'!G12*(1+Croissance!$G12) -> 0 | H12: 15264.90138 | I12: =+'Bilan initial'!I12*(1+Croissance!$G12) -> 67.10362941 | J12: =+'Bilan initial'!J12*(1+Croissance!$G12) -> 131.5710448 | K12: =+'Bilan initial'!K12*(1+Croissance!$G12) -> 33647.67703 | L12: =+'Bilan initial'!L12*(1+Croissance!$G12) -> 0 | M12: =+'Bilan initial'!M12*(1+Croissance!$G12) -> 0 | N12: 49111.25308
A13: Industrie - exploitation minière | B13: =+'Bilan initial'!B13*(1+Croissance!$G13) -> 0 | C13: =+'Bilan initial'!C13*(1+Croissance!$G13) -> 0 | D13: =+'Bilan initial'!D13*(1+Croissance!$G13) -> 0 | E13: =+'Bilan initial'!E13*(1+Croissance!$G13) -> 39044.91781 | F13: =+'Bilan initial'!F13*(1+Croissance!$G13) -> 0 | G13: =+'Bilan initial'!G13*(1+Croissance!$G13) -> 0 | H13: 39044.91781 | I13: =+'Bilan initial'!I13*(1+Croissance!$G13) -> 1274.968959 | J13: =+'Bilan initial'!J13*(1+Croissance!$G13) -> 4122.559404 | K13: =+'Bilan initial'!K13*(1+Croissance!$G13) -> 12150.55004 | L13: =+'Bilan initial'!L13*(1+Croissance!$G13) -> 0 | M13: =+'Bilan initial'!M13*(1+Croissance!$G13) -> 0 | N13: 56592.99621
A14: Industrie - machinerie | B14: =+'Bilan initial'!B14*(1+Croissance!$G14) -> 566.7860127 | C14: =+'Bilan initial'!C14*(1+Croissance!$G14) -> 0 | D14: =+'Bilan initial'!D14*(1+Croissance!$G14) -> 0 | E14: =+'Bilan initial'!E14*(1+Croissance!$G14) -> 311.5285995 | F14: =+'Bilan initial'!F14*(1+Croissance!$G14) -> 0 | G14: =+'Bilan initial'!G14*(1+Croissance!$G14) -> 0 | H14: 878.3146122 | I14: =+'Bilan initial'!I14*(1+Croissance!$G14) -> 201.3108882 | J14: =+'Bilan initial'!J14*(1+Croissance!$G14) -> 745.5692539 | K14: =+'Bilan initial'!K14*(1+Croissance!$G14) -> 6449.138098 | L14: =+'Bilan initial'!L14*(1+Croissance!$G14) -> 0 | M14: =+'Bilan initial'!M14*(1+Croissance!$G14) -> 0 | N14: 8274.332852
A15: Industrie - métaux non-ferreux | B15: =+'Bilan initial'!B15*(1+Croissance!$G15) -> 4194.216494 | C15: =+'Bilan initial'!C15*(1+Croissance!$G15) -> 0 | D15: =+'Bilan initial'!D15*(1+Croissance!$G15) -> 0 | E15: =+'Bilan initial'!E15*(1+Croissance!$G15) -> 1349.957265 | F15: =+'Bilan initial'!F15*(1+Croissance!$G15) -> 0 | G15: =+'Bilan initial'!G15*(1+Croissance!$G15) -> 0 | H15: 5544.173758 | I15: =+'Bilan initial'!I15*(1+Croissance!$G15) -> 72874.54154 | J15: =+'Bilan initial'!J15*(1+Croissance!$G15) -> 2982.277015 | K15: =+'Bilan initial'!K15*(1+Croissance!$G15) -> 192259.0879 | L15: =+'Bilan initial'!L15*(1+Croissance!$G15) -> 324647.3591 | M15: =+'Bilan initial'!M15*(1+Croissance!$G15) -> 0 | N15: 598307.4393
A16: Industrie - pâtes et papiers | B16: =+'Bilan initial'!B16*(1+Croissance!$G16) -> 113.3572025 | C16: =+'Bilan initial'!C16*(1+Croissance!$G16) -> 0 | D16: =+'Bilan initial'!D16*(1+Croissance!$G16) -> 0 | E16: =+'Bilan initial'!E16*(1+Croissance!$G16) -> 1038.428665 | F16: =+'Bilan initial'!F16*(1+Croissance!$G16) -> 0 | G16: =+'Bilan initial'!G16*(1+Croissance!$G16) -> 0 | H16: 1151.785868 | I16: =+'Bilan initial'!I16*(1+Croissance!$G16) -> 2885.456064 | J16: =+'Bilan initial'!J16*(1+Croissance!$G16) -> 8859.117017 | K16: =+'Bilan initial'!K16*(1+Croissance!$G16) -> 20749.40084 | L16: =+'Bilan initial'!L16*(1+Croissance!$G16) -> 0 | M16: =+'Bilan initial'!M16*(1+Croissance!$G16) -> 0 | N16: 33645.75978
A17: Industrie - transport d'équipment | B17: =+'Bilan initial'!B17*(1+Croissance!$G17) -> 2607.215658 | C17: =+'Bilan initial'!C17*(1+Croissance!$G17) -> 0 | D17: =+'Bilan initial'!D17*(1+Croissance!$G17) -> 0 | E17: =+'Bilan initial'!E17*(1+Croissance!$G17) -> 726.9000655 | F17: =+'Bilan initial'!F17*(1+Croissance!$G17) -> 0 | G17: =+'Bilan initial'!G17*(1+Croissance!$G17) -> 0 | H17: 3334.115724 | I17: =+'Bilan initial'!I17*(1+Croissance!$G17) -> 0 | J17: =+'Bilan initial'!J17*(1+Croissance!$G17) -> 350.8561195 | K17: =+'Bilan initial'!K17*(1+Croissance!$G17) -> 16636.90698 | L17: =+'Bilan initial'!L17*(1+Croissance!$G17) -> 0 | M17: =+'Bilan initial'!M17*(1+Croissance!$G17) -> 0 | N17: 20321.87882
A18: Industrie - cuir et textile | B18: =+'Bilan initial'!B18*(1+Croissance!$G18) -> 1360.28643 | C18: =+'Bilan initial'!C18*(1+Croissance!$G18) -> 0 | D18: =+'Bilan initial'!D18*(1+Croissance!$G18) -> 0 | E18: =+'Bilan initial'!E18*(1+Croissance!$G18) -> 623.057199 | F18: =+'Bilan initial'!F18*(1+Croissance!$G18) -> 0 | G18: =+'Bilan initial'!G18*(1+Croissance!$G18) -> 0 | H18: 1983.343629 | I18: =+'Bilan initial'!I18*(1+Croissance!$G18) -> 23821.78844 | J18: =+'Bilan initial'!J18*(1+Croissance!$G18) -> 47628.71822 | K18: =+'Bilan initial'!K18*(1+Croissance!$G18) -> 111971.9919 | L18: =+'Bilan initial'!L18*(1+Croissance!$G18) -> 0 | M18: =+'Bilan initial'!M18*(1+Croissance!$G18) -> 0 | N18: 185405.8422
A19: Industrie - divers | B19: =+'Bilan initial'!B19*(1+Croissance!$G19) -> 0 | C19: =+'Bilan initial'!C19*(1+Croissance!$G19) -> 0 | D19: =+'Bilan initial'!D19*(1+Croissance!$G19) -> 0 | E19: =+'Bilan initial'!E19*(1+Croissance!$G19) -> 0 | F19: =+'Bilan initial'!F19*(1+Croissance!$G19) -> 0 | G19: =+'Bilan initial'!G19*(1+Croissance!$G19) -> 0 | H19: 0 | I19: =+'Bilan initial'!I19*(1+Croissance!$G19) -> 0 | J19: =+'Bilan initial'!J19*(1+Croissance!$G19) -> 43.85701493 | K19: =+'Bilan initial'!K19*(1+Croissance!$G19) -> 58042.24288 | L19: =+'Bilan initial'!L19*(1+Croissance!$G19) -> 0 | M19: =+'Bilan initial'!M19*(1+Croissance!$G19) -> 0 | N19: 58086.09989
A20: Transport - route | B20: =+'Bilan initial'!B20*(1+Croissance!$G21) -> 347893.2546 | C20: =+'Bilan initial'!C20*(1+Croissance!$G21) -> 217737.8567 | D20: =+'Bilan initial'!D20*(1+Croissance!$G21) -> 0 | E20: =+'Bilan initial'!E20*(1+Croissance!$G21) -> 1705930.611 | F20: =+'Bilan initial'!F20*(1+Croissance!$G21) -> 0 | G20: =+'Bilan initial'!G20*(1+Croissance!$G21) -> 0 | H20: 2271561.722 | I20: =+'Bilan initial'!I20*(1+Croissance!$G21) -> 0 | J20: =+'Bilan initial'!J20*(1+Croissance!$G21) -> 0 | K20: =+'Bilan initial'!K20*(1+Croissance!$G21) -> 8038.05618 | L20: =+'Bilan initial'!L20*(1+Croissance!$G21) -> 0 | M20: =+'Bilan initial'!M20*(1+Croissance!$G21) -> 0 | N20: 2279599.778
A21: Transport - rail | B21: =+'Bilan initial'!B21*(1+Croissance!$G22) -> 0 | C21: =+'Bilan initial'!C21*(1+Croissance!$G22) -> 0 | D21: =+'Bilan initial'!D21*(1+Croissance!$G22) -> 0 | E21: =+'Bilan initial'!E21*(1+Croissance!$G22) -> 14018.78698 | F21: =+'Bilan initial'!F21*(1+Croissance!$G22) -> 0 | G21: =+'Bilan initial'!G21*(1+Croissance!$G22) -> 0 | H21: 14018.78698 | I21: =+'Bilan initial'!I21*(1+Croissance!$G22) -> 0 | J21: =+'Bilan initial'!J21*(1+Croissance!$G22) -> 0 | K21: =+'Bilan initial'!K21*(1+Croissance!$G22) -> 0 | L21: =+'Bilan initial'!L21*(1+Croissance!$G22) -> 0 | M21: =+'Bilan initial'!M21*(1+Croissance!$G22) -> 0 | N21: 14018.78698
A22: Transport - air domestique | B22: =+'Bilan initial'!B22*(1+Croissance!$G23) -> 0 | C22: =+'Bilan initial'!C22*(1+Croissance!$G23) -> 0 | D22: =+'Bilan initial'!D22*(1+Croissance!$G23) -> 140951.6768 | E22: =+'Bilan initial'!E22*(1+Croissance!$G23) -> 0 | F22: =+'Bilan initial'!F22*(1+Croissance!$G23) -> 0 | G22: =+'Bilan initial'!G22*(1+Croissance!$G23) -> 0 | H22: 140951.6768 | I22: =+'Bilan initial'!I22*(1+Croissance!$G23) -> 0 | J22: =+'Bilan initial'!J22*(1+Croissance!$G23) -> 0 | K22: =+'Bilan initial'!K22*(1+Croissance!$G23) -> 0 | L22: =+'Bilan initial'!L22*(1+Croissance!$G23) -> 0 | M22: =+'Bilan initial'!M22*(1+Croissance!$G23) -> 0 | N22: 140951.6768
A23: Transport - navigation | B23: =+'Bilan initial'!B23*(1+Croissance!$G24) -> 0 | C23: =+'Bilan initial'!C23*(1+Croissance!$G24) -> 0 | D23: =+'Bilan initial'!D23*(1+Croissance!$G24) -> 0 | E23: =+'Bilan initial'!E23*(1+Croissance!$G24) -> 0 | F23: =+'Bilan initial'!F23*(1+Croissance!$G24) -> 17626.1343 | G23: =+'Bilan initial'!G23*(1+Croissance!$G24) -> 0 | H23: 17626.1343 | I23: =+'Bilan initial'!I23*(1+Croissance!$G24) -> 0 | J23: =+'Bilan initial'!J23*(1+Croissance!$G24) -> 0 | K23: =+'Bilan initial'!K23*(1+Croissance!$G24) -> 0 | L23: =+'Bilan initial'!L23*(1+Croissance!$G24) -> 0 | M23: =+'Bilan initial'!M23*(1+Croissance!$G24) -> 0 | N23: 17626.1343
A24: Ménages | B24: =+'Bilan initial'!B24*(1+Croissance!$G26) -> 27772.51462 | C24: =+'Bilan initial'!C24*(1+Croissance!$G26) -> 0 | D24: =+'Bilan initial'!D24*(1+Croissance!$G26) -> 0 | E24: =+'Bilan initial'!E24*(1+Croissance!$G26) -> 0 | F24: =+'Bilan initial'!F24*(1+Croissance!$G26) -> 0 | G24: =+'Bilan initial'!G24*(1+Croissance!$G27) -> 6220.26679 | H24: 33992.78141 | I24: =+'Bilan initial'!I24*(1+Croissance!$G26) -> 101729.1022 | J24: =+'Bilan initial'!J24*(1+Croissance!$G26) -> 102011.4167 | K24: =+'Bilan initial'!K24*(1+Croissance!$G26) -> 1028123.465 | L24: =+'Bilan initial'!L24*(1+Croissance!$G26) -> 0 | M24: =+'Bilan initial'!M24*(1+Croissance!$G26) -> 0 | N24: 1265856.765
A25: Services | B25: =+'Bilan initial'!B25*(1+Croissance!$G29) -> 64726.96265 | C25: =+'Bilan initial'!C25*(1+Croissance!$G29) -> 0 | D25: =+'Bilan initial'!D25*(1+Croissance!$G29) -> 0 | E25: =+'Bilan initial'!E25*(1+Croissance!$G29) -> 0 | F25: =+'Bilan initial'!F25*(1+Croissance!$G29) -> 0 | G25: =+'Bilan initial'!G25*(1+Croissance!$G29) -> 0 | H25: 64726.96265 | I25: =+'Bilan initial'!I25*(1+Croissance!$G29) -> 350482.2564 | J25: =+'Bilan initial'!J25*(1+Croissance!$G29) -> 35524.1821 | K25: =+'Bilan initial'!K25*(1+Croissance!$G29) -> 295445.2975 | L25: =+'Bilan initial'!L25*(1+Croissance!$G29) -> 3220.974212 | M25: =+'Bilan initial'!M25*(1+Croissance!$G29) -> 0 | N25: 749399.6728
A26: Agriculture & Pêches | B26: =+'Bilan initial'!B26*(1+Croissance!$G31) -> 0 | C26: =+'Bilan initial'!C26*(1+Croissance!$G31) -> 0 | D26: =+'Bilan initial'!D26*(1+Croissance!$G31) -> 0 | E26: =+'Bilan initial'!E26*(1+Croissance!$G31) -> 282141.0683 | F26: =+'Bilan initial'!F26*(1+Croissance!$G31) -> 0 | G26: =+'Bilan initial'!G26*(1+Croissance!$G31) -> 0 | H26: 282141.0683 | I26: =+'Bilan initial'!I26*(1+Croissance!$G31) -> 0 | J26: =+'Bilan initial'!J26*(1+Croissance!$G31) -> 0 | K26: =+'Bilan initial'!K26*(1+Croissance!$G31) -> 12430.94735 | L26: =+'Bilan initial'!L26*(1+Croissance!$G31) -> 0 | M26: =+'Bilan initial'!M26*(1+Croissance!$G31) -> 0 | N26: 294572.0156
A27: Utilisations non énergétiques | B27: =+'Bilan initial'!B27*(1+Croissance!$G33) -> 0 | C27: =+'Bilan initial'!C27*(1+Croissance!$G33) -> 0 | D27: =+'Bilan initial'!D27*(1+Croissance!$G33) -> 0 | E27: =+'Bilan initial'!E27*(1+Croissance!$G33) -> 0 | F27: =+'Bilan initial'!F27*(1+Croissance!$G33) -> 0 | G27: =+'Bilan initial'!G27*(1+Croissance!$G33) -> 0 | H27: 0 | I27: =+'Bilan initial'!I27*(1+Croissance!$G33) -> 0 | J27: =+'Bilan initial'!J27*(1+Croissance!$G33) -> 0 | K27: =+'Bilan initial'!K27*(1+Croissance!$G33) -> 0 | L27: =+'Bilan initial'!L27*(1+Croissance!$G33) -> 0 | M27: =+'Bilan initial'!M27*(1+Croissance!$G33) -> 0 | N27: 0
A30: Bilan combustibles fossiles | B30: =+Hypothèses!$B$2 -> Pays X | D30: 2030
A31: =+'Bilan initial'!A31 -> 1 ktoe=41.868 TJ
A32: =+'Bilan initial'!A32 -> ktoe per TJ | C32: =+'Bilan initial'!C32 -> 0.02388458966 | D32: =+'Bilan initial'!D32 -> 0.02388458966 | E32: =+'Bilan initial'!E32 -> 0.02388458966 | F32: =+'Bilan initial'!F32 -> 0.02388458966 | G32: =+'Bilan initial'!G32 -> 0.02388458966 | H32: =+'Bilan initial'!H32 -> 0.02388458966 | J32: =+'Bilan initial'!J32 -> 0.02388458966 | K32: =+'Bilan initial'!K32 -> 0.02388458966 | L32: =+'Bilan initial'!L32 -> 0.02388458966 | M32: 0.02388458966 | N32: 0.02388458966
A33: Unité : ktoe | B33: Total | C33: GPL | D33: Essence | E33: Essence pour carburéacteurs | F33: Diesel | G33: Fiouls lourds | H33: Kérosène et autres | I33: Total produits pétroliers | J33: Charbon | K33: Lignite | L33: Gaz | M33: Coke | N33: Coke de pétrole | O33: Consommation d'électricité Gwh | Q33: Production d'électricité Gwh | R33: Part de la production | S33: Efficacité
A34: Total | B34: =+B35+B36 -> 289452.4932 | C34: =+C35+C36 -> 10816.42362 | D34: 5200.579361 | E34: 3366.572964 | F34: 49929.79712 | G34: 1076.637798 | H34: 148.5685199 | I34: 70538.57938 | J34: 45298.31561 | K34: 59085.66887 | L34: 99359.28323 | M34: 7909.534994 | N34: 7261.111109 | P34: Total | Q34: =IF(R35=1,0,O36/(1-R35)) -> 627382.9866
A35: Centrales fossiles | B35: =SUM(I35:N35) -> 122227.2595 | C35: =IF(Q36=0,0,$I35*IF('Bilan initial'!$I35>0,'Bilan initial'!C35/'Bilan initial'!$I35,0)) -> 0 | D35: =IF(Q36=0,0,$I35*IF('Bilan initial'!$I35>0,'Bilan initial'!D35/'Bilan initial'!$I35,0)) -> 0 | E35: =IF(Q36=0,0,$I35*IF('Bilan initial'!$I35>0,'Bilan initial'!E35/'Bilan initial'!$I35,0)) -> 0 | F35: =IF(Q36=0,0,$I35*IF('Bilan initial'!$I35>0,'Bilan initial'!F35/'Bilan initial'!$I35,0)) -> 590.2981329 | G35: =IF(Q36=0,0,$I35*IF('Bilan initial'!$I35>0,'Bilan initial'!G35/'Bilan initial'!$I35,0)) -> 522.2153422 | H35: =IF(Q36=0,0,$I35*IF('Bilan initial'!$I35>0,'Bilan initial'!H35/'Bilan initial'!$I35,0)) -> 0 | I35: =IF(Q36=0,0,Q39/11.63/S39) -> 1112.513475 | J35: =IF(S38>0,Q38/11.63/S38,0) -> 25757.67718 | K35: =IF(S37>0,Q37/11.63/S37,0) -> 51586.56765 | L35: =IF(S40>0,Q40/11.63/S40,0) -> 43770.50117 | M35: =IF(T40>0,R40/11.63/T40,0) -> 0 | N35: =IF(U40>0,S40/11.63/U40,0) -> 0 | P35: Pertes | Q35: =Q34*R35 -> 107205.2377 | R35: =+'Bilan 2025'!R35 -> 0.1708768646
A36: CONSOMMATION FINALE | B36: =SUM(B37:B56) -> 167225.2337 | C36: =SUM(C37:C56) -> 10816.42362 | D36: 5200.579361 | E36: 3366.572964 | F36: 49339.49898 | G36: 554.4224558 | H36: 148.5685199 | I36: =SUM(C36:H36) -> 69426.0659 | J36: =SUM(J37:J56) -> 19540.63843 | K36: 7499.101221 | L36: 55588.78206 | M36: 7909.534994 | N36: 7261.111109 | O36: 520177.7489 | P36: Fossile | Q36: =SUM(Q37:Q49) -> 425650.3041 | R36: =SUM(R37:R50) -> 0.6784536929
A37: Industrie - acier | B37: =SUM(I37:N37) -> 610.0960115 | C37: =+'Bilan initial'!C37*(1+Croissance!$G8) -> 0 | D37: =+'Bilan initial'!D37*(1+Croissance!$G8) -> 0 | E37: =+'Bilan initial'!E37*(1+Croissance!$G8) -> 0 | F37: =+'Bilan initial'!F37*(1+Croissance!$G8) -> 42.16415235 | G37: =+'Bilan initial'!G37*(1+Croissance!$G8) -> 0 | H37: =+'Bilan initial'!H37*(1+Croissance!$G8) -> 0 | I37: =SUM(C37:H37) -> 42.16415235 | J37: =+'Bilan initial'!J37*(1+Croissance!$G8) -> 27.24662511 | K37: =+'Bilan initial'!K37*(1+Croissance!$G8) -> 27.23517694 | L37: =+'Bilan initial'!L37*(1+Croissance!$G8) -> 513.4500571 | M37: =+'Bilan initial'!M37*(1+Croissance!$G8) -> 0 | N37: =+'Bilan initial'!N37*(1+Croissance!$G8) -> 0 | O37: =+'Bilan initial'!O37*(1+Croissance!G$20) -> 3673.92371 | P37: Lignite | Q37: =Q$34*R37 -> 77684.43383 | R37: =+'Bilan 2025'!R37 -> 0.1238229845 | S37: =+'Bilan 2025'!S37 -> 0.1294844622
A38: Industrie - chimique | B38: =SUM(I38:N38) -> 6795.004353 | C38: =+'Bilan initial'!C38*(1+Croissance!$G9) -> 24.36741241 | D38: =+'Bilan initial'!D38*(1+Croissance!$G9) -> 0 | E38: =+'Bilan initial'!E38*(1+Croissance!$G9) -> 0 | F38: =+'Bilan initial'!F38*(1+Croissance!$G9) -> 9.920977024 | G38: =+'Bilan initial'!G38*(1+Croissance!$G9) -> 6.901524347 | H38: =+'Bilan initial'!H38*(1+Croissance!$G9) -> 0 | I38: =SUM(C38:H38) -> 41.18991378 | J38: =+'Bilan initial'!J38*(1+Croissance!$G9) -> 631.4806054 | K38: =+'Bilan initial'!K38*(1+Croissance!$G9) -> 340.4397118 | L38: =+'Bilan initial'!L38*(1+Croissance!$G9) -> 5781.894122 | M38: =+'Bilan initial'!M38*(1+Croissance!$G9) -> 0 | N38: =+'Bilan initial'!N38*(1+Croissance!$G9) -> 0 | O38: =+'Bilan initial'!O38*(1+Croissance!G$20) -> 36319.83942 | P38: Charbon | Q38: 104851.8175 | R38: =+'Bilan 2025'!R38 -> 0.1671256947 | S38: =+'Bilan 2025'!S38 -> 0.3500173338
A39: Industrie - minerai non metallique | B39: 18336.63754 | C39: =+'Bilan initial'!C39*(1+Croissance!$G10) -> 8.122470803 | D39: =+'Bilan initial'!D39*(1+Croissance!$G10) -> 0 | E39: =+'Bilan initial'!E39*(1+Croissance!$G10) -> 0 | F39: =+'Bilan initial'!F39*(1+Croissance!$G10) -> 59.52586214 | G39: =+'Bilan initial'!G39*(1+Croissance!$G10) -> 41.40914608 | H39: =+'Bilan initial'!H39*(1+Croissance!$G10) -> 0 | I39: 109.057479 | J39: =+'Bilan initial'!J39*(1+Croissance!$G10) -> 5300.269954 | K39: =+'Bilan initial'!K39*(1+Croissance!$G10) -> 1472.794569 | L39: =+'Bilan initial'!L39*(1+Croissance!$G10) -> 4205.825685 | M39: =+'Bilan initial'!M39*(1+Croissance!$G10) -> 0 | N39: =+'Bilan initial'!N39*(1+Croissance!$G10) -> 7248.689853 | O39: =+'Bilan initial'!O39*(1+Croissance!G$20) -> 44439.37857 | P39: Pétrole | Q39: 5329.945421 | R39: =+'Bilan 2025'!R39 -> 0.008495521134 | S39: =+'Bilan 2025'!S39 -> 0.4119436068
A40: Industrie - transformation des aliments et boissons | B40: 3627.127402 | C40: =+'Bilan initial'!C40*(1+Croissance!$G11) -> 54.14980536 | D40: =+'Bilan initial'!D40*(1+Croissance!$G11) -> 0 | E40: =+'Bilan initial'!E40*(1+Croissance!$G11) -> 0 | F40: =+'Bilan initial'!F40*(1+Croissance!$G11) -> 14.88146554 | G40: =+'Bilan initial'!G40*(1+Croissance!$G11) -> 85.11880027 | H40: =+'Bilan initial'!H40*(1+Croissance!$G11) -> 0 | I40: 154.1500712 | J40: =+'Bilan initial'!J40*(1+Croissance!$G11) -> 365.4253249 | K40: =+'Bilan initial'!K40*(1+Croissance!$G11) -> 824.3878559 | L40: =+'Bilan initial'!L40*(1+Croissance!$G11) -> 2192.208505 | M40: =+'Bilan initial'!M40*(1+Croissance!$G11) -> 78.53439001 | N40: =+'Bilan initial'!N40*(1+Croissance!$G11) -> 12.42125556 | O40: =+'Bilan initial'!O40*(1+Croissance!G$20) -> 17015.56317 | P40: Gaz naturel | Q40: 237784.1074 | R40: =+'Bilan 2025'!R40 -> 0.3790094925 | S40: =+'Bilan 2025'!S40 -> 0.4671126089
A41: Industrie - construction | B41: 1173.002128 | C41: =+'Bilan initial'!C41*(1+Croissance!$G12) -> 0 | D41: =+'Bilan initial'!D41*(1+Croissance!$G12) -> 0 | E41: =+'Bilan initial'!E41*(1+Croissance!$G12) -> 0 | F41: =+'Bilan initial'!F41*(1+Croissance!$G12) -> 364.5959056 | G41: =+'Bilan initial'!G41*(1+Croissance!$G12) -> 0 | H41: =+'Bilan initial'!H41*(1+Croissance!$G12) -> 0 | I41: 364.5959056 | J41: =+'Bilan initial'!J41*(1+Croissance!$G12) -> 1.602742653 | K41: =+'Bilan initial'!K41*(1+Croissance!$G12) -> 3.142520417 | L41: =+'Bilan initial'!L41*(1+Croissance!$G12) -> 803.660959 | M41: =+'Bilan initial'!M41*(1+Croissance!$G12) -> 0 | N41: =+'Bilan initial'!N41*(1+Croissance!$G12) -> 0 | O41: =+'Bilan initial'!O41*(1+Croissance!G$20) -> 6868.535781 | P41: Nucléaire | Q41: 0 | R41: =+'Bilan 2025'!R41 -> 0
A42: Industrie - exploitation minière | B42: 1351.700492 | C42: =+'Bilan initial'!C42*(1+Croissance!$G13) -> 0 | D42: =+'Bilan initial'!D42*(1+Croissance!$G13) -> 0 | E42: =+'Bilan initial'!E42*(1+Croissance!$G13) -> 0 | F42: =+'Bilan initial'!F42*(1+Croissance!$G13) -> 932.5718402 | G42: =+'Bilan initial'!G42*(1+Croissance!$G13) -> 0 | H42: =+'Bilan initial'!H42*(1+Croissance!$G13) -> 0 | I42: 932.5718402 | J42: =+'Bilan initial'!J42*(1+Croissance!$G13) -> 30.45211041 | K42: =+'Bilan initial'!K42*(1+Croissance!$G13) -> 98.46563972 | L42: =+'Bilan initial'!L42*(1+Croissance!$G13) -> 290.2109019 | M42: =+'Bilan initial'!M42*(1+Croissance!$G13) -> 0 | N42: =+'Bilan initial'!N42*(1+Croissance!$G13) -> 0 | O42: =+'Bilan initial'!O42*(1+Croissance!G$20) -> 5284.410816 | P42: Importation net | Q42: 0 | R42: =+'Bilan 2025'!R42 -> 0
A43: Industrie - machinerie | B43: 197.6290449 | C43: =+'Bilan initial'!C43*(1+Croissance!$G14) -> 13.53745134 | D43: =+'Bilan initial'!D43*(1+Croissance!$G14) -> 0 | E43: =+'Bilan initial'!E43*(1+Croissance!$G14) -> 0 | F43: =+'Bilan initial'!F43*(1+Croissance!$G14) -> 7.440732768 | G43: =+'Bilan initial'!G43*(1+Croissance!$G14) -> 0 | H43: =+'Bilan initial'!H43*(1+Croissance!$G14) -> 0 | I43: 20.97818411 | J43: =+'Bilan initial'!J43*(1+Croissance!$G14) -> 4.80822796 | K43: =+'Bilan initial'!K43*(1+Croissance!$G14) -> 17.80761569 | L43: =+'Bilan initial'!L43*(1+Croissance!$G14) -> 154.0350171 | M43: =+'Bilan initial'!M43*(1+Croissance!$G14) -> 0 | N43: =+'Bilan initial'!N43*(1+Croissance!$G14) -> 0 | O43: =+'Bilan initial'!O43*(1+Croissance!G$20) -> 5162.186348
A44: Industrie - métaux non-ferreux | B44: 14290.32768 | C44: =+'Bilan initial'!C44*(1+Croissance!$G15) -> 100.1771399 | D44: =+'Bilan initial'!D44*(1+Croissance!$G15) -> 0 | E44: =+'Bilan initial'!E44*(1+Croissance!$G15) -> 0 | F44: =+'Bilan initial'!F44*(1+Croissance!$G15) -> 32.24317533 | G44: =+'Bilan initial'!G44*(1+Croissance!$G15) -> 0 | H44: =+'Bilan initial'!H44*(1+Croissance!$G15) -> 0 | I44: 132.4203152 | J44: =+'Bilan initial'!J44*(1+Croissance!$G15) -> 1740.578521 | K44: =+'Bilan initial'!K44*(1+Croissance!$G15) -> 71.23046278 | L44: =+'Bilan initial'!L44*(1+Croissance!$G15) -> 4592.029424 | M44: =+'Bilan initial'!M44*(1+Croissance!$G15) -> 7754.068956 | N44: =+'Bilan initial'!N44*(1+Croissance!$G15) -> 0 | O44: =+'Bilan initial'!O44*(1+Croissance!G$20) -> 60544.24963
A45: Industrie - pâtes et papiers | B45: 803.6151663 | C45: =+'Bilan initial'!C45*(1+Croissance!$G16) -> 2.707490268 | D45: =+'Bilan initial'!D45*(1+Croissance!$G16) -> 0 | E45: =+'Bilan initial'!E45*(1+Croissance!$G16) -> 0 | F45: =+'Bilan initial'!F45*(1+Croissance!$G16) -> 24.80244256 | G45: =+'Bilan initial'!G45*(1+Croissance!$G16) -> 0 | H45: =+'Bilan initial'!H45*(1+Croissance!$G16) -> 0 | I45: 27.50993283 | J45: =+'Bilan initial'!J45*(1+Croissance!$G16) -> 68.91793409 | K45: =+'Bilan initial'!K45*(1+Croissance!$G16) -> 211.5963747 | L45: =+'Bilan initial'!L45*(1+Croissance!$G16) -> 495.5909247 | M45: =+'Bilan initial'!M45*(1+Croissance!$G16) -> 0 | N45: =+'Bilan initial'!N45*(1+Croissance!$G16) -> 0 | O45: =+'Bilan initial'!O45*(1+Croissance!G$20) -> 9629.37082
A46: Industrie - transport d'équipment | B46: 485.3797368 | C46: =+'Bilan initial'!C46*(1+Croissance!$G17) -> 62.27227616 | D46: =+'Bilan initial'!D46*(1+Croissance!$G17) -> 0 | E46: =+'Bilan initial'!E46*(1+Croissance!$G17) -> 0 | F46: =+'Bilan initial'!F46*(1+Croissance!$G17) -> 17.36170979 | G46: =+'Bilan initial'!G46*(1+Croissance!$G17) -> 0 | H46: =+'Bilan initial'!H46*(1+Croissance!$G17) -> 0 | I46: 79.63398595 | J46: =+'Bilan initial'!J46*(1+Croissance!$G17) -> 0 | K46: =+'Bilan initial'!K46*(1+Croissance!$G17) -> 8.380054444 | L46: =+'Bilan initial'!L46*(1+Croissance!$G17) -> 397.3656964 | M46: =+'Bilan initial'!M46*(1+Croissance!$G17) -> 0 | N46: =+'Bilan initial'!N46*(1+Croissance!$G17) -> 0 | O46: =+'Bilan initial'!O46*(1+Croissance!G$20) -> 6365.258561
A47: Industrie - cuir et textile | B47: 4428.342462 | C47: =+'Bilan initial'!C47*(1+Croissance!$G18) -> 32.48988321 | D47: =+'Bilan initial'!D47*(1+Croissance!$G18) -> 0 | E47: =+'Bilan initial'!E47*(1+Croissance!$G18) -> 0 | F47: =+'Bilan initial'!F47*(1+Croissance!$G18) -> 14.88146554 | G47: =+'Bilan initial'!G47*(1+Croissance!$G18) -> 0 | H47: =+'Bilan initial'!H47*(1+Croissance!$G18) -> 0 | I47: 47.37134875 | J47: =+'Bilan initial'!J47*(1+Croissance!$G18) -> 568.9736419 | K47: =+'Bilan initial'!K47*(1+Croissance!$G18) -> 1137.592391 | L47: =+'Bilan initial'!L47*(1+Croissance!$G18) -> 2674.40508 | M47: =+'Bilan initial'!M47*(1+Croissance!$G18) -> 0 | N47: =+'Bilan initial'!N47*(1+Croissance!$G18) -> 0 | O47: =+'Bilan initial'!O47*(1+Croissance!G$20) -> 41630.61237
A48: Industrie - divers | B48: 1387.362661 | C48: =+'Bilan initial'!C48*(1+Croissance!$G19) -> 0 | D48: =+'Bilan initial'!D48*(1+Croissance!$G19) -> 0 | E48: =+'Bilan initial'!E48*(1+Croissance!$G19) -> 0 | F48: =+'Bilan initial'!F48*(1+Croissance!$G19) -> 0 | G48: =+'Bilan initial'!G48*(1+Croissance!$G19) -> 0 | H48: =+'Bilan initial'!H48*(1+Croissance!$G19) -> 0 | I48: 0 | J48: =+'Bilan initial'!J48*(1+Croissance!$G19) -> 0 | K48: =+'Bilan initial'!K48*(1+Croissance!$G19) -> 1.047506806 | L48: =+'Bilan initial'!L48*(1+Croissance!$G19) -> 1386.315154 | M48: =+'Bilan initial'!M48*(1+Croissance!$G19) -> 0 | N48: =+'Bilan initial'!N48*(1+Croissance!$G19) -> 0 | O48: =+'Bilan initial'!O48*(1+Croissance!G$20) -> 11189.5302
A49: Transport - route | B49: 54447.3053 | C49: =+'Bilan initial'!C49*(1+Croissance!$G21) -> 8309.287632 | D49: =+'Bilan initial'!D49*(1+Croissance!$G21) -> 5200.579361 | E49: =+'Bilan initial'!E49*(1+Croissance!$G21) -> 0 | F49: =+'Bilan initial'!F49*(1+Croissance!$G21) -> 40745.45264 | G49: =+'Bilan initial'!G49*(1+Croissance!$G21) -> 0 | H49: =+'Bilan initial'!H49*(1+Croissance!$G21) -> 0 | I49: 54255.31963 | J49: =+'Bilan initial'!J49*(1+Croissance!$G21) -> 0 | K49: =+'Bilan initial'!K49*(1+Croissance!$G21) -> 0 | L49: =+'Bilan initial'!L49*(1+Croissance!$G21) -> 191.9856735 | M49: =+'Bilan initial'!M49*(1+Croissance!$G21) -> 0 | N49: =+'Bilan initial'!N49*(1+Croissance!$G21) -> 0 | O49: =+'Bilan initial'!O49*(1+Croissance!G$25) -> 0
A50: Transport - rail | B50: 334.8329745 | C50: =+'Bilan initial'!C50*(1+Croissance!$G22) -> 0 | D50: =+'Bilan initial'!D50*(1+Croissance!$G22) -> 0 | E50: =+'Bilan initial'!E50*(1+Croissance!$G22) -> 0 | F50: =+'Bilan initial'!F50*(1+Croissance!$G22) -> 334.8329745 | G50: =+'Bilan initial'!G50*(1+Croissance!$G22) -> 0 | H50: =+'Bilan initial'!H50*(1+Croissance!$G22) -> 0 | I50: 334.8329745 | J50: =+'Bilan initial'!J50*(1+Croissance!$G22) -> 0 | K50: =+'Bilan initial'!K50*(1+Croissance!$G22) -> 0 | L50: =+'Bilan initial'!L50*(1+Croissance!$G22) -> 0 | M50: =+'Bilan initial'!M50*(1+Croissance!$G22) -> 0 | N50: =+'Bilan initial'!N50*(1+Croissance!$G22) -> 0 | O50: =+'Bilan initial'!O50*(1+Croissance!G$25) -> 1924.436229
A51: Transport - air domestique | B51: 3366.572964 | C51: =+'Bilan initial'!C51*(1+Croissance!$G23) -> 0 | D51: =+'Bilan initial'!D51*(1+Croissance!$G23) -> 0 | E51: =+'Bilan initial'!E51*(1+Croissance!$G23) -> 3366.572964 | F51: =+'Bilan initial'!F51*(1+Croissance!$G23) -> 0 | G51: =+'Bilan initial'!G51*(1+Croissance!$G23) -> 0 | H51: =+'Bilan initial'!H51*(1+Croissance!$G23) -> 0 | I51: 3366.572964 | J51: =+'Bilan initial'!J51*(1+Croissance!$G23) -> 0 | K51: =+'Bilan initial'!K51*(1+Croissance!$G23) -> 0 | L51: =+'Bilan initial'!L51*(1+Croissance!$G23) -> 0 | M51: =+'Bilan initial'!M51*(1+Croissance!$G23) -> 0 | N51: =+'Bilan initial'!N51*(1+Croissance!$G23) -> 0 | O51: =+'Bilan initial'!O51*(1+Croissance!G$25) -> 0 | P51: Renouvelable | Q51: =SUM(Q52:Q56) -> 201732.6825 | R51: =SUM(R52:R56) -> 0.3215463071
A52: Transport - navigation | B52: 420.9929851 | C52: =+'Bilan initial'!C52*(1+Croissance!$G24) -> 0 | D52: =+'Bilan initial'!D52*(1+Croissance!$G24) -> 0 | E52: =+'Bilan initial'!E52*(1+Croissance!$G24) -> 0 | F52: =+'Bilan initial'!F52*(1+Croissance!$G24) -> 0 | G52: =+'Bilan initial'!G52*(1+Croissance!$G24) -> 420.9929851 | H52: =+'Bilan initial'!H52*(1+Croissance!$G24) -> 0 | I52: 420.9929851 | J52: =+'Bilan initial'!J52*(1+Croissance!$G24) -> 0 | K52: =+'Bilan initial'!K52*(1+Croissance!$G24) -> 0 | L52: =+'Bilan initial'!L52*(1+Croissance!$G24) -> 0 | M52: =+'Bilan initial'!M52*(1+Croissance!$G24) -> 0 | N52: =+'Bilan initial'!N52*(1+Croissance!$G24) -> 0 | O52: =+'Bilan initial'!O52*(1+Croissance!G$25) -> 0 | P52: Hydro | Q52: =Q$34*R52 -> 160919.2964 | R52: =+'Bilan 2025'!R52 -> 0.2564929236
A53: Ménages | B53: 30234.46941 | C53: =+'Bilan initial'!C53*(1+Croissance!$G26) -> 663.3351156 | D53: =+'Bilan initial'!D53*(1+Croissance!$G26) -> 0 | E53: =+'Bilan initial'!E53*(1+Croissance!$G26) -> 0 | F53: =+'Bilan initial'!F53*(1+Croissance!$G26) -> 0 | G53: =+'Bilan initial'!G53*(1+Croissance!$G26) -> 0 | H53: =+'Bilan initial'!H53*(1+Croissance!$G27) -> 148.5685199 | I53: 811.9036355 | J53: =+'Bilan initial'!J53*(1+Croissance!$G26) -> 2429.757862 | K53: =+'Bilan initial'!K53*(1+Croissance!$G26) -> 2436.50083 | L53: =+'Bilan initial'!L53*(1+Croissance!$G26) -> 24556.30708 | M53: =+'Bilan initial'!M53*(1+Croissance!$G26) -> 0 | N53: =+'Bilan initial'!N53*(1+Croissance!$G26) -> 0 | O53: =+'Bilan initial'!O53*(1+Croissance!G28) -> 114797.534 | P53: Éolien | Q53: =Q$34*R53 -> 27927.09262 | R53: =+'Bilan 2025'!R53 -> 0.0445136276
A54: Services | B54: 17899.10368 | C54: =+'Bilan initial'!C54*(1+Croissance!$G29) -> 1545.976943 | D54: =+'Bilan initial'!D54*(1+Croissance!$G29) -> 0 | E54: =+'Bilan initial'!E54*(1+Croissance!$G29) -> 0 | F54: =+'Bilan initial'!F54*(1+Croissance!$G29) -> 0 | G54: =+'Bilan initial'!G54*(1+Croissance!$G29) -> 0 | H54: =+'Bilan initial'!H54*(1+Croissance!$G29) -> 0 | I54: 1545.976943 | J54: =+'Bilan initial'!J54*(1+Croissance!$G29) -> 8371.124878 | K54: =+'Bilan initial'!K54*(1+Croissance!$G29) -> 848.4805125 | L54: =+'Bilan initial'!L54*(1+Croissance!$G29) -> 7056.589698 | M54: =+'Bilan initial'!M54*(1+Croissance!$G29) -> 76.93164736 | N54: =+'Bilan initial'!N54*(1+Croissance!$G29) -> 0 | O54: =+'Bilan initial'!O54*(1+Croissance!G30) -> 143635.3187 | P54: Solaire | Q54: =Q$34*R54 -> 464.9322895 | R54: =+'Bilan 2025'!R54 -> 0.0007410661421
A55: Agriculture & Pêches | B55: 7035.73172 | C55: =+'Bilan initial'!C55*(1+Croissance!$G31) -> 0 | D55: =+'Bilan initial'!D55*(1+Croissance!$G31) -> 0 | E55: =+'Bilan initial'!E55*(1+Croissance!$G31) -> 0 | F55: =+'Bilan initial'!F55*(1+Croissance!$G31) -> 6738.823643 | G55: =+'Bilan initial'!G55*(1+Croissance!$G31) -> 0 | H55: =+'Bilan initial'!H55*(1+Croissance!$G31) -> 0 | I55: 6738.823643 | J55: =+'Bilan initial'!J55*(1+Croissance!$G31) -> 0 | K55: =+'Bilan initial'!K55*(1+Croissance!$G31) -> 0 | L55: =+'Bilan initial'!L55*(1+Croissance!$G31) -> 296.9080765 | M55: =+'Bilan initial'!M55*(1+Croissance!$G31) -> 0 | N55: =+'Bilan initial'!N55*(1+Croissance!$G31) -> 0 | O55: =+'Bilan initial'!O55*(1+Croissance!G32) -> 11697.60054 | P55: Biomasse | Q55: =Q$34*R55 -> 4213.149303 | R55: =+'Bilan 2025'!R55 -> 0.006715434421
A56: Utilisations non énergétiques | B56: 0 | C56: =+'Bilan initial'!C56*(1+Croissance!$G33) -> 0 | D56: =+'Bilan initial'!D56*(1+Croissance!$G33) -> 0 | E56: =+'Bilan initial'!E56*(1+Croissance!$G33) -> 0 | F56: =+'Bilan initial'!F56*(1+Croissance!$G33) -> 0 | G56: =+'Bilan initial'!G56*(1+Croissance!$G33) -> 0 | H56: =+'Bilan initial'!H56*(1+Croissance!$G33) -> 0 | I56: 0 | J56: =+'Bilan initial'!J56*(1+Croissance!$G33) -> 0 | K56: =+'Bilan initial'!K56*(1+Croissance!$G33) -> 0 | L56: =+'Bilan initial'!L56*(1+Croissance!$G33) -> 0 | M56: =+'Bilan initial'!M56*(1+Croissance!$G33) -> 0 | N56: =+'Bilan initial'!N56*(1+Croissance!$G33) -> 0 | O56: =+'Bilan initial'!O56*(1+Croissance!G33) -> 0 | P56: Géothermie | Q56: =Q$34*R56 -> 8208.211811 | R56: =+'Bilan 2025'!R56 -> 0.01308325534
R57: =+R36+R51 -> 1
A59: Bilan GES | B59: =+Hypothèses!$B$2 -> Pays X | D59: 2030
A60: Ton CO2/Toe (IPCC): | C60: =+'Bilan initial'!C60 -> 2.614070448 | D60: =+'Bilan initial'!D60 -> 2.872437876 | E60: =+'Bilan initial'!E60 -> 2.96362638 | F60: =+'Bilan initial'!F60 -> 3.070012968 | G60: =+'Bilan initial'!G60 -> 3.206795724 | H60: =+'Bilan initial'!H60 -> 2.978824464 | J60: =+'Bilan initial'!J60 -> 3.921105672 | K60: =+'Bilan initial'!K60 -> 4.194671184 | L60: =+'Bilan initial'!L60 -> 2.325306852 | M60: =+'Bilan initial'!M60 -> 4.484816424 | N60: =+'Bilan initial'!N60 -> 4.157366796
A61: Unité : ktCO2-e | B61: Total | C61: GPL | D61: Essence | E61: Essence pour carburéacteurs | F61: Diesel | G61: Fiouls lourds | H61: Kérosène et autres | I61: Total produits pétroliers | J61: Charbon | K61: Lignite | L61: Gaz | M61: Coke | N61: Coke de pétrole
A62: Total | B62: =+B63+B64 -> 932535.9122 | C62: =+C63+C64 -> 28274.89334 | D62: 14938.34113 | E62: 9977.264446 | F62: 153285.1246 | G62: 3452.557487 | H62: 442.5595416 | I62: 210370.7406 | J62: 177619.4823 | K62: 247844.9526 | L62: 231040.8221 | M62: =+M63+M64 -> 35472.81245 | N62: =+N63+N64 -> 30187.10223
A63: Centrales fossiles | B63: =SUM(I63:N63) -> 422653.97 | C63: =C60*C35 -> 0 | D63: 0 | E63: 0 | F63: 1812.222923 | G63: 1674.637926 | H63: 0 | I63: =SUM(C63:H63) -> 3486.860849 | J63: =J60*J35 -> 100998.5741 | K63: =K60*K35 -> 216388.6888 | L63: =L60*L35 -> 101779.8463 | M63: =M60*M35 -> 0 | N63: =N60*N35 -> 0
A64: CONSOMMATION FINALE | B64: =SUM(B65:B84) -> 509881.9422 | C64: =SUM(C65:C84) -> 28274.89334 | D64: 14938.34113 | E64: 9977.264446 | F64: 151472.9017 | G64: 1777.919561 | H64: 442.5595416 | I64: =SUM(C64:H64) -> 206883.8797 | J64: =SUM(J65:J84) -> 76620.90818 | K64: =SUM(K65:K84) -> 31456.2638 | L64: =SUM(L65:L84) -> 129260.9758 | M64: =SUM(M65:M84) -> 35472.81245 | N64: =SUM(N65:N84) -> 30187.10223
A65: Industrie - acier | B65: =SUM(I65:N65) -> 1544.452939 | C65: =+'Bilan initial'!C65*(1+Croissance!$G8) -> 0 | D65: =+'Bilan initial'!D65*(1+Croissance!$G8) -> 0 | E65: =+'Bilan initial'!E65*(1+Croissance!$G8) -> 0 | F65: =+'Bilan initial'!F65*(1+Croissance!$G8) -> 129.4444945 | G65: =+'Bilan initial'!G65*(1+Croissance!$G8) -> 0 | H65: =+'Bilan initial'!H65*(1+Croissance!$G8) -> 0 | I65: =SUM(C65:H65) -> 129.4444945 | J65: =+'Bilan initial'!J65*(1+Croissance!$G8) -> 106.8368962 | K65: =+'Bilan initial'!K65*(1+Croissance!$G8) -> 114.2426119 | L65: =+'Bilan initial'!L65*(1+Croissance!$G8) -> 1193.928936 | M65: =+'Bilan initial'!M65*(1+Croissance!$G8) -> 0 | N65: =+'Bilan initial'!N65*(1+Croissance!$G8) -> 0
A66: Industrie - chimique | B66: =SUM(I66:N66) -> 17465.10029 | C66: =+'Bilan initial'!C66*(1+Croissance!$G9) -> 63.69813268 | D66: =+'Bilan initial'!D66*(1+Croissance!$G9) -> 0 | E66: =+'Bilan initial'!E66*(1+Croissance!$G9) -> 0 | F66: =+'Bilan initial'!F66*(1+Croissance!$G9) -> 30.45752812 | G66: =+'Bilan initial'!G66*(1+Croissance!$G9) -> 22.13177876 | H66: =+'Bilan initial'!H66*(1+Croissance!$G9) -> 0 | I66: 116.2874396 | J66: =+'Bilan initial'!J66*(1+Croissance!$G9) -> 2476.102184 | K66: =+'Bilan initial'!K66*(1+Croissance!$G9) -> 1428.032649 | L66: =+'Bilan initial'!L66*(1+Croissance!$G9) -> 13444.67802 | M66: =+'Bilan initial'!M66*(1+Croissance!$G9) -> 0 | N66: =+'Bilan initial'!N66*(1+Croissance!$G9) -> 0
A67: Industrie - minerai non metallique | B67: 67212.87387 | C67: =+'Bilan initial'!C67*(1+Croissance!$G10) -> 21.23271089 | D67: =+'Bilan initial'!D67*(1+Croissance!$G10) -> 0 | E67: =+'Bilan initial'!E67*(1+Croissance!$G10) -> 0 | F67: =+'Bilan initial'!F67*(1+Croissance!$G10) -> 182.7451687 | G67: =+'Bilan initial'!G67*(1+Croissance!$G10) -> 132.7906726 | H67: =+'Bilan initial'!H67*(1+Croissance!$G10) -> 0 | I67: 336.7685522 | J67: =+'Bilan initial'!J67*(1+Croissance!$G10) -> 20782.91858 | K67: =+'Bilan initial'!K67*(1+Croissance!$G10) -> 6177.888937 | L67: =+'Bilan initial'!L67*(1+Croissance!$G10) -> 9779.835285 | M67: =+'Bilan initial'!M67*(1+Croissance!$G10) -> 0 | N67: =+'Bilan initial'!N67*(1+Croissance!$G10) -> 30135.46251
A68: Industrie - transformation des aliments et boissons | B68: 10852.5131 | C68: =+'Bilan initial'!C68*(1+Croissance!$G11) -> 141.5514059 | D68: =+'Bilan initial'!D68*(1+Croissance!$G11) -> 0 | E68: =+'Bilan initial'!E68*(1+Croissance!$G11) -> 0 | F68: =+'Bilan initial'!F68*(1+Croissance!$G11) -> 45.68629218 | G68: =+'Bilan initial'!G68*(1+Croissance!$G11) -> 272.9586048 | H68: =+'Bilan initial'!H68*(1+Croissance!$G11) -> 0 | I68: 460.1963029 | J68: =+'Bilan initial'!J68*(1+Croissance!$G11) -> 1432.871314 | K68: =+'Bilan initial'!K68*(1+Croissance!$G11) -> 3458.035984 | L68: =+'Bilan initial'!L68*(1+Croissance!$G11) -> 5097.557457 | M68: =+'Bilan initial'!M68*(1+Croissance!$G11) -> 352.2123222 | N68: =+'Bilan initial'!N68*(1+Croissance!$G11) -> 51.63971544
A69: Industrie - construction | B69: 3007.538856 | C69: =+'Bilan initial'!C69*(1+Croissance!$G12) -> 0 | D69: =+'Bilan initial'!D69*(1+Croissance!$G12) -> 0 | E69: =+'Bilan initial'!E69*(1+Croissance!$G12) -> 0 | F69: =+'Bilan initial'!F69*(1+Croissance!$G12) -> 1119.314158 | G69: =+'Bilan initial'!G69*(1+Croissance!$G12) -> 0 | H69: =+'Bilan initial'!H69*(1+Croissance!$G12) -> 0 | I69: 1119.314158 | J69: =+'Bilan initial'!J69*(1+Croissance!$G12) -> 6.284523308 | K69: =+'Bilan initial'!K69*(1+Croissance!$G12) -> 13.18183984 | L69: =+'Bilan initial'!L69*(1+Croissance!$G12) -> 1868.758335 | M69: =+'Bilan initial'!M69*(1+Croissance!$G12) -> 0 | N69: =+'Bilan initial'!N69*(1+Croissance!$G12) -> 0
A70: Industrie - exploitation minière | B70: 4070.273966 | C70: =+'Bilan initial'!C70*(1+Croissance!$G13) -> 0 | D70: =+'Bilan initial'!D70*(1+Croissance!$G13) -> 0 | E70: =+'Bilan initial'!E70*(1+Croissance!$G13) -> 0 | F70: =+'Bilan initial'!F70*(1+Croissance!$G13) -> 2863.007643 | G70: =+'Bilan initial'!G70*(1+Croissance!$G13) -> 0 | H70: =+'Bilan initial'!H70*(1+Croissance!$G13) -> 0 | I70: 2863.007643 | J70: =+'Bilan initial'!J70*(1+Croissance!$G13) -> 119.4059429 | K70: =+'Bilan initial'!K70*(1+Croissance!$G13) -> 413.0309815 | L70: =+'Bilan initial'!L70*(1+Croissance!$G13) -> 674.8293986 | M70: =+'Bilan initial'!M70*(1+Croissance!$G13) -> 0 | N70: =+'Bilan initial'!N70*(1+Croissance!$G13) -> 0
A71: Industrie - machinerie | B71: 509.9603407 | C71: =+'Bilan initial'!C71*(1+Croissance!$G14) -> 35.38785149 | D71: =+'Bilan initial'!D71*(1+Croissance!$G14) -> 0 | E71: =+'Bilan initial'!E71*(1+Croissance!$G14) -> 0 | F71: =+'Bilan initial'!F71*(1+Croissance!$G14) -> 22.84314609 | G71: =+'Bilan initial'!G71*(1+Croissance!$G14) -> 0 | H71: =+'Bilan initial'!H71*(1+Croissance!$G14) -> 0 | I71: 58.23099758 | J71: =+'Bilan initial'!J71*(1+Croissance!$G14) -> 18.85356993 | K71: =+'Bilan initial'!K71*(1+Croissance!$G14) -> 74.69709241 | L71: =+'Bilan initial'!L71*(1+Croissance!$G14) -> 358.1786808 | M71: =+'Bilan initial'!M71*(1+Croissance!$G14) -> 0 | N71: =+'Bilan initial'!N71*(1+Croissance!$G14) -> 0
A72: Industrie - métaux non-ferreux | B72: 52938.09104 | C72: =+'Bilan initial'!C72*(1+Croissance!$G15) -> 261.870101 | D72: =+'Bilan initial'!D72*(1+Croissance!$G15) -> 0 | E72: =+'Bilan initial'!E72*(1+Croissance!$G15) -> 0 | F72: =+'Bilan initial'!F72*(1+Croissance!$G15) -> 98.98696638 | G72: =+'Bilan initial'!G72*(1+Croissance!$G15) -> 0 | H72: =+'Bilan initial'!H72*(1+Croissance!$G15) -> 0 | I72: 360.8570674 | J72: =+'Bilan initial'!J72*(1+Croissance!$G15) -> 6824.992313 | K72: =+'Bilan initial'!K72*(1+Croissance!$G15) -> 298.7883696 | L72: =+'Bilan initial'!L72*(1+Croissance!$G15) -> 10677.87748 | M72: =+'Bilan initial'!M72*(1+Croissance!$G15) -> 34775.57581 | N72: =+'Bilan initial'!N72*(1+Croissance!$G15) -> 0
A73: Industrie - pâtes et papiers | B73: 2393.434082 | C73: =+'Bilan initial'!C73*(1+Croissance!$G16) -> 7.077570297 | D73: =+'Bilan initial'!D73*(1+Croissance!$G16) -> 0 | E73: =+'Bilan initial'!E73*(1+Croissance!$G16) -> 0 | F73: =+'Bilan initial'!F73*(1+Croissance!$G16) -> 76.14382029 | G73: =+'Bilan initial'!G73*(1+Croissance!$G16) -> 0 | H73: =+'Bilan initial'!H73*(1+Croissance!$G16) -> 0 | I73: 83.22139059 | J73: =+'Bilan initial'!J73*(1+Croissance!$G16) -> 270.2345023 | K73: =+'Bilan initial'!K73*(1+Croissance!$G16) -> 887.5772157 | L73: =+'Bilan initial'!L73*(1+Croissance!$G16) -> 1152.400973 | M73: =+'Bilan initial'!M73*(1+Croissance!$G16) -> 0 | N73: =+'Bilan initial'!N73*(1+Croissance!$G16) -> 0
A74: Industrie - transport d'équipment | B74: 1175.233541 | C74: =+'Bilan initial'!C74*(1+Croissance!$G17) -> 162.7841168 | D74: =+'Bilan initial'!D74*(1+Croissance!$G17) -> 0 | E74: =+'Bilan initial'!E74*(1+Croissance!$G17) -> 0 | F74: =+'Bilan initial'!F74*(1+Croissance!$G17) -> 53.30067421 | G74: =+'Bilan initial'!G74*(1+Croissance!$G17) -> 0 | H74: =+'Bilan initial'!H74*(1+Croissance!$G17) -> 0 | I74: 216.084791 | J74: =+'Bilan initial'!J74*(1+Croissance!$G17) -> 0 | K74: =+'Bilan initial'!K74*(1+Croissance!$G17) -> 35.1515729 | L74: =+'Bilan initial'!L74*(1+Croissance!$G17) -> 923.9971766 | M74: =+'Bilan initial'!M74*(1+Croissance!$G17) -> 0 | N74: =+'Bilan initial'!N74*(1+Croissance!$G17) -> 0
A75: Industrie - cuir et textile | B75: 13352.26139 | C75: =+'Bilan initial'!C75*(1+Croissance!$G18) -> 84.93084357 | D75: =+'Bilan initial'!D75*(1+Croissance!$G18) -> 0 | E75: =+'Bilan initial'!E75*(1+Croissance!$G18) -> 0 | F75: =+'Bilan initial'!F75*(1+Croissance!$G18) -> 45.68629218 | G75: =+'Bilan initial'!G75*(1+Croissance!$G18) -> 0 | H75: =+'Bilan initial'!H75*(1+Croissance!$G18) -> 0 | I75: 130.6171357 | J75: =+'Bilan initial'!J75*(1+Croissance!$G18) -> 2231.005775 | K75: =+'Bilan initial'!K75*(1+Croissance!$G18) -> 4771.826021 | L75: =+'Bilan initial'!L75*(1+Croissance!$G18) -> 6218.812458 | M75: =+'Bilan initial'!M75*(1+Croissance!$G18) -> 0 | N75: =+'Bilan initial'!N75*(1+Croissance!$G18) -> 0
A76: Industrie - divers | B76: 3228.002074 | C76: =+'Bilan initial'!C76*(1+Croissance!$G19) -> 0 | D76: =+'Bilan initial'!D76*(1+Croissance!$G19) -> 0 | E76: =+'Bilan initial'!E76*(1+Croissance!$G19) -> 0 | F76: =+'Bilan initial'!F76*(1+Croissance!$G19) -> 0 | G76: =+'Bilan initial'!G76*(1+Croissance!$G19) -> 0 | H76: =+'Bilan initial'!H76*(1+Croissance!$G19) -> 0 | I76: 0 | J76: =+'Bilan initial'!J76*(1+Croissance!$G19) -> 0 | K76: =+'Bilan initial'!K76*(1+Croissance!$G19) -> 4.393946612 | L76: =+'Bilan initial'!L76*(1+Croissance!$G19) -> 3223.608127 | M76: =+'Bilan initial'!M76*(1+Croissance!$G19) -> 0 | N76: =+'Bilan initial'!N76*(1+Croissance!$G19) -> 0
A77: Transport - route | B77: 162194.898 | C77: =+'Bilan initial'!C77*(1+Croissance!$G21) -> 21721.06324 | D77: =+'Bilan initial'!D77*(1+Croissance!$G21) -> 14938.34113 | E77: =+'Bilan initial'!E77*(1+Croissance!$G21) -> 0 | F77: =+'Bilan initial'!F77*(1+Croissance!$G21) -> 125089.068 | G77: =+'Bilan initial'!G77*(1+Croissance!$G21) -> 0 | H77: =+'Bilan initial'!H77*(1+Croissance!$G21) -> 0 | I77: 161748.4724 | J77: =+'Bilan initial'!J77*(1+Croissance!$G21) -> 0 | K77: =+'Bilan initial'!K77*(1+Croissance!$G21) -> 0 | L77: =+'Bilan initial'!L77*(1+Croissance!$G21) -> 446.4256022 | M77: =+'Bilan initial'!M77*(1+Croissance!$G21) -> 0 | N77: =+'Bilan initial'!N77*(1+Croissance!$G21) -> 0
A78: Transport - rail | B78: 1027.941574 | C78: =+'Bilan initial'!C78*(1+Croissance!$G22) -> 0 | D78: =+'Bilan initial'!D78*(1+Croissance!$G22) -> 0 | E78: =+'Bilan initial'!E78*(1+Croissance!$G22) -> 0 | F78: =+'Bilan initial'!F78*(1+Croissance!$G22) -> 1027.941574 | G78: =+'Bilan initial'!G78*(1+Croissance!$G22) -> 0 | H78: =+'Bilan initial'!H78*(1+Croissance!$G22) -> 0 | I78: 1027.941574 | J78: =+'Bilan initial'!J78*(1+Croissance!$G22) -> 0 | K78: =+'Bilan initial'!K78*(1+Croissance!$G22) -> 0 | L78: =+'Bilan initial'!L78*(1+Croissance!$G22) -> 0 | M78: =+'Bilan initial'!M78*(1+Croissance!$G22) -> 0 | N78: =+'Bilan initial'!N78*(1+Croissance!$G22) -> 0
A79: Transport - air domestique | B79: 9977.264446 | C79: =+'Bilan initial'!C79*(1+Croissance!$G23) -> 0 | D79: =+'Bilan initial'!D79*(1+Croissance!$G23) -> 0 | E79: =+'Bilan initial'!E79*(1+Croissance!$G23) -> 9977.264446 | F79: =+'Bilan initial'!F79*(1+Croissance!$G23) -> 0 | G79: =+'Bilan initial'!G79*(1+Croissance!$G23) -> 0 | H79: =+'Bilan initial'!H79*(1+Croissance!$G23) -> 0 | I79: 9977.264446 | J79: =+'Bilan initial'!J79*(1+Croissance!$G23) -> 0 | K79: =+'Bilan initial'!K79*(1+Croissance!$G23) -> 0 | L79: =+'Bilan initial'!L79*(1+Croissance!$G23) -> 0 | M79: =+'Bilan initial'!M79*(1+Croissance!$G23) -> 0 | N79: =+'Bilan initial'!N79*(1+Croissance!$G23) -> 0
A80: Transport - navigation | B80: 1350.038505 | C80: =+'Bilan initial'!C80*(1+Croissance!$G24) -> 0 | D80: =+'Bilan initial'!D80*(1+Croissance!$G24) -> 0 | E80: =+'Bilan initial'!E80*(1+Croissance!$G24) -> 0 | F80: =+'Bilan initial'!F80*(1+Croissance!$G24) -> 0 | G80: =+'Bilan initial'!G80*(1+Croissance!$G24) -> 1350.038505 | H80: =+'Bilan initial'!H80*(1+Croissance!$G24) -> 0 | I80: 1350.038505 | J80: =+'Bilan initial'!J80*(1+Croissance!$G24) -> 0 | K80: =+'Bilan initial'!K80*(1+Croissance!$G24) -> 0 | L80: =+'Bilan initial'!L80*(1+Croissance!$G24) -> 0 | M80: =+'Bilan initial'!M80*(1+Croissance!$G24) -> 0 | N80: =+'Bilan initial'!N80*(1+Croissance!$G24) -> 0
A81: Ménages | B81: 79025.17053 | C81: =+'Bilan initial'!C81*(1+Croissance!$G26) -> 1734.004723 | D81: =+'Bilan initial'!D81*(1+Croissance!$G26) -> 0 | E81: =+'Bilan initial'!E81*(1+Croissance!$G26) -> 0 | F81: =+'Bilan initial'!F81*(1+Croissance!$G26) -> 0 | G81: =+'Bilan initial'!G81*(1+Croissance!$G26) -> 0 | H81: =+'Bilan initial'!H81*(1+Croissance!$G27) -> 442.5595416 | I81: 2176.564264 | J81: =+'Bilan initial'!J81*(1+Croissance!$G26) -> 9527.337336 | K81: =+'Bilan initial'!K81*(1+Croissance!$G26) -> 10220.31982 | L81: =+'Bilan initial'!L81*(1+Croissance!$G26) -> 57100.94911 | M81: =+'Bilan initial'!M81*(1+Croissance!$G26) -> 0 | N81: =+'Bilan initial'!N81*(1+Croissance!$G26) -> 0
A82: Services | B82: 57178.21533 | C82: =+'Bilan initial'!C82*(1+Croissance!$G29) -> 4041.29264 | D82: =+'Bilan initial'!D82*(1+Croissance!$G29) -> 0 | E82: =+'Bilan initial'!E82*(1+Croissance!$G29) -> 0 | F82: =+'Bilan initial'!F82*(1+Croissance!$G29) -> 0 | G82: =+'Bilan initial'!G82*(1+Croissance!$G29) -> 0 | H82: =+'Bilan initial'!H82*(1+Croissance!$G29) -> 0 | I82: 4041.29264 | J82: =+'Bilan initial'!J82*(1+Croissance!$G29) -> 32824.06524 | K82: =+'Bilan initial'!K82*(1+Croissance!$G29) -> 3559.096756 | L82: =+'Bilan initial'!L82*(1+Croissance!$G29) -> 16408.73638 | M82: =+'Bilan initial'!M82*(1+Croissance!$G29) -> 345.0243156 | N82: =+'Bilan initial'!N82*(1+Croissance!$G29) -> 0
A83: Agriculture & Pêches | B83: 21378.67836 | C83: =+'Bilan initial'!C83*(1+Croissance!$G31) -> 0 | D83: =+'Bilan initial'!D83*(1+Croissance!$G31) -> 0 | E83: =+'Bilan initial'!E83*(1+Croissance!$G31) -> 0 | F83: =+'Bilan initial'!F83*(1+Croissance!$G31) -> 20688.27597 | G83: =+'Bilan initial'!G83*(1+Croissance!$G31) -> 0 | H83: =+'Bilan initial'!H83*(1+Croissance!$G31) -> 0 | I83: 20688.27597 | J83: =+'Bilan initial'!J83*(1+Croissance!$G31) -> 0 | K83: =+'Bilan initial'!K83*(1+Croissance!$G31) -> 0 | L83: =+'Bilan initial'!L83*(1+Croissance!$G31) -> 690.4023847 | M83: =+'Bilan initial'!M83*(1+Croissance!$G31) -> 0 | N83: =+'Bilan initial'!N83*(1+Croissance!$G31) -> 0
A84: Utilisations non énergétiques | B84: 0 | C84: =+'Bilan initial'!C84*(1+Croissance!$G33) -> 0 | D84: =+'Bilan initial'!D84*(1+Croissance!$G33) -> 0 | E84: =+'Bilan initial'!E84*(1+Croissance!$G33) -> 0 | F84: =+'Bilan initial'!F84*(1+Croissance!$G33) -> 0 | G84: =+'Bilan initial'!G84*(1+Croissance!$G33) -> 0 | H84: =+'Bilan initial'!H84*(1+Croissance!$G33) -> 0 | I84: 0 | J84: =+'Bilan initial'!J84*(1+Croissance!$G33) -> 0 | K84: =+'Bilan initial'!K84*(1+Croissance!$G33) -> 0 | L84: =+'Bilan initial'!L84*(1+Croissance!$G33) -> 0 | M84: =+'Bilan initial'!M84*(1+Croissance!$G33) -> 0 | N84: =+'Bilan initial'!N84*(1+Croissance!$G33) -> 0
A85: CH4 provenant de la combustion d'énergie | B85: =IF(B62=0,0,'Bilan initial'!B85*'Bilan 2030'!B64/'Bilan initial'!B64) -> 12128.98102
A86: N2O provenant de la combustion d'énergie | B86: =IF(B62=0,0,'Bilan initial'!B86*'Bilan 2030'!B64/'Bilan initial'!B64) -> 9286.662998
A87: Total Agriculture | B87: =SUM(B88:B92) -> 88199.65139
A88: Fermentation entérique | B88: =+'Bilan initial'!B88*(1+Croissance!G$34) -> 41890.6279
A89: Gestion du fumier | B89: =+'Bilan initial'!B89*(1+Croissance!G$34) -> 9821.426594
A90: Culture du riz | B90: =+'Bilan initial'!B90*(1+Croissance!G$35) -> 311.5934833
A91: N2O provenant des sols agricoles | B91: =+'Bilan initial'!B91*(1+Croissance!G$36) -> 35643.17856
A92: Brûlage de résidus agricoles | B92: =+'Bilan initial'!B92*(1+Croissance!G$37) -> 532.8248565
A93: Émissions fugitive (CH4) | B93: =IF('Bilan initial'!L62=0,0, 'Bilan initial'!B93*'Bilan 2030'!L62/'Bilan initial'!L62) -> 9900.181896
A94: Foresterie | B94: =+'Bilan initial'!B94*(1+Croissance!G$38) -> -64020
A95: Déchets - solides | B95: =+'Bilan initial'!B95*(1+Croissance!G39) -> 16880
A96: Déchets - liquide | B96: =+'Bilan initial'!B96*(1+Croissance!G40) -> 0
A97: Processus industriels | B97: =+'Bilan initial'!B97*(1+Croissance!G41) -> 60720
A98: Émission total GES (excl. Foresterie) | B98: =B62+B85+B86+B87+B93+B95+B96+B97 -> 1129651.39
A99: Émission total GES (incl. Foresterie) | B99: =+B85+B86+B87+B93+B94+B95+B96+B97+B62 -> 1065631.39

Sheet Bilan 2035
A1: Bilan combustibles fossiles | B1: =+Hypothèses!$B$2 -> Pays X | D1: 2035
A3: Unité (TJ) | B3: GPL | C3: Essence | D3: Essence pour carburéacteurs | E3: Diesel | F3: Fiouls lourds | G3: Kérosène et autres | H3: Total produits pétroliers | I3: Charbon | J3: Lignite | K3: Gaz | L3: Coke | M3: Coke de pétrole | N3: Énergie totale (fossile)
A4: Unité | B4: TJ | C4: TJ | D4: TJ | E4: TJ | F4: TJ | G4: TJ | H4: TJ | I4: TJ | J4: TJ | K4: TJ | L4: TJ | M4: TJ | N4: TJ
A5: Total | B5: =+B6+B7 -> 550975.896 | C5: 264911.3953 | D5: 171489.2667 | E5: 2543365.134 | F5: 54842.663 | G5: 7567.905644 | H5: 3593152.26 | I5: 2307442.914 | J5: 3009754.471 | K5: 5061245.013 | L5: =+L6+L7 -> 402902.4087 | M5: =+M6+M7 -> 369872.4588 | N5: =SUM(H5:M5) -> 14744369.53
A6: Centrales fossiles | B6: =C35/C32 -> 0 | C6: 0 | D6: 0 | E6: 30069.09253 | F6: 26601.03526 | G6: 0 | H6: =SUM(B6:G6) -> 56670.12779 | I6: =J35/J32 -> 1312065.777 | J6: =K35/K32 -> 2627759.076 | K6: =L35/L32 -> 2229617.843 | L6: =M35/M32 -> 0 | M6: =N35/N32 -> 0 | N6: =SUM(H6:M6) -> 6226112.824
A7: CONSOMMATION FINALE | B7: =SUM(B8:B27) -> 550975.896 | C7: 264911.3953 | D7: 171489.2667 | E7: 2513296.041 | F7: 28241.62774 | G7: 7567.905644 | H7: 3536482.132 | I7: 995377.1362 | J7: =SUM(J8:J27) -> 381995.3951 | K7: 2831627.17 | L7: =SUM(L8:L27) -> 402902.4087 | M7: =SUM(M8:M27) -> 369872.4588 | N7: 8518256.701
A8: Industrie - acier | B8: =+'Bilan initial'!B8*(1+Croissance!$H8) -> 0 | C8: =+'Bilan initial'!C8*(1+Croissance!$H8) -> 0 | D8: =+'Bilan initial'!D8*(1+Croissance!$H8) -> 0 | E8: =+'Bilan initial'!E8*(1+Croissance!$H8) -> 2147.792324 | F8: =+'Bilan initial'!F8*(1+Croissance!$H8) -> 0 | G8: =+'Bilan initial'!G8*(1+Croissance!$H8) -> 0 | H8: =SUM(B8:G8) -> 2147.792324 | I8: =+'Bilan initial'!I8*(1+Croissance!$H8) -> 1387.911033 | J8: =+'Bilan initial'!J8*(1+Croissance!$H8) -> 1387.327877 | K8: =+'Bilan initial'!K8*(1+Croissance!$H8) -> 26154.54195 | L8: =+'Bilan initial'!L8*(1+Croissance!$H8) -> 0 | M8: =+'Bilan initial'!M8*(1+Croissance!$H8) -> 0 | N8: 31077.57318
A9: Industrie - chimique | B9: =+'Bilan initial'!B9*(1+Croissance!$H9) -> 1241.247325 | C9: =+'Bilan initial'!C9*(1+Croissance!$H9) -> 0 | D9: =+'Bilan initial'!D9*(1+Croissance!$H9) -> 0 | E9: =+'Bilan initial'!E9*(1+Croissance!$H9) -> 505.3628997 | F9: =+'Bilan initial'!F9*(1+Croissance!$H9) -> 351.5555321 | G9: =+'Bilan initial'!G9*(1+Croissance!$H9) -> 0 | H9: =SUM(B9:G9) -> 2098.165757 | I9: =+'Bilan initial'!I9*(1+Croissance!$H9) -> 32166.87924 | J9: =+'Bilan initial'!J9*(1+Croissance!$H9) -> 17341.59847 | K9: =+'Bilan initial'!K9*(1+Croissance!$H9) -> 294522.8854 | L9: =+'Bilan initial'!L9*(1+Croissance!$H9) -> 0 | M9: =+'Bilan initial'!M9*(1+Croissance!$H9) -> 0 | N9: 346129.5289
A10: Industrie - minerai non metallique | B10: =+'Bilan initial'!B10*(1+Croissance!$H10) -> 413.7491084 | C10: =+'Bilan initial'!C10*(1+Croissance!$H10) -> 0 | D10: =+'Bilan initial'!D10*(1+Croissance!$H10) -> 0 | E10: =+'Bilan initial'!E10*(1+Croissance!$H10) -> 3032.177398 | F10: =+'Bilan initial'!F10*(1+Croissance!$H10) -> 2109.333192 | G10: =+'Bilan initial'!G10*(1+Croissance!$H10) -> 0 | H10: 5555.259699 | I10: =+'Bilan initial'!I10*(1+Croissance!$H10) -> 269989.5169 | J10: =+'Bilan initial'!J10*(1+Croissance!$H10) -> 75022.4229 | K10: =+'Bilan initial'!K10*(1+Croissance!$H10) -> 214239.8132 | L10: =+'Bilan initial'!L10*(1+Croissance!$H10) -> 0 | M10: =+'Bilan initial'!M10*(1+Croissance!$H10) -> 369239.7346 | N10: 934046.7473
A11: Industrie - transformation des aliments et boissons | B11: =+'Bilan initial'!B11*(1+Croissance!$H11) -> 2758.327389 | C11: =+'Bilan initial'!C11*(1+Croissance!$H11) -> 0 | D11: =+'Bilan initial'!D11*(1+Croissance!$H11) -> 0 | E11: =+'Bilan initial'!E11*(1+Croissance!$H11) -> 758.0443496 | F11: =+'Bilan initial'!F11*(1+Croissance!$H11) -> 4335.851562 | G11: =+'Bilan initial'!G11*(1+Croissance!$H11) -> 0 | H11: 7852.223301 | I11: =+'Bilan initial'!I11*(1+Croissance!$H11) -> 18614.33621 | J11: =+'Bilan initial'!J11*(1+Croissance!$H11) -> 41993.34767 | K11: =+'Bilan initial'!K11*(1+Croissance!$H11) -> 111668.5226 | L11: =+'Bilan initial'!L11*(1+Croissance!$H11) -> 4000.449448 | M11: =+'Bilan initial'!M11*(1+Croissance!$H11) -> 632.7241475 | N11: 184761.6034
A12: Industrie - construction | B12: =+'Bilan initial'!B12*(1+Croissance!$H12) -> 0 | C12: =+'Bilan initial'!C12*(1+Croissance!$H12) -> 0 | D12: =+'Bilan initial'!D12*(1+Croissance!$H12) -> 0 | E12: =+'Bilan initial'!E12*(1+Croissance!$H12) -> 18572.08656 | F12: =+'Bilan initial'!F12*(1+Croissance!$H12) -> 0 | G12: =+'Bilan initial'!G12*(1+Croissance!$H12) -> 0 | H12: 18572.08656 | I12: =+'Bilan initial'!I12*(1+Croissance!$H12) -> 81.64182548 | J12: =+'Bilan initial'!J12*(1+Croissance!$H12) -> 160.0762935 | K12: =+'Bilan initial'!K12*(1+Croissance!$H12) -> 40937.54392 | L12: =+'Bilan initial'!L12*(1+Croissance!$H12) -> 0 | M12: =+'Bilan initial'!M12*(1+Croissance!$H12) -> 0 | N12: 59751.3486
A13: Industrie - exploitation minière | B13: =+'Bilan initial'!B13*(1+Croissance!$H13) -> 0 | C13: =+'Bilan initial'!C13*(1+Croissance!$H13) -> 0 | D13: =+'Bilan initial'!D13*(1+Croissance!$H13) -> 0 | E13: =+'Bilan initial'!E13*(1+Croissance!$H13) -> 47504.11257 | F13: =+'Bilan initial'!F13*(1+Croissance!$H13) -> 0 | G13: =+'Bilan initial'!G13*(1+Croissance!$H13) -> 0 | H13: 47504.11257 | I13: =+'Bilan initial'!I13*(1+Croissance!$H13) -> 1551.194684 | J13: =+'Bilan initial'!J13*(1+Croissance!$H13) -> 5015.723864 | K13: =+'Bilan initial'!K13*(1+Croissance!$H13) -> 14783.00197 | L13: =+'Bilan initial'!L13*(1+Croissance!$H13) -> 0 | M13: =+'Bilan initial'!M13*(1+Croissance!$H13) -> 0 | N13: 68854.03309
A14: Industrie - machinerie | B14: =+'Bilan initial'!B14*(1+Croissance!$H14) -> 689.5818474 | C14: =+'Bilan initial'!C14*(1+Croissance!$H14) -> 0 | D14: =+'Bilan initial'!D14*(1+Croissance!$H14) -> 0 | E14: =+'Bilan initial'!E14*(1+Croissance!$H14) -> 379.0221748 | F14: =+'Bilan initial'!F14*(1+Croissance!$H14) -> 0 | G14: =+'Bilan initial'!G14*(1+Croissance!$H14) -> 0 | H14: 1068.604022 | I14: =+'Bilan initial'!I14*(1+Croissance!$H14) -> 244.9254764 | J14: =+'Bilan initial'!J14*(1+Croissance!$H14) -> 907.0989967 | K14: =+'Bilan initial'!K14*(1+Croissance!$H14) -> 7846.362584 | L14: =+'Bilan initial'!L14*(1+Croissance!$H14) -> 0 | M14: =+'Bilan initial'!M14*(1+Croissance!$H14) -> 0 | N14: 10066.99108
A15: Industrie - métaux non-ferreux | B15: =+'Bilan initial'!B15*(1+Croissance!$H15) -> 5102.90567 | C15: =+'Bilan initial'!C15*(1+Croissance!$H15) -> 0 | D15: =+'Bilan initial'!D15*(1+Croissance!$H15) -> 0 | E15: =+'Bilan initial'!E15*(1+Croissance!$H15) -> 1642.429424 | F15: =+'Bilan initial'!F15*(1+Croissance!$H15) -> 0 | G15: =+'Bilan initial'!G15*(1+Croissance!$H15) -> 0 | H15: 6745.335094 | I15: =+'Bilan initial'!I15*(1+Croissance!$H15) -> 88663.02247 | J15: =+'Bilan initial'!J15*(1+Croissance!$H15) -> 3628.395987 | K15: =+'Bilan initial'!K15*(1+Croissance!$H15) -> 233912.5773 | L15: =+'Bilan initial'!L15*(1+Croissance!$H15) -> 394983.1517 | M15: =+'Bilan initial'!M15*(1+Croissance!$H15) -> 0 | N15: 727932.4826
A16: Industrie - pâtes et papiers | B16: =+'Bilan initial'!B16*(1+Croissance!$H16) -> 137.9163695 | C16: =+'Bilan initial'!C16*(1+Croissance!$H16) -> 0 | D16: =+'Bilan initial'!D16*(1+Croissance!$H16) -> 0 | E16: =+'Bilan initial'!E16*(1+Croissance!$H16) -> 1263.407249 | F16: =+'Bilan initial'!F16*(1+Croissance!$H16) -> 0 | G16: =+'Bilan initial'!G16*(1+Croissance!$H16) -> 0 | H16: 1401.323619 | I16: =+'Bilan initial'!I16*(1+Croissance!$H16) -> 3510.598496 | J16: =+'Bilan initial'!J16*(1+Croissance!$H16) -> 10778.47043 | K16: =+'Bilan initial'!K16*(1+Croissance!$H16) -> 25244.81875 | L16: =+'Bilan initial'!L16*(1+Croissance!$H16) -> 0 | M16: =+'Bilan initial'!M16*(1+Croissance!$H16) -> 0 | N16: 40935.2113
A17: Industrie - transport d'équipment | B17: =+'Bilan initial'!B17*(1+Croissance!$H17) -> 3172.076498 | C17: =+'Bilan initial'!C17*(1+Croissance!$H17) -> 0 | D17: =+'Bilan initial'!D17*(1+Croissance!$H17) -> 0 | E17: =+'Bilan initial'!E17*(1+Croissance!$H17) -> 884.3850745 | F17: =+'Bilan initial'!F17*(1+Croissance!$H17) -> 0 | G17: =+'Bilan initial'!G17*(1+Croissance!$H17) -> 0 | H17: 4056.461572 | I17: =+'Bilan initial'!I17*(1+Croissance!$H17) -> 0 | J17: =+'Bilan initial'!J17*(1+Croissance!$H17) -> 426.8701161 | K17: =+'Bilan initial'!K17*(1+Croissance!$H17) -> 20241.34116 | L17: =+'Bilan initial'!L17*(1+Croissance!$H17) -> 0 | M17: =+'Bilan initial'!M17*(1+Croissance!$H17) -> 0 | N17: 24724.67285
A18: Industrie - cuir et textile | B18: =+'Bilan initial'!B18*(1+Croissance!$H18) -> 1654.996434 | C18: =+'Bilan initial'!C18*(1+Croissance!$H18) -> 0 | D18: =+'Bilan initial'!D18*(1+Croissance!$H18) -> 0 | E18: =+'Bilan initial'!E18*(1+Croissance!$H18) -> 758.0443496 | F18: =+'Bilan initial'!F18*(1+Croissance!$H18) -> 0 | G18: =+'Bilan initial'!G18*(1+Croissance!$H18) -> 0 | H18: 2413.040783 | I18: =+'Bilan initial'!I18*(1+Croissance!$H18) -> 28982.84805 | J18: =+'Bilan initial'!J18*(1+Croissance!$H18) -> 57947.61826 | K18: =+'Bilan initial'!K18*(1+Croissance!$H18) -> 136231.0489 | L18: =+'Bilan initial'!L18*(1+Croissance!$H18) -> 0 | M18: =+'Bilan initial'!M18*(1+Croissance!$H18) -> 0 | N18: 225574.556
A19: Industrie - divers | B19: =+'Bilan initial'!B19*(1+Croissance!$H19) -> 0 | C19: =+'Bilan initial'!C19*(1+Croissance!$H19) -> 0 | D19: =+'Bilan initial'!D19*(1+Croissance!$H19) -> 0 | E19: =+'Bilan initial'!E19*(1+Croissance!$H19) -> 0 | F19: =+'Bilan initial'!F19*(1+Croissance!$H19) -> 0 | G19: =+'Bilan initial'!G19*(1+Croissance!$H19) -> 0 | H19: 0 | I19: =+'Bilan initial'!I19*(1+Croissance!$H19) -> 0 | J19: =+'Bilan initial'!J19*(1+Croissance!$H19) -> 53.35876451 | K19: =+'Bilan initial'!K19*(1+Croissance!$H19) -> 70617.26326 | L19: =+'Bilan initial'!L19*(1+Croissance!$H19) -> 0 | M19: =+'Bilan initial'!M19*(1+Croissance!$H19) -> 0 | N19: 70670.62202
A20: Transport - route | B20: =+'Bilan initial'!B20*(1+Croissance!$H21) -> 423265.3379 | C20: =+'Bilan initial'!C20*(1+Croissance!$H21) -> 264911.3953 | D20: =+'Bilan initial'!D20*(1+Croissance!$H21) -> 0 | E20: =+'Bilan initial'!E20*(1+Croissance!$H21) -> 2075525.429 | F20: =+'Bilan initial'!F20*(1+Croissance!$H21) -> 0 | G20: =+'Bilan initial'!G20*(1+Croissance!$H21) -> 0 | H20: 2763702.162 | I20: =+'Bilan initial'!I20*(1+Croissance!$H21) -> 0 | J20: =+'Bilan initial'!J20*(1+Croissance!$H21) -> 0 | K20: =+'Bilan initial'!K20*(1+Croissance!$H21) -> 9779.524381 | L20: =+'Bilan initial'!L20*(1+Croissance!$H21) -> 0 | M20: =+'Bilan initial'!M20*(1+Croissance!$H21) -> 0 | N20: 2773481.687
A21: Transport - rail | B21: =+'Bilan initial'!B21*(1+Croissance!$H22) -> 0 | C21: =+'Bilan initial'!C21*(1+Croissance!$H22) -> 0 | D21: =+'Bilan initial'!D21*(1+Croissance!$H22) -> 0 | E21: =+'Bilan initial'!E21*(1+Croissance!$H22) -> 17055.99787 | F21: =+'Bilan initial'!F21*(1+Croissance!$H22) -> 0 | G21: =+'Bilan initial'!G21*(1+Croissance!$H22) -> 0 | H21: 17055.99787 | I21: =+'Bilan initial'!I21*(1+Croissance!$H22) -> 0 | J21: =+'Bilan initial'!J21*(1+Croissance!$H22) -> 0 | K21: =+'Bilan initial'!K21*(1+Croissance!$H22) -> 0 | L21: =+'Bilan initial'!L21*(1+Croissance!$H22) -> 0 | M21: =+'Bilan initial'!M21*(1+Croissance!$H22) -> 0 | N21: 17055.99787
A22: Transport - air domestique | B22: =+'Bilan initial'!B22*(1+Croissance!$H23) -> 0 | C22: =+'Bilan initial'!C22*(1+Croissance!$H23) -> 0 | D22: =+'Bilan initial'!D22*(1+Croissance!$H23) -> 171489.2667 | E22: =+'Bilan initial'!E22*(1+Croissance!$H23) -> 0 | F22: =+'Bilan initial'!F22*(1+Croissance!$H23) -> 0 | G22: =+'Bilan initial'!G22*(1+Croissance!$H23) -> 0 | H22: 171489.2667 | I22: =+'Bilan initial'!I22*(1+Croissance!$H23) -> 0 | J22: =+'Bilan initial'!J22*(1+Croissance!$H23) -> 0 | K22: =+'Bilan initial'!K22*(1+Croissance!$H23) -> 0 | L22: =+'Bilan initial'!L22*(1+Croissance!$H23) -> 0 | M22: =+'Bilan initial'!M22*(1+Croissance!$H23) -> 0 | N22: 171489.2667
A23: Transport - navigation | B23: =+'Bilan initial'!B23*(1+Croissance!$H24) -> 0 | C23: =+'Bilan initial'!C23*(1+Croissance!$H24) -> 0 | D23: =+'Bilan initial'!D23*(1+Croissance!$H24) -> 0 | E23: =+'Bilan initial'!E23*(1+Croissance!$H24) -> 0 | F23: =+'Bilan initial'!F23*(1+Croissance!$H24) -> 21444.88746 | G23: =+'Bilan initial'!G23*(1+Croissance!$H24) -> 0 | H23: 21444.88746 | I23: =+'Bilan initial'!I23*(1+Croissance!$H24) -> 0 | J23: =+'Bilan initial'!J23*(1+Croissance!$H24) -> 0 | K23: =+'Bilan initial'!K23*(1+Croissance!$H24) -> 0 | L23: =+'Bilan initial'!L23*(1+Croissance!$H24) -> 0 | M23: =+'Bilan initial'!M23*(1+Croissance!$H24) -> 0 | N23: 21444.88746
A24: Ménages | B24: =+'Bilan initial'!B24*(1+Croissance!$H26) -> 33789.51052 | C24: =+'Bilan initial'!C24*(1+Croissance!$H26) -> 0 | D24: =+'Bilan initial'!D24*(1+Croissance!$H26) -> 0 | E24: =+'Bilan initial'!E24*(1+Croissance!$H26) -> 0 | F24: =+'Bilan initial'!F24*(1+Croissance!$H26) -> 0 | G24: =+'Bilan initial'!G24*(1+Croissance!$H27) -> 7567.905644 | H24: 41357.41616 | I24: =+'Bilan initial'!I24*(1+Croissance!$H26) -> 123769.0074 | J24: =+'Bilan initial'!J24*(1+Croissance!$H26) -> 124112.4862 | K24: =+'Bilan initial'!K24*(1+Croissance!$H26) -> 1250869.398 | L24: =+'Bilan initial'!L24*(1+Croissance!$H26) -> 0 | M24: =+'Bilan initial'!M24*(1+Croissance!$H26) -> 0 | N24: 1540108.307
A25: Services | B25: =+'Bilan initial'!B25*(1+Croissance!$H29) -> 78750.24697 | C25: =+'Bilan initial'!C25*(1+Croissance!$H29) -> 0 | D25: =+'Bilan initial'!D25*(1+Croissance!$H29) -> 0 | E25: =+'Bilan initial'!E25*(1+Croissance!$H29) -> 0 | F25: =+'Bilan initial'!F25*(1+Croissance!$H29) -> 0 | G25: =+'Bilan initial'!G25*(1+Croissance!$H29) -> 0 | H25: 78750.24697 | I25: =+'Bilan initial'!I25*(1+Croissance!$H29) -> 426415.2545 | J25: =+'Bilan initial'!J25*(1+Croissance!$H29) -> 43220.59925 | K25: =+'Bilan initial'!K25*(1+Croissance!$H29) -> 359454.3787 | L25: =+'Bilan initial'!L25*(1+Croissance!$H29) -> 3918.807623 | M25: =+'Bilan initial'!M25*(1+Croissance!$H29) -> 0 | N25: 911759.287
A26: Agriculture & Pêches | B26: =+'Bilan initial'!B26*(1+Croissance!$H31) -> 0 | C26: =+'Bilan initial'!C26*(1+Croissance!$H31) -> 0 | D26: =+'Bilan initial'!D26*(1+Croissance!$H31) -> 0 | E26: =+'Bilan initial'!E26*(1+Croissance!$H31) -> 343267.7496 | F26: =+'Bilan initial'!F26*(1+Croissance!$H31) -> 0 | G26: =+'Bilan initial'!G26*(1+Croissance!$H31) -> 0 | H26: 343267.7496 | I26: =+'Bilan initial'!I26*(1+Croissance!$H31) -> 0 | J26: =+'Bilan initial'!J26*(1+Croissance!$H31) -> 0 | K26: =+'Bilan initial'!K26*(1+Croissance!$H31) -> 15124.14817 | L26: =+'Bilan initial'!L26*(1+Croissance!$H31) -> 0 | M26: =+'Bilan initial'!M26*(1+Croissance!$H31) -> 0 | N26: 358391.8978
A27: Utilisations non énergétiques | B27: =+'Bilan initial'!B27*(1+Croissance!$H33) -> 0 | C27: =+'Bilan initial'!C27*(1+Croissance!$H33) -> 0 | D27: =+'Bilan initial'!D27*(1+Croissance!$H33) -> 0 | E27: =+'Bilan initial'!E27*(1+Croissance!$H33) -> 0 | F27: =+'Bilan initial'!F27*(1+Croissance!$H33) -> 0 | G27: =+'Bilan initial'!G27*(1+Croissance!$H33) -> 0 | H27: 0 | I27: =+'Bilan initial'!I27*(1+Croissance!$H33) -> 0 | J27: =+'Bilan initial'!J27*(1+Croissance!$H33) -> 0 | K27: =+'Bilan initial'!K27*(1+Croissance!$H33) -> 0 | L27: =+'Bilan initial'!L27*(1+Croissance!$H33) -> 0 | M27: =+'Bilan initial'!M27*(1+Croissance!$H33) -> 0 | N27: 0
A30: Bilan combustibles fossiles | B30: =+Hypothèses!$B$2 -> Pays X | D30: 2035
A31: =+'Bilan initial'!A31 -> 1 ktoe=41.868 TJ
A32: =+'Bilan initial'!A32 -> ktoe per TJ | C32: =+'Bilan initial'!C32 -> 0.02388458966 | D32: =+'Bilan initial'!D32 -> 0.02388458966 | E32: =+'Bilan initial'!E32 -> 0.02388458966 | F32: =+'Bilan initial'!F32 -> 0.02388458966 | G32: =+'Bilan initial'!G32 -> 0.02388458966 | H32: =+'Bilan initial'!H32 -> 0.02388458966 | J32: =+'Bilan initial'!J32 -> 0.02388458966 | K32: =+'Bilan initial'!K32 -> 0.02388458966 | L32: =+'Bilan initial'!L32 -> 0.02388458966 | M32: 0.02388458966 | N32: 0.02388458966
A33: Unité : ktoe | B33: Total | C33: GPL | D33: Essence | E33: Essence pour carburéacteurs | F33: Diesel | G33: Fiouls lourds | H33: Kérosène et autres | I33: Total produits pétroliers | J33: Charbon | K33: Lignite | L33: Gaz | M33: Coke | N33: Coke de pétrole | O33: Consommation d'électricité Gwh | Q33: Production d'électricité Gwh | R33: Part de la production | S33: Efficacité
A34: Total | B34: =+B35+B36 -> 352163.216 | C34: =+C35+C36 -> 13159.83319 | D34: 6327.299974 | E34: 4095.950767 | F34: 60747.23258 | G34: 1309.894502 | H34: 180.7563209 | I34: 85820.96733 | J34: 55112.32716 | K34: 71886.75052 | L34: 120885.7603 | M34: 9623.158707 | N34: 8834.251905 | P34: Total | Q34: =IF(R35=1,0,O36/(1-R35)) -> 763307.3315
A35: Centrales fossiles | B35: =SUM(I35:N35) -> 148708.15 | C35: =IF(Q36=0,0,$J35*IF('Bilan initial'!$J35>0,'Bilan initial'!C35/'Bilan initial'!$J35,0)) -> 0 | D35: =IF(Q36=0,0,$J35*IF('Bilan initial'!$J35>0,'Bilan initial'!D35/'Bilan initial'!$J35,0)) -> 0 | E35: =IF(Q36=0,0,$J35*IF('Bilan initial'!$J35>0,'Bilan initial'!E35/'Bilan initial'!$J35,0)) -> 0 | F35: =IF(Q36=0,0,$J35*IF('Bilan initial'!$J35>0,'Bilan initial'!F35/'Bilan initial'!$J35,0)) -> 718.1879367 | G35: =IF(Q36=0,0,$J35*IF('Bilan initial'!$J35>0,'Bilan initial'!G35/'Bilan initial'!$J35,0)) -> 635.3548118 | H35: =IF(Q36=0,0,$J35*IF('Bilan initial'!$J35>0,'Bilan initial'!H35/'Bilan initial'!$J35,0)) -> 0 | I35: =IF(Q36=0,0,Q39/11.63/S39) -> 1353.542748 | J35: =IF(S38>0,Q38/11.63/S38,0) -> 31338.1527 | K35: =IF(S37>0,Q37/11.63/S37,0) -> 62762.94726 | L35: =IF(S40>0,Q40/11.63/S40,0) -> 53253.50729 | M35: =IF(T40>0,R40/11.63/T40,0) -> 0 | N35: =IF(U40>0,S40/11.63/U40,0) -> 0 | P35: Pertes | Q35: =Q34*R35 -> 130431.5635 | R35: =+'Bilan 2025'!R35 -> 0.1708768646
A36: CONSOMMATION FINALE | B36: =SUM(B37:B56) -> 203455.0659 | C36: =SUM(C37:C56) -> 13159.83319 | D36: 6327.299974 | E36: 4095.950767 | F36: 60029.04464 | G36: 674.5396901 | H36: 180.7563209 | I36: =SUM(C36:H36) -> 84467.42458 | J36: =SUM(J37:J56) -> 23774.17446 | K36: 9123.803266 | L36: 67632.25303 | M36: 9623.158707 | N36: 8834.251905 | O36: 632875.768 | P36: Fossile | Q36: =SUM(Q37:Q49) -> 517868.6779 | R36: =SUM(R37:R50) -> 0.6784536929
A37: Industrie - acier | B37: =SUM(I37:N37) -> 742.2750832 | C37: =+'Bilan initial'!C37*(1+Croissance!$H8) -> 0 | D37: =+'Bilan initial'!D37*(1+Croissance!$H8) -> 0 | E37: =+'Bilan initial'!E37*(1+Croissance!$H8) -> 0 | F37: =+'Bilan initial'!F37*(1+Croissance!$H8) -> 51.29913833 | G37: =+'Bilan initial'!G37*(1+Croissance!$H8) -> 0 | H37: =+'Bilan initial'!H37*(1+Croissance!$H8) -> 0 | I37: =SUM(C37:H37) -> 51.29913833 | J37: =+'Bilan initial'!J37*(1+Croissance!$H8) -> 33.14968552 | K37: =+'Bilan initial'!K37*(1+Croissance!$H8) -> 33.13575708 | L37: =+'Bilan initial'!L37*(1+Croissance!$H8) -> 624.6905023 | M37: =+'Bilan initial'!M37*(1+Croissance!$H8) -> 0 | N37: =+'Bilan initial'!N37*(1+Croissance!$H8) -> 0 | O37: =+'Bilan initial'!O37*(1+Croissance!H$20) -> 4469.889945 | P37: Lignite | Q37: =Q$34*R37 -> 94514.99189 | R37: =+'Bilan 2025'!R37 -> 0.1238229845 | S37: =+'Bilan 2025'!S37 -> 0.1294844622
A38: Industrie - chimique | B38: =SUM(I38:N38) -> 8267.161767 | C38: =+'Bilan initial'!C38*(1+Croissance!$H9) -> 29.64668303 | D38: =+'Bilan initial'!D38*(1+Croissance!$H9) -> 0 | E38: =+'Bilan initial'!E38*(1+Croissance!$H9) -> 0 | F38: =+'Bilan initial'!F38*(1+Croissance!$H9) -> 12.07038549 | G38: =+'Bilan initial'!G38*(1+Croissance!$H9) -> 8.396759627 | H38: =+'Bilan initial'!H38*(1+Croissance!$H9) -> 0 | I38: =SUM(C38:H38) -> 50.11382815 | J38: =+'Bilan initial'!J38*(1+Croissance!$H9) -> 768.2927114 | K38: =+'Bilan initial'!K38*(1+Croissance!$H9) -> 414.1969634 | L38: =+'Bilan initial'!L38*(1+Croissance!$H9) -> 7034.558264 | M38: =+'Bilan initial'!M38*(1+Croissance!$H9) -> 0 | N38: =+'Bilan initial'!N38*(1+Croissance!$H9) -> 0 | O38: =+'Bilan initial'!O38*(1+Croissance!H$20) -> 44188.63804 | P38: Charbon | Q38: 127568.2681 | R38: =+'Bilan 2025'!R38 -> 0.1671256947 | S38: =+'Bilan 2025'!S38 -> 0.3500173338
A39: Industrie - minerai non metallique | B39: 22309.32328 | C39: =+'Bilan initial'!C39*(1+Croissance!$H10) -> 9.882227678 | D39: =+'Bilan initial'!D39*(1+Croissance!$H10) -> 0 | E39: =+'Bilan initial'!E39*(1+Croissance!$H10) -> 0 | F39: =+'Bilan initial'!F39*(1+Croissance!$H10) -> 72.42231294 | G39: =+'Bilan initial'!G39*(1+Croissance!$H10) -> 50.38055776 | H39: =+'Bilan initial'!H39*(1+Croissance!$H10) -> 0 | I39: 132.6850984 | J39: =+'Bilan initial'!J39*(1+Croissance!$H10) -> 6448.588823 | K39: =+'Bilan initial'!K39*(1+Croissance!$H10) -> 1791.879786 | L39: =+'Bilan initial'!L39*(1+Croissance!$H10) -> 5117.030027 | M39: =+'Bilan initial'!M39*(1+Croissance!$H10) -> 0 | N39: =+'Bilan initial'!N39*(1+Croissance!$H10) -> 8819.139549 | O39: =+'Bilan initial'!O39*(1+Croissance!H$20) -> 54067.29892 | P39: Pétrole | Q39: 6484.693567 | R39: =+'Bilan 2025'!R39 -> 0.008495521134 | S39: =+'Bilan 2025'!S39 -> 0.4119436068
A40: Industrie - transformation des aliments et boissons | B40: 4412.955082 | C40: =+'Bilan initial'!C40*(1+Croissance!$H11) -> 65.88151785 | D40: =+'Bilan initial'!D40*(1+Croissance!$H11) -> 0 | E40: =+'Bilan initial'!E40*(1+Croissance!$H11) -> 0 | F40: =+'Bilan initial'!F40*(1+Croissance!$H11) -> 18.10557824 | G40: =+'Bilan initial'!G40*(1+Croissance!$H11) -> 103.5600354 | H40: =+'Bilan initial'!H40*(1+Croissance!$H11) -> 0 | I40: 187.5471315 | J40: =+'Bilan initial'!J40*(1+Croissance!$H11) -> 444.5957822 | K40: =+'Bilan initial'!K40*(1+Croissance!$H11) -> 1002.993878 | L40: =+'Bilan initial'!L40*(1+Croissance!$H11) -> 2667.15684 | M40: =+'Bilan initial'!M40*(1+Croissance!$H11) -> 95.54909354 | N40: =+'Bilan initial'!N40*(1+Croissance!$H11) -> 15.11235663 | O40: =+'Bilan initial'!O40*(1+Croissance!H$20) -> 20702.03432 | P40: Gaz naturel | Q40: 289300.7244 | R40: =+'Bilan 2025'!R40 -> 0.3790094925 | S40: =+'Bilan 2025'!S40 -> 0.4671126089
A41: Industrie - construction | B41: 1427.136443 | C41: =+'Bilan initial'!C41*(1+Croissance!$H12) -> 0 | D41: =+'Bilan initial'!D41*(1+Croissance!$H12) -> 0 | E41: =+'Bilan initial'!E41*(1+Croissance!$H12) -> 0 | F41: =+'Bilan initial'!F41*(1+Croissance!$H12) -> 443.5866668 | G41: =+'Bilan initial'!G41*(1+Croissance!$H12) -> 0 | H41: =+'Bilan initial'!H41*(1+Croissance!$H12) -> 0 | I41: 443.5866668 | J41: =+'Bilan initial'!J41*(1+Croissance!$H12) -> 1.949981501 | K41: =+'Bilan initial'!K41*(1+Croissance!$H12) -> 3.823356586 | L41: =+'Bilan initial'!L41*(1+Croissance!$H12) -> 977.7764383 | M41: =+'Bilan initial'!M41*(1+Croissance!$H12) -> 0 | N41: =+'Bilan initial'!N41*(1+Croissance!$H12) -> 0 | O41: =+'Bilan initial'!O41*(1+Croissance!H$20) -> 8356.623994 | P41: Nucléaire | Q41: 0 | R41: =+'Bilan 2025'!R41 -> 0
A42: Industrie - exploitation minière | B42: 1644.550327 | C42: =+'Bilan initial'!C42*(1+Croissance!$H13) -> 0 | D42: =+'Bilan initial'!D42*(1+Croissance!$H13) -> 0 | E42: =+'Bilan initial'!E42*(1+Croissance!$H13) -> 0 | F42: =+'Bilan initial'!F42*(1+Croissance!$H13) -> 1134.616236 | G42: =+'Bilan initial'!G42*(1+Croissance!$H13) -> 0 | H42: =+'Bilan initial'!H42*(1+Croissance!$H13) -> 0 | I42: 1134.616236 | J42: =+'Bilan initial'!J42*(1+Croissance!$H13) -> 37.04964852 | K42: =+'Bilan initial'!K42*(1+Croissance!$H13) -> 119.7985064 | L42: =+'Bilan initial'!L42*(1+Croissance!$H13) -> 353.0859361 | M42: =+'Bilan initial'!M42*(1+Croissance!$H13) -> 0 | N42: =+'Bilan initial'!N42*(1+Croissance!$H13) -> 0 | O42: =+'Bilan initial'!O42*(1+Croissance!H$20) -> 6429.293756 | P42: Importation net | Q42: 0 | R42: =+'Bilan 2025'!R42 -> 0
A43: Industrie - machinerie | B43: 240.4459511 | C43: =+'Bilan initial'!C43*(1+Croissance!$H14) -> 16.47037946 | D43: =+'Bilan initial'!D43*(1+Croissance!$H14) -> 0 | E43: =+'Bilan initial'!E43*(1+Croissance!$H14) -> 0 | F43: =+'Bilan initial'!F43*(1+Croissance!$H14) -> 9.052789118 | G43: =+'Bilan initial'!G43*(1+Croissance!$H14) -> 0 | H43: =+'Bilan initial'!H43*(1+Croissance!$H14) -> 0 | I43: 25.52316858 | J43: =+'Bilan initial'!J43*(1+Croissance!$H14) -> 5.849944503 | K43: =+'Bilan initial'!K43*(1+Croissance!$H14) -> 21.66568732 | L43: =+'Bilan initial'!L43*(1+Croissance!$H14) -> 187.4071507 | M43: =+'Bilan initial'!M43*(1+Croissance!$H14) -> 0 | N43: =+'Bilan initial'!N43*(1+Croissance!$H14) -> 0 | O43: =+'Bilan initial'!O43*(1+Croissance!H$20) -> 6280.589003
A44: Industrie - métaux non-ferreux | B44: 17386.36865 | C44: =+'Bilan initial'!C44*(1+Croissance!$H15) -> 121.880808 | D44: =+'Bilan initial'!D44*(1+Croissance!$H15) -> 0 | E44: =+'Bilan initial'!E44*(1+Croissance!$H15) -> 0 | F44: =+'Bilan initial'!F44*(1+Croissance!$H15) -> 39.22875284 | G44: =+'Bilan initial'!G44*(1+Croissance!$H15) -> 0 | H44: =+'Bilan initial'!H44*(1+Croissance!$H15) -> 0 | I44: 161.1095609 | J44: =+'Bilan initial'!J44*(1+Croissance!$H15) -> 2117.67991 | K44: =+'Bilan initial'!K44*(1+Croissance!$H15) -> 86.66274928 | L44: =+'Bilan initial'!L44*(1+Croissance!$H15) -> 5586.905927 | M44: =+'Bilan initial'!M44*(1+Croissance!$H15) -> 9434.010501 | N44: =+'Bilan initial'!N44*(1+Croissance!$H15) -> 0 | O44: =+'Bilan initial'!O44*(1+Croissance!H$20) -> 73661.33704
A45: Industrie - pâtes et papiers | B45: 977.7207245 | C45: =+'Bilan initial'!C45*(1+Croissance!$H16) -> 3.294075893 | D45: =+'Bilan initial'!D45*(1+Croissance!$H16) -> 0 | E45: =+'Bilan initial'!E45*(1+Croissance!$H16) -> 0 | F45: =+'Bilan initial'!F45*(1+Croissance!$H16) -> 30.17596373 | G45: =+'Bilan initial'!G45*(1+Croissance!$H16) -> 0 | H45: =+'Bilan initial'!H45*(1+Croissance!$H16) -> 0 | I45: 33.47003962 | J45: =+'Bilan initial'!J45*(1+Croissance!$H16) -> 83.84920454 | K45: =+'Bilan initial'!K45*(1+Croissance!$H16) -> 257.4393434 | L45: =+'Bilan initial'!L45*(1+Croissance!$H16) -> 602.962137 | M45: =+'Bilan initial'!M45*(1+Croissance!$H16) -> 0 | N45: =+'Bilan initial'!N45*(1+Croissance!$H16) -> 0 | O45: =+'Bilan initial'!O45*(1+Croissance!H$20) -> 11715.60196
A46: Industrie - transport d'équipment | B46: 590.5386655 | C46: =+'Bilan initial'!C46*(1+Croissance!$H17) -> 75.76374553 | D46: =+'Bilan initial'!D46*(1+Croissance!$H17) -> 0 | E46: =+'Bilan initial'!E46*(1+Croissance!$H17) -> 0 | F46: =+'Bilan initial'!F46*(1+Croissance!$H17) -> 21.12317461 | G46: =+'Bilan initial'!G46*(1+Croissance!$H17) -> 0 | H46: =+'Bilan initial'!H46*(1+Croissance!$H17) -> 0 | I46: 96.88692014 | J46: =+'Bilan initial'!J46*(1+Croissance!$H17) -> 0 | K46: =+'Bilan initial'!K46*(1+Croissance!$H17) -> 10.19561756 | L46: =+'Bilan initial'!L46*(1+Croissance!$H17) -> 483.4561278 | M46: =+'Bilan initial'!M46*(1+Croissance!$H17) -> 0 | N46: =+'Bilan initial'!N46*(1+Croissance!$H17) -> 0 | O46: =+'Bilan initial'!O46*(1+Croissance!H$20) -> 7744.310303
A47: Industrie - cuir et textile | B47: 5387.755709 | C47: =+'Bilan initial'!C47*(1+Croissance!$H18) -> 39.52891071 | D47: =+'Bilan initial'!D47*(1+Croissance!$H18) -> 0 | E47: =+'Bilan initial'!E47*(1+Croissance!$H18) -> 0 | F47: =+'Bilan initial'!F47*(1+Croissance!$H18) -> 18.10557824 | G47: =+'Bilan initial'!G47*(1+Croissance!$H18) -> 0 | H47: =+'Bilan initial'!H47*(1+Croissance!$H18) -> 0 | I47: 57.63448895 | J47: =+'Bilan initial'!J47*(1+Croissance!$H18) -> 692.2434328 | K47: =+'Bilan initial'!K47*(1+Croissance!$H18) -> 1384.055084 | L47: =+'Bilan initial'!L47*(1+Croissance!$H18) -> 3253.822703 | M47: =+'Bilan initial'!M47*(1+Croissance!$H18) -> 0 | N47: =+'Bilan initial'!N47*(1+Croissance!$H18) -> 0 | O47: =+'Bilan initial'!O47*(1+Croissance!H$20) -> 50650.00537
A48: Industrie - divers | B48: 1687.938808 | C48: =+'Bilan initial'!C48*(1+Croissance!$H19) -> 0 | D48: =+'Bilan initial'!D48*(1+Croissance!$H19) -> 0 | E48: =+'Bilan initial'!E48*(1+Croissance!$H19) -> 0 | F48: =+'Bilan initial'!F48*(1+Croissance!$H19) -> 0 | G48: =+'Bilan initial'!G48*(1+Croissance!$H19) -> 0 | H48: =+'Bilan initial'!H48*(1+Croissance!$H19) -> 0 | I48: 0 | J48: =+'Bilan initial'!J48*(1+Croissance!$H19) -> 0 | K48: =+'Bilan initial'!K48*(1+Croissance!$H19) -> 1.274452195 | L48: =+'Bilan initial'!L48*(1+Croissance!$H19) -> 1686.664356 | M48: =+'Bilan initial'!M48*(1+Croissance!$H19) -> 0 | N48: =+'Bilan initial'!N48*(1+Croissance!$H19) -> 0 | O48: =+'Bilan initial'!O48*(1+Croissance!H$20) -> 13613.7744
A49: Transport - route | B49: 66243.47202 | C49: =+'Bilan initial'!C49*(1+Croissance!$H21) -> 10109.51891 | D49: =+'Bilan initial'!D49*(1+Croissance!$H21) -> 6327.299974 | E49: =+'Bilan initial'!E49*(1+Croissance!$H21) -> 0 | F49: =+'Bilan initial'!F49*(1+Croissance!$H21) -> 49573.07321 | G49: =+'Bilan initial'!G49*(1+Croissance!$H21) -> 0 | H49: =+'Bilan initial'!H49*(1+Croissance!$H21) -> 0 | I49: 66009.8921 | J49: =+'Bilan initial'!J49*(1+Croissance!$H21) -> 0 | K49: =+'Bilan initial'!K49*(1+Croissance!$H21) -> 0 | L49: =+'Bilan initial'!L49*(1+Croissance!$H21) -> 233.5799269 | M49: =+'Bilan initial'!M49*(1+Croissance!$H21) -> 0 | N49: =+'Bilan initial'!N49*(1+Croissance!$H21) -> 0 | O49: =+'Bilan initial'!O49*(1+Croissance!H$25) -> 0
A50: Transport - rail | B50: 407.3755103 | C50: =+'Bilan initial'!C50*(1+Croissance!$H22) -> 0 | D50: =+'Bilan initial'!D50*(1+Croissance!$H22) -> 0 | E50: =+'Bilan initial'!E50*(1+Croissance!$H22) -> 0 | F50: =+'Bilan initial'!F50*(1+Croissance!$H22) -> 407.3755103 | G50: =+'Bilan initial'!G50*(1+Croissance!$H22) -> 0 | H50: =+'Bilan initial'!H50*(1+Croissance!$H22) -> 0 | I50: 407.3755103 | J50: =+'Bilan initial'!J50*(1+Croissance!$H22) -> 0 | K50: =+'Bilan initial'!K50*(1+Croissance!$H22) -> 0 | L50: =+'Bilan initial'!L50*(1+Croissance!$H22) -> 0 | M50: =+'Bilan initial'!M50*(1+Croissance!$H22) -> 0 | N50: =+'Bilan initial'!N50*(1+Croissance!$H22) -> 0 | O50: =+'Bilan initial'!O50*(1+Croissance!H$25) -> 2341.370924
A51: Transport - air domestique | B51: 4095.950767 | C51: =+'Bilan initial'!C51*(1+Croissance!$H23) -> 0 | D51: =+'Bilan initial'!D51*(1+Croissance!$H23) -> 0 | E51: =+'Bilan initial'!E51*(1+Croissance!$H23) -> 4095.950767 | F51: =+'Bilan initial'!F51*(1+Croissance!$H23) -> 0 | G51: =+'Bilan initial'!G51*(1+Croissance!$H23) -> 0 | H51: =+'Bilan initial'!H51*(1+Croissance!$H23) -> 0 | I51: 4095.950767 | J51: =+'Bilan initial'!J51*(1+Croissance!$H23) -> 0 | K51: =+'Bilan initial'!K51*(1+Croissance!$H23) -> 0 | L51: =+'Bilan initial'!L51*(1+Croissance!$H23) -> 0 | M51: =+'Bilan initial'!M51*(1+Croissance!$H23) -> 0 | N51: =+'Bilan initial'!N51*(1+Croissance!$H23) -> 0 | O51: =+'Bilan initial'!O51*(1+Croissance!H$25) -> 0 | P51: Renouvelable | Q51: =SUM(Q52:Q56) -> 245438.6536 | R51: =SUM(R52:R56) -> 0.3215463071
A52: Transport - navigation | B52: 512.2023373 | C52: =+'Bilan initial'!C52*(1+Croissance!$H24) -> 0 | D52: =+'Bilan initial'!D52*(1+Croissance!$H24) -> 0 | E52: =+'Bilan initial'!E52*(1+Croissance!$H24) -> 0 | F52: =+'Bilan initial'!F52*(1+Croissance!$H24) -> 0 | G52: =+'Bilan initial'!G52*(1+Croissance!$H24) -> 512.2023373 | H52: =+'Bilan initial'!H52*(1+Croissance!$H24) -> 0 | I52: 512.2023373 | J52: =+'Bilan initial'!J52*(1+Croissance!$H24) -> 0 | K52: =+'Bilan initial'!K52*(1+Croissance!$H24) -> 0 | L52: =+'Bilan initial'!L52*(1+Croissance!$H24) -> 0 | M52: =+'Bilan initial'!M52*(1+Croissance!$H24) -> 0 | N52: =+'Bilan initial'!N52*(1+Croissance!$H24) -> 0 | O52: =+'Bilan initial'!O52*(1+Croissance!H$25) -> 0 | P52: Hydro | Q52: =Q$34*R52 -> 195782.9291 | R52: =+'Bilan 2025'!R52 -> 0.2564929236
A53: Ménages | B53: 36784.85496 | C53: =+'Bilan initial'!C53*(1+Croissance!$H26) -> 807.0485937 | D53: =+'Bilan initial'!D53*(1+Croissance!$H26) -> 0 | E53: =+'Bilan initial'!E53*(1+Croissance!$H26) -> 0 | F53: =+'Bilan initial'!F53*(1+Croissance!$H26) -> 0 | G53: =+'Bilan initial'!G53*(1+Croissance!$H26) -> 0 | H53: =+'Bilan initial'!H53*(1+Croissance!$H27) -> 180.7563209 | I53: 987.8049146 | J53: =+'Bilan initial'!J53*(1+Croissance!$H26) -> 2956.171955 | K53: =+'Bilan initial'!K53*(1+Croissance!$H26) -> 2964.375806 | L53: =+'Bilan initial'!L53*(1+Croissance!$H26) -> 29876.50228 | M53: =+'Bilan initial'!M53*(1+Croissance!$H26) -> 0 | N53: =+'Bilan initial'!N53*(1+Croissance!$H26) -> 0 | O53: =+'Bilan initial'!O53*(1+Croissance!H28) -> 139668.7529 | P53: Éolien | Q53: =Q$34*R53 -> 33977.5783 | R53: =+'Bilan 2025'!R53 -> 0.0445136276
A54: Services | B54: 21776.99644 | C54: =+'Bilan initial'!C54*(1+Croissance!$H29) -> 1880.917335 | D54: =+'Bilan initial'!D54*(1+Croissance!$H29) -> 0 | E54: =+'Bilan initial'!E54*(1+Croissance!$H29) -> 0 | F54: =+'Bilan initial'!F54*(1+Croissance!$H29) -> 0 | G54: =+'Bilan initial'!G54*(1+Croissance!$H29) -> 0 | H54: =+'Bilan initial'!H54*(1+Croissance!$H29) -> 0 | I54: 1880.917335 | J54: =+'Bilan initial'!J54*(1+Croissance!$H29) -> 10184.75338 | K54: =+'Bilan initial'!K54*(1+Croissance!$H29) -> 1032.306278 | L54: =+'Bilan initial'!L54*(1+Croissance!$H29) -> 8585.420337 | M54: =+'Bilan initial'!M54*(1+Croissance!$H29) -> 93.59911204 | N54: =+'Bilan initial'!N54*(1+Croissance!$H29) -> 0 | O54: =+'Bilan initial'!O54*(1+Croissance!H30) -> 174754.3274 | P54: Solaire | Q54: =Q$34*R54 -> 565.6612194 | R54: =+'Bilan 2025'!R54 -> 0.0007410661421
A55: Agriculture & Pêches | B55: 8560.043417 | C55: =+'Bilan initial'!C55*(1+Croissance!$H31) -> 0 | D55: =+'Bilan initial'!D55*(1+Croissance!$H31) -> 0 | E55: =+'Bilan initial'!E55*(1+Croissance!$H31) -> 0 | F55: =+'Bilan initial'!F55*(1+Croissance!$H31) -> 8198.809344 | G55: =+'Bilan initial'!G55*(1+Croissance!$H31) -> 0 | H55: =+'Bilan initial'!H55*(1+Croissance!$H31) -> 0 | I55: 8198.809344 | J55: =+'Bilan initial'!J55*(1+Croissance!$H31) -> 0 | K55: =+'Bilan initial'!K55*(1+Croissance!$H31) -> 0 | L55: =+'Bilan initial'!L55*(1+Croissance!$H31) -> 361.234073 | M55: =+'Bilan initial'!M55*(1+Croissance!$H31) -> 0 | N55: =+'Bilan initial'!N55*(1+Croissance!$H31) -> 0 | O55: =+'Bilan initial'!O55*(1+Croissance!H32) -> 14231.91965 | P55: Biomasse | Q55: =Q$34*R55 -> 5125.940328 | R55: =+'Bilan 2025'!R55 -> 0.006715434421
A56: Utilisations non énergétiques | B56: 0 | C56: =+'Bilan initial'!C56*(1+Croissance!$H33) -> 0 | D56: =+'Bilan initial'!D56*(1+Croissance!$H33) -> 0 | E56: =+'Bilan initial'!E56*(1+Croissance!$H33) -> 0 | F56: =+'Bilan initial'!F56*(1+Croissance!$H33) -> 0 | G56: =+'Bilan initial'!G56*(1+Croissance!$H33) -> 0 | H56: =+'Bilan initial'!H56*(1+Croissance!$H33) -> 0 | I56: 0 | J56: =+'Bilan initial'!J56*(1+Croissance!$H33) -> 0 | K56: =+'Bilan initial'!K56*(1+Croissance!$H33) -> 0 | L56: =+'Bilan initial'!L56*(1+Croissance!$H33) -> 0 | M56: =+'Bilan initial'!M56*(1+Croissance!$H33) -> 0 | N56: =+'Bilan initial'!N56*(1+Croissance!$H33) -> 0 | O56: =+'Bilan initial'!O56*(1+Croissance!H33) -> 0 | P56: Géothermie | Q56: =Q$34*R56 -> 9986.544724 | R56: =+'Bilan 2025'!R56 -> 0.01308325534
R57: =+R36+R51 -> 1
A59: Bilan GES | B59: =+Hypothèses!$B$2 -> Pays X | D59: 2035
A60: Ton CO2/Toe (IPCC): | C60: =+'Bilan initial'!C60 -> 2.614070448 | D60: =+'Bilan initial'!D60 -> 2.872437876 | E60: =+'Bilan initial'!E60 -> 2.96362638 | F60: =+'Bilan initial'!F60 -> 3.070012968 | G60: =+'Bilan initial'!G60 -> 3.206795724 | H60: =+'Bilan initial'!H60 -> 2.978824464 | J60: =+'Bilan initial'!J60 -> 3.921105672 | K60: =+'Bilan initial'!K60 -> 4.194671184 | L60: =+'Bilan initial'!L60 -> 2.325306852 | M60: =+'Bilan initial'!M60 -> 4.484816424 | N60: =+'Bilan initial'!N60 -> 4.157366796
A61: Unité : ktCO2-e | B61: Total | C61: GPL | D61: Essence | E61: Essence pour carburéacteurs | F61: Diesel | G61: Fiouls lourds | H61: Kérosène et autres | I61: Total produits pétroliers | J61: Charbon | K61: Lignite | L61: Gaz | M61: Coke | N61: Coke de pétrole
A62: Total | B62: =+B63+B64 -> 1134572.524 | C62: =+C63+C64 -> 34400.73104 | D62: 18174.7761 | E62: 12138.86775 | F62: 186494.7918 | G62: 4200.564087 | H62: 538.4413508 | I62: 255948.1721 | J62: 216101.2586 | K62: 301541.2809 | L62: 281096.4868 | M62: =+M63+M64 -> 43158.10022 | N62: =+N63+N64 -> 36727.22554
A63: Centrales fossiles | B63: =SUM(I63:N63) -> 514223.1794 | C63: =C60*C35 -> 0 | D63: 0 | E63: 0 | F63: 2204.846279 | G63: 2037.453094 | H63: 0 | I63: =SUM(C63:H63) -> 4242.299373 | J63: =J60*J35 -> 122880.2083 | K63: =K60*K35 -> 263269.9263 | L63: =L60*L35 -> 123830.7454 | M63: =M60*M35 -> 0 | N63: =N60*N35 -> 0
A64: CONSOMMATION FINALE | B64: =SUM(B65:B84) -> 620349.3448 | C64: =SUM(C65:C84) -> 34400.73104 | D64: 18174.7761 | E64: 12138.86775 | F64: 184289.9455 | G64: 2163.110994 | H64: 538.4413508 | I64: =SUM(C64:H64) -> 251705.8727 | J64: =SUM(J65:J84) -> 93221.05032 | K64: =SUM(K65:K84) -> 38271.35465 | L64: =SUM(L65:L84) -> 157265.7414 | M64: =SUM(M65:M84) -> 43158.10022 | N64: =SUM(N65:N84) -> 36727.22554
A65: Industrie - acier | B65: =SUM(I65:N65) -> 1879.06315 | C65: =+'Bilan initial'!C65*(1+Croissance!$H8) -> 0 | D65: =+'Bilan initial'!D65*(1+Croissance!$H8) -> 0 | E65: =+'Bilan initial'!E65*(1+Croissance!$H8) -> 0 | F65: =+'Bilan initial'!F65*(1+Croissance!$H8) -> 157.4890199 | G65: =+'Bilan initial'!G65*(1+Croissance!$H8) -> 0 | H65: =+'Bilan initial'!H65*(1+Croissance!$H8) -> 0 | I65: =SUM(C65:H65) -> 157.4890199 | J65: =+'Bilan initial'!J65*(1+Croissance!$H8) -> 129.9834199 | K65: =+'Bilan initial'!K65*(1+Croissance!$H8) -> 138.9936054 | L65: =+'Bilan initial'!L65*(1+Croissance!$H8) -> 1452.597105 | M65: =+'Bilan initial'!M65*(1+Croissance!$H8) -> 0 | N65: =+'Bilan initial'!N65*(1+Croissance!$H8) -> 0
A66: Industrie - chimique | B66: =SUM(I66:N66) -> 21248.96496 | C66: =+'Bilan initial'!C66*(1+Croissance!$H9) -> 77.498518 | D66: =+'Bilan initial'!D66*(1+Croissance!$H9) -> 0 | E66: =+'Bilan initial'!E66*(1+Croissance!$H9) -> 0 | F66: =+'Bilan initial'!F66*(1+Croissance!$H9) -> 37.05623998 | G66: =+'Bilan initial'!G66*(1+Croissance!$H9) -> 26.92669287 | H66: =+'Bilan initial'!H66*(1+Croissance!$H9) -> 0 | I66: 141.4814509 | J66: =+'Bilan initial'!J66*(1+Croissance!$H9) -> 3012.556908 | K66: =+'Bilan initial'!K66*(1+Croissance!$H9) -> 1737.420067 | L66: =+'Bilan initial'!L66*(1+Croissance!$H9) -> 16357.50653 | M66: =+'Bilan initial'!M66*(1+Croissance!$H9) -> 0 | N66: =+'Bilan initial'!N66*(1+Croissance!$H9) -> 0
A67: Industrie - minerai non metallique | B67: 81774.73807 | C67: =+'Bilan initial'!C67*(1+Croissance!$H10) -> 25.83283933 | D67: =+'Bilan initial'!D67*(1+Croissance!$H10) -> 0 | E67: =+'Bilan initial'!E67*(1+Croissance!$H10) -> 0 | F67: =+'Bilan initial'!F67*(1+Croissance!$H10) -> 222.3374399 | G67: =+'Bilan initial'!G67*(1+Croissance!$H10) -> 161.5601572 | H67: =+'Bilan initial'!H67*(1+Croissance!$H10) -> 0 | I67: 409.7304364 | J67: =+'Bilan initial'!J67*(1+Croissance!$H10) -> 25285.59821 | K67: =+'Bilan initial'!K67*(1+Croissance!$H10) -> 7516.346506 | L67: =+'Bilan initial'!L67*(1+Croissance!$H10) -> 11898.66498 | M67: =+'Bilan initial'!M67*(1+Croissance!$H10) -> 0 | N67: =+'Bilan initial'!N67*(1+Croissance!$H10) -> 36664.39793
A68: Industrie - transformation des aliments et boissons | B68: 13203.74156 | C68: =+'Bilan initial'!C68*(1+Croissance!$H11) -> 172.2189289 | D68: =+'Bilan initial'!D68*(1+Croissance!$H11) -> 0 | E68: =+'Bilan initial'!E68*(1+Croissance!$H11) -> 0 | F68: =+'Bilan initial'!F68*(1+Croissance!$H11) -> 55.58435998 | G68: =+'Bilan initial'!G68*(1+Croissance!$H11) -> 332.0958787 | H68: =+'Bilan initial'!H68*(1+Croissance!$H11) -> 0 | I68: 559.8991676 | J68: =+'Bilan initial'!J68*(1+Croissance!$H11) -> 1743.307043 | K68: =+'Bilan initial'!K68*(1+Croissance!$H11) -> 4207.229516 | L68: =+'Bilan initial'!L68*(1+Croissance!$H11) -> 6201.958076 | M68: =+'Bilan initial'!M68*(1+Croissance!$H11) -> 428.520144 | N68: =+'Bilan initial'!N68*(1+Croissance!$H11) -> 62.82760967
A69: Industrie - construction | B69: 3659.130878 | C69: =+'Bilan initial'!C69*(1+Croissance!$H12) -> 0 | D69: =+'Bilan initial'!D69*(1+Croissance!$H12) -> 0 | E69: =+'Bilan initial'!E69*(1+Croissance!$H12) -> 0 | F69: =+'Bilan initial'!F69*(1+Croissance!$H12) -> 1361.816819 | G69: =+'Bilan initial'!G69*(1+Croissance!$H12) -> 0 | H69: =+'Bilan initial'!H69*(1+Croissance!$H12) -> 0 | I69: 1361.816819 | J69: =+'Bilan initial'!J69*(1+Croissance!$H12) -> 7.646083523 | K69: =+'Bilan initial'!K69*(1+Croissance!$H12) -> 16.0377237 | L69: =+'Bilan initial'!L69*(1+Croissance!$H12) -> 2273.630252 | M69: =+'Bilan initial'!M69*(1+Croissance!$H12) -> 0 | N69: =+'Bilan initial'!N69*(1+Croissance!$H12) -> 0
A70: Industrie - exploitation minière | B70: 4952.110634 | C70: =+'Bilan initial'!C70*(1+Croissance!$H13) -> 0 | D70: =+'Bilan initial'!D70*(1+Croissance!$H13) -> 0 | E70: =+'Bilan initial'!E70*(1+Croissance!$H13) -> 0 | F70: =+'Bilan initial'!F70*(1+Croissance!$H13) -> 3483.286559 | G70: =+'Bilan initial'!G70*(1+Croissance!$H13) -> 0 | H70: =+'Bilan initial'!H70*(1+Croissance!$H13) -> 0 | I70: 3483.286559 | J70: =+'Bilan initial'!J70*(1+Croissance!$H13) -> 145.2755869 | K70: =+'Bilan initial'!K70*(1+Croissance!$H13) -> 502.5153425 | L70: =+'Bilan initial'!L70*(1+Croissance!$H13) -> 821.0331465 | M70: =+'Bilan initial'!M70*(1+Croissance!$H13) -> 0 | N70: =+'Bilan initial'!N70*(1+Croissance!$H13) -> 0
A71: Industrie - machinerie | B71: 620.4447286 | C71: =+'Bilan initial'!C71*(1+Croissance!$H14) -> 43.05473222 | D71: =+'Bilan initial'!D71*(1+Croissance!$H14) -> 0 | E71: =+'Bilan initial'!E71*(1+Croissance!$H14) -> 0 | F71: =+'Bilan initial'!F71*(1+Croissance!$H14) -> 27.79217999 | G71: =+'Bilan initial'!G71*(1+Croissance!$H14) -> 0 | H71: =+'Bilan initial'!H71*(1+Croissance!$H14) -> 0 | I71: 70.84691221 | J71: =+'Bilan initial'!J71*(1+Croissance!$H14) -> 22.93825057 | K71: =+'Bilan initial'!K71*(1+Croissance!$H14) -> 90.88043428 | L71: =+'Bilan initial'!L71*(1+Croissance!$H14) -> 435.7791316 | M71: =+'Bilan initial'!M71*(1+Croissance!$H14) -> 0 | N71: =+'Bilan initial'!N71*(1+Croissance!$H14) -> 0
A72: Industrie - métaux non-ferreux | B72: 64407.28212 | C72: =+'Bilan initial'!C72*(1+Croissance!$H15) -> 318.6050184 | D72: =+'Bilan initial'!D72*(1+Croissance!$H15) -> 0 | E72: =+'Bilan initial'!E72*(1+Croissance!$H15) -> 0 | F72: =+'Bilan initial'!F72*(1+Croissance!$H15) -> 120.43278 | G72: =+'Bilan initial'!G72*(1+Croissance!$H15) -> 0 | H72: =+'Bilan initial'!H72*(1+Croissance!$H15) -> 0 | I72: 439.0377984 | J72: =+'Bilan initial'!J72*(1+Croissance!$H15) -> 8303.646706 | K72: =+'Bilan initial'!K72*(1+Croissance!$H15) -> 363.5217371 | L72: =+'Bilan initial'!L72*(1+Croissance!$H15) -> 12991.27063 | M72: =+'Bilan initial'!M72*(1+Croissance!$H15) -> 42309.80524 | N72: =+'Bilan initial'!N72*(1+Croissance!$H15) -> 0
A73: Industrie - pâtes et papiers | B73: 2911.978522 | C73: =+'Bilan initial'!C73*(1+Croissance!$H16) -> 8.610946444 | D73: =+'Bilan initial'!D73*(1+Croissance!$H16) -> 0 | E73: =+'Bilan initial'!E73*(1+Croissance!$H16) -> 0 | F73: =+'Bilan initial'!F73*(1+Croissance!$H16) -> 92.64059996 | G73: =+'Bilan initial'!G73*(1+Croissance!$H16) -> 0 | H73: =+'Bilan initial'!H73*(1+Croissance!$H16) -> 0 | I73: 101.2515464 | J73: =+'Bilan initial'!J73*(1+Croissance!$H16) -> 328.7815915 | K73: =+'Bilan initial'!K73*(1+Croissance!$H16) -> 1079.873396 | L73: =+'Bilan initial'!L73*(1+Croissance!$H16) -> 1402.071989 | M73: =+'Bilan initial'!M73*(1+Croissance!$H16) -> 0 | N73: =+'Bilan initial'!N73*(1+Croissance!$H16) -> 0
A74: Industrie - transport d'équipment | B74: 1429.851298 | C74: =+'Bilan initial'!C74*(1+Croissance!$H17) -> 198.0517682 | D74: =+'Bilan initial'!D74*(1+Croissance!$H17) -> 0 | E74: =+'Bilan initial'!E74*(1+Croissance!$H17) -> 0 | F74: =+'Bilan initial'!F74*(1+Croissance!$H17) -> 64.84841997 | G74: =+'Bilan initial'!G74*(1+Croissance!$H17) -> 0 | H74: =+'Bilan initial'!H74*(1+Croissance!$H17) -> 0 | I74: 262.9001882 | J74: =+'Bilan initial'!J74*(1+Croissance!$H17) -> 0 | K74: =+'Bilan initial'!K74*(1+Croissance!$H17) -> 42.76726319 | L74: =+'Bilan initial'!L74*(1+Croissance!$H17) -> 1124.183847 | M74: =+'Bilan initial'!M74*(1+Croissance!$H17) -> 0 | N74: =+'Bilan initial'!N74*(1+Croissance!$H17) -> 0
A75: Industrie - cuir et textile | B75: 16245.06757 | C75: =+'Bilan initial'!C75*(1+Croissance!$H18) -> 103.3313573 | D75: =+'Bilan initial'!D75*(1+Croissance!$H18) -> 0 | E75: =+'Bilan initial'!E75*(1+Croissance!$H18) -> 0 | F75: =+'Bilan initial'!F75*(1+Croissance!$H18) -> 55.58435998 | G75: =+'Bilan initial'!G75*(1+Croissance!$H18) -> 0 | H75: =+'Bilan initial'!H75*(1+Croissance!$H18) -> 0 | I75: 158.9157173 | J75: =+'Bilan initial'!J75*(1+Croissance!$H18) -> 2714.359651 | K75: =+'Bilan initial'!K75*(1+Croissance!$H18) -> 5805.655978 | L75: =+'Bilan initial'!L75*(1+Croissance!$H18) -> 7566.136227 | M75: =+'Bilan initial'!M75*(1+Croissance!$H18) -> 0 | N75: =+'Bilan initial'!N75*(1+Croissance!$H18) -> 0
A76: Industrie - divers | B76: 3927.358092 | C76: =+'Bilan initial'!C76*(1+Croissance!$H19) -> 0 | D76: =+'Bilan initial'!D76*(1+Croissance!$H19) -> 0 | E76: =+'Bilan initial'!E76*(1+Croissance!$H19) -> 0 | F76: =+'Bilan initial'!F76*(1+Croissance!$H19) -> 0 | G76: =+'Bilan initial'!G76*(1+Croissance!$H19) -> 0 | H76: =+'Bilan initial'!H76*(1+Croissance!$H19) -> 0 | I76: 0 | J76: =+'Bilan initial'!J76*(1+Croissance!$H19) -> 0 | K76: =+'Bilan initial'!K76*(1+Croissance!$H19) -> 5.345907899 | L76: =+'Bilan initial'!L76*(1+Croissance!$H19) -> 3922.012184 | M76: =+'Bilan initial'!M76*(1+Croissance!$H19) -> 0 | N76: =+'Bilan initial'!N76*(1+Croissance!$H19) -> 0
A77: Transport - route | B77: 197334.8934 | C77: =+'Bilan initial'!C77*(1+Croissance!$H21) -> 26426.99464 | D77: =+'Bilan initial'!D77*(1+Croissance!$H21) -> 18174.7761 | E77: =+'Bilan initial'!E77*(1+Croissance!$H21) -> 0 | F77: =+'Bilan initial'!F77*(1+Croissance!$H21) -> 152189.9776 | G77: =+'Bilan initial'!G77*(1+Croissance!$H21) -> 0 | H77: =+'Bilan initial'!H77*(1+Croissance!$H21) -> 0 | I77: 196791.7484 | J77: =+'Bilan initial'!J77*(1+Croissance!$H21) -> 0 | K77: =+'Bilan initial'!K77*(1+Croissance!$H21) -> 0 | L77: =+'Bilan initial'!L77*(1+Croissance!$H21) -> 543.1450046 | M77: =+'Bilan initial'!M77*(1+Croissance!$H21) -> 0 | N77: =+'Bilan initial'!N77*(1+Croissance!$H21) -> 0
A78: Transport - rail | B78: 1250.648099 | C78: =+'Bilan initial'!C78*(1+Croissance!$H22) -> 0 | D78: =+'Bilan initial'!D78*(1+Croissance!$H22) -> 0 | E78: =+'Bilan initial'!E78*(1+Croissance!$H22) -> 0 | F78: =+'Bilan initial'!F78*(1+Croissance!$H22) -> 1250.648099 | G78: =+'Bilan initial'!G78*(1+Croissance!$H22) -> 0 | H78: =+'Bilan initial'!H78*(1+Croissance!$H22) -> 0 | I78: 1250.648099 | J78: =+'Bilan initial'!J78*(1+Croissance!$H22) -> 0 | K78: =+'Bilan initial'!K78*(1+Croissance!$H22) -> 0 | L78: =+'Bilan initial'!L78*(1+Croissance!$H22) -> 0 | M78: =+'Bilan initial'!M78*(1+Croissance!$H22) -> 0 | N78: =+'Bilan initial'!N78*(1+Croissance!$H22) -> 0
A79: Transport - air domestique | B79: 12138.86775 | C79: =+'Bilan initial'!C79*(1+Croissance!$H23) -> 0 | D79: =+'Bilan initial'!D79*(1+Croissance!$H23) -> 0 | E79: =+'Bilan initial'!E79*(1+Croissance!$H23) -> 12138.86775 | F79: =+'Bilan initial'!F79*(1+Croissance!$H23) -> 0 | G79: =+'Bilan initial'!G79*(1+Croissance!$H23) -> 0 | H79: =+'Bilan initial'!H79*(1+Croissance!$H23) -> 0 | I79: 12138.86775 | J79: =+'Bilan initial'!J79*(1+Croissance!$H23) -> 0 | K79: =+'Bilan initial'!K79*(1+Croissance!$H23) -> 0 | L79: =+'Bilan initial'!L79*(1+Croissance!$H23) -> 0 | M79: =+'Bilan initial'!M79*(1+Croissance!$H23) -> 0 | N79: =+'Bilan initial'!N79*(1+Croissance!$H23) -> 0
A80: Transport - navigation | B80: 1642.528265 | C80: =+'Bilan initial'!C80*(1+Croissance!$H24) -> 0 | D80: =+'Bilan initial'!D80*(1+Croissance!$H24) -> 0 | E80: =+'Bilan initial'!E80*(1+Croissance!$H24) -> 0 | F80: =+'Bilan initial'!F80*(1+Croissance!$H24) -> 0 | G80: =+'Bilan initial'!G80*(1+Croissance!$H24) -> 1642.528265 | H80: =+'Bilan initial'!H80*(1+Croissance!$H24) -> 0 | I80: 1642.528265 | J80: =+'Bilan initial'!J80*(1+Croissance!$H24) -> 0 | K80: =+'Bilan initial'!K80*(1+Croissance!$H24) -> 0 | L80: =+'Bilan initial'!L80*(1+Croissance!$H24) -> 0 | M80: =+'Bilan initial'!M80*(1+Croissance!$H24) -> 0 | N80: =+'Bilan initial'!N80*(1+Croissance!$H24) -> 0
A81: Ménages | B81: 96146.20309 | C81: =+'Bilan initial'!C81*(1+Croissance!$H26) -> 2109.681879 | D81: =+'Bilan initial'!D81*(1+Croissance!$H26) -> 0 | E81: =+'Bilan initial'!E81*(1+Croissance!$H26) -> 0 | F81: =+'Bilan initial'!F81*(1+Croissance!$H26) -> 0 | G81: =+'Bilan initial'!G81*(1+Croissance!$H26) -> 0 | H81: =+'Bilan initial'!H81*(1+Croissance!$H27) -> 538.4413508 | I81: 2648.12323 | J81: =+'Bilan initial'!J81*(1+Croissance!$H26) -> 11591.46262 | K81: =+'Bilan initial'!K81*(1+Croissance!$H26) -> 12434.58177 | L81: =+'Bilan initial'!L81*(1+Croissance!$H26) -> 69472.03547 | M81: =+'Bilan initial'!M81*(1+Croissance!$H26) -> 0 | N81: =+'Bilan initial'!N81*(1+Croissance!$H26) -> 0
A82: Services | B82: 69566.04163 | C82: =+'Bilan initial'!C82*(1+Croissance!$H29) -> 4916.85042 | D82: =+'Bilan initial'!D82*(1+Croissance!$H29) -> 0 | E82: =+'Bilan initial'!E82*(1+Croissance!$H29) -> 0 | F82: =+'Bilan initial'!F82*(1+Croissance!$H29) -> 0 | G82: =+'Bilan initial'!G82*(1+Croissance!$H29) -> 0 | H82: =+'Bilan initial'!H82*(1+Croissance!$H29) -> 0 | I82: 4916.85042 | J82: =+'Bilan initial'!J82*(1+Croissance!$H29) -> 39935.49424 | K82: =+'Bilan initial'!K82*(1+Croissance!$H29) -> 4330.185398 | L82: =+'Bilan initial'!L82*(1+Croissance!$H29) -> 19963.73674 | M82: =+'Bilan initial'!M82*(1+Croissance!$H29) -> 419.774835 | N82: =+'Bilan initial'!N82*(1+Croissance!$H29) -> 0
A83: Agriculture & Pêches | B83: 26010.43107 | C83: =+'Bilan initial'!C83*(1+Croissance!$H31) -> 0 | D83: =+'Bilan initial'!D83*(1+Croissance!$H31) -> 0 | E83: =+'Bilan initial'!E83*(1+Croissance!$H31) -> 0 | F83: =+'Bilan initial'!F83*(1+Croissance!$H31) -> 25170.45101 | G83: =+'Bilan initial'!G83*(1+Croissance!$H31) -> 0 | H83: =+'Bilan initial'!H83*(1+Croissance!$H31) -> 0 | I83: 25170.45101 | J83: =+'Bilan initial'!J83*(1+Croissance!$H31) -> 0 | K83: =+'Bilan initial'!K83*(1+Croissance!$H31) -> 0 | L83: =+'Bilan initial'!L83*(1+Croissance!$H31) -> 839.9800652 | M83: =+'Bilan initial'!M83*(1+Croissance!$H31) -> 0 | N83: =+'Bilan initial'!N83*(1+Croissance!$H31) -> 0
A84: Utilisations non énergétiques | B84: 0 | C84: =+'Bilan initial'!C84*(1+Croissance!$H33) -> 0 | D84: =+'Bilan initial'!D84*(1+Croissance!$H33) -> 0 | E84: =+'Bilan initial'!E84*(1+Croissance!$H33) -> 0 | F84: =+'Bilan initial'!F84*(1+Croissance!$H33) -> 0 | G84: =+'Bilan initial'!G84*(1+Croissance!$H33) -> 0 | H84: =+'Bilan initial'!H84*(1+Croissance!$H33) -> 0 | I84: 0 | J84: =+'Bilan initial'!J84*(1+Croissance!$H33) -> 0 | K84: =+'Bilan initial'!K84*(1+Croissance!$H33) -> 0 | L84: =+'Bilan initial'!L84*(1+Croissance!$H33) -> 0 | M84: =+'Bilan initial'!M84*(1+Croissance!$H33) -> 0 | N84: =+'Bilan initial'!N84*(1+Croissance!$H33) -> 0
A85: CH4 provenant de la combustion d'énergie | B85: =IF(B62=0,0,'Bilan initial'!B85*'Bilan 2035'!B64/'Bilan initial'!B64) -> 14756.75996
A86: N2O provenant de la combustion d'énergie | B86: =IF(B62=0,0,'Bilan initial'!B86*'Bilan 2035'!B64/'Bilan initial'!B64) -> 11298.64549
A87: Total Agriculture | B87: =SUM(B88:B92) -> 97379.54195
A88: Fermentation entérique | B88: =+'Bilan initial'!B88*(1+Croissance!H$34) -> 46250.6381
A89: Gestion du fumier | B89: =+'Bilan initial'!B89*(1+Croissance!H$34) -> 10843.64856
A90: Culture du riz | B90: =+'Bilan initial'!B90*(1+Croissance!H$35) -> 344.0243833
A91: N2O provenant des sols agricoles | B91: =+'Bilan initial'!B91*(1+Croissance!H$36) -> 39352.94921
A92: Brûlage de résidus agricoles | B92: =+'Bilan initial'!B92*(1+Croissance!H$37) -> 588.2816955
A93: Émissions fugitive (CH4) | B93: =IF('Bilan initial'!L62=0,0, 'Bilan initial'!B93*'Bilan 2035'!L62/'Bilan initial'!L62) -> 12045.08504
A94: Foresterie | B94: =+'Bilan initial'!B94*(1+Croissance!H$38) -> -64020
A95: Déchets - solides | B95: =+'Bilan initial'!B95*(1+Croissance!H39) -> 16880
A96: Déchets - liquide | B96: =+'Bilan initial'!B96*(1+Croissance!H40) -> 0
A97: Processus industriels | B97: =+'Bilan initial'!B97*(1+Croissance!H41) -> 60720
A98: Émission total GES (excl. Foresterie) | B98: =B62+B85+B86+B87+B93+B95+B96+B97 -> 1347652.557
A99: Émission total GES (incl. Foresterie) | B99: =+B85+B86+B87+B93+B94+B95+B96+B97+B62 -> 1283632.557

Sheet Bilan 2050
A1: Bilan combustibles fossiles | B1: =+Hypothèses!$B$2 -> Pays X | D1: 2050
A3: Unité (TJ) | B3: GPL | C3: Essence | D3: Essence pour carburéacteurs | E3: Diesel | F3: Fiouls lourds | G3: Kérosène et autres | H3: Total produits pétroliers | I3: Charbon | J3: Lignite | K3: Gaz | L3: Coke | M3: Coke de pétrole | N3: Énergie totale (fossile)
A4: Unité | B4: TJ | C4: TJ | D4: TJ | E4: TJ | F4: TJ | G4: TJ | H4: TJ | I4: TJ | J4: TJ | K4: TJ | L4: TJ | M4: TJ | N4: TJ
A5: Total | B5: =+B6+B7 -> 741541.0137 | C5: 356535.8594 | D5: 230801.9745 | E5: 3423034.606 | F5: 73811.00373 | G5: 10185.40459 | H5: 4835909.862 | I5: 3105514.36 | J5: 4050733.249 | K5: 6811769.416 | L5: 542253.5954 | M5: 497799.6315 | N5: =SUM(H5:M5) -> 19843980.11
A6: Centrales fossiles | B6: =C35/C32 -> 0 | C6: 0 | D6: 0 | E6: 40469.0396 | F6: 35801.49112 | G6: 0 | H6: =SUM(B6:G6) -> 76270.53073 | I6: =J35/J32 -> 1765867.787 | J6: =K35/K32 -> 3536617.741 | K6: =L35/L32 -> 3000772.062 | L6: =M35/M32 -> 0 | M6: =N35/N32 -> 0 | N6: =SUM(H6:M6) -> 8379528.121
A7: CONSOMMATION FINALE | B7: =SUM(B8:B27) -> 741541.0137 | C7: 356535.8594 | D7: 230801.9745 | E7: 3382565.566 | F7: 38009.5126 | G7: 10185.40459 | H7: 4759639.331 | I7: 1339646.572 | J7: 514115.5077 | K7: 3810997.354 | L7: 542253.5954 | M7: 497799.6315 | N7: 11464451.99
A8: Industrie - acier | B8: =+'Bilan initial'!B8*(1+Croissance!$I8) -> 0 | C8: =+'Bilan initial'!C8*(1+Croissance!$I8) -> 0 | D8: =+'Bilan initial'!D8*(1+Croissance!$I8) -> 0 | E8: =+'Bilan initial'!E8*(1+Croissance!$I8) -> 2890.645686 | F8: =+'Bilan initial'!F8*(1+Croissance!$I8) -> 0 | G8: =+'Bilan initial'!G8*(1+Croissance!$I8) -> 0 | H8: =SUM(B8:G8) -> 2890.645686 | I8: =+'Bilan initial'!I8*(1+Croissance!$I8) -> 1867.945516 | J8: =+'Bilan initial'!J8*(1+Croissance!$I8) -> 1867.160665 | K8: =+'Bilan initial'!K8*(1+Croissance!$I8) -> 35200.56991 | L8: =+'Bilan initial'!L8*(1+Croissance!$I8) -> 0 | M8: =+'Bilan initial'!M8*(1+Croissance!$I8) -> 0 | N8: 41826.32178
A9: Industrie - chimique | B9: =+'Bilan initial'!B9*(1+Croissance!$I9) -> 1670.555475 | C9: =+'Bilan initial'!C9*(1+Croissance!$I9) -> 0 | D9: =+'Bilan initial'!D9*(1+Croissance!$I9) -> 0 | E9: =+'Bilan initial'!E9*(1+Croissance!$I9) -> 680.1519261 | F9: =+'Bilan initial'!F9*(1+Croissance!$I9) -> 473.1474598 | G9: =+'Bilan initial'!G9*(1+Croissance!$I9) -> 0 | H9: =SUM(B9:G9) -> 2823.854861 | I9: =+'Bilan initial'!I9*(1+Croissance!$I9) -> 43292.38431 | J9: =+'Bilan initial'!J9*(1+Croissance!$I9) -> 23339.50831 | K9: =+'Bilan initial'!K9*(1+Croissance!$I9) -> 396389.0264 | L9: =+'Bilan initial'!L9*(1+Croissance!$I9) -> 0 | M9: =+'Bilan initial'!M9*(1+Croissance!$I9) -> 0 | N9: 465844.7739
A10: Industrie - minerai non metallique | B10: =+'Bilan initial'!B10*(1+Croissance!$I10) -> 556.851825 | C10: =+'Bilan initial'!C10*(1+Croissance!$I10) -> 0 | D10: =+'Bilan initial'!D10*(1+Croissance!$I10) -> 0 | E10: =+'Bilan initial'!E10*(1+Croissance!$I10) -> 4080.911557 | F10: =+'Bilan initial'!F10*(1+Croissance!$I10) -> 2838.884759 | G10: =+'Bilan initial'!G10*(1+Croissance!$I10) -> 0 | H10: 7476.64814 | I10: =+'Bilan initial'!I10*(1+Croissance!$I10) -> 363370.3424 | J10: =+'Bilan initial'!J10*(1+Croissance!$I10) -> 100970.3036 | K10: =+'Bilan initial'!K10*(1+Croissance!$I10) -> 288338.5814 | L10: =+'Bilan initial'!L10*(1+Croissance!$I10) -> 0 | M10: =+'Bilan initial'!M10*(1+Croissance!$I10) -> 496948.0681 | N10: 1257103.944
A11: Industrie - transformation des aliments et boissons | B11: =+'Bilan initial'!B11*(1+Croissance!$I11) -> 3712.3455 | C11: =+'Bilan initial'!C11*(1+Croissance!$I11) -> 0 | D11: =+'Bilan initial'!D11*(1+Croissance!$I11) -> 0 | E11: =+'Bilan initial'!E11*(1+Croissance!$I11) -> 1020.227889 | F11: =+'Bilan initial'!F11*(1+Croissance!$I11) -> 5835.485337 | G11: =+'Bilan initial'!G11*(1+Croissance!$I11) -> 0 | H11: 10568.05873 | I11: =+'Bilan initial'!I11*(1+Croissance!$I11) -> 25052.44574 | J11: =+'Bilan initial'!J11*(1+Croissance!$I11) -> 56517.51705 | K11: =+'Bilan initial'!K11*(1+Croissance!$I11) -> 150291.1289 | L11: =+'Bilan initial'!L11*(1+Croissance!$I11) -> 5384.078252 | M11: =+'Bilan initial'!M11*(1+Croissance!$I11) -> 851.563397 | N11: 248664.7921
A12: Industrie - construction | B12: =+'Bilan initial'!B12*(1+Croissance!$I12) -> 0 | C12: =+'Bilan initial'!C12*(1+Croissance!$I12) -> 0 | D12: =+'Bilan initial'!D12*(1+Croissance!$I12) -> 0 | E12: =+'Bilan initial'!E12*(1+Croissance!$I12) -> 24995.58328 | F12: =+'Bilan initial'!F12*(1+Croissance!$I12) -> 0 | G12: =+'Bilan initial'!G12*(1+Croissance!$I12) -> 0 | H12: 24995.58328 | I12: =+'Bilan initial'!I12*(1+Croissance!$I12) -> 109.879148 | J12: =+'Bilan initial'!J12*(1+Croissance!$I12) -> 215.4416152 | K12: =+'Bilan initial'!K12*(1+Croissance!$I12) -> 55096.54421 | L12: =+'Bilan initial'!L12*(1+Croissance!$I12) -> 0 | M12: =+'Bilan initial'!M12*(1+Croissance!$I12) -> 0 | N12: 80417.44826
A13: Industrie - exploitation minière | B13: =+'Bilan initial'!B13*(1+Croissance!$I13) -> 0 | C13: =+'Bilan initial'!C13*(1+Croissance!$I13) -> 0 | D13: =+'Bilan initial'!D13*(1+Croissance!$I13) -> 0 | E13: =+'Bilan initial'!E13*(1+Croissance!$I13) -> 63934.28105 | F13: =+'Bilan initial'!F13*(1+Croissance!$I13) -> 0 | G13: =+'Bilan initial'!G13*(1+Croissance!$I13) -> 0 | H13: 63934.28105 | I13: =+'Bilan initial'!I13*(1+Croissance!$I13) -> 2087.703812 | J13: =+'Bilan initial'!J13*(1+Croissance!$I13) -> 6750.503942 | K13: =+'Bilan initial'!K13*(1+Croissance!$I13) -> 19895.9743 | L13: =+'Bilan initial'!L13*(1+Croissance!$I13) -> 0 | M13: =+'Bilan initial'!M13*(1+Croissance!$I13) -> 0 | N13: 92668.4631
A14: Industrie - machinerie | B14: =+'Bilan initial'!B14*(1+Croissance!$I14) -> 928.086375 | C14: =+'Bilan initial'!C14*(1+Croissance!$I14) -> 0 | D14: =+'Bilan initial'!D14*(1+Croissance!$I14) -> 0 | E14: =+'Bilan initial'!E14*(1+Croissance!$I14) -> 510.1139446 | F14: =+'Bilan initial'!F14*(1+Croissance!$I14) -> 0 | G14: =+'Bilan initial'!G14*(1+Croissance!$I14) -> 0 | H14: 1438.20032 | I14: =+'Bilan initial'!I14*(1+Croissance!$I14) -> 329.637444 | J14: =+'Bilan initial'!J14*(1+Croissance!$I14) -> 1220.835819 | K14: =+'Bilan initial'!K14*(1+Croissance!$I14) -> 10560.17097 | L14: =+'Bilan initial'!L14*(1+Croissance!$I14) -> 0 | M14: =+'Bilan initial'!M14*(1+Croissance!$I14) -> 0 | N14: 13548.84456
A15: Industrie - métaux non-ferreux | B15: =+'Bilan initial'!B15*(1+Croissance!$I15) -> 6867.839175 | C15: =+'Bilan initial'!C15*(1+Croissance!$I15) -> 0 | D15: =+'Bilan initial'!D15*(1+Croissance!$I15) -> 0 | E15: =+'Bilan initial'!E15*(1+Croissance!$I15) -> 2210.49376 | F15: =+'Bilan initial'!F15*(1+Croissance!$I15) -> 0 | G15: =+'Bilan initial'!G15*(1+Croissance!$I15) -> 0 | H15: 9078.332935 | I15: =+'Bilan initial'!I15*(1+Croissance!$I15) -> 119328.7547 | J15: =+'Bilan initial'!J15*(1+Croissance!$I15) -> 4883.343277 | K15: =+'Bilan initial'!K15*(1+Croissance!$I15) -> 314815.5318 | L15: =+'Bilan initial'!L15*(1+Croissance!$I15) -> 531595.318 | M15: =+'Bilan initial'!M15*(1+Croissance!$I15) -> 0 | N15: 979701.2807
A16: Industrie - pâtes et papiers | B16: =+'Bilan initial'!B16*(1+Croissance!$I16) -> 185.617275 | C16: =+'Bilan initial'!C16*(1+Croissance!$I16) -> 0 | D16: =+'Bilan initial'!D16*(1+Croissance!$I16) -> 0 | E16: =+'Bilan initial'!E16*(1+Croissance!$I16) -> 1700.379815 | F16: =+'Bilan initial'!F16*(1+Croissance!$I16) -> 0 | G16: =+'Bilan initial'!G16*(1+Croissance!$I16) -> 0 | H16: 1885.99709 | I16: =+'Bilan initial'!I16*(1+Croissance!$I16) -> 4724.803364 | J16: =+'Bilan initial'!J16*(1+Croissance!$I16) -> 14506.40209 | K16: =+'Bilan initial'!K16*(1+Croissance!$I16) -> 33976.20226 | L16: =+'Bilan initial'!L16*(1+Croissance!$I16) -> 0 | M16: =+'Bilan initial'!M16*(1+Croissance!$I16) -> 0 | N16: 55093.40481
A17: Industrie - transport d'équipment | B17: =+'Bilan initial'!B17*(1+Croissance!$I17) -> 4269.197325 | C17: =+'Bilan initial'!C17*(1+Croissance!$I17) -> 0 | D17: =+'Bilan initial'!D17*(1+Croissance!$I17) -> 0 | E17: =+'Bilan initial'!E17*(1+Croissance!$I17) -> 1190.265871 | F17: =+'Bilan initial'!F17*(1+Croissance!$I17) -> 0 | G17: =+'Bilan initial'!G17*(1+Croissance!$I17) -> 0 | H17: 5459.463196 | I17: =+'Bilan initial'!I17*(1+Croissance!$I17) -> 0 | J17: =+'Bilan initial'!J17*(1+Croissance!$I17) -> 574.5109738 | K17: =+'Bilan initial'!K17*(1+Croissance!$I17) -> 27242.18019 | L17: =+'Bilan initial'!L17*(1+Croissance!$I17) -> 0 | M17: =+'Bilan initial'!M17*(1+Croissance!$I17) -> 0 | N17: 33276.15436
A18: Industrie - cuir et textile | B18: =+'Bilan initial'!B18*(1+Croissance!$I18) -> 2227.4073 | C18: =+'Bilan initial'!C18*(1+Croissance!$I18) -> 0 | D18: =+'Bilan initial'!D18*(1+Croissance!$I18) -> 0 | E18: =+'Bilan initial'!E18*(1+Croissance!$I18) -> 1020.227889 | F18: =+'Bilan initial'!F18*(1+Croissance!$I18) -> 0 | G18: =+'Bilan initial'!G18*(1+Croissance!$I18) -> 0 | H18: 3247.635189 | I18: =+'Bilan initial'!I18*(1+Croissance!$I18) -> 39007.09754 | J18: =+'Bilan initial'!J18*(1+Croissance!$I18) -> 77989.86469 | K18: =+'Bilan initial'!K18*(1+Croissance!$I18) -> 183349.0555 | L18: =+'Bilan initial'!L18*(1+Croissance!$I18) -> 0 | M18: =+'Bilan initial'!M18*(1+Croissance!$I18) -> 0 | N18: 303593.6529
A19: Industrie - divers | B19: =+'Bilan initial'!B19*(1+Croissance!$I19) -> 0 | C19: =+'Bilan initial'!C19*(1+Croissance!$I19) -> 0 | D19: =+'Bilan initial'!D19*(1+Croissance!$I19) -> 0 | E19: =+'Bilan initial'!E19*(1+Croissance!$I19) -> 0 | F19: =+'Bilan initial'!F19*(1+Croissance!$I19) -> 0 | G19: =+'Bilan initial'!G19*(1+Croissance!$I19) -> 0 | H19: 0 | I19: =+'Bilan initial'!I19*(1+Croissance!$I19) -> 0 | J19: =+'Bilan initial'!J19*(1+Croissance!$I19) -> 71.81387173 | K19: =+'Bilan initial'!K19*(1+Croissance!$I19) -> 95041.53876 | L19: =+'Bilan initial'!L19*(1+Croissance!$I19) -> 0 | M19: =+'Bilan initial'!M19*(1+Croissance!$I19) -> 0 | N19: 95113.35263
A20: Transport - route | B20: =+'Bilan initial'!B20*(1+Croissance!$I21) -> 569659.417 | C20: =+'Bilan initial'!C20*(1+Croissance!$I21) -> 356535.8594 | D20: =+'Bilan initial'!D20*(1+Croissance!$I21) -> 0 | E20: =+'Bilan initial'!E20*(1+Croissance!$I21) -> 2793383.96 | F20: =+'Bilan initial'!F20*(1+Croissance!$I21) -> 0 | G20: =+'Bilan initial'!G20*(1+Croissance!$I21) -> 0 | H20: 3719579.237 | I20: =+'Bilan initial'!I20*(1+Croissance!$I21) -> 0 | J20: =+'Bilan initial'!J20*(1+Croissance!$I21) -> 0 | K20: =+'Bilan initial'!K20*(1+Croissance!$I21) -> 13161.95223 | L20: =+'Bilan initial'!L20*(1+Croissance!$I21) -> 0 | M20: =+'Bilan initial'!M20*(1+Croissance!$I21) -> 0 | N20: 3732741.189
A21: Transport - rail | B21: =+'Bilan initial'!B21*(1+Croissance!$I22) -> 0 | C21: =+'Bilan initial'!C21*(1+Croissance!$I22) -> 0 | D21: =+'Bilan initial'!D21*(1+Croissance!$I22) -> 0 | E21: =+'Bilan initial'!E21*(1+Croissance!$I22) -> 22955.12751 | F21: =+'Bilan initial'!F21*(1+Croissance!$I22) -> 0 | G21: =+'Bilan initial'!G21*(1+Croissance!$I22) -> 0 | H21: 22955.12751 | I21: =+'Bilan initial'!I21*(1+Croissance!$I22) -> 0 | J21: =+'Bilan initial'!J21*(1+Croissance!$I22) -> 0 | K21: =+'Bilan initial'!K21*(1+Croissance!$I22) -> 0 | L21: =+'Bilan initial'!L21*(1+Croissance!$I22) -> 0 | M21: =+'Bilan initial'!M21*(1+Croissance!$I22) -> 0 | N21: 22955.12751
A22: Transport - air domestique | B22: =+'Bilan initial'!B22*(1+Croissance!$I23) -> 0 | C22: =+'Bilan initial'!C22*(1+Croissance!$I23) -> 0 | D22: =+'Bilan initial'!D22*(1+Croissance!$I23) -> 230801.9745 | E22: =+'Bilan initial'!E22*(1+Croissance!$I23) -> 0 | F22: =+'Bilan initial'!F22*(1+Croissance!$I23) -> 0 | G22: =+'Bilan initial'!G22*(1+Croissance!$I23) -> 0 | H22: 230801.9745 | I22: =+'Bilan initial'!I22*(1+Croissance!$I23) -> 0 | J22: =+'Bilan initial'!J22*(1+Croissance!$I23) -> 0 | K22: =+'Bilan initial'!K22*(1+Croissance!$I23) -> 0 | L22: =+'Bilan initial'!L22*(1+Croissance!$I23) -> 0 | M22: =+'Bilan initial'!M22*(1+Croissance!$I23) -> 0 | N22: 230801.9745
A23: Transport - navigation | B23: =+'Bilan initial'!B23*(1+Croissance!$I24) -> 0 | C23: =+'Bilan initial'!C23*(1+Croissance!$I24) -> 0 | D23: =+'Bilan initial'!D23*(1+Croissance!$I24) -> 0 | E23: =+'Bilan initial'!E23*(1+Croissance!$I24) -> 0 | F23: =+'Bilan initial'!F23*(1+Croissance!$I24) -> 28861.99505 | G23: =+'Bilan initial'!G23*(1+Croissance!$I24) -> 0 | H23: 28861.99505 | I23: =+'Bilan initial'!I23*(1+Croissance!$I24) -> 0 | J23: =+'Bilan initial'!J23*(1+Croissance!$I24) -> 0 | K23: =+'Bilan initial'!K23*(1+Croissance!$I24) -> 0 | L23: =+'Bilan initial'!L23*(1+Croissance!$I24) -> 0 | M23: =+'Bilan initial'!M23*(1+Croissance!$I24) -> 0 | N23: 28861.99505
A24: Ménages | B24: =+'Bilan initial'!B24*(1+Croissance!$I26) -> 45476.23238 | C24: =+'Bilan initial'!C24*(1+Croissance!$I26) -> 0 | D24: =+'Bilan initial'!D24*(1+Croissance!$I26) -> 0 | E24: =+'Bilan initial'!E24*(1+Croissance!$I26) -> 0 | F24: =+'Bilan initial'!F24*(1+Croissance!$I26) -> 0 | G24: =+'Bilan initial'!G24*(1+Croissance!$I27) -> 10185.40459 | H24: 55661.63697 | I24: =+'Bilan initial'!I24*(1+Croissance!$I26) -> 166576.7884 | J24: =+'Bilan initial'!J24*(1+Croissance!$I26) -> 167039.0656 | K24: =+'Bilan initial'!K24*(1+Croissance!$I26) -> 1683505.518 | L24: =+'Bilan initial'!L24*(1+Croissance!$I26) -> 0 | M24: =+'Bilan initial'!M24*(1+Croissance!$I26) -> 0 | N24: 2072783.008
A25: Services | B25: =+'Bilan initial'!B25*(1+Croissance!$I29) -> 105987.464 | C25: =+'Bilan initial'!C25*(1+Croissance!$I29) -> 0 | D25: =+'Bilan initial'!D25*(1+Croissance!$I29) -> 0 | E25: =+'Bilan initial'!E25*(1+Croissance!$I29) -> 0 | F25: =+'Bilan initial'!F25*(1+Croissance!$I29) -> 0 | G25: =+'Bilan initial'!G25*(1+Croissance!$I29) -> 0 | H25: 105987.464 | I25: =+'Bilan initial'!I25*(1+Croissance!$I29) -> 573898.79 | J25: =+'Bilan initial'!J25*(1+Croissance!$I29) -> 58169.2361 | K25: =+'Bilan initial'!K25*(1+Croissance!$I29) -> 483778.2673 | L25: =+'Bilan initial'!L25*(1+Croissance!$I29) -> 5274.199104 | M25: =+'Bilan initial'!M25*(1+Croissance!$I29) -> 0 | N25: 1227107.957
A26: Agriculture & Pêches | B26: =+'Bilan initial'!B26*(1+Croissance!$I31) -> 0 | C26: =+'Bilan initial'!C26*(1+Croissance!$I31) -> 0 | D26: =+'Bilan initial'!D26*(1+Croissance!$I31) -> 0 | E26: =+'Bilan initial'!E26*(1+Croissance!$I31) -> 461993.1958 | F26: =+'Bilan initial'!F26*(1+Croissance!$I31) -> 0 | G26: =+'Bilan initial'!G26*(1+Croissance!$I31) -> 0 | H26: 461993.1958 | I26: =+'Bilan initial'!I26*(1+Croissance!$I31) -> 0 | J26: =+'Bilan initial'!J26*(1+Croissance!$I31) -> 0 | K26: =+'Bilan initial'!K26*(1+Croissance!$I31) -> 20355.11217 | L26: =+'Bilan initial'!L26*(1+Croissance!$I31) -> 0 | M26: =+'Bilan initial'!M26*(1+Croissance!$I31) -> 0 | N26: 482348.308
A27: Utilisations non énergétiques | B27: =+'Bilan initial'!B27*(1+Croissance!$I33) -> 0 | C27: =+'Bilan initial'!C27*(1+Croissance!$I33) -> 0 | D27: =+'Bilan initial'!D27*(1+Croissance!$I33) -> 0 | E27: =+'Bilan initial'!E27*(1+Croissance!$I33) -> 0 | F27: =+'Bilan initial'!F27*(1+Croissance!$I33) -> 0 | G27: =+'Bilan initial'!G27*(1+Croissance!$I33) -> 0 | H27: 0 | I27: =+'Bilan initial'!I27*(1+Croissance!$I33) -> 0 | J27: =+'Bilan initial'!J27*(1+Croissance!$I33) -> 0 | K27: =+'Bilan initial'!K27*(1+Croissance!$I33) -> 0 | L27: =+'Bilan initial'!L27*(1+Croissance!$I33) -> 0 | M27: =+'Bilan initial'!M27*(1+Croissance!$I33) -> 0 | N27: 0
A30: Bilan combustibles fossiles | B30: =+Hypothèses!$B$2 -> Pays X | D30: 2050
A31: =+'Bilan initial'!A31 -> 1 ktoe=41.868 TJ
A32: =+'Bilan initial'!A32 -> ktoe per TJ | C32: =+'Bilan initial'!C32 -> 0.02388458966 | D32: =+'Bilan initial'!D32 -> 0.02388458966 | E32: =+'Bilan initial'!E32 -> 0.02388458966 | F32: =+'Bilan initial'!F32 -> 0.02388458966 | G32: =+'Bilan initial'!G32 -> 0.02388458966 | H32: =+'Bilan initial'!H32 -> 0.02388458966 | J32: =+'Bilan initial'!J32 -> 0.02388458966 | K32: =+'Bilan initial'!K32 -> 0.02388458966 | L32: =+'Bilan initial'!L32 -> 0.02388458966 | M32: 0.02388458966 | N32: 0.02388458966
A33: Unité : ktoe | B33: Total | C33: GPL | D33: Essence | E33: Essence pour carburéacteurs | F33: Diesel | G33: Fiouls lourds | H33: Kérosène et autres | I33: Total produits pétroliers | J33: Charbon | K33: Lignite | L33: Gaz | M33: Coke | N33: Coke de pétrole | O33: Consommation d'électricité Gwh | Q33: Production d'électricité Gwh | R33: Part de la production | S33: Efficacité
A34: Total | B34: =+B35+B36 -> 473965.3223 | C34: =+C35+C36 -> 17711.40283 | D34: 8515.712702 | E34: 5512.610453 | F34: 81757.77697 | G34: 1762.945537 | H34: 243.2742093 | I34: 115503.7227 | J34: 74173.93618 | K34: 96750.10148 | L34: 162696.3174 | M34: 12951.50462 | N34: 11889.73993 | P34: Total | Q34: =IF(R35=1,0,O36/(1-R35)) -> 1027311.17
A35: Centrales fossiles | B35: =SUM(I35:N35) -> 200141.5907 | C35: =IF(Q36=0,0,$I35*IF('Bilan initial'!$I35>0,'Bilan initial'!C35/'Bilan initial'!$I35,0)) -> 0 | D35: =IF(Q36=0,0,$I35*IF('Bilan initial'!$I35>0,'Bilan initial'!D35/'Bilan initial'!$I35,0)) -> 0 | E35: =IF(Q36=0,0,$I35*IF('Bilan initial'!$I35>0,'Bilan initial'!E35/'Bilan initial'!$I35,0)) -> 0 | F35: =IF(Q36=0,0,$I35*IF('Bilan initial'!$I35>0,'Bilan initial'!F35/'Bilan initial'!$I35,0)) -> 966.586405 | G35: =IF(Q36=0,0,$I35*IF('Bilan initial'!$I35>0,'Bilan initial'!G35/'Bilan initial'!$I35,0)) -> 855.1039248 | H35: =IF(Q36=0,0,$I35*IF('Bilan initial'!$I35>0,'Bilan initial'!H35/'Bilan initial'!$I35,0)) -> 0 | I35: =IF(Q36=0,0,Q39/11.63/S39) -> 1821.69033 | J35: =IF(S38>0,Q38/11.63/S38,0) -> 42177.0275 | K35: =IF(S37>0,Q37/11.63/S37,0) -> 84470.66353 | L35: =IF(S40>0,Q40/11.63/S40,0) -> 71672.20937 | M35: =IF(T40>0,R40/11.63/T40,0) -> 0 | N35: =IF(U40>0,S40/11.63/U40,0) -> 0 | P35: Pertes | Q35: =Q34*R35 -> 175543.7117 | R35: =+'Bilan 2025'!R35 -> 0.1708768646
A36: CONSOMMATION FINALE | B36: =SUM(B37:B56) -> 273823.7315 | C36: =SUM(C37:C56) -> 17711.40283 | D36: 8515.712702 | E36: 5512.610453 | F36: 80791.19056 | G36: 907.8416118 | H36: 243.2742093 | I36: =SUM(C36:H36) -> 113682.0324 | J36: =SUM(J37:J56) -> 31996.90867 | K36: 12279.43794 | L36: 91024.108 | M36: 12951.50462 | N36: 11889.73993 | O36: 851767.4582 | P36: Fossile | Q36: =SUM(Q37:Q49) -> 696983.057 | R36: =SUM(R37:R50) -> 0.6784536929
A37: Industrie - acier | B37: =SUM(I37:N37) -> 999.0045328 | C37: =+'Bilan initial'!C37*(1+Croissance!$I8) -> 0 | D37: =+'Bilan initial'!D37*(1+Croissance!$I8) -> 0 | E37: =+'Bilan initial'!E37*(1+Croissance!$I8) -> 0 | F37: =+'Bilan initial'!F37*(1+Croissance!$I8) -> 69.04188607 | G37: =+'Bilan initial'!G37*(1+Croissance!$I8) -> 0 | H37: =+'Bilan initial'!H37*(1+Croissance!$I8) -> 0 | I37: =SUM(C37:H37) -> 69.04188607 | J37: =+'Bilan initial'!J37*(1+Croissance!$I8) -> 44.61511216 | K37: =+'Bilan initial'!K37*(1+Croissance!$I8) -> 44.59636631 | L37: =+'Bilan initial'!L37*(1+Croissance!$I8) -> 840.7511682 | M37: =+'Bilan initial'!M37*(1+Croissance!$I8) -> 0 | N37: =+'Bilan initial'!N37*(1+Croissance!$I8) -> 0 | O37: =+'Bilan initial'!O37*(1+Croissance!I$20) -> 6015.883353 | P37: Lignite | Q37: =Q$34*R37 -> 127204.7351 | R37: =+'Bilan 2025'!R37 -> 0.1238229845 | S37: =+'Bilan 2025'!S37 -> 0.1294844622
A38: Industrie - chimique | B38: =SUM(I38:N38) -> 11126.51127 | C38: =+'Bilan initial'!C38*(1+Croissance!$I9) -> 39.90053203 | D38: =+'Bilan initial'!D38*(1+Croissance!$I9) -> 0 | E38: =+'Bilan initial'!E38*(1+Croissance!$I9) -> 0 | F38: =+'Bilan initial'!F38*(1+Croissance!$I9) -> 16.24514966 | G38: =+'Bilan initial'!G38*(1+Croissance!$I9) -> 11.30093293 | H38: =+'Bilan initial'!H38*(1+Croissance!$I9) -> 0 | I38: =SUM(C38:H38) -> 67.44661462 | J38: =+'Bilan initial'!J38*(1+Croissance!$I9) -> 1034.020835 | K38: =+'Bilan initial'!K38*(1+Croissance!$I9) -> 557.4545789 | L38: =+'Bilan initial'!L38*(1+Croissance!$I9) -> 9467.589242 | M38: =+'Bilan initial'!M38*(1+Croissance!$I9) -> 0 | N38: =+'Bilan initial'!N38*(1+Croissance!$I9) -> 0 | O38: =+'Bilan initial'!O38*(1+Croissance!I$20) -> 59472.08885 | P38: Charbon | Q38: 171690.093 | R38: =+'Bilan 2025'!R38 -> 0.1671256947 | S38: =+'Bilan 2025'!S38 -> 0.3500173338
A39: Industrie - minerai non metallique | B39: 30025.41186 | C39: =+'Bilan initial'!C39*(1+Croissance!$I10) -> 13.30017734 | D39: =+'Bilan initial'!D39*(1+Croissance!$I10) -> 0 | E39: =+'Bilan initial'!E39*(1+Croissance!$I10) -> 0 | F39: =+'Bilan initial'!F39*(1+Croissance!$I10) -> 97.47089798 | G39: =+'Bilan initial'!G39*(1+Croissance!$I10) -> 67.80559756 | H39: =+'Bilan initial'!H39*(1+Croissance!$I10) -> 0 | I39: 178.5766729 | J39: =+'Bilan initial'!J39*(1+Croissance!$I10) -> 8678.951524 | K39: =+'Bilan initial'!K39*(1+Croissance!$I10) -> 2411.634271 | L39: =+'Bilan initial'!L39*(1+Croissance!$I10) -> 6886.8487 | M39: =+'Bilan initial'!M39*(1+Croissance!$I10) -> 0 | N39: =+'Bilan initial'!N39*(1+Croissance!$I10) -> 11869.40069 | O39: =+'Bilan initial'!O39*(1+Croissance!I$20) -> 72767.46576 | P39: Pétrole | Q39: 8727.543755 | R39: =+'Bilan 2025'!R39 -> 0.008495521134 | S39: =+'Bilan 2025'!S39 -> 0.4119436068
A40: Industrie - transformation des aliments et boissons | B40: 5939.256523 | C40: =+'Bilan initial'!C40*(1+Croissance!$I11) -> 88.66784896 | D40: =+'Bilan initial'!D40*(1+Croissance!$I11) -> 0 | E40: =+'Bilan initial'!E40*(1+Croissance!$I11) -> 0 | F40: =+'Bilan initial'!F40*(1+Croissance!$I11) -> 24.36772449 | G40: =+'Bilan initial'!G40*(1+Croissance!$I11) -> 139.3781728 | H40: =+'Bilan initial'!H40*(1+Croissance!$I11) -> 0 | I40: 252.4137462 | J40: =+'Bilan initial'!J40*(1+Croissance!$I11) -> 598.3673866 | K40: =+'Bilan initial'!K40*(1+Croissance!$I11) -> 1349.897703 | L40: =+'Bilan initial'!L40*(1+Croissance!$I11) -> 3589.641944 | M40: =+'Bilan initial'!M40*(1+Croissance!$I11) -> 128.5964998 | N40: =+'Bilan initial'!N40*(1+Croissance!$I11) -> 20.33924231 | O40: =+'Bilan initial'!O40*(1+Croissance!I$20) -> 27862.21253 | P40: Gaz naturel | Q40: 389360.6852 | R40: =+'Bilan 2025'!R40 -> 0.3790094925 | S40: =+'Bilan 2025'!S40 -> 0.4671126089
A41: Industrie - construction | B41: 1920.737753 | C41: =+'Bilan initial'!C41*(1+Croissance!$I12) -> 0 | D41: =+'Bilan initial'!D41*(1+Croissance!$I12) -> 0 | E41: =+'Bilan initial'!E41*(1+Croissance!$I12) -> 0 | F41: =+'Bilan initial'!F41*(1+Croissance!$I12) -> 597.0092501 | G41: =+'Bilan initial'!G41*(1+Croissance!$I12) -> 0 | H41: =+'Bilan initial'!H41*(1+Croissance!$I12) -> 0 | I41: 597.0092501 | J41: =+'Bilan initial'!J41*(1+Croissance!$I12) -> 2.624418362 | K41: =+'Bilan initial'!K41*(1+Croissance!$I12) -> 5.145734575 | L41: =+'Bilan initial'!L41*(1+Croissance!$I12) -> 1315.95835 | M41: =+'Bilan initial'!M41*(1+Croissance!$I12) -> 0 | N41: =+'Bilan initial'!N41*(1+Croissance!$I12) -> 0 | O41: =+'Bilan initial'!O41*(1+Croissance!I$20) -> 11246.91565 | P41: Nucléaire | Q41: 0 | R41: =+'Bilan 2025'!R41 -> 0
A42: Industrie - exploitation minière | B42: 2213.348216 | C42: =+'Bilan initial'!C42*(1+Croissance!$I13) -> 0 | D42: =+'Bilan initial'!D42*(1+Croissance!$I13) -> 0 | E42: =+'Bilan initial'!E42*(1+Croissance!$I13) -> 0 | F42: =+'Bilan initial'!F42*(1+Croissance!$I13) -> 1527.044068 | G42: =+'Bilan initial'!G42*(1+Croissance!$I13) -> 0 | H42: =+'Bilan initial'!H42*(1+Croissance!$I13) -> 0 | I42: 1527.044068 | J42: =+'Bilan initial'!J42*(1+Croissance!$I13) -> 49.86394888 | K42: =+'Bilan initial'!K42*(1+Croissance!$I13) -> 161.2330167 | L42: =+'Bilan initial'!L42*(1+Croissance!$I13) -> 475.207182 | M42: =+'Bilan initial'!M42*(1+Croissance!$I13) -> 0 | N42: =+'Bilan initial'!N42*(1+Croissance!$I13) -> 0 | O42: =+'Bilan initial'!O42*(1+Croissance!I$20) -> 8652.982905 | P42: Importation net | Q42: 0 | R42: =+'Bilan 2025'!R42 -> 0
A43: Industrie - machinerie | B43: 323.6085926 | C43: =+'Bilan initial'!C43*(1+Croissance!$I14) -> 22.16696224 | D43: =+'Bilan initial'!D43*(1+Croissance!$I14) -> 0 | E43: =+'Bilan initial'!E43*(1+Croissance!$I14) -> 0 | F43: =+'Bilan initial'!F43*(1+Croissance!$I14) -> 12.18386225 | G43: =+'Bilan initial'!G43*(1+Croissance!$I14) -> 0 | H43: =+'Bilan initial'!H43*(1+Croissance!$I14) -> 0 | I43: 34.35082449 | J43: =+'Bilan initial'!J43*(1+Croissance!$I14) -> 7.873255087 | K43: =+'Bilan initial'!K43*(1+Croissance!$I14) -> 29.15916259 | L43: =+'Bilan initial'!L43*(1+Croissance!$I14) -> 252.2253505 | M43: =+'Bilan initial'!M43*(1+Croissance!$I14) -> 0 | N43: =+'Bilan initial'!N43*(1+Croissance!$I14) -> 0 | O43: =+'Bilan initial'!O43*(1+Croissance!I$20) -> 8452.845885
A44: Industrie - métaux non-ferreux | B44: 23399.76308 | C44: =+'Bilan initial'!C44*(1+Croissance!$I15) -> 164.0355206 | D44: =+'Bilan initial'!D44*(1+Croissance!$I15) -> 0 | E44: =+'Bilan initial'!E44*(1+Croissance!$I15) -> 0 | F44: =+'Bilan initial'!F44*(1+Croissance!$I15) -> 52.7967364 | G44: =+'Bilan initial'!G44*(1+Croissance!$I15) -> 0 | H44: =+'Bilan initial'!H44*(1+Croissance!$I15) -> 0 | I44: 216.832257 | J44: =+'Bilan initial'!J44*(1+Croissance!$I15) -> 2850.118342 | K44: =+'Bilan initial'!K44*(1+Croissance!$I15) -> 116.6366504 | L44: =+'Bilan initial'!L44*(1+Croissance!$I15) -> 7519.239796 | M44: =+'Bilan initial'!M44*(1+Croissance!$I15) -> 12696.93604 | N44: =+'Bilan initial'!N44*(1+Croissance!$I15) -> 0 | O44: =+'Bilan initial'!O44*(1+Croissance!I$20) -> 99138.46128
A45: Industrie - pâtes et papiers | B45: 1315.883367 | C45: =+'Bilan initial'!C45*(1+Croissance!$I16) -> 4.433392448 | D45: =+'Bilan initial'!D45*(1+Croissance!$I16) -> 0 | E45: =+'Bilan initial'!E45*(1+Croissance!$I16) -> 0 | F45: =+'Bilan initial'!F45*(1+Croissance!$I16) -> 40.61287416 | G45: =+'Bilan initial'!G45*(1+Croissance!$I16) -> 0 | H45: =+'Bilan initial'!H45*(1+Croissance!$I16) -> 0 | I45: 45.04626661 | J45: =+'Bilan initial'!J45*(1+Croissance!$I16) -> 112.8499896 | K45: =+'Bilan initial'!K45*(1+Croissance!$I16) -> 346.4794614 | L45: =+'Bilan initial'!L45*(1+Croissance!$I16) -> 811.5076493 | M45: =+'Bilan initial'!M45*(1+Croissance!$I16) -> 0 | N45: =+'Bilan initial'!N45*(1+Croissance!$I16) -> 0 | O45: =+'Bilan initial'!O45*(1+Croissance!I$20) -> 15767.65774
A46: Industrie - transport d'équipment | B46: 794.7872925 | C46: =+'Bilan initial'!C46*(1+Croissance!$I17) -> 101.9680263 | D46: =+'Bilan initial'!D46*(1+Croissance!$I17) -> 0 | E46: =+'Bilan initial'!E46*(1+Croissance!$I17) -> 0 | F46: =+'Bilan initial'!F46*(1+Croissance!$I17) -> 28.42901191 | G46: =+'Bilan initial'!G46*(1+Croissance!$I17) -> 0 | H46: =+'Bilan initial'!H46*(1+Croissance!$I17) -> 0 | I46: 130.3970382 | J46: =+'Bilan initial'!J46*(1+Croissance!$I17) -> 0 | K46: =+'Bilan initial'!K46*(1+Croissance!$I17) -> 13.72195887 | L46: =+'Bilan initial'!L46*(1+Croissance!$I17) -> 650.6682954 | M46: =+'Bilan initial'!M46*(1+Croissance!$I17) -> 0 | N46: =+'Bilan initial'!N46*(1+Croissance!$I17) -> 0 | O46: =+'Bilan initial'!O46*(1+Croissance!I$20) -> 10422.82204
A47: Industrie - cuir et textile | B47: 7251.209823 | C47: =+'Bilan initial'!C47*(1+Croissance!$I18) -> 53.20070937 | D47: =+'Bilan initial'!D47*(1+Croissance!$I18) -> 0 | E47: =+'Bilan initial'!E47*(1+Croissance!$I18) -> 0 | F47: =+'Bilan initial'!F47*(1+Croissance!$I18) -> 24.36772449 | G47: =+'Bilan initial'!G47*(1+Croissance!$I18) -> 0 | H47: =+'Bilan initial'!H47*(1+Croissance!$I18) -> 0 | I47: 77.56843387 | J47: =+'Bilan initial'!J47*(1+Croissance!$I18) -> 931.6685186 | K47: =+'Bilan initial'!K47*(1+Croissance!$I18) -> 1862.755916 | L47: =+'Bilan initial'!L47*(1+Croissance!$I18) -> 4379.216955 | M47: =+'Bilan initial'!M47*(1+Croissance!$I18) -> 0 | N47: =+'Bilan initial'!N47*(1+Croissance!$I18) -> 0 | O47: =+'Bilan initial'!O47*(1+Croissance!I$20) -> 68168.23857
A48: Industrie - divers | B48: 2271.743399 | C48: =+'Bilan initial'!C48*(1+Croissance!$I19) -> 0 | D48: =+'Bilan initial'!D48*(1+Croissance!$I19) -> 0 | E48: =+'Bilan initial'!E48*(1+Croissance!$I19) -> 0 | F48: =+'Bilan initial'!F48*(1+Croissance!$I19) -> 0 | G48: =+'Bilan initial'!G48*(1+Croissance!$I19) -> 0 | H48: =+'Bilan initial'!H48*(1+Croissance!$I19) -> 0 | I48: 0 | J48: =+'Bilan initial'!J48*(1+Croissance!$I19) -> 0 | K48: =+'Bilan initial'!K48*(1+Croissance!$I19) -> 1.715244858 | L48: =+'Bilan initial'!L48*(1+Croissance!$I19) -> 2270.028154 | M48: =+'Bilan initial'!M48*(1+Croissance!$I19) -> 0 | N48: =+'Bilan initial'!N48*(1+Croissance!$I19) -> 0 | O48: =+'Bilan initial'!O48*(1+Croissance!I$20) -> 18322.34793
A49: Transport - route | B49: 89154.99162 | C49: =+'Bilan initial'!C49*(1+Croissance!$I21) -> 13606.08142 | D49: =+'Bilan initial'!D49*(1+Croissance!$I21) -> 8515.712702 | E49: =+'Bilan initial'!E49*(1+Croissance!$I21) -> 0 | F49: =+'Bilan initial'!F49*(1+Croissance!$I21) -> 66718.82967 | G49: =+'Bilan initial'!G49*(1+Croissance!$I21) -> 0 | H49: =+'Bilan initial'!H49*(1+Croissance!$I21) -> 0 | I49: 88840.62379 | J49: =+'Bilan initial'!J49*(1+Croissance!$I21) -> 0 | K49: =+'Bilan initial'!K49*(1+Croissance!$I21) -> 0 | L49: =+'Bilan initial'!L49*(1+Croissance!$I21) -> 314.3678281 | M49: =+'Bilan initial'!M49*(1+Croissance!$I21) -> 0 | N49: =+'Bilan initial'!N49*(1+Croissance!$I21) -> 0 | O49: =+'Bilan initial'!O49*(1+Croissance!I$25) -> 0
A50: Transport - rail | B50: 548.2738011 | C50: =+'Bilan initial'!C50*(1+Croissance!$I22) -> 0 | D50: =+'Bilan initial'!D50*(1+Croissance!$I22) -> 0 | E50: =+'Bilan initial'!E50*(1+Croissance!$I22) -> 0 | F50: =+'Bilan initial'!F50*(1+Croissance!$I22) -> 548.2738011 | G50: =+'Bilan initial'!G50*(1+Croissance!$I22) -> 0 | H50: =+'Bilan initial'!H50*(1+Croissance!$I22) -> 0 | I50: 548.2738011 | J50: =+'Bilan initial'!J50*(1+Croissance!$I22) -> 0 | K50: =+'Bilan initial'!K50*(1+Croissance!$I22) -> 0 | L50: =+'Bilan initial'!L50*(1+Croissance!$I22) -> 0 | M50: =+'Bilan initial'!M50*(1+Croissance!$I22) -> 0 | N50: =+'Bilan initial'!N50*(1+Croissance!$I22) -> 0 | O50: =+'Bilan initial'!O50*(1+Croissance!I$25) -> 3151.176994
A51: Transport - air domestique | B51: 5512.610453 | C51: =+'Bilan initial'!C51*(1+Croissance!$I23) -> 0 | D51: =+'Bilan initial'!D51*(1+Croissance!$I23) -> 0 | E51: =+'Bilan initial'!E51*(1+Croissance!$I23) -> 5512.610453 | F51: =+'Bilan initial'!F51*(1+Croissance!$I23) -> 0 | G51: =+'Bilan initial'!G51*(1+Croissance!$I23) -> 0 | H51: =+'Bilan initial'!H51*(1+Croissance!$I23) -> 0 | I51: 5512.610453 | J51: =+'Bilan initial'!J51*(1+Croissance!$I23) -> 0 | K51: =+'Bilan initial'!K51*(1+Croissance!$I23) -> 0 | L51: =+'Bilan initial'!L51*(1+Croissance!$I23) -> 0 | M51: =+'Bilan initial'!M51*(1+Croissance!$I23) -> 0 | N51: =+'Bilan initial'!N51*(1+Croissance!$I23) -> 0 | O51: =+'Bilan initial'!O51*(1+Croissance!I$25) -> 0 | P51: Renouvelable | Q51: =SUM(Q52:Q56) -> 330328.1129 | R51: =SUM(R52:R56) -> 0.3215463071
A52: Transport - navigation | B52: 689.3569085 | C52: =+'Bilan initial'!C52*(1+Croissance!$I24) -> 0 | D52: =+'Bilan initial'!D52*(1+Croissance!$I24) -> 0 | E52: =+'Bilan initial'!E52*(1+Croissance!$I24) -> 0 | F52: =+'Bilan initial'!F52*(1+Croissance!$I24) -> 0 | G52: =+'Bilan initial'!G52*(1+Croissance!$I24) -> 689.3569085 | H52: =+'Bilan initial'!H52*(1+Croissance!$I24) -> 0 | I52: 689.3569085 | J52: =+'Bilan initial'!J52*(1+Croissance!$I24) -> 0 | K52: =+'Bilan initial'!K52*(1+Croissance!$I24) -> 0 | L52: =+'Bilan initial'!L52*(1+Croissance!$I24) -> 0 | M52: =+'Bilan initial'!M52*(1+Croissance!$I24) -> 0 | N52: =+'Bilan initial'!N52*(1+Croissance!$I24) -> 0 | O52: =+'Bilan initial'!O52*(1+Croissance!I$25) -> 0 | P52: Hydro | Q52: =Q$34*R52 -> 263498.0454 | R52: =+'Bilan 2025'!R52 -> 0.2564929236
A53: Ménages | B53: 49507.57162 | C53: =+'Bilan initial'!C53*(1+Croissance!$I26) -> 1086.18115 | D53: =+'Bilan initial'!D53*(1+Croissance!$I26) -> 0 | E53: =+'Bilan initial'!E53*(1+Croissance!$I26) -> 0 | F53: =+'Bilan initial'!F53*(1+Croissance!$I26) -> 0 | G53: =+'Bilan initial'!G53*(1+Croissance!$I26) -> 0 | H53: =+'Bilan initial'!H53*(1+Croissance!$I27) -> 243.2742093 | I53: 1329.455359 | J53: =+'Bilan initial'!J53*(1+Croissance!$I26) -> 3978.618237 | K53: =+'Bilan initial'!K53*(1+Croissance!$I26) -> 3989.65954 | L53: =+'Bilan initial'!L53*(1+Croissance!$I26) -> 40209.83848 | M53: =+'Bilan initial'!M53*(1+Croissance!$I26) -> 0 | N53: =+'Bilan initial'!N53*(1+Croissance!$I26) -> 0 | O53: =+'Bilan initial'!O53*(1+Croissance!I28) -> 187975.7524 | P53: Éolien | Q53: =Q$34*R53 -> 45729.34684 | R53: =+'Bilan 2025'!R53 -> 0.0445136276
A54: Services | B54: 29308.97001 | C54: =+'Bilan initial'!C54*(1+Croissance!$I29) -> 2531.467088 | D54: =+'Bilan initial'!D54*(1+Croissance!$I29) -> 0 | E54: =+'Bilan initial'!E54*(1+Croissance!$I29) -> 0 | F54: =+'Bilan initial'!F54*(1+Croissance!$I29) -> 0 | G54: =+'Bilan initial'!G54*(1+Croissance!$I29) -> 0 | H54: =+'Bilan initial'!H54*(1+Croissance!$I29) -> 0 | I54: 2531.467088 | J54: =+'Bilan initial'!J54*(1+Croissance!$I29) -> 13707.33711 | K54: =+'Bilan initial'!K54*(1+Croissance!$I29) -> 1389.348335 | L54: =+'Bilan initial'!L54*(1+Croissance!$I29) -> 11554.8454 | M54: =+'Bilan initial'!M54*(1+Croissance!$I29) -> 125.9720814 | N54: =+'Bilan initial'!N54*(1+Croissance!$I29) -> 0 | O54: =+'Bilan initial'!O54*(1+Croissance!I30) -> 235196.3163 | P54: Solaire | Q54: =Q$34*R54 -> 761.3055254 | R54: =+'Bilan 2025'!R54 -> 0.0007410661421
A55: Agriculture & Pêches | B55: 11520.69141 | C55: =+'Bilan initial'!C55*(1+Croissance!$I31) -> 0 | D55: =+'Bilan initial'!D55*(1+Croissance!$I31) -> 0 | E55: =+'Bilan initial'!E55*(1+Croissance!$I31) -> 0 | F55: =+'Bilan initial'!F55*(1+Croissance!$I31) -> 11034.51791 | G55: =+'Bilan initial'!G55*(1+Croissance!$I31) -> 0 | H55: =+'Bilan initial'!H55*(1+Croissance!$I31) -> 0 | I55: 11034.51791 | J55: =+'Bilan initial'!J55*(1+Croissance!$I31) -> 0 | K55: =+'Bilan initial'!K55*(1+Croissance!$I31) -> 0 | L55: =+'Bilan initial'!L55*(1+Croissance!$I31) -> 486.1735016 | M55: =+'Bilan initial'!M55*(1+Croissance!$I31) -> 0 | N55: =+'Bilan initial'!N55*(1+Croissance!$I31) -> 0 | O55: =+'Bilan initial'!O55*(1+Croissance!I32) -> 19154.29005 | P55: Biomasse | Q55: =Q$34*R55 -> 6898.840792 | R55: =+'Bilan 2025'!R55 -> 0.006715434421
A56: Utilisations non énergétiques | B56: 0 | C56: =+'Bilan initial'!C56*(1+Croissance!$I33) -> 0 | D56: =+'Bilan initial'!D56*(1+Croissance!$I33) -> 0 | E56: =+'Bilan initial'!E56*(1+Croissance!$I33) -> 0 | F56: =+'Bilan initial'!F56*(1+Croissance!$I33) -> 0 | G56: =+'Bilan initial'!G56*(1+Croissance!$I33) -> 0 | H56: =+'Bilan initial'!H56*(1+Croissance!$I33) -> 0 | I56: 0 | J56: =+'Bilan initial'!J56*(1+Croissance!$I33) -> 0 | K56: =+'Bilan initial'!K56*(1+Croissance!$I33) -> 0 | L56: =+'Bilan initial'!L56*(1+Croissance!$I33) -> 0 | M56: =+'Bilan initial'!M56*(1+Croissance!$I33) -> 0 | N56: =+'Bilan initial'!N56*(1+Croissance!$I33) -> 0 | O56: =+'Bilan initial'!O56*(1+Croissance!I33) -> 0 | P56: Géothermie | Q56: =Q$34*R56 -> 13440.57435 | R56: =+'Bilan 2025'!R56 -> 0.01308325534
R57: =+R36+R51 -> 1
A59: Bilan GES | B59: =+Hypothèses!$B$2 -> Pays X | D59: 2030
A60: Ton CO2/Toe (IPCC): | C60: =+'Bilan initial'!C60 -> 2.614070448 | D60: =+'Bilan initial'!D60 -> 2.872437876 | E60: =+'Bilan initial'!E60 -> 2.96362638 | F60: =+'Bilan initial'!F60 -> 3.070012968 | G60: =+'Bilan initial'!G60 -> 3.206795724 | H60: =+'Bilan initial'!H60 -> 2.978824464 | J60: =+'Bilan initial'!J60 -> 3.921105672 | K60: =+'Bilan initial'!K60 -> 4.194671184 | L60: =+'Bilan initial'!L60 -> 2.325306852 | M60: =+'Bilan initial'!M60 -> 4.484816424 | N60: =+'Bilan initial'!N60 -> 4.157366796
A61: Unit : ktCO2-e | B61: Total | C61: GPL | D61: Essence | E61: Essence pour carburéacteurs | F61: Diesel | G61: Fiouls lourds | H61: Kérosène et autres | I61: Total produits pétroliers | J61: Charbon | K61: Lignite | L61: Gaz | M61: Coke | N61: Coke de pétrole
A62: Total | B62: =+B63+B64 -> 1526985.238 | C62: =+C63+C64 -> 46298.85473 | D62: 24460.85571 | E62: 16337.31776 | F62: 250997.4355 | G62: 5653.406208 | H62: 724.671166 | I62: 344472.5411 | J62: 290843.8419 | K62: 405834.8627 | L62: 378318.8616 | M62: 58085.12063 | N62: 49430.01001
A63: Fossil power plants | B63: =SUM(I63:N63) -> 692076.6959 | C63: =C60*C35 -> 0 | D63: 0 | E63: 0 | F63: 2967.432798 | G63: 2742.14361 | H63: 0 | I63: =SUM(C63:H63) -> 5709.576408 | J63: =J60*J35 -> 165380.5818 | K63: =K60*K35 -> 354326.6582 | L63: =L60*L35 -> 166659.8795 | M63: =M60*M35 -> 0 | N63: =N60*N35 -> 0
A64: FINAL CONSUMPTION | B64: =SUM(B65:B84) -> 834908.5419 | C64: =SUM(C65:C84) -> 46298.85473 | D64: 24460.85571 | E64: 16337.31776 | F64: 248030.0027 | G64: 2911.262599 | H64: 724.671166 | I64: =SUM(C64:H64) -> 338762.9647 | J64: =SUM(J65:J84) -> 125463.2601 | K64: =SUM(K65:K84) -> 51508.20448 | L64: =SUM(L65:L84) -> 211658.982 | M64: =SUM(M65:M84) -> 58085.12063 | N64: =SUM(N65:N84) -> 49430.01001
A65: Industry - steel | B65: =SUM(I65:N65) -> 2528.9716 | C65: =+'Bilan initial'!C65*(1+Croissance!$I8) -> 0 | D65: =+'Bilan initial'!D65*(1+Croissance!$I8) -> 0 | E65: =+'Bilan initial'!E65*(1+Croissance!$I8) -> 0 | F65: =+'Bilan initial'!F65*(1+Croissance!$I8) -> 211.9594856 | G65: =+'Bilan initial'!G65*(1+Croissance!$I8) -> 0 | H65: =+'Bilan initial'!H65*(1+Croissance!$I8) -> 0 | I65: =SUM(C65:H65) -> 211.9594856 | J65: =+'Bilan initial'!J65*(1+Croissance!$I8) -> 174.9405693 | K65: =+'Bilan initial'!K65*(1+Croissance!$I8) -> 187.0670927 | L65: =+'Bilan initial'!L65*(1+Croissance!$I8) -> 1955.004452 | M65: =+'Bilan initial'!M65*(1+Croissance!$I8) -> 0 | N65: =+'Bilan initial'!N65*(1+Croissance!$I8) -> 0
A66: Industry - chemical | B66: =SUM(I66:N66) -> 28598.30916 | C66: =+'Bilan initial'!C66*(1+Croissance!$I9) -> 104.3028016 | D66: =+'Bilan initial'!D66*(1+Croissance!$I9) -> 0 | E66: =+'Bilan initial'!E66*(1+Croissance!$I9) -> 0 | F66: =+'Bilan initial'!F66*(1+Croissance!$I9) -> 49.87282013 | G66: =+'Bilan initial'!G66*(1+Croissance!$I9) -> 36.23978339 | H66: =+'Bilan initial'!H66*(1+Croissance!$I9) -> 0 | I66: 190.4154052 | J66: =+'Bilan initial'!J66*(1+Croissance!$I9) -> 4054.50496 | K66: =+'Bilan initial'!K66*(1+Croissance!$I9) -> 2338.338659 | L66: =+'Bilan initial'!L66*(1+Croissance!$I9) -> 22015.05014 | M66: =+'Bilan initial'!M66*(1+Croissance!$I9) -> 0 | N66: =+'Bilan initial'!N66*(1+Croissance!$I9) -> 0
A67: Industry - non metallic mineral | B67: 110058.0308 | C67: =+'Bilan initial'!C67*(1+Croissance!$I10) -> 34.76760055 | D67: =+'Bilan initial'!D67*(1+Croissance!$I10) -> 0 | E67: =+'Bilan initial'!E67*(1+Croissance!$I10) -> 0 | F67: =+'Bilan initial'!F67*(1+Croissance!$I10) -> 299.2369208 | G67: =+'Bilan initial'!G67*(1+Croissance!$I10) -> 217.4387003 | H67: =+'Bilan initial'!H67*(1+Croissance!$I10) -> 0 | I67: 551.4432217 | J67: =+'Bilan initial'!J67*(1+Croissance!$I10) -> 34031.08605 | K67: =+'Bilan initial'!K67*(1+Croissance!$I10) -> 10116.01278 | L67: =+'Bilan initial'!L67*(1+Croissance!$I10) -> 16014.03647 | M67: =+'Bilan initial'!M67*(1+Croissance!$I10) -> 0 | N67: =+'Bilan initial'!N67*(1+Croissance!$I10) -> 49345.45232
A68: Industry - food processing and beverage | B68: 17770.49771 | C68: =+'Bilan initial'!C68*(1+Croissance!$I11) -> 231.7840036 | D68: =+'Bilan initial'!D68*(1+Croissance!$I11) -> 0 | E68: =+'Bilan initial'!E68*(1+Croissance!$I11) -> 0 | F68: =+'Bilan initial'!F68*(1+Croissance!$I11) -> 74.8092302 | G68: =+'Bilan initial'!G68*(1+Croissance!$I11) -> 446.9573284 | H68: =+'Bilan initial'!H68*(1+Croissance!$I11) -> 0 | I68: 753.5505623 | J68: =+'Bilan initial'!J68*(1+Croissance!$I11) -> 2346.261754 | K68: =+'Bilan initial'!K68*(1+Croissance!$I11) -> 5662.376998 | L68: =+'Bilan initial'!L68*(1+Croissance!$I11) -> 8347.019009 | M68: =+'Bilan initial'!M68*(1+Croissance!$I11) -> 576.7316942 | N68: =+'Bilan initial'!N68*(1+Croissance!$I11) -> 84.55769063
A69: Industry - construction | B69: 4924.708395 | C69: =+'Bilan initial'!C69*(1+Croissance!$I12) -> 0 | D69: =+'Bilan initial'!D69*(1+Croissance!$I12) -> 0 | E69: =+'Bilan initial'!E69*(1+Croissance!$I12) -> 0 | F69: =+'Bilan initial'!F69*(1+Croissance!$I12) -> 1832.82614 | G69: =+'Bilan initial'!G69*(1+Croissance!$I12) -> 0 | H69: =+'Bilan initial'!H69*(1+Croissance!$I12) -> 0 | I69: 1832.82614 | J69: =+'Bilan initial'!J69*(1+Croissance!$I12) -> 10.29062173 | K69: =+'Bilan initial'!K69*(1+Croissance!$I12) -> 21.58466454 | L69: =+'Bilan initial'!L69*(1+Croissance!$I12) -> 3060.006969 | M69: =+'Bilan initial'!M69*(1+Croissance!$I12) -> 0 | N69: =+'Bilan initial'!N69*(1+Croissance!$I12) -> 0
A70: Industry - mining | B70: 6664.888911 | C70: =+'Bilan initial'!C70*(1+Croissance!$I13) -> 0 | D70: =+'Bilan initial'!D70*(1+Croissance!$I13) -> 0 | E70: =+'Bilan initial'!E70*(1+Croissance!$I13) -> 0 | F70: =+'Bilan initial'!F70*(1+Croissance!$I13) -> 4688.045092 | G70: =+'Bilan initial'!G70*(1+Croissance!$I13) -> 0 | H70: =+'Bilan initial'!H70*(1+Croissance!$I13) -> 0 | I70: 4688.045092 | J70: =+'Bilan initial'!J70*(1+Croissance!$I13) -> 195.5218128 | K70: =+'Bilan initial'!K70*(1+Croissance!$I13) -> 676.319489 | L70: =+'Bilan initial'!L70*(1+Croissance!$I13) -> 1105.002517 | M70: =+'Bilan initial'!M70*(1+Croissance!$I13) -> 0 | N70: =+'Bilan initial'!N70*(1+Croissance!$I13) -> 0
A71: Industry - machinery | B71: 835.036916 | C71: =+'Bilan initial'!C71*(1+Croissance!$I14) -> 57.94600091 | D71: =+'Bilan initial'!D71*(1+Croissance!$I14) -> 0 | E71: =+'Bilan initial'!E71*(1+Croissance!$I14) -> 0 | F71: =+'Bilan initial'!F71*(1+Croissance!$I14) -> 37.4046151 | G71: =+'Bilan initial'!G71*(1+Croissance!$I14) -> 0 | H71: =+'Bilan initial'!H71*(1+Croissance!$I14) -> 0 | I71: 95.35061601 | J71: =+'Bilan initial'!J71*(1+Croissance!$I14) -> 30.87186518 | K71: =+'Bilan initial'!K71*(1+Croissance!$I14) -> 122.3130991 | L71: =+'Bilan initial'!L71*(1+Croissance!$I14) -> 586.5013357 | M71: =+'Bilan initial'!M71*(1+Croissance!$I14) -> 0 | N71: =+'Bilan initial'!N71*(1+Croissance!$I14) -> 0
A72: Industry - non ferrous metals | B72: 86683.72176 | C72: =+'Bilan initial'!C72*(1+Croissance!$I15) -> 428.8004067 | D72: =+'Bilan initial'!D72*(1+Croissance!$I15) -> 0 | E72: =+'Bilan initial'!E72*(1+Croissance!$I15) -> 0 | F72: =+'Bilan initial'!F72*(1+Croissance!$I15) -> 162.0866654 | G72: =+'Bilan initial'!G72*(1+Croissance!$I15) -> 0 | H72: =+'Bilan initial'!H72*(1+Croissance!$I15) -> 0 | I72: 590.8870722 | J72: =+'Bilan initial'!J72*(1+Croissance!$I15) -> 11175.61519 | K72: =+'Bilan initial'!K72*(1+Croissance!$I15) -> 489.2523963 | L72: =+'Bilan initial'!L72*(1+Croissance!$I15) -> 17484.53982 | M72: =+'Bilan initial'!M72*(1+Croissance!$I15) -> 56943.42727 | N72: =+'Bilan initial'!N72*(1+Croissance!$I15) -> 0
A73: Industry - paper and pulp | B73: 3919.139695 | C73: =+'Bilan initial'!C73*(1+Croissance!$I16) -> 11.58920018 | D73: =+'Bilan initial'!D73*(1+Croissance!$I16) -> 0 | E73: =+'Bilan initial'!E73*(1+Croissance!$I16) -> 0 | F73: =+'Bilan initial'!F73*(1+Croissance!$I16) -> 124.6820503 | G73: =+'Bilan initial'!G73*(1+Croissance!$I16) -> 0 | H73: =+'Bilan initial'!H73*(1+Croissance!$I16) -> 0 | I73: 136.2712505 | J73: =+'Bilan initial'!J73*(1+Croissance!$I16) -> 442.4967342 | K73: =+'Bilan initial'!K73*(1+Croissance!$I16) -> 1453.367412 | L73: =+'Bilan initial'!L73*(1+Croissance!$I16) -> 1887.004297 | M73: =+'Bilan initial'!M73*(1+Croissance!$I16) -> 0 | N73: =+'Bilan initial'!N73*(1+Croissance!$I16) -> 0
A74: Industry - transport equipment | B74: 1924.391591 | C74: =+'Bilan initial'!C74*(1+Croissance!$I17) -> 266.5516042 | D74: =+'Bilan initial'!D74*(1+Croissance!$I17) -> 0 | E74: =+'Bilan initial'!E74*(1+Croissance!$I17) -> 0 | F74: =+'Bilan initial'!F74*(1+Croissance!$I17) -> 87.27743523 | G74: =+'Bilan initial'!G74*(1+Croissance!$I17) -> 0 | H74: =+'Bilan initial'!H74*(1+Croissance!$I17) -> 0 | I74: 353.8290394 | J74: =+'Bilan initial'!J74*(1+Croissance!$I17) -> 0 | K74: =+'Bilan initial'!K74*(1+Croissance!$I17) -> 57.55910544 | L74: =+'Bilan initial'!L74*(1+Croissance!$I17) -> 1513.003446 | M74: =+'Bilan initial'!M74*(1+Croissance!$I17) -> 0 | N74: =+'Bilan initial'!N74*(1+Croissance!$I17) -> 0
A75: Industry - textile and leather | B75: 21863.7221 | C75: =+'Bilan initial'!C75*(1+Croissance!$I18) -> 139.0704022 | D75: =+'Bilan initial'!D75*(1+Croissance!$I18) -> 0 | E75: =+'Bilan initial'!E75*(1+Croissance!$I18) -> 0 | F75: =+'Bilan initial'!F75*(1+Croissance!$I18) -> 74.8092302 | G75: =+'Bilan initial'!G75*(1+Croissance!$I18) -> 0 | H75: =+'Bilan initial'!H75*(1+Croissance!$I18) -> 0 | I75: 213.8796324 | J75: =+'Bilan initial'!J75*(1+Croissance!$I18) -> 3653.170713 | K75: =+'Bilan initial'!K75*(1+Croissance!$I18) -> 7813.648564 | L75: =+'Bilan initial'!L75*(1+Croissance!$I18) -> 10183.02319 | M75: =+'Bilan initial'!M75*(1+Croissance!$I18) -> 0 | N75: =+'Bilan initial'!N75*(1+Croissance!$I18) -> 0
A76: Industry - miscellaneous | B76: 5285.706909 | C76: =+'Bilan initial'!C76*(1+Croissance!$I19) -> 0 | D76: =+'Bilan initial'!D76*(1+Croissance!$I19) -> 0 | E76: =+'Bilan initial'!E76*(1+Croissance!$I19) -> 0 | F76: =+'Bilan initial'!F76*(1+Croissance!$I19) -> 0 | G76: =+'Bilan initial'!G76*(1+Croissance!$I19) -> 0 | H76: =+'Bilan initial'!H76*(1+Croissance!$I19) -> 0 | I76: 0 | J76: =+'Bilan initial'!J76*(1+Croissance!$I19) -> 0 | K76: =+'Bilan initial'!K76*(1+Croissance!$I19) -> 7.19488818 | L76: =+'Bilan initial'!L76*(1+Croissance!$I19) -> 5278.512021 | M76: =+'Bilan initial'!M76*(1+Croissance!$I19) -> 0 | N76: =+'Bilan initial'!N76*(1+Croissance!$I19) -> 0
A77: Transport - road | B77: 265586.785 | C77: =+'Bilan initial'!C77*(1+Croissance!$I21) -> 35567.25536 | D77: =+'Bilan initial'!D77*(1+Croissance!$I21) -> 24460.85571 | E77: =+'Bilan initial'!E77*(1+Croissance!$I21) -> 0 | F77: =+'Bilan initial'!F77*(1+Croissance!$I21) -> 204827.6723 | G77: =+'Bilan initial'!G77*(1+Croissance!$I21) -> 0 | H77: =+'Bilan initial'!H77*(1+Croissance!$I21) -> 0 | I77: 264855.7834 | J77: =+'Bilan initial'!J77*(1+Croissance!$I21) -> 0 | K77: =+'Bilan initial'!K77*(1+Croissance!$I21) -> 0 | L77: =+'Bilan initial'!L77*(1+Croissance!$I21) -> 731.0016648 | M77: =+'Bilan initial'!M77*(1+Croissance!$I21) -> 0 | N77: =+'Bilan initial'!N77*(1+Croissance!$I21) -> 0
A78: Transport - rail | B78: 1683.207679 | C78: =+'Bilan initial'!C78*(1+Croissance!$I22) -> 0 | D78: =+'Bilan initial'!D78*(1+Croissance!$I22) -> 0 | E78: =+'Bilan initial'!E78*(1+Croissance!$I22) -> 0 | F78: =+'Bilan initial'!F78*(1+Croissance!$I22) -> 1683.207679 | G78: =+'Bilan initial'!G78*(1+Croissance!$I22) -> 0 | H78: =+'Bilan initial'!H78*(1+Croissance!$I22) -> 0 | I78: 1683.207679 | J78: =+'Bilan initial'!J78*(1+Croissance!$I22) -> 0 | K78: =+'Bilan initial'!K78*(1+Croissance!$I22) -> 0 | L78: =+'Bilan initial'!L78*(1+Croissance!$I22) -> 0 | M78: =+'Bilan initial'!M78*(1+Croissance!$I22) -> 0 | N78: =+'Bilan initial'!N78*(1+Croissance!$I22) -> 0
A79: Transport - domestic air | B79: 16337.31776 | C79: =+'Bilan initial'!C79*(1+Croissance!$I23) -> 0 | D79: =+'Bilan initial'!D79*(1+Croissance!$I23) -> 0 | E79: =+'Bilan initial'!E79*(1+Croissance!$I23) -> 16337.31776 | F79: =+'Bilan initial'!F79*(1+Croissance!$I23) -> 0 | G79: =+'Bilan initial'!G79*(1+Croissance!$I23) -> 0 | H79: =+'Bilan initial'!H79*(1+Croissance!$I23) -> 0 | I79: 16337.31776 | J79: =+'Bilan initial'!J79*(1+Croissance!$I23) -> 0 | K79: =+'Bilan initial'!K79*(1+Croissance!$I23) -> 0 | L79: =+'Bilan initial'!L79*(1+Croissance!$I23) -> 0 | M79: =+'Bilan initial'!M79*(1+Croissance!$I23) -> 0 | N79: =+'Bilan initial'!N79*(1+Croissance!$I23) -> 0
A80: Transport - navigation | B80: 2210.626787 | C80: =+'Bilan initial'!C80*(1+Croissance!$I24) -> 0 | D80: =+'Bilan initial'!D80*(1+Croissance!$I24) -> 0 | E80: =+'Bilan initial'!E80*(1+Croissance!$I24) -> 0 | F80: =+'Bilan initial'!F80*(1+Croissance!$I24) -> 0 | G80: =+'Bilan initial'!G80*(1+Croissance!$I24) -> 2210.626787 | H80: =+'Bilan initial'!H80*(1+Croissance!$I24) -> 0 | I80: 2210.626787 | J80: =+'Bilan initial'!J80*(1+Croissance!$I24) -> 0 | K80: =+'Bilan initial'!K80*(1+Croissance!$I24) -> 0 | L80: =+'Bilan initial'!L80*(1+Croissance!$I24) -> 0 | M80: =+'Bilan initial'!M80*(1+Croissance!$I24) -> 0 | N80: =+'Bilan initial'!N80*(1+Croissance!$I24) -> 0
A81: Households | B81: 129400.1306 | C81: =+'Bilan initial'!C81*(1+Croissance!$I26) -> 2839.354045 | D81: =+'Bilan initial'!D81*(1+Croissance!$I26) -> 0 | E81: =+'Bilan initial'!E81*(1+Croissance!$I26) -> 0 | F81: =+'Bilan initial'!F81*(1+Croissance!$I26) -> 0 | G81: =+'Bilan initial'!G81*(1+Croissance!$I26) -> 0 | H81: =+'Bilan initial'!H81*(1+Croissance!$I27) -> 724.671166 | I81: 3564.025211 | J81: =+'Bilan initial'!J81*(1+Croissance!$I26) -> 15600.58254 | K81: =+'Bilan initial'!K81*(1+Croissance!$I26) -> 16735.30991 | L81: =+'Bilan initial'!L81*(1+Croissance!$I26) -> 93500.21294 | M81: =+'Bilan initial'!M81*(1+Croissance!$I26) -> 0 | N81: =+'Bilan initial'!N81*(1+Croissance!$I26) -> 0
A82: Services | B82: 93626.73286 | C82: =+'Bilan initial'!C82*(1+Croissance!$I29) -> 6617.433304 | D82: =+'Bilan initial'!D82*(1+Croissance!$I29) -> 0 | E82: =+'Bilan initial'!E82*(1+Croissance!$I29) -> 0 | F82: =+'Bilan initial'!F82*(1+Croissance!$I29) -> 0 | G82: =+'Bilan initial'!G82*(1+Croissance!$I29) -> 0 | H82: =+'Bilan initial'!H82*(1+Croissance!$I29) -> 0 | I82: 6617.433304 | J82: =+'Bilan initial'!J82*(1+Croissance!$I29) -> 53747.91728 | K82: =+'Bilan initial'!K82*(1+Croissance!$I29) -> 5827.859426 | L82: =+'Bilan initial'!L82*(1+Croissance!$I29) -> 26868.56119 | M82: =+'Bilan initial'!M82*(1+Croissance!$I29) -> 564.9616596 | N82: =+'Bilan initial'!N82*(1+Croissance!$I29) -> 0
A83: Agriculture & Fishery | B83: 35006.61565 | C83: =+'Bilan initial'!C83*(1+Croissance!$I31) -> 0 | D83: =+'Bilan initial'!D83*(1+Croissance!$I31) -> 0 | E83: =+'Bilan initial'!E83*(1+Croissance!$I31) -> 0 | F83: =+'Bilan initial'!F83*(1+Croissance!$I31) -> 33876.11308 | G83: =+'Bilan initial'!G83*(1+Croissance!$I31) -> 0 | H83: =+'Bilan initial'!H83*(1+Croissance!$I31) -> 0 | I83: 33876.11308 | J83: =+'Bilan initial'!J83*(1+Croissance!$I31) -> 0 | K83: =+'Bilan initial'!K83*(1+Croissance!$I31) -> 0 | L83: =+'Bilan initial'!L83*(1+Croissance!$I31) -> 1130.502575 | M83: =+'Bilan initial'!M83*(1+Croissance!$I31) -> 0 | N83: =+'Bilan initial'!N83*(1+Croissance!$I31) -> 0
A84: Non energy uses | B84: 0 | C84: =+'Bilan initial'!C84*(1+Croissance!$I33) -> 0 | D84: =+'Bilan initial'!D84*(1+Croissance!$I33) -> 0 | E84: =+'Bilan initial'!E84*(1+Croissance!$I33) -> 0 | F84: =+'Bilan initial'!F84*(1+Croissance!$I33) -> 0 | G84: =+'Bilan initial'!G84*(1+Croissance!$I33) -> 0 | H84: =+'Bilan initial'!H84*(1+Croissance!$I33) -> 0 | I84: 0 | J84: =+'Bilan initial'!J84*(1+Croissance!$I33) -> 0 | K84: =+'Bilan initial'!K84*(1+Croissance!$I33) -> 0 | L84: =+'Bilan initial'!L84*(1+Croissance!$I33) -> 0 | M84: =+'Bilan initial'!M84*(1+Croissance!$I33) -> 0 | N84: =+'Bilan initial'!N84*(1+Croissance!$I33) -> 0
A85: CH4 from energy combustion | B85: =IF(B62=0,0,'Bilan initial'!B85*'Bilan 2050'!B64/'Bilan initial'!B64) -> 19860.656
A86: N2O from energy combustion | B86: =IF(B62=0,0,'Bilan initial'!B86*'Bilan 2050'!B64/'Bilan initial'!B64) -> 15206.48923
A87: Total Agriculture | B87: =SUM(B88:B92) -> 113054.6251
A88: Enteric fermentation | B88: =+'Bilan initial'!B88*(1+Croissance!I$34) -> 53695.555
A89: Manure management | B89: =+'Bilan initial'!B89*(1+Croissance!I$34) -> 12589.13934
A90: Rice cultivation | B90: =+'Bilan initial'!B90*(1+Croissance!I$35) -> 399.4016289
A91: N2O from agricultural soils | B91: =+'Bilan initial'!B91*(1+Croissance!I$36) -> 45687.55233
A92: Burning of agricultural residues | B92: =+'Bilan initial'!B92*(1+Croissance!I$37) -> 682.9767855
A93: Fugitive (CH4) | B93: =IF('Bilan initial'!L62=0,0, 'Bilan initial'!B93*'Bilan 2050'!L62/'Bilan initial'!L62) -> 16211.09858
A94: Forestry | B94: =+'Bilan initial'!B94*(1+Croissance!I$38) -> -64020
A95: Waste - solid | B95: =+'Bilan initial'!B95*(1+Croissance!I39) -> 16880
A96: Waste - liquid | B96: =+'Bilan initial'!B96*(1+Croissance!I40) -> 0
A97: Industrial processes | B97: =+'Bilan initial'!B97*(1+Croissance!I41) -> 60720
A98: Émission total GES (excl. Foresterie) | B98: =B62+B85+B86+B87+B93+B95+B96+B97 -> 1768918.107
A99: Émission total GES (incl. Foresterie) | B99: =+B85+B86+B87+B93+B94+B95+B96+B97+B62 -> 1704898.107

Sheet Hypothèses
A1: Hypothèse et données de pays
A2: Pays | B2: Pays X
A3: Année de référence (année du dernier inventaire): | B3: 2015
A4: Devise taux = | B4: Devise Y
A5: Taux de change utilisé: 1 US$= | B5: 4 | C5: =+Currency -> Devise Y
A6: Taux d'actualisation = | B6: 0.07
A8: Prix ​​de l'énergie utilisés pour toute la période future:
A9: Pétrole brut | B9: 50 | C9: US$/bbl | F9: 1 Million BTU = | G9: 1.055 | H9: GJ
A10: Pétrole brut | B10: =B9/G11 -> 0.3144654088 | C10: US$/litre | F10: 1 US gallon = | G10: 3.7854 | H10: litres
A11: Gaz naturel liquéfié (GNL) | B11: 3.25 | C11: US$/MBTU | F11: 1 bbl = | G11: 159 | H11: litres
A12: Gaz naturel | B12: =B11/1.055 -> 3.08056872 | C12: US$/GJ
A13: Charbon | B13: 50 | C13: US$/ton
A15: Prix ​​du carburant
A16: 2020 prices | B16: GPL | C16: Essence | D16: Bioéthanol | E16: Essence pour | F16: Gasoil / Diesel | G16: Biodiesel | H16: Fiouls lourds | I16: Kéro- | J16: Charbon | K16: Coke | L16: Coke de | M16: Lignite | N16: Gaz
E17: carburéacteurs | I17: sène | L17: pétrole | N17: Naturel
A18: Prix distiller/prix du pétrole brut (litre/litre) | B18: 0.9 | C18: 1.4 | E18: 1.4 | F18: 1.2 | H18: 0.8 | I18: 1.4
A19: US$/litre | B19: =$B$10*B18 -> 0.2830188679 | C19: =$B$10*C18 -> 0.4402515723 | D19: 0.83 | E19: =$B$10*E18 -> 0.4402515723 | F19: =$B$10*F18 -> 0.3773584906 | G19: 1.2 | H19: =$B$10*H18 -> 0.251572327 | I19: =$B$10*I18 -> 0.4402515723
A20: US$/GJ | B20: =B19*1000/B22/B21 -> 11.08052885 | C20: =C19*1000/C22/C21 -> 13.10272537 | E20: =(E19*1000/E21)/E22 -> 12.34165655 | F20: =F19*1000/F22/F21 -> 10.36778902 | H20: =(H19*1000/H21)/H22 -> 6.387321626 | I20: =(I19*1000/I21)/I22 -> 12.29752995 | J20: =B13/J22 -> 2.003205128 | K20: =J20 -> 2.003205128 | L20: =K20 -> 2.003205128 | N20: =+B12 -> 3.08056872
A21: t/m3 | B21: 0.54 | C21: 0.75 | D21: =1/(C63/1000) -> 0.7552870091 | E21: 0.8 | F21: 0.84 | G21: =1/(C64/1000) -> 0.8833922261 | H21: 0.98 | I21: 0.8 | N21: (MJ/Nm3)
A22: GJ/t | B22: 47.3 | C22: 44.8 | D22: =+D68 -> 26.79552 | E22: 44.59 | F22: 43.33 | G22: =+D68 -> 26.79552 | H22: 40.19 | I22: 44.75 | J22: 24.96 | K22: 28 | L22: 31 | M22: 18.3 | N22: 39
A24: Électricité | B24: Réseaux isolés | C24: Réseau 1 | D24: Réseau 2
A25: US$/kWh | C25: 0.2
B26: tCO2/MWh (=kCO2/kWh)
A27: Marge d'exploitation (ME)
A28: Marge de construction (MC)
A29: Marge combinée (MC) Solaire & Éolien | C29: 0.4855
A30: Marge combinée (MC) Autre | C30: 0.4855
A33: Pertes sur le réseau électrique et consommation propre | B33: 0.186
A35: kg/GJ | B35: Facteurs d´émission | C35: CO2 | D35: CH4 | E35: N2O
A36: Centrale électrique | B36: Fiouls | C36: =21.1*44/12 -> 77.36666667 | D36: 0.003 | E36: 0.0006
B37: Gasoil / Diesel | C37: =20.2*44/12 -> 74.06666667 | D37: 0.003 | E37: 0.0006
B38: Essence | C38: =18.9*44/12 -> 69.3 | D38: 0.003 | E38: 0.0006
B39: Essence pour carburéacteurs | C39: =19.5*44/12 -> 71.5 | D39: 0.003 | E39: 0.0006
B40: Kérosène | C40: =19.6*44/12 -> 71.86666667 | D40: 0.003 | E40: 0.0006
B41: GPL | C41: =17.2*44/12 -> 63.06666667 | D41: 0.001 | E41: 0.0001
B42: Gaz naturel | C42: 56.1 | D42: 0.001 | E42: 0.0001
B43: Charbon | C43: =25.8*44/12 -> 94.6 | D43: 0.001 | E43: 0.0014
B44: Lignite | C44: =27.6*44/12 -> 101.2 | D44: =+D43 -> 0.001 | E44: 0.0014
A45: Industrie | B45: Pétrole | C45: Tel que | D45: 0.002 | E45: 0.0006
B46: Gaz naturel | C46: ci-haut | D46: 0.005 | E46: 0.0001
B47: Charbon | D47: 0.01 | E47: 0.0014
B48: Charbon de bois | D48: 0.2 | E48: 0.004
A49: Résidentiel | B49: Pétrole | C49: Tel que | D49: 0.01 | E49: 0.0006
B50: Gaz naturel | C50: ci-haut | D50: 0.005 | E50: 0.0001
B51: Charbon | D51: 0.3 | E51: 0.0014
B52: Charbon de bois | D52: 0.2 | E52: 0.004
A54: Potentiels de réchauffement climatique: | B54: SAR | C54: AR4 | D54: AR5 | E54: GWP utilisé | G54: TAR
A55: 1 Ton CH4 = | B55: 21 | C55: 25 | D55: 28 | E55: =+B55 -> 21 | F55: Ton CO2 | G55: 23
A56: 1 Ton N2O = | B56: 310 | C56: 298 | D56: 265 | E56: =+B56 -> 310 | F56: Ton CO2 | G56: 296
A59: Source:
A60: http://www.iisd.org/gsi/sites/default/files/bf_uk_fqdmodel.pdf
A61: FACTEURS DE CONVERSION
B62: Tonnes | C62: Litres
A63: Éthanol | B63: 1 | C63: 1324
A64: Biodiesel | B64: 1 | C64: 1132
A65: Diesel | B65: 1 | C65: =1/0.84*1000 -> 1190.47619
A66: Gaz dérivés | B66: 1 | C66: =1/0.75*1000 -> 1333.333333
B67: Tonnes | C67: TOE | D67: GJ
A68: Éthanol | B68: 1 | C68: 0.64 | D68: =C68*C$73 -> 26.79552
A69: Biodiesel | B69: 1 | C69: 0.86 | D69: =C69*C$73 -> 36.00648 | F69: coûts: 1 toe | G69: =+C64/C69*G19 -> 1579.534884 | H69: US $
A70: Diesel | B70: 1 | C70: =43.33/41.868 -> 1.03491927 | D70: =C70*C$73 -> 43.33
A71: Gaz dérivés | B71: 1 | C71: =44.8/41.868 -> 1.070029617 | D71: =C71*C$73 -> 44.8
B73: 1 toe = | C73: 41.868 | D73: GJ

Sheet coordinates (hidden)
A1: xSum: | B1: Sorted values (All values) | H1: xSum (included) | I1: Sorted values (meeting thresholds) | L1: X-coordinates (reduction of CO2) | Q1: Y-coordinates (Cost of reduction option) | X1: Options omitted from graph
A2: =SUM(D3:D100) -> 246995.6806 | B2: Reduction option | C2: US$/tonCO2 | D2: Emission reduction in 2020 per option kt/year | H2: =SUM(K3:K100) -> 219503.7168 | I2: Reduction option | J2: US$/tonCO2 | K2: Emission reduction in 2020 per option kt/year | L2: Point 1 | M2: Point 2 | N2: halfway | O2: Point 3 | P2: Point 4 | Q2: Point 1 | R2: Point 2 | S2: Point 3 | T2: halfway | U2: Point 4 | X2: Reduction option | Y2: US$/tonCO2 | Z2: Emission reduction in 2020 per option kt/year
B3: Hydroélectricité connectée au réseau principal | C3: 358.2033739 | D3: 144229.9125 | F3: count(included) | G3: =COUNTA(I3:I300) -> 9 | I3: Hydroélectricité connectée au réseau principal | J3: 358.2033739 | K3: 144229.9125 | L3: 0 | M3: 0 | N3: 72114.95625 | O3: 144229.9125 | P3: 144229.9125 | Q3: 0 | R3: 358.2033739 | S3: 358.2033739 | T3: 358.2033739 | U3: 0 | X3: Mélange de 20% de biodiesel dans tout le diesel | Y3: -369.3801107 | Z3: 25478.18375
B4: Éoliennes on-shore | C4: 353.3632118 | D4: 19420 | F4: count(excluded) | G4: =COUNTA(X3:X300) -> 2 | I4: Éoliennes on-shore | J4: 353.3632118 | K4: 19420 | L4: 144229.9125 | M4: 144229.9125 | N4: 153939.9125 | O4: 163649.9125 | P4: 163649.9125 | Q4: 0 | R4: 353.3632118 | S4: 353.3632118 | T4: 353.3632118 | U4: 0 | X4: Mélange de bioéthanol à 15% dans toute l'essence | Y4: -476.0735876 | Z4: 2013.780074
B5: Nouvel immeuble de bureaux avec refroidissement central | C5: 300.2097828 | D5: 34.86940321 | I5: Nouvel immeuble de bureaux avec refroidissement central | J5: 300.2097828 | K5: 34.86940321 | L5: 163649.9125 | M5: 163649.9125 | N5: 163667.3472 | O5: 163684.7819 | P5: 163684.7819 | Q5: 0 | R5: 300.2097828 | S5: 300.2097828 | T5: 300.2097828 | U5: 0
B6: PV solaires, grand réseau | C6: 235.2164681 | D6: 8860.375 | I6: PV solaires, grand réseau | J6: 235.2164681 | K6: 8860.375 | L6: 163684.7819 | M6: 163684.7819 | N6: 168114.9694 | O6: 172545.1569 | P6: 172545.1569 | Q6: 0 | R6: 235.2164681 | S6: 235.2164681 | T6: 235.2164681 | U6: 0
B7: Nouvelles voies cyclables | C7: 144.8607822 | D7: 68.65827118 | I7: Nouvelles voies cyclables | J7: 144.8607822 | K7: 68.65827118 | L7: 172545.1569 | M7: 172545.1569 | N7: 172579.486 | O7: 172613.8152 | P7: 172613.8152 | Q7: 0 | R7: 144.8607822 | S7: 144.8607822 | T7: 144.8607822 | U7: 0
B8: Voiture électrique | C8: 24.40928717 | D8: 891.4885385 | I8: Voiture électrique | J8: 24.40928717 | K8: 891.4885385 | L8: 172613.8152 | M8: 172613.8152 | N8: 173059.5594 | O8: 173505.3037 | P8: 173505.3037 | Q8: 0 | R8: 24.40928717 | S8: 24.40928717 | T8: 24.40928717 | U8: 0
B9: Efficacité énergétique dans l'industrie | C9: -0.9439292574 | D9: 24884.96297 | I9: Efficacité énergétique dans l'industrie | J9: -0.9439292574 | K9: 24884.96297 | L9: 173505.3037 | M9: 173505.3037 | N9: 185947.7852 | O9: 198390.2667 | P9: 198390.2667 | Q9: 0 | R9: -0.9439292574 | S9: -0.9439292574 | T9: -0.9439292574 | U9: 0
B10: Efficacité énergétique en service | C10: -0.9439292574 | D10: 8004.950146 | I10: Efficacité énergétique en service | J10: -0.9439292574 | K10: 8004.950146 | L10: 198390.2667 | M10: 198390.2667 | N10: 202392.7418 | O10: 206395.2168 | P10: 206395.2168 | Q10: 0 | R10: -0.9439292574 | S10: -0.9439292574 | T10: -0.9439292574 | U10: 0
B11: Réseaux électriques efficaces | C11: -145.23996 | D11: 13108.5 | I11: Réseaux électriques efficaces | J11: -145.23996 | K11: 13108.5 | L11: 206395.2168 | M11: 206395.2168 | N11: 212949.4668 | O11: 219503.7168 | P11: 219503.7168 | Q11: 0 | R11: -145.23996 | S11: -145.23996 | T11: -145.23996 | U11: 0
B12: Mélange de 20% de biodiesel dans tout le diesel | C12: -369.3801107 | D12: 25478.18375
B13: Mélange de bioéthanol à 15% dans toute l'essence | C13: -476.0735876 | D13: 2013.780074

Sheet Graphique
A1: Paramètres pour créer la courbe de Revenu d'Atténuation Marginal (MAR)
C21: Insérer les valeurs seulement | E21: Veuillez sélectionner le scénario pour lequel vous souhaitez créer le graphique.
A22: Seuil de la plus petite valeur: axe des x (ktCO2e / an) | C22: 10 | D22: values above 0
A23: Seuil de la plus petite valeur: axe des y (US$/ktCO2e) | C23: -200 | D23: values below 0
A24: Seuil de la plus grande valeur: axe des y (US$/ktCO2e) | C24: 800 | D24: values above 0
A26: Inclure toutes les options dans le graphique sans seuil | E26: Courbe de Revenu d'Atténuation Marginal produite à partir de la feuille principale:
E27: principale30
E28: Taille de police des étiquettes dans le graphique: (par défaut minimum est 10 pts) | H28: 15
H50: 8109
B90: Options inclusent dans la courbe RAM | I90: Options excluses de la courbe RAM
B91: Reduction option | C91: US$/tonCO2 | D91: Réduction d'émissions par options en 2030 kt/an | I91: Option de réduction | J91: US$/tonCO2 | K91: Réduction d'émissions par options en 2030 kt/an
B92: Hydroélectricité connectée au réseau principal | C92: 358.2033739 | D92: 144229.9125 | I92: Mélange de 20% de biodiesel dans tout le diesel | J92: -369.3801107 | K92: 25478.18375
B93: Éoliennes on-shore | C93: 353.3632118 | D93: 19420 | I93: Mélange de bioéthanol à 15% dans toute l'essence | J93: -476.0735876 | K93: 2013.780074
B94: Nouvel immeuble de bureaux avec refroidissement central | C94: 300.2097828 | D94: 34.86940321
B95: PV solaires, grand réseau | C95: 235.2164681 | D95: 8860.375
B96: Nouvelles voies cyclables | C96: 144.8607822 | D96: 68.65827118
B97: Voiture électrique | C97: 24.40928717 | D97: 891.4885385
B98: Efficacité énergétique dans l'industrie | C98: -0.9439292574 | D98: 24884.96297
B99: Efficacité énergétique en service | C99: -0.9439292574 | D99: 8004.950146
B100: Réseaux électriques efficaces | C100: -145.23996 | D100: 13108.5

Sheet principale25
A1: Atténuation de GES total | B1: =+Hypothèses!$B$2 -> Pays X | C1: en 2025 | AA1: Sorted Values - according to revenue potential
E2: Réduction | F2: Investissement | G2: Coût | H2: Unités | I2: Réduction d'émissions en 2025 | L2: Diesel | M2: Essence | N2: Electricité | O2: Electricité | AA2: Reduction option | AB2: US$/ktCO2 (Revenue) | AC2: Emission reduction in 2020 per option (ktCO2/yr)
E3: d'émissions | G3: annuel | H3: ajoutées | I3: Par option | J3: Cumulatif | L3: économisé | M3: économisé | N3: économisé | O3: généré
A4: Type | B4: Option de réduction | C4: US$/tonCO2 | D4: Unité du sous-type | E4: t CO2-eq/unité | F4: Million US$ | G4: MUS$/an | H4: en 2025 | I4: ktCO2-eq/an | J4: ktCO2-eq/an | K4: Frac.du total | L4: ktoe | M4: ktoe | N4: GWh | O4: GWh
A5: Agriculture | B5: Réduction du CH4 des cultures de riz | C5: =Agriculture!D28 -> 1.2 | D5: Culture de riz CH4 red.(1000 ha) | E5: =Agriculture!D25 -> 2566.2 | F5: =Agriculture!B15*H5/1000000 -> 0 | G5: =Agriculture!D20*H5/1000000 -> 0 | I5: =E5*H5/1000 -> 0 | J5: =OFFSET(J5,-1,0)+I5 -> 0 | K5: =J5/TotalEmis2025 -> 0 | AA5: Cogeneration in industry | AB5: 846.9416952 | AC5: 22.25798031
B6: Culture sans labour | C6: =+Agriculture!D192 -> -166.3918768 | D6: 1000 ha | E6: =+Agriculture!D190 -> 85.7270531 | F6: =Agriculture!C180*H6/1000000 -> 0 | G6: =Agriculture!D185*H6/1000000 -> 0 | I6: 0 | J6: 0 | K6: 0 | AA6: Efficient domestic lighting with LEDs | AB6: 376.5026462 | AC6: 12.00598894
B7: Couverture de cultures | C7: =+Agriculture!D87 -> 81.04026846 | D7: 1000 ha | E7: =+Agriculture!D85 -> 1490 | F7: =Agriculture!D75*H7/1000000 -> 0 | G7: =Agriculture!D80*H7/1000000 -> 0 | I7: 0 | J7: 0 | K7: 0
B8: Inhibiteurs de nitrification (1000 ha) | C8: =+Agriculture!D115 -> 67.68987342 | D8: 1000 ha | E8: =+Agriculture!D113 -> 790 | F8: =Agriculture!D103*H8/1000000 -> 0 | G8: =Agriculture!D108*H8/1000000 -> 0 | I8: 0 | J8: 0 | K8: 0
B9: Couverture des dépôts lisier (1 dépôt de lisier) | C9: =+Agriculture!D141 -> 937.8333407 | D9: 1 dépôt de lisier | E9: =+Agriculture!D139 -> 0.2013 | F9: =Agriculture!D129*H9/1000000 -> 0 | G9: =Agriculture!D134*H9/1000000 -> 0 | I9: 0 | J9: 0 | K9: =J9/TotalEmis2025 -> 0
B10: Supplémentation en matières grasses dans l'alimentation des ruminants (% de matières grasses DM ajoutées) | C10: =+Agriculture!D166 -> 80.5 | D10: % de matières grasses DM ajouté | E10: =+Agriculture!D164 -> 4336.226833 | F10: =Agriculture!D154*H10/1000000 -> 0 | G10: =Agriculture!D159*H10/1000000 -> 0 | I10: 0 | J10: 0 | K10: 0
B11: Traitement du tabac | C11: =+Agriculture!D60 -> -20.8017392 | D11: 100 t de tabac/an | E11: =+Agriculture!D58 -> 561.969408 | F11: =Agriculture!B48*H11/1000000 -> 0 | G11: =Agriculture!D53*H11/1000000 -> 0 | I11: 0 | J11: 0 | K11: 0 | AA11: Efficient domestic lighting with LEDs | AB11: 376.5026462 | AC11: 60.02994472
A12: Energie biomasse | B12: Centrales de cogénération d'écorce de riz | C12: =+'Energie biomasse'!D22 -> -87.68471234 | D12: 1 MW cogénération | E12: =+'Energie biomasse'!D20 -> 9719.024743 | F12: =+'Energie biomasse'!B10*H12/1000000 -> 0 | G12: =+'Energie biomasse'!D15*H12/1000000 -> 0 | I12: =E12*H12/1000 -> 0 | J12: =OFFSET(J12,-1,0)+I12 -> 0 | K12: =J12/TotalEmis2025 -> 0 | O12: =+'Energie biomasse'!G20/'Energie biomasse'!G17*H12/1000 -> 0 | AA12: Geothermal power | AB12: 356.5429719 | AC12: 131.25
B13: Production électrique à partir des résidus de biomasse | C13: =+'Energie biomasse'!D55 -> -184.6008877 | D13: 1 MW cogénération | E13: =+'Energie biomasse'!D53 -> 2427.5 | F13: =+'Energie biomasse'!B43*H13/1000000 -> 0 | G13: =+'Energie biomasse'!D48*H13/1000000 -> 0 | I13: 0 | J13: 0 | K13: =J13/TotalEmis2025 -> 0 | O13: =+'Energie biomasse'!G51*H13/1000 -> 0 | AA13: Wind turbines, on-shore | AB13: 351.7034642 | AC13: 48.4375
B14: Production électrique à partir de bagasse | C14: ='Energie biomasse'!D86 -> -341.7429484 | D14: 100 kt cane à sucre/an | E14: ='Energie biomasse'!D84 -> 6791.451429 | F14: ='Energie biomasse'!B74*H14/1000000 -> 0 | G14: ='Energie biomasse'!D79*H14/1000000 -> 0 | I14: 0 | J14: 0 | K14: 0 | O14: ='Energie biomasse'!G85/'Energie biomasse'!G79*100*H14/1000 -> 0 | AA14: Efficient residential airconditioning | AB14: 343.000921 | AC14: 84.33436629
A15: Capture et stockage | B15: Usine de capture et du stockage | C15: =+'Capture et stockage'!D22 -> 203.8168012 | D15: 1 MW | E15: =+'Capture et stockage'!D20 -> 5412.371134 | F15: ='Capture et stockage'!D10*H15/1000000 -> 0 | G15: ='Capture et stockage'!D15*H15/1000000 -> 0 | I15: =E15*H15/1000 -> 0 | J15: =OFFSET(J15,-1,0)+I15 -> 0 | K15: =J15/TotalEmis2025 -> 0 | O15: =+'Capture et stockage'!G16/'Capture et stockage'!G13*H15/1000 -> 0 | AA15: Efficient street lights | AB15: 331.5529212 | AC15: 6.053439803
A16: Ciment | B16: Remplacement du clinker | C16: =+Ciment!D22 -> 7.552571263 | D16: 1000 tonnes ciment/jour | E16: =+Ciment!D20 -> 166583.5619 | F16: =Ciment!B9*H16/1000000 -> 0 | G16: =Ciment!D15*H16/1000000 -> 0 | I16: 0 | J16: 0 | K16: 0 | AA16: Efficient electric stoves | AB16: 320.0969047 | AC16: 4.791154791
A17: Mine de charbon | B17: Méthane de mine de charbon | C17: =+'Mine de charbon'!D23 -> -30.71210762 | D17: 10 Mm3 CMM/an | E17: =+'Mine de charbon'!D21 -> 37352.84 | F17: =+'Mine de charbon'!B11/1000000*H17 -> 0 | G17: =+'Mine de charbon'!D21/1000000*H17 -> 0 | I17: 0 | J17: 0 | K17: 0 | O17: =+'Mine de charbon'!G26/'Mine de charbon'!G21*10*H17/1000 -> 0 | AA17: Solar PVs, large grid | AB17: 298.3034805 | AC17: 76.37625
A18: EE ménages | B18: Climatisation résidentielle efficace | C18: =+'EE ménages'!D28 -> -307.4092522 | D18: 1000 climatiseur | E18: =+'EE ménages'!D26 -> 779.892092 | F18: =+'EE ménages'!B16*H18/1000000 -> 0 | G18: =+'EE ménages'!D21*H18/1000000 -> 0 | I18: 0 | J18: 0 | K18: =J18/TotalEmis2025 -> 0 | N18: =+'EE ménages'!G40*H18/1000 -> 0 | AA18: Efficient refrigerators | AB18: 259.1416914 | AC18: 26.36609337
B19: Éclairage efficace avec les ampoules fluocompactes | C19: =+'EE ménages'!D62 -> -321.0676312 | D19: 1000 Ampoules | E19: =+'EE ménages'!D60 -> 38.0974355 | F19: =+'EE ménages'!D50*H19/1000000 -> 0 | G19: =+'EE ménages'!D55*H19/1000000 -> 0 | I19: 0 | J19: 0 | K19: 0 | N19: ='EE ménages'!G63*H19/1000 -> 0 | AA19: Assisted forest regeneration | AB19: 14.61993428 | AC19: 261.25
B20: Éclairage efficace avec LED | C20: =+'EE ménages'!D94 -> -354.6816744 | D20: 1000 Ampoules | E20: =+'EE ménages'!D92 -> 77.71876843 | F20: =+'EE ménages'!D82*H20/1000000 -> 0 | G20: =+'EE ménages'!D87*H20/1000000 -> 0 | I20: 0 | J20: 0 | K20: 0 | N20: =+'EE ménages'!G99*H20/1000 -> 0 | AA20: Biogas at big farms | AB20: 9.944730478 | AC20: 28.09570149
B21: Éclairage efficace avec LED remplaçant les fluocompactes | C21: =+'EE ménages'!D120 -> -213.844558 | D21: 1000 Ampoules | E21: =+'EE ménages'!D118 -> 9.143384521 | F21: ='EE ménages'!D108*H21/1000000 -> 0 | G21: ='EE ménages'!D113*H21/1000000 -> 0 | I21: 0 | J21: 0 | K21: 0 | N21: =+'EE ménages'!G100*H21/1000 -> 0
B22: Poêles à bois efficaces | C22: =+'EE ménages'!D176 -> -933.2500415 | D22: 1000 poêles | E22: =+'EE ménages'!D174 -> 1338.333333 | F22: =+'EE ménages'!B164*H22/1000000 -> 0 | G22: =+'EE ménages'!D169*H22/1000000 -> 0 | I22: 0 | J22: 0 | K22: 0 | AA22: Composting of Municipal Solid Waste | AB22: 7.176657819 | AC22: 7.271019
B23: Poêles à charbon de bois efficaces | C23: =+'EE ménages'!D203 -> -62.6154976 | D23: 1000 poêles | E23: =+'EE ménages'!D201 -> 296.5075132 | F23: =+'EE ménages'!B191*H23/1000000 -> 0 | G23: =+'EE ménages'!D196*H23/1000000 -> 0 | I23: 0 | J23: 0 | K23: 0
B24: Poêles au GPL remplaçant les poêles à bois | C24: =+'EE ménages'!D231 -> 74.16714372 | D24: 1000 poêles | E24: =+'EE ménages'!D229 -> 2054.943917 | F24: ='EE ménages'!B219*H24/1000000 -> 0 | G24: ='EE ménages'!D224*H24/1000000 -> 0 | I24: 0 | J24: 0 | K24: 0 | AA24: Biodiesel from MSW | AB24: 0.1374728882 | AC24: 64.26690086
B25: Poêles électriques efficaces | C25: =+'EE ménages'!D260 -> -273.8098373 | D25: 1000 poêles | E25: =+'EE ménages'!D258 -> 155.0737101 | F25: ='EE ménages'!D248*H25/1000000 -> 0 | G25: ='EE ménages'!D253*H25/1000000 -> 0 | I25: 0 | J25: 0 | K25: 0 | N25: ='EE ménages'!G273*H25/1000 -> 0 | AA25: Biogas at rural farms | AB25: -1.210737512 | AC25: 11.27412
B26: Poêles induction | C26: =+'EE ménages'!D287 -> 504.9017484 | D26: 1000 poêles | E26: =+'EE ménages'!D285 -> 11.29676034 | F26: ='EE ménages'!D275*H26/1000000 -> 0 | G26: ='EE ménages'!D280*H26/1000000 -> 0 | I26: =E26*H26/1000 -> 0 | J26: =OFFSET(J26,-1,0)+I26 -> 0 | K26: =+J26/TotalEmis2025 -> 0 | N26: ='EE ménages'!G300*H26/1000 -> 0
B27: Nuveau domicile passif | C27: =+'EE ménages'!D315 -> -141.1892243 | D27: 1000 batiments | E27: =+'EE ménages'!D313 -> 8499.232187 | F27: ='EE ménages'!D303*H27/1000000 -> 0 | G27: ='EE ménages'!D308*H27/1000000 -> 0 | I27: =E27*H27/1000 -> 0 | J27: =OFFSET(J27,-1,0)+I27 -> 0 | K27: =+J27/TotalEmis2025 -> 0 | N27: ='EE ménages'!G325*H27/1000 -> 0
B28: Réfrigérateurs efficaces | C28: =+'EE ménages'!D146 -> -37.23701391 | D28: 1000 refrigérateurs | E28: =+'EE ménages'!D144 -> 1203.823587 | F28: =+'EE ménages'!D134*H28/1000000 -> 0 | G28: =+'EE ménages'!D139*H28/1000000 -> 0 | I28: 0 | J28: 0 | K28: =J28/TotalEmis2025 -> 0 | N28: =+'EE ménages'!G158*H28/1000 -> 0 | AA28: Charcoal production | AB28: -1.733595543 | AC28: 21.15072072
A29: EE industrie | B29: Moteurs électriques efficaces | C29: =+'EE industries'!D21 -> -309.0172324 | D29: 1 kW | E29: =+'EE industries'!D19 -> 0.6494539995 | F29: =+'EE industries'!D9*H29/1000000 -> 0 | G29: =+'EE industries'!D14*H29/1000000 -> 0 | I29: =E29*H29/1000 -> 0 | J29: =OFFSET(J29,-1,0)+I29 -> 0 | K29: 0 | N29: =H29*'EE industries'!G21/1000000 -> 0 | AA29: Efficient wood stoves | AB29: -1.812093777 | AC29: 206.4156111
B30: Efficacité énergétique dans l'industrie | C30: =+'EE industries'!D80 -> 0.9439292574 | D30: 10% red. de demande d'énergie | E30: =+'EE industries'!D78 -> 13282494.26 | F30: =+'EE industries'!K68*H30/1000000 -> 177.7497355 | G30: ='EE industries'!D73*H30/1000000 -> 12.53773494 | H30: 1 | I30: =E30*H30/1000 -> 13282.49426 | J30: =OFFSET(J30,-1,0)+I30 -> 13282.49426 | K30: 0.01640000615 | AA30: Clinker replacement | AB30: -12.67068388 | AC30: 111.9303702
B31: Matériaux de construction | C31: =+'EE industries'!D51 -> -18.89515475 | D31: 1 million briques | E31: =+'EE industries'!D49 -> 520.3 | F31: ='EE industries'!D39*H31/1000000 -> 0 | G31: ='EE industries'!D44*H31/1000000 -> 0 | I31: =E31*H31/1000 -> 0 | J31: =OFFSET(J31,-1,0)+I31 -> 13282.49426 | K31: 0.01640000615 | AA31: LPG stoves replacing wood stoves | AB31: -30.54822322 | AC31: 353.757635
A32: EE chaleur résiduelle | B32: Récupération de chaleur résiduelle dans une cimenterie | C32: =+'EE chaleur résiduelle'!D21 -> -375.618814 | D32: 1 Cimenterie | E32: =+'EE chaleur résiduelle'!D19 -> 39852.89865 | F32: =+'EE chaleur résiduelle'!B9*H32/1000000 -> 0 | G32: =+'EE chaleur résiduelle'!D14*H32/1000000 -> 0 | I32: =E32*H32/1000 -> 0 | J32: =OFFSET(J32,-1,0)+I32 -> 13282.49426 | K32: 0.01640000615 | O32: =+'EE chaleur résiduelle'!G15*principale30!H32 -> 0 | AA32: Efficient electric grids | AB32: -131.2927002 | AC32: 49
B33: Récupération de la chaleur résiduelle dans une aciérie | C33: =+'EE chaleur résiduelle'!D51 -> -390.7944803 | D33: 1 Aciérie | E33: =+'EE chaleur résiduelle'!D49 -> 36703.8 | F33: =+'EE chaleur résiduelle'!B39*H33/1000000 -> 0 | G33: =+'EE chaleur résiduelle'!D44*H33/1000000 -> 0 | I33: 0 | J33: 13282.49426 | K33: 0.01640000615 | O33: ='EE chaleur résiduelle'!G44*principale30!H33 -> 0 | AA33: Reforestation | AB33: -11574.11464 | AC33: 1.32
A34: EE service | B34: Moteurs électriques efficaces | C34: =+'EE services'!D27 -> -309.0172324 | D34: 1 kW | E34: =+'EE services'!D25 -> 0.6494539995 | F34: =+'EE services'!D15*H34/1000000 -> 0 | G34: =+'EE services'!D20*H34/1000000 -> 0 | I34: 0 | J34: 13282.49426 | K34: =J34/TotalEmis2025 -> 0.01640000615 | N34: =H34*'EE services'!G27/1000000 -> 0
B35: Éclairage de bureau efficace avec des ampoules fluocompactes | C35: =+'EE services'!D55 -> -303.4049412 | D35: 1000 lampes | E35: =+'EE services'!D53 -> 39.18593366 | F35: =+'EE services'!D43*H35/1000000 -> 0 | G35: =+'EE services'!D48*H35/1000000 -> 0 | I35: 0 | J35: 13282.49426 | K35: 0.01640000615 | N35: =+'EE services'!G55*H35/1000 -> 0
B36: Éclairage de bureau efficace avec LED | C36: =+'EE services'!D87 -> -270.574894 | D36: 1000 lampes | E36: =+'EE services'!D85 -> 44.41072482 | F36: =+'EE services'!D75*H36/1000000 -> 0 | G36: =+'EE services'!D80*H36/1000000 -> 0 | I36: =E36*H36/1000 -> 0 | J36: =OFFSET(J36,-1,0)+I36 -> 13282.49426 | K36: 0.01640000615 | N36: =+'EE services'!G87*H36/1000 -> 0
B37: Éclairage public efficace | C37: =+'EE services'!D121 -> -301.4717881 | D37: 1000 lampes | E37: =+'EE services'!D119 -> 391.8593366 | F37: =+'EE services'!D109*H37/1000000 -> 0 | G37: =+'EE services'!D114*H37/1000000 -> 0 | I37: 0 | J37: 13282.49426 | K37: 0.01640000615 | N37: =+'EE services'!G135*H37/1000 -> 0
B38: Pompage efficace de l'eau | C38: =+'EE services'!D157 -> -310.596086 | D38: 4 Million m3 d'eau | E38: =+'EE services'!D155 -> 763.4398034 | F38: =+'EE services'!B145*H38/1000000 -> 0 | G38: =+'EE services'!D150*H38/1000000 -> 0 | I38: 0 | J38: 13282.49426 | K38: 0.01640000615 | N38: =+'EE services'!G156*H38 -> 0
B39: Chauffage, ventilation, climatisation | C39: =+'EE services'!D246 -> -399.5917508 | D39: 100,000 m2 surface planché | E39: =+'EE services'!D244 -> 4556.707109 | F39: ='EE services'!D234*H39/1000000 -> 0 | G39: ='EE services'!D239*H39/1000000 -> 0 | I39: 0 | J39: 13282.49426 | K39: 0.01640000615 | N39: =+'EE services'!G252*H39/1000 -> 0
B40: Refroidisseur efficace> 300 TR | C40: =+'EE services'!D275 -> -84.76380665 | D40: 1 TR | E40: =+'EE services'!D273 -> 1.96075 | F40: ='EE services'!D235*H40/1000000 -> 0 | G40: ='EE services'!D240*H40/1000000 -> 0 | I40: =E40*H40/1000 -> 0 | J40: =OFFSET(J40,-1,0)+I40 -> 13282.49426 | K40: =+J40/TotalEmis2025 -> 0.01640000615 | N40: =+'EE services'!G288*H40/1000000 -> 0
B41: Refroidisseur efficace <300 TR | C41: =+'EE services'!D307 -> -126.6301241 | D41: 1 TR | E41: =+'EE services'!D305 -> 0.87335 | F41: ='EE services'!D236*H41/1000000 -> 0 | G41: ='EE services'!D241*H41/1000000 -> 0 | I41: 0 | J41: 13282.49426 | K41: 0.01640000615 | N41: =+'EE services'!G319*H41/1000000 -> 0
B42: Climatiseurs de type fenêtre/individuel efficace | C42: =+'EE services'!D339 -> -288.5413986 | D42: 1000 climatiseurs | E42: =+'EE services'!D337 -> 0.7055080649 | F42: ='EE services'!B327*H42/1000000 -> 0 | G42: ='EE services'!D332*H42/1000000 -> 0 | I42: 0 | J42: 13282.49426 | K42: 0.01640000615 | N42: =+'EE services'!G352*H42/1000000 -> 0
B43: Lave-vaisselle commercial efficace | C43: =+'EE services'!D372 -> -197.3651484 | D43: 1000 repas/jours | E43: =+'EE services'!D370 -> 10.88498157 | F43: ='EE services'!D360*H43/1000000 -> 0 | G43: ='EE services'!D365*H43/1000000 -> 0 | I43: 0 | J43: 13282.49426 | K43: 0.01640000615 | N43: =+'EE services'!G387*H43/1000000 -> 0
B44: Réfrigérateur d'hôtel efficace | C44: =+'EE services'!D407 -> 947.9528361 | D44: 1 réfrigérateurs | E44: =+'EE services'!D405 -> 0.397191125 | F44: ='EE services'!B395*H44/1000000 -> 0 | G44: ='EE services'!D400*H44/1000000 -> 0 | I44: 0 | J44: 13282.49426 | K44: 0.01640000615 | N44: =+'EE services'!G414*H44/1000000 -> 0
B45: Machine à laver efficace pour hôtel | C45: =+'EE services'!D437 -> 38248.88709 | D45: 100 Clients Nuits (CN) | E45: =+'EE services'!D435 -> 0.06378414057 | F45: ='EE services'!D425*H45/1000000 -> 0 | G45: ='EE services'!D430*H45/1000000 -> 0 | I45: 0 | J45: 13282.49426 | K45: 0.01640000615 | N45: =+'EE services'!G458*H45/1000000 -> 0
B46: Efficacité énergétique en service | C46: =+'EE services'!D221 -> 0.9439292574 | D46: 10% red. de demande d'énergie | E46: =+'EE services'!D219 -> 4272688.871 | F46: ='EE services'!B209*H46/1000000 -> 21.36344436 | G46: ='EE services'!D214*H46/1000000 -> 2.016558017 | H46: 0.5 | I46: 2136.344436 | J46: 15418.83869 | K46: =J46/TotalEmis2025 -> 0.01903776839
B47: Nouvel immeuble de bureaux avec refroidissement central | C47: =+'EE services'!D186 -> -300.2097828 | D47: 1000 m2 | E47: =+'EE services'!D184 -> 34.86940321 | F47: =+'EE services'!D174*H47/1000000 -> 6.598786157 | G47: =+'EE services'!D179*H47/1000000 -> -10.46813597 | H47: 1000 | I47: =(E47*H47)/1000 -> 34.86940321 | J47: =OFFSET(J47,-1,0,1,1)+I47 -> 15453.7081 | K47: 0.01908082193 | N47: =+'EE services'!G199*H47 -> 58.46280992
A48: EE offre | B48: Nouvelle centrale à charbon à haut rendement | C48: =+'EE offre'!D52 -> 21.48582394 | D48: 1 MW | E48: =+'EE offre'!D50 -> 1117.0368 | F48: =+'EE offre'!B40*H48/1000000 -> 0 | G48: =+'EE offre'!D45*H48/1000000 -> 0 | I48: 0 | J48: 15453.7081 | K48: 0.01908082193
B49: Nouvelle centrale électrique au gaz naturel | C49: ='EE offre'!D23 -> -5891.96831 | D49: 1 MW | E49: =+'EE offre'!D21 -> 159 | F49: =+'EE offre'!B11/1000000*H49 -> 0 | G49: =+'EE offre'!D16/1000000*H49 -> 0 | I49: 0 | J49: 15453.7081 | K49: 0.01908082193
B50: Passer du fioul lourd au diesel | C50: ='EE offre'!D140 -> 1206.960466 | D50: 1 MW | E50: =+'EE offre'!D138 -> 124.4919356 | F50: =+'EE offre'!B128/1000000*H50 -> 0 | G50: =+'EE offre'!D133/1000000*H50 -> 0 | I50: 0 | J50: 15453.7081 | K50: 0.01908082193
B51: Passer du fioul lourd au gaz naturel | C51: ='EE offre'!D170 -> -339.5211245 | D51: 1 MW | E51: =+'EE offre'!D168 -> 1454.357143 | F51: =+'EE offre'!B158/1000000*H51 -> 0 | G51: =+'EE offre'!D1634/1000000*H51 -> 0 | I51: 0 | J51: =OFFSET(J51,-1,0,1,1)+I51 -> 15453.7081 | K51: 0.01908082193
B52: La cogénération dans l'industrie | C52: =+'EE offre'!D111 -> -4717.342804 | D52: 1 MW | E52: =+'EE offre'!D109 -> 542.4089492 | F52: =+'EE offre'!D100*principale25!H52/1000000 -> 0 | G52: =+'EE offre'!D104*H52/1000000 -> 0 | I52: 0 | J52: 15453.7081 | K52: 0.01908082193 | N52: =+'EE offre'!G110*H52/1000 -> 0
B53: Cycle unique à cycle combiné | C53: =+'EE offre'!D81 -> 55.04272371 | D53: 100 MW d'augmentation | E53: =+'EE offre'!D79 -> 75738 | F53: ='EE offre'!D70*H53/1000000 -> 0 | G53: ='EE offre'!D74*H53/1000000 -> 0 | I53: 0 | J53: 15453.7081 | K53: 0.01908082193 | N53: =+'EE offre'!G90*H53/1000 -> 0
A54: Distribution d'énergie | B54: Réseaux électriques efficaces | C54: =+'Distribution énergie'!D24 -> 145.23996 | D54: 1 GWh pertes évités | E54: =+'Distribution énergie'!D22 -> 485.5 | F54: =+'Distribution énergie'!D12*principale25!H54/1000000 -> 14383.59917 | G54: =+'Distribution énergie'!D17*H54/1000000 -> 1057.710009 | H54: 15000 | I54: 7282.5 | J54: 22736.2081 | K54: 0.02807258526 | N54: =+H54*'Distribution énergie'!N20 -> 0
B55: Connexion du réseau isolé au réseau central | C55: =+'Distribution énergie'!D53 -> -35.97046427 | D55: 1 GWh consommation | E55: =+'Distribution énergie'!D51 -> 485.5 | F55: =+'Distribution énergie'!D41*H55/1000000 -> 0 | G55: =+'Distribution énergie'!D46*H55/1000000 -> 0 | I55: =(E55*H55)/1000 -> 0 | J55: =OFFSET(J55,-1,0,1,1)+I55 -> 22736.2081 | K55: =J55/TotalEmis2025 -> 0.02807258526
B56: Augmentation du facteur de puissance | C56: =+'Distribution énergie'!D83 -> 1.318578051 | D56: 1000 commerce/batiment industriel | E56: =+'Distribution énergie'!D81 -> 94589.93197 | F56: ='Distribution énergie'!B71*H56/1000000 -> 0 | G56: ='Distribution énergie'!D76*H56/1000000 -> 0 | I56: 0 | J56: 22736.2081 | K56: 0.02807258526 | N56: =H56*'Distribution énergie'!G91 -> 0
B57: Réhabilitation du réseau de chauffage urbain | C57: =+'Distribution énergie'!D112 -> -153.1304887 | D57: Récupération de la chaleur dans une cimenterie | E57: =+'Distribution énergie'!D110 -> 33649.05341 | F57: ='Distribution énergie'!B99*H57/1000000 -> 0 | G57: ='Distribution énergie'!D105*H57/1000000 -> 0 | I57: =(E57*H57)/1000 -> 0 | J57: =OFFSET(J57,-1,0,1,1)+I57 -> 22736.2081 | K57: =+J57/TotalEmis2025 -> 0.02807258526
B58: Nouveau réseau de refroidissement urbain | C58: =+'Distribution énergie'!D151 -> -148.4527474 | D58: Nouveau réseau de refroidissement urbain (1 million de m2 de nouvelle zone urbaine couverte) | E58: =+'Distribution énergie'!D149 -> 13725.62313 | F58: ='Distribution énergie'!D139*H58/1000000 -> 0 | G58: ='Distribution énergie'!D144*H58/1000000 -> 0 | I58: =(E58*H58)/1000 -> 0 | J58: =OFFSET(J58,-1,0,1,1)+I58 -> 22736.2081 | K58: =+J58/TotalEmis2025 -> 0.02807258526
A59: Foresterie | B59: Reboisement | C59: =+Foresterie!D26 -> 15.44611512 | D59: 1000 ha de reboisement | E59: =Foresterie!D24 -> 3666.666667 | F59: =Foresterie!B13/1000000*H59 -> 0 | G59: =Foresterie!D19/1000000*H59 -> 0 | I59: 0 | J59: 22736.2081 | K59: 0.02807258526
B60: REDD: déforestation évitée | C60: =+Foresterie!D54 -> -10.38322183 | D60: 1000 ha déforestation évitée | E60: =Foresterie!D52 -> 3666.666667 | F60: =Foresterie!B42*H60/1000000 -> 0 | G60: =Foresterie!D47/1000000*H60 -> 0 | I60: =(E60*H60)/1000 -> 0 | J60: 22736.2081 | K60: 0.02807258526
B61: Régénération assistée des forêts | C61: =Foresterie!D82 -> -3.86152878 | D61: 1000 ha de régénéré | E61: =Foresterie!D80 -> 3666.666667 | F61: =Foresterie!B70/1000000*H61 -> 0 | G61: =Foresterie!D47/1000000*H61 -> 0 | I61: 0 | J61: 22736.2081 | K61: 0.02807258526
B62: Reboisement avec agroforesterie | C62: =Foresterie!D111 -> -0.6593433015 | D62: 1000 ha de régénéré | E62: =Foresterie!D109 -> 3666.666667 | F62: =Foresterie!B98/1000000*H62 -> 0 | G62: =Foresterie!D104/1000000*H62 -> 0 | I62: 0 | J62: 22736.2081 | K62: 0.02807258526
B63: Reboisement avec Silvopasture | C63: =Foresterie!D141 -> -0.6593433015 | D63: 1000 ha de régénéré | E63: =Foresterie!D139 -> 3666.666667 | F63: =Foresterie!B128/1000000*H63 -> 0 | G63: =Foresterie!D134/1000000*H63 -> 0 | I63: 0 | J63: 22736.2081 | K63: 0.02807258526
A64: Remplacement des | B64: Passer du charbon au gaz naturel dans l'industrie | C64: =+'Changement combustible fossile'!D22 -> 31.12653615 | D64: 100 TJ essence utilisé/an | E64: =+'Changement combustible fossile'!D20 -> 3850 | F64: ='Changement combustible fossile'!B10/1000000*H64 -> 0 | G64: ='Changement combustible fossile'!D15/1000000*H64 -> 0 | I64: 0 | J64: 22736.2081 | K64: 0.02807258526
A65: Combustibles fossiles | B65: Passer du fioul lourd au gaz naturel dans l'industrie | C65: ='Changement combustible fossile'!D51 -> -120.5737385 | D65: 100 TJ essence utilisé/an | E65: ='Changement combustible fossile'!D49 -> 2126.666667 | F65: ='Changement combustible fossile'!B39/1000000*H65 -> 0 | G65: ='Changement combustible fossile'!D44/1000000*H65 -> 0 | I65: 0 | J65: 22736.2081 | K65: 0.02807258526
A66: Emissions fugitives | B66: Réduction du torchage au champ pétrolifère | C66: =+'Emissions fugitives'!D23 -> 9.665100476 | D66: 1 MMSCF/jour | E66: =+'Emissions fugitives'!D21 -> 22613.49991 | F66: =+'Emissions fugitives'!B11*H66/1000000 -> 0 | G66: =+'Emissions fugitives'!D16*H66/1000000 -> 0 | I66: 0 | J66: 22736.2081 | K66: 0.02807258526
B67: Réduction du torchage dans les raffineries de pétrole | C67: =+'Emissions fugitives'!D52 -> 217.2561354 | D67: 1 MMSCF/jour | E67: =+'Emissions fugitives'!D50 -> 20797.218 | F67: =+'Emissions fugitives'!B40*H67/1000000 -> 0 | G67: =+'Emissions fugitives'!D45*H67/1000000 -> 0 | I67: =(E67*H67)/1000 -> 0 | J67: =OFFSET(J67,-1,0,1,1)+I67 -> 22736.2081 | K67: 0.02807258526
B68: Réduction des fuites dans les pipelines de gaz naturel | C68: ='Emissions fugitives'!D79 -> -5.576949389 | D68: 1 Mm3 CH4/an de fuite | E68: =+'Emissions fugitives'!D77 -> 15078 | F68: ='Emissions fugitives'!B67*H68/1000000 -> 0 | G68: ='Emissions fugitives'!B72*H68/1000000 -> 0 | I68: =(E68*H68)/1000 -> 0 | J68: =OFFSET(J68,-1,0,1,1)+I68 -> 22736.2081 | K68: 0.02807258526
B69: Production de charbon de bois | C69: =+'Emissions fugitives'!D106 -> 1.606633349 | D69: 100,000 ton charbon de bois/année | E69: =+'Emissions fugitives'!D104 -> 141004.8048 | F69: ='Emissions fugitives'!B95*H69/1000000 -> 0 | G69: ='Emissions fugitives'!D99*H69/1000000 -> 0 | I69: =(E69*H69)/1000 -> 0 | J69: =OFFSET(J69,-1,0,1,1)+I69 -> 22736.2081 | K69: 0.02807258526
A70: Géothermie | B70: Énergie géothermique | C70: =+Géothermique!D21 -> -238.860736 | D70: 1 MW | E70: =+Géothermique!D19 -> 3065.9325 | F70: =+Géothermique!B9*H70/1000000 -> 0 | G70: =+Géothermique!D14*H70/1000000 -> 0 | I70: 0 | J70: 22736.2081 | K70: 0.02807258526 | O70: =+Géothermique!G17*H70/1000 -> 0
B71: Chaleur géothermique | C71: =+Géothermique!D49 -> 22.34827711 | D71: 1000 m2 surface chauffé | E71: =+Géothermique!D47 -> 17.05628571 | F71: =Géothermique!B37*H71/1000000 -> 0 | G71: =Géothermique!D42*H71/1000000 -> 0 | I71: =(E71*H71)/1000 -> 0 | J71: =OFFSET(J71,-1,0,1,1)+I71 -> 22736.2081 | K71: 0.02807258526
A72: HFCs, PFCs, SF6 | B72: Réduction des PFC de la production d'aluminium | C72: =+'HFC PFC SF6'!D23 -> 0.0339760664 | D72: 100,000 ton Aluminium/an | E72: =+'HFC PFC SF6'!D21 -> 111888.385 | F72: =+'HFC PFC SF6'!B11*H72/1000000 -> 0 | G72: =+'HFC PFC SF6'!D16*H72/1000000 -> 0 | I72: 0 | J72: 22736.2081 | K72: 0.02807258526
A73: Hydro | B73: Hydroélectricité connectée au réseau principal | C73: =+Hydro!D23 -> -358.2033739 | D73: 1 MW | E73: =+Hydro!D21 -> 1923.0655 | F73: =+Hydro!B11*H73/1000000 -> 56905 | G73: =+Hydro!D16*H73/1000000 -> -34442.42752 | H73: 50000 | I73: 96153.275 | J73: 118889.4831 | K73: 0.1467938337 | O73: =+Hydro!G18*H73/1000 -> 198050
B74: Mini hydroélectricité connectée au réseau principal | C74: =+Hydro!D52 -> -181.6332823 | D74: 1 MW | E74: =+Hydro!D50 -> 1942 | F74: =+Hydro!B40*H74/1000000 -> 0 | G74: =+Hydro!D45*H74/1000000 -> 0 | I74: 0 | J74: 118889.4831 | K74: 0.1467938337 | O74: =Hydro!G48/Hydro!G45*H74/1000 -> 0
B75: Mini hydroélectricité hors réseau | C75: =+Hydro!D81 -> -16.96810299 | D75: 1 MW | E75: =+Hydro!D79 -> 3232 | F75: =+Hydro!B69*H75/1000000 -> 0 | G75: =Hydro!D74*H75/1000000 -> 0 | I75: 0 | J75: 118889.4831 | K75: =J75/TotalEmis2025 -> 0.1467938337 | O75: =Hydro!G49/Hydro!G46*H75/1000 -> 0
A76: Décharge | B76: Centrale de gaz d'enfouissement avec production d'électricité | C76: =Décharge!D26 -> -42.46544747 | D76: 200 t/jour centrale | E76: =Décharge!D24 -> 124415.214 | F76: =+Décharge!B14*H76/1000000 -> 0 | G76: =+Décharge!D19*H76/1000000 -> 0 | I76: 0 | J76: 118889.4831 | K76: 0.1467938337 | O76: =+Décharge!G35*H76/1000 -> 0
B77: Torchage des gaz d'enfouissement | C77: =+Décharge!D117 -> 1.121356277 | D77: 1 t/jour centrale | E77: =+Décharge!D115 -> 124415.214 | F77: =+Décharge!B105*H77/1000000 -> 0 | G77: =Décharge!D110*H77/1000000 -> 0 | I77: 0 | J77: 118889.4831 | K77: 0.1467938337
B78: Usine d'incinération | C78: =+Décharge!D90 -> 13.88192578 | D78: 200 t/jour centrale | E78: =Décharge!D88 -> 139951.214 | F78: =Décharge!B78*H78/1000000 -> 0 | G78: =Décharge!D83*H78/1000000 -> 0 | I78: 0 | J78: 118889.4831 | K78: 0.1467938337
B79: Recyclage des plastiques | C79: =+Décharge!D196 -> -280.9256499 | D79: 1000 t/an centrale | E79: =Décharge!D194 -> 1095.42 | F79: =Décharge!D183*H79/1000000 -> 0 | G79: =Décharge!D189*H79/1000000 -> 0 | I79: 0 | J79: 118889.4831 | K79: 0.1467938337
B80: Combustible issu de déchets municipaux solides | C80: =+Décharge!D170 -> -119.5920627 | D80: 200 t DMS/jour centrale | E80: =Décharge!D168 -> 20389.42857 | F80: =Décharge!D158*H80/1000000 -> 0 | G80: =Décharge!D163*H80/1000000 -> 0 | I80: =(E80*H80)/1000 -> 0 | J80: =OFFSET(J80,-1,0,1,1)+I80 -> 118889.4831 | K80: 0.1467938337
B81: Biogaz issu des déchets solides municipaux | C81: =+Décharge!D145 -> 0.2205563527 | D81: 1000 t/an centrale | E81: =+Décharge!D143 -> 12186.72 | F81: =+Décharge!B133*H81/1000 -> 0 | G81: =Décharge!D138*H81/1000000 -> 0 | I81: =(E81*H81)/1000 -> 0 | J81: =OFFSET(J81,-1,0,1,1)+I81 -> 118889.4831 | K81: 0.1467938337
B82: Compostage des déchets solides municipaux | C82: =+Décharge!D62 -> -0.05586878118 | D82: 1000 t/jour centrale | E82: =+Décharge!D60 -> 4136782.104 | F82: =+Décharge!B49*H82/1000000 -> 0 | G82: =+Décharge!D55*H82/1000000 -> 0 | I82: 0 | J82: 118889.4831 | K82: =J82/TotalEmis2025 -> 0.1467938337
A83: Marin | B83: Energie marémotrice | C83: =Marine!D21 -> 363.6166732 | D83: 1 MW d'énergie marémotrice | E83: =Marine!D19 -> 1275.894 | F83: =Marine!B9*H83/1000000 -> 0 | G83: =Marine!D14*H83/1000000 -> 0 | I83: 0 | J83: 118889.4831 | K83: 0.1467938337 | O83: =+Marine!G17*H83/1000 -> 0
B84: Energie houlomotrice | C84: =Marine!D46 -> 343.1068215 | D84: 1 MW d'énergie houlomotrice | E84: =Marine!D44 -> 1488.543 | F84: =Marine!B34*H84/1000000 -> 0 | G84: =Marine!D39*H84/1000000 -> 0 | I84: 0 | J84: 118889.4831 | K84: 0.1467938337 | O84: =+Marine!G42*H84/1000 -> 0
A85: Evitement des émissions de méthane | B85: Biogaz dans les fermes rurales subsituant le kérosène | C85: =+'Evitement méthane'!D22 -> -151.6625876 | D85: 1000 unités | E85: =+'Evitement méthane'!D20 -> 1227.6264 | F85: =+'Evitement méthane'!B10*H85/1000000 -> 0 | G85: =+'Evitement méthane'!D15*H85/1000000 -> 0 | I85: =(E85*H85)/1000 -> 0 | J85: =OFFSET(J85,-1,0,1,1)+I85 -> 118889.4831 | K85: 0.1467938337
B86: Biogaz dans les fermes rurales subsituant le bois de feu non renouvelable | C86: =+'Evitement méthane'!D49 -> 2.285701121 | D86: 1000 unités | E86: =+'Evitement méthane'!D47 -> 11274.12 | F86: =+'Evitement méthane'!B37*H86/1000000 -> 0 | G86: =+'Evitement méthane'!D42*H86/1000000 -> 0 | I86: =(E86*H86)/1000 -> 0 | J86: =OFFSET(J86,-1,0,1,1)+I86 -> 118889.4831 | K86: 0.1467938337
B87: Le biogaz dans les grandes fermes | C87: =+'Evitement méthane'!D76 -> -18.33016219 | D87: 84000 cochons | E87: =+'Evitement méthane'!D74 -> 71321.27861 | F87: ='Evitement méthane'!B64*H87/1000000 -> 0 | G87: ='Evitement méthane'!D69*H87/1000000 -> 0 | I87: 0 | J87: 118889.4831 | K87: =J87/TotalEmis2025 -> 0.1467938337 | O87: =+'Evitement méthane'!G78*H87/1000 -> 0
B88: Biogaz émanant des eaux usées industrielles | C88: =+'Evitement méthane'!D104 -> -199.0085772 | D88: 1 centrale | E88: =+'Evitement méthane'!D102 -> 25805.268 | F88: =+'Evitement méthane'!B92*H88/1000000 -> 0 | G88: =+'Evitement méthane'!D97*H88/1000000 -> 0 | I88: 0 | J88: 118889.4831 | K88: 0.1467938337
A89: N2O | B89: Usine d'acide nitrique (destruction N2O) | C89: =+N2O!D20 -> 1.455010229 | D89: 100 ton HNO3/jour | E89: =+N2O!D18 -> 69021.5 | F89: =+N2O!B9*H89/1000000 -> 0 | G89: =N2O!D13*H89/1000000 -> 0 | I89: 0 | J89: 118889.4831 | K89: 0.1467938337
A90: Solaire | B90: Chauffe-eau solaire, résidentiel | C90: =Solaire!D31 -> -341.4492172 | D90: 1000 locations | E90: =Solaire!D29*1000 -> 803.7600577 | F90: =+Solaire!B19*H90/1000000 -> 0 | G90: =+Solaire!D24*H90/1000000 -> 0 | I90: =E90*H90/1000 -> 0 | J90: =OFFSET(J90,-1,0)+I90 -> 118889.4831 | K90: =J90/TotalEmis2025 -> 0.1467938337 | N90: =+Solaire!G37*H90/1000000 -> 0
B91: Chauffe-eau solaire, large | C91: =+Solaire!D58 -> -350.3022646 | D91: 1 unit | E91: =+Solaire!D56 -> 30.3547223 | F91: =+Solaire!B46*H91/1000000 -> 0 | G91: =+Solaire!D51*H91/1000000 -> 0 | I91: =(E91*H91)/1000 -> 0 | J91: =OFFSET(J91,-1,0,1,1)+I91 -> 118889.4831 | K91: 0.1467938337 | N91: =+Solaire!G66*H91/1000000 -> 0
B92: PV solaires, grand réseau | C92: =Solaire!D88 -> -294.1264611 | D92: 1 MW | E92: =Solaire!D86 -> 886.0375 | F92: =+Solaire!B76*H92/1000000 -> 7000 | G92: =+Solaire!D81*H92/1000000 -> -1824.24952 | H92: 7000 | I92: 6202.2625 | J92: 125091.7456 | K92: 0.1544518188 | O92: =+Solaire!G86*H92/1000 -> 12775
B93: PV solaires, grand réseau avec stockage 24h | C93: =Solaire!D112 -> -164.5244766 | D93: 1 MW | E93: =Solaire!D110 -> 886.0375 | F93: =+Solaire!B100*H93/1000000 -> 0 | G93: =+Solaire!D105*H93/1000000 -> 0 | I93: 0 | J93: 125091.7456 | K93: =+J93/TotalEmis2025 -> 0.1544518188 | O93: =+Solaire!G110*H93/1000 -> 0
B94: PV maison solaire | C94: =+Solaire!D137 -> -215.5798038 | D94: 500 W | E94: =+Solaire!D135 -> 0.398716875 | F94: =+Solaire!B125*H94/1000000 -> 0 | G94: =+Solaire!D130*H94/1000000 -> 0 | I94: 0 | J94: 125091.7456 | K94: =+J94/TotalEmis2025 -> 0.1544518188 | O94: =+Solaire!G140*H94/1000 -> 0
B95: PV de chalet solaire | C95: =+Solaire!D164 -> -215.5798038 | D95: 50 W | E95: =+Solaire!D162 -> 0.0398716875 | F95: =+Solaire!B152*H95/1000000 -> 0 | G95: =+Solaire!D157*H95/1000000 -> 0 | I95: 0 | J95: 125091.7456 | K95: =J95/TotalEmis2025 -> 0.1544518188 | O95: =+Solaire!G167*H95/1000 -> 0
B96: Mini-réseau solaire/diesel | C96: =+Solaire!D189 -> 95.25325009 | D96: 40 kW provenant du solaire | E96: =+Solaire!D187 -> 58.4 | F96: =+Solaire!B177*H96/1000000 -> 0 | G96: =Solaire!D182*H96/1000000 -> 0 | I96: 0 | J96: 125091.7456 | K96: =J96/TotalEmis2025 -> 0.1544518188 | O96: =+Solaire!G194*H96/1000 -> 0
B97: Lampes solaires à LED | C97: =+Solaire!D301 -> -121.7706488 | D97: 1000 lampes | E97: =+Solaire!D299 -> 93.90817333 | F97: =Solaire!B289*H97/1000000 -> 0 | G97: =Solaire!D294*H97/1000000 -> 0 | I97: 0 | J97: 125091.7456 | K97: =J97/TotalEmis2025 -> 0.1544518188
B98: PV solaires, petit réseau isolé, 100% solaire | C98: =+Solaire!D217 -> 221.4391744 | D98: 2 MW | E98: =+Solaire!D215 -> 2628 | F98: =+Solaire!B205*H98/1000000 -> 0 | G98: =+Solaire!D210*H98/1000000 -> 0 | I98: =(E98*H98)/1000 -> 0 | J98: =OFFSET(J98,-1,0,1,1)+I98 -> 125091.7456 | K98: 0.1544518188 | O98: =+Solaire!G220*H98/1000 -> 0
B99: Lampadaires solaires | C99: =+Solaire!D328 -> -758.4245007 | D99: 1000 locations (0.05 MW) | E99: =+Solaire!D326 -> 448.2483137 | F99: =+Solaire!B316*H99/1000000 -> 0 | G99: =+Solaire!D316*H99/1000000 -> 0 | I99: 0 | J99: 125091.7456 | K99: =J99/TotalEmis2025 -> 0.1544518188 | O99: =+Solaire!G339*H99/1000 -> 0
B100: Parabolique via centrale solaire à concentration, pas de stockage | C100: =Solaire!$D$246 -> 180.2858439 | D100: 1 MW | E100: =Solaire!$D$244 -> 728.25 | F100: =Solaire!B234*H100/1000000 -> 0 | G100: =Solaire!D239*H100/1000000 -> 0 | I100: 0 | J100: 125091.7456 | K100: 0.1544518188 | O100: =+Solaire!G243*H100/1000 -> 0
B101: Tour solaire centrale solaire à concentration, avec stockage | C101: =+Solaire!D273 -> 686.7743302 | D101: 1 MW | E101: =+Solaire!D271 -> 728.25 | F101: =+Solaire!B261*H101/1000000 -> 0 | G101: =+Solaire!D266*H101/1000000 -> 0 | I101: 0 | J101: 125091.7456 | K101: 0.1544518188 | O101: =+Solaire!G270*H101/1000 -> 0
A102: Transport | B102: Mélange de 10% de biodiesel dans tout le diesel | C102: =+Transport!D37 -> 369.3801107 | D102: 10% mélange en transport | E102: =+Transport!D35 -> 9519390.518 | F102: =+Transport!B25*H102/1000000 -> 0 | G102: =+Transport!D30*H102/1000000 -> 0 | I102: 0 | J102: 125091.7456 | K102: 0.1544518188
B103: Mélange de bioéthanol à 15% dans toute l'essence | C103: =+Transport!D66 -> 430.2691256 | D103: 15% mélange en transport | E103: =+Transport!D64 -> 1616104.663 | F103: =+Transport!B53*H103/1000000 -> 0 | G103: =+Transport!D58*M103/1000000 -> 0 | I103: 0 | J103: 125091.7456 | K103: 0.1544518188
B104: Service d'Autobus Express | C104: =Transport!D476 -> 89.46221882 | D104: 1 km ligne d'autobus express | E104: =+Transport!D474 -> 1983.461633 | F104: =Transport!B463*H104/1000000 -> 0 | G104: =Transport!D469*H104/1000000 -> 0 | I104: 0 | J104: 125091.7456 | K104: 0.1544518188 | L104: =I104/3.1 -> 0
B105: Voitures à essence plus efficaces | C105: =+Transport!D97 -> -210.5459231 | D105: 1000 voitures | E105: =+Transport!D95 -> 408.9038049 | F105: =+Transport!B84*H105/1000000 -> 0 | G105: =+Transport!D90*H105/1000000 -> 0 | I105: 0 | J105: 125091.7456 | K105: 0.1544518188 | M105: =I105/2.9 -> 0
B106: Voitures diesel plus efficaces | C106: =+Transport!D123 -> -158.5267765 | D106: 1000 voitures | E106: =+Transport!D121 -> 179.7212853 | F106: =+Transport!B110*H106/1000000 -> 0 | G106: =+Transport!D116*H106/1000000 -> 0 | I106: 0 | J106: 125091.7456 | K106: 0.1544518188 | L106: =I106/3.1 -> 0
B107: Voitures au gaz naturel | C107: =+Transport!D392 -> -111.5932574 | D107: 1000 voitures au gaz naturel | E107: =+Transport!D390 -> 778.084501 | F107: =+Transport!B380*H107/1000000 -> 0 | G107: =+Transport!D385*H107/1000000 -> 0 | I107: =(E107*H107)/1000 -> 0 | J107: =OFFSET(J107,-1,0,1,1)+I107 -> 125091.7456 | K107: =J107/TotalEmis2025 -> 0.1544518188 | L107: =I107/3.1 -> 0
B108: Voiture électrique | C108: =+Transport!D147 -> 357.7262044 | D108: 1000 voitures | E108: =+Transport!D145 -> 1002.541789 | F108: =+Transport!D135*H108/1000000 -> 1650 | G108: =+Transport!D140*H108/1000000 -> 179.3177345 | H108: 500 | I108: 501.2708947 | J108: 125593.0165 | K108: 0.1550707422 | M108: =+I108/2.9 -> 172.8520327
B109: Autobus électriques de 18m | C109: =+Transport!D177 -> 1333.258417 | D109: 1000 autobus | E109: =+Transport!D175 -> 39529.6484 | F109: =+Transport!D165*H109/1000000 -> 0 | G109: =+Transport!D170*H109/1000000 -> 0 | I109: 0 | J109: 125593.0165 | K109: 0.1550707422 | L109: =I109/3.1 -> 0
B110: Autobus électriques 12m | C110: =+Transport!D208 -> 1904.122164 | D110: 1000 autobus | E110: =+Transport!D206 -> 14473.98379 | F110: =+Transport!D196*H110/1000000 -> 0 | G110: =+Transport!D201*H110/1000000 -> 0 | I110: 0 | J110: 125593.0165 | K110: 0.1550707422 | L110: 0
B111: Camions lourds électriques | C111: =Transport!M239 -> 3808.531247 | D111: 1000 camions | E111: =Transport!M237 -> 12980.88497 | F111: =Transport!M227*H111/1000000 -> 0 | G111: =Transport!M232*H111/1000000 -> 0 | I111: 0 | J111: 125593.0165 | K111: =J111/TotalEmis2025 -> 0.1550707422 | L111: 0
B112: Camions légers électriques | C112: =Transport!M271 -> 577.6097546 | D112: 1000 camions | E112: =Transport!M269 -> 6412.165222 | F112: =Transport!M259*H112/1000000 -> 0 | G112: =Transport!M264*H112/1000000 -> 0 | I112: =(E112*H112)/1000 -> 0 | J112: =OFFSET(J112,-1,0,1,1)+I112 -> 125593.0165 | K112: =J112/TotalEmis2025 -> 0.1550707422 | L112: 0
B113: Train electric | C113: =+Transport!D303 -> -9824.859228 | D113: 1 Million trainkm/annee | E113: =+Transport!D301 -> -1319.750944 | F113: =+Transport!D291*H113/1000000 -> 164613.2469 | G113: =Transport!D296*H113/1000000 -> 12966.36724 | H113: 1000 | I113: =(E113*H113)/1000 -> -1319.750944 | J113: =OFFSET(J113,-1,0,1,1)+I113 -> 124273.2655 | K113: =J113/TotalEmis2025 -> 0.1534412347 | L113: -425.7261108
B114: Déplacement des passagers de la voiture vers le rail (1 Million de personne, km/jour) | C114: =Transport!D332 -> 1961.841466 | D114: 1 Million personne km/jour | E114: =Transport!D330 -> 35457.80333 | F114: =Transport!D320*H114/1000 -> 0 | G114: =Transport!D325*H114/1000 -> 0 | I114: =(E114*H114)/1000 -> 0 | J114: =OFFSET(J114,-1,0,1,1)+I114 -> 124273.2655 | K114: =J114/TotalEmis2025 -> 0.1534412347 | L114: 0
B115: Déplacement du transport de marchandises de la route vers le rail (1000 tonnes, km/jour) | C115: =Transport!D361 -> -1534.825995 | D115: 1000 tonkm/jour | E115: =Transport!D359 -> 241.3646113 | F115: =Transport!D349*H115/1000 -> 0 | G115: =Transport!D354*H115/1000 -> 0 | I115: =(E115*H115)/1000 -> 0 | J115: =OFFSET(J115,-1,0,1,1)+I115 -> 124273.2655 | K115: =J115/TotalEmis2025 -> 0.1534412347 | L115: 0
B116: Restriction à l'importation de voitures d'occasion | C116: =+Transport!D420 -> -210.545827 | D116: 1000 voitures | E116: =+Transport!D418 -> 931.392 | F116: =+Transport!B408*H116/1000000 -> 0 | G116: =+Transport!D91*H116/1000000 -> 0 | I116: 0 | J116: 124273.2655 | K116: 0.1534412347 | L116: =H116/3.1 -> 0
B117: Nouvelles voies cyclables | C117: =+Transport!D506 -> -144.8607822 | D117: 1 km voie cyclable | E117: =+Transport!D504 -> 686.5827118 | F117: =+Transport!B494*H117/1000000 -> 2.5 | G117: =+Transport!D499*H117/1000000 -> -4.972945435 | H117: 50 | I117: 34.32913559 | J117: 124307.5947 | K117: =J117/TotalEmis2025 -> 0.1534836212 | L117: =I117/3.1 -> 11.07391471
B118: Trois-roues électriques | C118: =+Transport!D532 -> 153.3735916 | D118: 1000 trois-roues | E118: =+Transport!D530 -> 293.2810331 | F118: =Transport!B520*H118/1000000 -> 0 | G118: =Transport!D525*H118/1000000 -> 0 | I118: 0 | J118: 124307.5947 | K118: =+J118/TotalEmis2025 -> 0.1534836212 | M118: =+Transport!C530*H118/2.87 -> 0
B119: Deux-roues électriques | C119: =+Transport!D560 -> 129.0824215 | D119: 1000 deux-roues | E119: =+Transport!D558 -> 739.7475 | F119: =Transport!D548*H119/1000000 -> 0 | G119: =Transport!D553*H119/1000000 -> 0 | I119: =(E119*H119)/1000 -> 0 | J119: =OFFSET(J119,-1,0,1,1)+I119 -> 124307.5947 | K119: =+J119/TotalEmis2025 -> 0.1534836212 | M119: =Transport!C558*H119/2.87 -> 0
